Workbook

Sheet Acerno_Cache_XXXXX (hidden)

Sheet Load and Cost Data
A1: 8760 data from "Marginal Cost Model 10-25-2018 CA Update new lmps.xlsx" | K1: Total Energy (MWh); Max and Min Load (MW)
D2: Col AB | E2: Col BF | F2: Col BN | G2: Col BR | H2: Col BX | Q2: Average Hourly Load and Marginal Cost, January
A3: Date | B3: Month | C3: Hour | D3: Loads | E3: Energy | F3: Trans | G3: Gen | H3: All in | K3: Month | L3: Total | M3: Max | N3: Min | P3: Month | Q3: Hour | R3: Loads | S3: Energy | T3: Trans | U3: Gen | V3: All in
A4: 2019-01-01 | B4: =MONTH(A4) -> 1 | C4: 1 | D4: ='Hourly - NLH'!AC13 -> 854.4951384 | E4: ='Hourly - NLH'!BG13 -> 68.86503199 | F4: ='Hourly - NLH'!BO13 -> 0 | G4: ='Hourly - NLH'!BS13 -> 0 | H4: ='Hourly - NLH'!BY13 -> 68.86503199 | I4: 1 | K4: Jan | L4: =SUM(IF(($B$4:$B$8763=I4),$D$4:$D$8763)) -> 813880.5238 | M4: =MAX(IF(($B$4:$B$8763=I4),$D$4:$D$8763)) -> 1466.569052 | N4: =MIN(IF(($B$4:$B$8763=I4),$D$4:$D$8763)) -> 742.344044 | P4: 1 | Q4: 1 | R4: =AVERAGE(IF(($B$4:$B$8763=$P4)+($C$4:$C$8763=$Q4)=2,D$4:D$8763)) -> 926.1509431 | S4: =AVERAGE(IF(($B$4:$B$8763=$P4)+($C$4:$C$8763=$Q4)=2,E$4:E$8763)) -> 75.36418601 | T4: =AVERAGE(IF(($B$4:$B$8763=$P4)+($C$4:$C$8763=$Q4)=2,F$4:F$8763)) -> 0 | U4: =AVERAGE(IF(($B$4:$B$8763=$P4)+($C$4:$C$8763=$Q4)=2,G$4:G$8763)) -> 2.00424563 | V4: =AVERAGE(IF(($B$4:$B$8763=$P4)+($C$4:$C$8763=$Q4)=2,H$4:H$8763)) -> 77.36843164 | X4: 1 | Y4: 1 | Z4: 20 | AA4: 1
A5: 2019-01-01 | B5: =MONTH(A5) -> 1 | C5: 2 | D5: ='Hourly - NLH'!AC14 -> 847.0846117 | E5: ='Hourly - NLH'!BG14 -> 59.9779138 | F5: ='Hourly - NLH'!BO14 -> 0 | G5: ='Hourly - NLH'!BS14 -> 0 | H5: ='Hourly - NLH'!BY14 -> 59.9779138 | I5: 2 | K5: Feb | L5: =SUM(IF(($B$4:$B$8763=I5),$D$4:$D$8763)) -> 748737.6464 | M5: =MAX(IF(($B$4:$B$8763=I5),$D$4:$D$8763)) -> 1428.9 | N5: =MIN(IF(($B$4:$B$8763=I5),$D$4:$D$8763)) -> 778.1091277 | P5: 1 | Q5: 2 | R5: =AVERAGE(IF(($B$4:$B$8763=$P5)+($C$4:$C$8763=$Q5)=2,D$4:D$8763)) -> 917.4873042 | S5: =AVERAGE(IF(($B$4:$B$8763=$P5)+($C$4:$C$8763=$Q5)=2,E$4:E$8763)) -> 67.57811218 | T5: =AVERAGE(IF(($B$4:$B$8763=$P5)+($C$4:$C$8763=$Q5)=2,F$4:F$8763)) -> 0 | U5: =AVERAGE(IF(($B$4:$B$8763=$P5)+($C$4:$C$8763=$Q5)=2,G$4:G$8763)) -> 0 | V5: =AVERAGE(IF(($B$4:$B$8763=$P5)+($C$4:$C$8763=$Q5)=2,H$4:H$8763)) -> 67.57811218 | Y5: 2 | Z5: 23 | AA5: 2
A6: 2019-01-01 | B6: 1 | C6: 3 | D6: ='Hourly - NLH'!AC15 -> 841.5614846 | E6: ='Hourly - NLH'!BG15 -> 52.09513354 | F6: ='Hourly - NLH'!BO15 -> 0 | G6: ='Hourly - NLH'!BS15 -> 0 | H6: ='Hourly - NLH'!BY15 -> 52.09513354 | I6: 3 | K6: Mar | L6: =SUM(IF(($B$4:$B$8763=I6),$D$4:$D$8763)) -> 730934.7243 | M6: =MAX(IF(($B$4:$B$8763=I6),$D$4:$D$8763)) -> 1376 | N6: =MIN(IF(($B$4:$B$8763=I6),$D$4:$D$8763)) -> 705.2991863 | P6: 1 | Q6: 3 | R6: =AVERAGE(IF(($B$4:$B$8763=$P6)+($C$4:$C$8763=$Q6)=2,D$4:D$8763)) -> 920.1073646 | S6: =AVERAGE(IF(($B$4:$B$8763=$P6)+($C$4:$C$8763=$Q6)=2,E$4:E$8763)) -> 59.85142279 | T6: =AVERAGE(IF(($B$4:$B$8763=$P6)+($C$4:$C$8763=$Q6)=2,F$4:F$8763)) -> 0 | U6: =AVERAGE(IF(($B$4:$B$8763=$P6)+($C$4:$C$8763=$Q6)=2,G$4:G$8763)) -> 0.5375012602 | V6: =AVERAGE(IF(($B$4:$B$8763=$P6)+($C$4:$C$8763=$Q6)=2,H$4:H$8763)) -> 60.38892405 | Y6: 3 | Z6: 26
A7: 2019-01-01 | B7: 1 | C7: 4 | D7: ='Hourly - NLH'!AC16 -> 852.7468104 | E7: ='Hourly - NLH'!BG16 -> 45.14519934 | F7: ='Hourly - NLH'!BO16 -> 0 | G7: ='Hourly - NLH'!BS16 -> 0 | H7: ='Hourly - NLH'!BY16 -> 45.14519934 | I7: 4 | K7: Apr | L7: =SUM(IF(($B$4:$B$8763=I7),$D$4:$D$8763)) -> 619000.9787 | M7: =MAX(IF(($B$4:$B$8763=I7),$D$4:$D$8763)) -> 1201 | N7: =MIN(IF(($B$4:$B$8763=I7),$D$4:$D$8763)) -> 640.7155303 | P7: 1 | Q7: 4 | R7: =AVERAGE(IF(($B$4:$B$8763=$P7)+($C$4:$C$8763=$Q7)=2,D$4:D$8763)) -> 931.8184058 | S7: =AVERAGE(IF(($B$4:$B$8763=$P7)+($C$4:$C$8763=$Q7)=2,E$4:E$8763)) -> 58.40417531 | T7: =AVERAGE(IF(($B$4:$B$8763=$P7)+($C$4:$C$8763=$Q7)=2,F$4:F$8763)) -> 0 | U7: =AVERAGE(IF(($B$4:$B$8763=$P7)+($C$4:$C$8763=$Q7)=2,G$4:G$8763)) -> 0.6106981893 | V7: =AVERAGE(IF(($B$4:$B$8763=$P7)+($C$4:$C$8763=$Q7)=2,H$4:H$8763)) -> 59.0148735 | Y7: 4 | Z7: 24
A8: 2019-01-01 | B8: 1 | C8: 5 | D8: ='Hourly - NLH'!AC17 -> 881.4154162 | E8: ='Hourly - NLH'!BG17 -> 39.01376975 | F8: ='Hourly - NLH'!BO17 -> 0 | G8: ='Hourly - NLH'!BS17 -> 0 | H8: ='Hourly - NLH'!BY17 -> 39.01376975 | I8: 5 | K8: May | L8: =SUM(IF(($B$4:$B$8763=I8),$D$4:$D$8763)) -> 494375.8894 | M8: =MAX(IF(($B$4:$B$8763=I8),$D$4:$D$8763)) -> 1010.269305 | N8: =MIN(IF(($B$4:$B$8763=I8),$D$4:$D$8763)) -> 420.2383568 | P8: 1 | Q8: 5 | R8: =AVERAGE(IF(($B$4:$B$8763=$P8)+($C$4:$C$8763=$Q8)=2,D$4:D$8763)) -> 945.0857476 | S8: =AVERAGE(IF(($B$4:$B$8763=$P8)+($C$4:$C$8763=$Q8)=2,E$4:E$8763)) -> 53.80986269 | T8: =AVERAGE(IF(($B$4:$B$8763=$P8)+($C$4:$C$8763=$Q8)=2,F$4:F$8763)) -> 0 | U8: =AVERAGE(IF(($B$4:$B$8763=$P8)+($C$4:$C$8763=$Q8)=2,G$4:G$8763)) -> 3.782071824 | V8: =AVERAGE(IF(($B$4:$B$8763=$P8)+($C$4:$C$8763=$Q8)=2,H$4:H$8763)) -> 57.59193452 | Y8: 5 | Z8: 19
A9: 2019-01-01 | B9: 1 | C9: 6 | D9: ='Hourly - NLH'!AC18 -> 921.7759655 | E9: ='Hourly - NLH'!BG18 -> 33.58530997 | F9: ='Hourly - NLH'!BO18 -> 0 | G9: ='Hourly - NLH'!BS18 -> 0 | H9: ='Hourly - NLH'!BY18 -> 33.58530997 | I9: 6 | K9: Jun | L9: =SUM(IF(($B$4:$B$8763=I9),$D$4:$D$8763)) -> 421600.1741 | M9: =MAX(IF(($B$4:$B$8763=I9),$D$4:$D$8763)) -> 860.6 | N9: =MIN(IF(($B$4:$B$8763=I9),$D$4:$D$8763)) -> 384.4496653 | P9: 1 | Q9: 6 | R9: =AVERAGE(IF(($B$4:$B$8763=$P9)+($C$4:$C$8763=$Q9)=2,D$4:D$8763)) -> 988.8153505 | S9: =AVERAGE(IF(($B$4:$B$8763=$P9)+($C$4:$C$8763=$Q9)=2,E$4:E$8763)) -> 51.67411662 | T9: =AVERAGE(IF(($B$4:$B$8763=$P9)+($C$4:$C$8763=$Q9)=2,F$4:F$8763)) -> 1.344653106 | U9: =AVERAGE(IF(($B$4:$B$8763=$P9)+($C$4:$C$8763=$Q9)=2,G$4:G$8763)) -> 26.57725549 | V9: =AVERAGE(IF(($B$4:$B$8763=$P9)+($C$4:$C$8763=$Q9)=2,H$4:H$8763)) -> 79.59602522 | X9: 2 | Y9: 1 | Z9: 22
A10: 2019-01-01 | B10: 1 | C10: 7 | D10: ='Hourly - NLH'!AC19 -> 974.1066014 | E10: ='Hourly - NLH'!BG19 -> 40.75160661 | F10: ='Hourly - NLH'!BO19 -> 0 | G10: ='Hourly - NLH'!BS19 -> 0 | H10: ='Hourly - NLH'!BY19 -> 40.75160661 | I10: 7 | K10: Jul | L10: =SUM(IF(($B$4:$B$8763=I10),$D$4:$D$8763)) -> 396823.6649 | M10: =MAX(IF(($B$4:$B$8763=I10),$D$4:$D$8763)) -> 728.5 | N10: =MIN(IF(($B$4:$B$8763=I10),$D$4:$D$8763)) -> 365.0235209 | P10: 1 | Q10: 7 | R10: =AVERAGE(IF(($B$4:$B$8763=$P10)+($C$4:$C$8763=$Q10)=2,D$4:D$8763)) -> 1088.226123 | S10: =AVERAGE(IF(($B$4:$B$8763=$P10)+($C$4:$C$8763=$Q10)=2,E$4:E$8763)) -> 63.61214527 | T10: =AVERAGE(IF(($B$4:$B$8763=$P10)+($C$4:$C$8763=$Q10)=2,F$4:F$8763)) -> 14.44510605 | U10: =AVERAGE(IF(($B$4:$B$8763=$P10)+($C$4:$C$8763=$Q10)=2,G$4:G$8763)) -> 136.228124 | V10: =AVERAGE(IF(($B$4:$B$8763=$P10)+($C$4:$C$8763=$Q10)=2,H$4:H$8763)) -> 214.2853754 | Y10: 2 | Z10: 26
A11: 2019-01-01 | B11: 1 | C11: 8 | D11: ='Hourly - NLH'!AC20 -> 1033.778228 | E11: ='Hourly - NLH'!BG20 -> 38.010886 | F11: ='Hourly - NLH'!BO20 -> 0 | G11: ='Hourly - NLH'!BS20 -> 0 | H11: ='Hourly - NLH'!BY20 -> 38.010886 | I11: 8 | K11: Aug | L11: =SUM(IF(($B$4:$B$8763=I11),$D$4:$D$8763)) -> 376773.5882 | M11: =MAX(IF(($B$4:$B$8763=I11),$D$4:$D$8763)) -> 698.2 | N11: =MIN(IF(($B$4:$B$8763=I11),$D$4:$D$8763)) -> 347.4527716 | P11: 1 | Q11: 8 | R11: =AVERAGE(IF(($B$4:$B$8763=$P11)+($C$4:$C$8763=$Q11)=2,D$4:D$8763)) -> 1168.334821 | S11: =AVERAGE(IF(($B$4:$B$8763=$P11)+($C$4:$C$8763=$Q11)=2,E$4:E$8763)) -> 60.19613829 | T11: =AVERAGE(IF(($B$4:$B$8763=$P11)+($C$4:$C$8763=$Q11)=2,F$4:F$8763)) -> 35.12467048 | U11: =AVERAGE(IF(($B$4:$B$8763=$P11)+($C$4:$C$8763=$Q11)=2,G$4:G$8763)) -> 289.9252187 | V11: =AVERAGE(IF(($B$4:$B$8763=$P11)+($C$4:$C$8763=$Q11)=2,H$4:H$8763)) -> 385.2460275 | Y11: 3 | Z11: 29
A12: 2019-01-01 | B12: 1 | C12: 9 | D12: ='Hourly - NLH'!AC21 -> 1118.303927 | E12: ='Hourly - NLH'!BG21 -> 38.09963811 | F12: ='Hourly - NLH'!BO21 -> 0 | G12: ='Hourly - NLH'!BS21 -> 0 | H12: ='Hourly - NLH'!BY21 -> 38.09963811 | I12: 9 | K12: Sep | L12: =SUM(IF(($B$4:$B$8763=I12),$D$4:$D$8763)) -> 398629.7758 | M12: =MAX(IF(($B$4:$B$8763=I12),$D$4:$D$8763)) -> 818.6 | N12: =MIN(IF(($B$4:$B$8763=I12),$D$4:$D$8763)) -> 375.5061774 | P12: 1 | Q12: 9 | R12: =AVERAGE(IF(($B$4:$B$8763=$P12)+($C$4:$C$8763=$Q12)=2,D$4:D$8763)) -> 1181.364367 | S12: =AVERAGE(IF(($B$4:$B$8763=$P12)+($C$4:$C$8763=$Q12)=2,E$4:E$8763)) -> 59.79998794 | T12: =AVERAGE(IF(($B$4:$B$8763=$P12)+($C$4:$C$8763=$Q12)=2,F$4:F$8763)) -> 34.43088939 | U12: =AVERAGE(IF(($B$4:$B$8763=$P12)+($C$4:$C$8763=$Q12)=2,G$4:G$8763)) -> 293.3071191 | V12: =AVERAGE(IF(($B$4:$B$8763=$P12)+($C$4:$C$8763=$Q12)=2,H$4:H$8763)) -> 387.5379965 | Y12: 4 | Z12: 27
A13: 2019-01-01 | B13: 1 | C13: 10 | D13: ='Hourly - NLH'!AC22 -> 1128.923033 | E13: ='Hourly - NLH'!BG22 -> 40.75598495 | F13: ='Hourly - NLH'!BO22 -> 0 | G13: ='Hourly - NLH'!BS22 -> 0 | H13: ='Hourly - NLH'!BY22 -> 40.75598495 | I13: 10 | K13: Oct | L13: =SUM(IF(($B$4:$B$8763=I13),$D$4:$D$8763)) -> 514898.0521 | M13: =MAX(IF(($B$4:$B$8763=I13),$D$4:$D$8763)) -> 1006.3 | N13: =MIN(IF(($B$4:$B$8763=I13),$D$4:$D$8763)) -> 384.3026554 | P13: 1 | Q13: 10 | R13: =AVERAGE(IF(($B$4:$B$8763=$P13)+($C$4:$C$8763=$Q13)=2,D$4:D$8763)) -> 1184.115704 | S13: =AVERAGE(IF(($B$4:$B$8763=$P13)+($C$4:$C$8763=$Q13)=2,E$4:E$8763)) -> 64.00452323 | T13: =AVERAGE(IF(($B$4:$B$8763=$P13)+($C$4:$C$8763=$Q13)=2,F$4:F$8763)) -> 34.78337676 | U13: =AVERAGE(IF(($B$4:$B$8763=$P13)+($C$4:$C$8763=$Q13)=2,G$4:G$8763)) -> 296.4757295 | V13: =AVERAGE(IF(($B$4:$B$8763=$P13)+($C$4:$C$8763=$Q13)=2,H$4:H$8763)) -> 395.2636295 | Y13: 5 | Z13: 21
A14: 2019-01-01 | B14: 1 | C14: 11 | D14: ='Hourly - NLH'!AC23 -> 1121.413169 | E14: ='Hourly - NLH'!BG23 -> 51.30756636 | F14: ='Hourly - NLH'!BO23 -> 0 | G14: ='Hourly - NLH'!BS23 -> 0 | H14: ='Hourly - NLH'!BY23 -> 51.30756636 | I14: 11 | K14: Nov | L14: =SUM(IF(($B$4:$B$8763=I14),$D$4:$D$8763)) -> 622668.5501 | M14: =MAX(IF(($B$4:$B$8763=I14),$D$4:$D$8763)) -> 1308.437041 | N14: =MIN(IF(($B$4:$B$8763=I14),$D$4:$D$8763)) -> 553.4891775 | P14: 1 | Q14: 11 | R14: =AVERAGE(IF(($B$4:$B$8763=$P14)+($C$4:$C$8763=$Q14)=2,D$4:D$8763)) -> 1159.034579 | S14: =AVERAGE(IF(($B$4:$B$8763=$P14)+($C$4:$C$8763=$Q14)=2,E$4:E$8763)) -> 71.66215603 | T14: =AVERAGE(IF(($B$4:$B$8763=$P14)+($C$4:$C$8763=$Q14)=2,F$4:F$8763)) -> 23.96079505 | U14: =AVERAGE(IF(($B$4:$B$8763=$P14)+($C$4:$C$8763=$Q14)=2,G$4:G$8763)) -> 225.0477092 | V14: =AVERAGE(IF(($B$4:$B$8763=$P14)+($C$4:$C$8763=$Q14)=2,H$4:H$8763)) -> 320.6706603
A15: 2019-01-01 | B15: 1 | C15: 12 | D15: ='Hourly - NLH'!AC24 -> 1139.403067 | E15: ='Hourly - NLH'!BG24 -> 66.59142786 | F15: ='Hourly - NLH'!BO24 -> 0 | G15: ='Hourly - NLH'!BS24 -> 0 | H15: ='Hourly - NLH'!BY24 -> 66.59142786 | I15: 12 | K15: Dec | L15: =SUM(IF(($B$4:$B$8763=I15),$D$4:$D$8763)) -> 779876.4323 | M15: =MAX(IF(($B$4:$B$8763=I15),$D$4:$D$8763)) -> 1485.6 | N15: =MIN(IF(($B$4:$B$8763=I15),$D$4:$D$8763)) -> 647.5537111 | P15: 1 | Q15: 12 | R15: =AVERAGE(IF(($B$4:$B$8763=$P15)+($C$4:$C$8763=$Q15)=2,D$4:D$8763)) -> 1151.492651 | S15: =AVERAGE(IF(($B$4:$B$8763=$P15)+($C$4:$C$8763=$Q15)=2,E$4:E$8763)) -> 89.20985834 | T15: =AVERAGE(IF(($B$4:$B$8763=$P15)+($C$4:$C$8763=$Q15)=2,F$4:F$8763)) -> 21.85055068 | U15: =AVERAGE(IF(($B$4:$B$8763=$P15)+($C$4:$C$8763=$Q15)=2,G$4:G$8763)) -> 213.8725967 | V15: =AVERAGE(IF(($B$4:$B$8763=$P15)+($C$4:$C$8763=$Q15)=2,H$4:H$8763)) -> 324.9330057
A16: 2019-01-01 | B16: 1 | C16: 13 | D16: ='Hourly - NLH'!AC25 -> 1140.177894 | E16: ='Hourly - NLH'!BG25 -> 69.38718916 | F16: ='Hourly - NLH'!BO25 -> 0 | G16: ='Hourly - NLH'!BS25 -> 0 | H16: ='Hourly - NLH'!BY25 -> 69.38718916 | K16: Total | L16: =SUM(L4:L15) -> 6918200 | P16: 1 | Q16: 13 | R16: =AVERAGE(IF(($B$4:$B$8763=$P16)+($C$4:$C$8763=$Q16)=2,D$4:D$8763)) -> 1119.84726 | S16: =AVERAGE(IF(($B$4:$B$8763=$P16)+($C$4:$C$8763=$Q16)=2,E$4:E$8763)) -> 92.51746576 | T16: =AVERAGE(IF(($B$4:$B$8763=$P16)+($C$4:$C$8763=$Q16)=2,F$4:F$8763)) -> 15.63929707 | U16: =AVERAGE(IF(($B$4:$B$8763=$P16)+($C$4:$C$8763=$Q16)=2,G$4:G$8763)) -> 154.1200543 | V16: =AVERAGE(IF(($B$4:$B$8763=$P16)+($C$4:$C$8763=$Q16)=2,H$4:H$8763)) -> 262.2768172
A17: 2019-01-01 | B17: 1 | C17: 14 | D17: ='Hourly - NLH'!AC26 -> 1171.816671 | E17: ='Hourly - NLH'!BG26 -> 66.73510749 | F17: ='Hourly - NLH'!BO26 -> 0 | G17: ='Hourly - NLH'!BS26 -> 97.97857349 | H17: ='Hourly - NLH'!BY26 -> 164.713681 | P17: 1 | Q17: 14 | R17: =AVERAGE(IF(($B$4:$B$8763=$P17)+($C$4:$C$8763=$Q17)=2,D$4:D$8763)) -> 1105.736589 | S17: =AVERAGE(IF(($B$4:$B$8763=$P17)+($C$4:$C$8763=$Q17)=2,E$4:E$8763)) -> 89.11939606 | T17: =AVERAGE(IF(($B$4:$B$8763=$P17)+($C$4:$C$8763=$Q17)=2,F$4:F$8763)) -> 12.15739315 | U17: =AVERAGE(IF(($B$4:$B$8763=$P17)+($C$4:$C$8763=$Q17)=2,G$4:G$8763)) -> 132.8531548 | V17: =AVERAGE(IF(($B$4:$B$8763=$P17)+($C$4:$C$8763=$Q17)=2,H$4:H$8763)) -> 234.129944
A18: 2019-01-01 | B18: 1 | C18: 15 | D18: ='Hourly - NLH'!AC27 -> 1210.150749 | E18: ='Hourly - NLH'!BG27 -> 66.01373518 | F18: ='Hourly - NLH'!BO27 -> 11.97166477 | G18: ='Hourly - NLH'!BS27 -> 237.023381 | H18: ='Hourly - NLH'!BY27 -> 315.0087809 | P18: 1 | Q18: 15 | R18: =AVERAGE(IF(($B$4:$B$8763=$P18)+($C$4:$C$8763=$Q18)=2,D$4:D$8763)) -> 1112.540508 | S18: =AVERAGE(IF(($B$4:$B$8763=$P18)+($C$4:$C$8763=$Q18)=2,E$4:E$8763)) -> 90.24244379 | T18: =AVERAGE(IF(($B$4:$B$8763=$P18)+($C$4:$C$8763=$Q18)=2,F$4:F$8763)) -> 14.59508194 | U18: =AVERAGE(IF(($B$4:$B$8763=$P18)+($C$4:$C$8763=$Q18)=2,G$4:G$8763)) -> 155.284165 | V18: =AVERAGE(IF(($B$4:$B$8763=$P18)+($C$4:$C$8763=$Q18)=2,H$4:H$8763)) -> 260.1216908
A19: 2019-01-01 | B19: 1 | C19: 16 | D19: ='Hourly - NLH'!AC28 -> 1371.016967 | E19: ='Hourly - NLH'!BG28 -> 65.8930917 | F19: ='Hourly - NLH'!BO28 -> 105.2303429 | G19: ='Hourly - NLH'!BS28 -> 838.4662317 | H19: ='Hourly - NLH'!BY28 -> 1009.589666 | N19: =L4/(M4*744) -> 0.7459078954 | P19: 1 | Q19: 16 | R19: =AVERAGE(IF(($B$4:$B$8763=$P19)+($C$4:$C$8763=$Q19)=2,D$4:D$8763)) -> 1165.538455 | S19: =AVERAGE(IF(($B$4:$B$8763=$P19)+($C$4:$C$8763=$Q19)=2,E$4:E$8763)) -> 89.51486717 | T19: =AVERAGE(IF(($B$4:$B$8763=$P19)+($C$4:$C$8763=$Q19)=2,F$4:F$8763)) -> 31.18600999 | U19: =AVERAGE(IF(($B$4:$B$8763=$P19)+($C$4:$C$8763=$Q19)=2,G$4:G$8763)) -> 269.8512728 | V19: =AVERAGE(IF(($B$4:$B$8763=$P19)+($C$4:$C$8763=$Q19)=2,H$4:H$8763)) -> 390.55215
A20: 2019-01-01 | B20: 1 | C20: 17 | D20: ='Hourly - NLH'!AC29 -> 1424.450241 | E20: ='Hourly - NLH'!BG29 -> 63.12898579 | F20: ='Hourly - NLH'!BO29 -> 136.7343155 | G20: ='Hourly - NLH'!BS29 -> 1042.319814 | H20: ='Hourly - NLH'!BY29 -> 1242.183116 | N20: =L10/(M10*744) -> 0.73214158 | P20: 1 | Q20: 17 | R20: =AVERAGE(IF(($B$4:$B$8763=$P20)+($C$4:$C$8763=$Q20)=2,D$4:D$8763)) -> 1244.16298 | S20: =AVERAGE(IF(($B$4:$B$8763=$P20)+($C$4:$C$8763=$Q20)=2,E$4:E$8763)) -> 85.51202198 | T20: =AVERAGE(IF(($B$4:$B$8763=$P20)+($C$4:$C$8763=$Q20)=2,F$4:F$8763)) -> 54.65582495 | U20: =AVERAGE(IF(($B$4:$B$8763=$P20)+($C$4:$C$8763=$Q20)=2,G$4:G$8763)) -> 454.1794942 | V20: =AVERAGE(IF(($B$4:$B$8763=$P20)+($C$4:$C$8763=$Q20)=2,H$4:H$8763)) -> 594.3473411
A21: 2019-01-01 | B21: 1 | C21: 18 | D21: ='Hourly - NLH'!AC30 -> 1402.864351 | E21: ='Hourly - NLH'!BG30 -> 59.63471 | F21: ='Hourly - NLH'!BO30 -> 123.9881218 | G21: ='Hourly - NLH'!BS30 -> 959.7676716 | H21: ='Hourly - NLH'!BY30 -> 1143.390503 | P21: 1 | Q21: 18 | R21: =AVERAGE(IF(($B$4:$B$8763=$P21)+($C$4:$C$8763=$Q21)=2,D$4:D$8763)) -> 1246.543683 | S21: =AVERAGE(IF(($B$4:$B$8763=$P21)+($C$4:$C$8763=$Q21)=2,E$4:E$8763)) -> 80.18224846 | T21: =AVERAGE(IF(($B$4:$B$8763=$P21)+($C$4:$C$8763=$Q21)=2,F$4:F$8763)) -> 53.23051618 | U21: =AVERAGE(IF(($B$4:$B$8763=$P21)+($C$4:$C$8763=$Q21)=2,G$4:G$8763)) -> 445.5725153 | V21: =AVERAGE(IF(($B$4:$B$8763=$P21)+($C$4:$C$8763=$Q21)=2,H$4:H$8763)) -> 578.9852799
A22: 2019-01-01 | B22: 1 | C22: 19 | D22: ='Hourly - NLH'!AC31 -> 1418.539701 | E22: ='Hourly - NLH'!BG31 -> 57.89964015 | F22: ='Hourly - NLH'!BO31 -> 133.241803 | G22: ='Hourly - NLH'!BS31 -> 1019.68977 | H22: ='Hourly - NLH'!BY31 -> 1210.831213 | N22: =230-60 -> 170 | P22: 1 | Q22: 19 | R22: =AVERAGE(IF(($B$4:$B$8763=$P22)+($C$4:$C$8763=$Q22)=2,D$4:D$8763)) -> 1226.922015 | S22: =AVERAGE(IF(($B$4:$B$8763=$P22)+($C$4:$C$8763=$Q22)=2,E$4:E$8763)) -> 76.80084342 | T22: =AVERAGE(IF(($B$4:$B$8763=$P22)+($C$4:$C$8763=$Q22)=2,F$4:F$8763)) -> 48.1725136 | U22: =AVERAGE(IF(($B$4:$B$8763=$P22)+($C$4:$C$8763=$Q22)=2,G$4:G$8763)) -> 400.0987208 | V22: =AVERAGE(IF(($B$4:$B$8763=$P22)+($C$4:$C$8763=$Q22)=2,H$4:H$8763)) -> 525.0720778
A23: 2019-01-01 | B23: 1 | C23: 20 | D23: ='Hourly - NLH'!AC32 -> 1442.54941 | E23: ='Hourly - NLH'!BG32 -> 56.03168601 | F23: ='Hourly - NLH'!BO32 -> 147.4397431 | G23: ='Hourly - NLH'!BS32 -> 1111.736216 | H23: ='Hourly - NLH'!BY32 -> 1315.207645 | N23: =265-68 -> 197 | P23: 1 | Q23: 20 | R23: =AVERAGE(IF(($B$4:$B$8763=$P23)+($C$4:$C$8763=$Q23)=2,D$4:D$8763)) -> 1208.034158 | S23: =AVERAGE(IF(($B$4:$B$8763=$P23)+($C$4:$C$8763=$Q23)=2,E$4:E$8763)) -> 74.49830519 | T23: =AVERAGE(IF(($B$4:$B$8763=$P23)+($C$4:$C$8763=$Q23)=2,F$4:F$8763)) -> 42.41556526 | U23: =AVERAGE(IF(($B$4:$B$8763=$P23)+($C$4:$C$8763=$Q23)=2,G$4:G$8763)) -> 357.6943442 | V23: =AVERAGE(IF(($B$4:$B$8763=$P23)+($C$4:$C$8763=$Q23)=2,H$4:H$8763)) -> 474.6082147
A24: 2019-01-01 | B24: 1 | C24: 21 | D24: ='Hourly - NLH'!AC33 -> 1426.804524 | E24: ='Hourly - NLH'!BG33 -> 57.95499263 | F24: ='Hourly - NLH'!BO33 -> 138.1259406 | G24: ='Hourly - NLH'!BS33 -> 1051.33918 | H24: ='Hourly - NLH'!BY33 -> 1247.420113 | P24: 1 | Q24: 21 | R24: =AVERAGE(IF(($B$4:$B$8763=$P24)+($C$4:$C$8763=$Q24)=2,D$4:D$8763)) -> 1170.048443 | S24: =AVERAGE(IF(($B$4:$B$8763=$P24)+($C$4:$C$8763=$Q24)=2,E$4:E$8763)) -> 76.41177335 | T24: =AVERAGE(IF(($B$4:$B$8763=$P24)+($C$4:$C$8763=$Q24)=2,F$4:F$8763)) -> 28.89598995 | U24: =AVERAGE(IF(($B$4:$B$8763=$P24)+($C$4:$C$8763=$Q24)=2,G$4:G$8763)) -> 261.0414382 | V24: =AVERAGE(IF(($B$4:$B$8763=$P24)+($C$4:$C$8763=$Q24)=2,H$4:H$8763)) -> 366.3492015
A25: 2019-01-01 | B25: 1 | C25: 22 | D25: ='Hourly - NLH'!AC34 -> 1429.635623 | E25: ='Hourly - NLH'!BG34 -> 54.57088769 | F25: ='Hourly - NLH'!BO34 -> 139.7997776 | G25: ='Hourly - NLH'!BS34 -> 1062.189285 | H25: ='Hourly - NLH'!BY34 -> 1256.55995 | P25: 1 | Q25: 22 | R25: =AVERAGE(IF(($B$4:$B$8763=$P25)+($C$4:$C$8763=$Q25)=2,D$4:D$8763)) -> 1113.948462 | S25: =AVERAGE(IF(($B$4:$B$8763=$P25)+($C$4:$C$8763=$Q25)=2,E$4:E$8763)) -> 69.04774883 | T25: =AVERAGE(IF(($B$4:$B$8763=$P25)+($C$4:$C$8763=$Q25)=2,F$4:F$8763)) -> 15.93342179 | U25: =AVERAGE(IF(($B$4:$B$8763=$P25)+($C$4:$C$8763=$Q25)=2,G$4:G$8763)) -> 153.973838 | V25: =AVERAGE(IF(($B$4:$B$8763=$P25)+($C$4:$C$8763=$Q25)=2,H$4:H$8763)) -> 238.9550087
A26: 2019-01-01 | B26: 1 | C26: 23 | D26: ='Hourly - NLH'!AC35 -> 1374.990439 | E26: ='Hourly - NLH'!BG35 -> 80.69467175 | F26: ='Hourly - NLH'!BO35 -> 107.5673198 | G26: ='Hourly - NLH'!BS35 -> 853.5671741 | H26: ='Hourly - NLH'!BY35 -> 1041.829166 | P26: 1 | Q26: 23 | R26: =AVERAGE(IF(($B$4:$B$8763=$P26)+($C$4:$C$8763=$Q26)=2,D$4:D$8763)) -> 1025.999087 | S26: =AVERAGE(IF(($B$4:$B$8763=$P26)+($C$4:$C$8763=$Q26)=2,E$4:E$8763)) -> 97.91660146 | T26: =AVERAGE(IF(($B$4:$B$8763=$P26)+($C$4:$C$8763=$Q26)=2,F$4:F$8763)) -> 3.469913543 | U26: =AVERAGE(IF(($B$4:$B$8763=$P26)+($C$4:$C$8763=$Q26)=2,G$4:G$8763)) -> 35.75645835 | V26: =AVERAGE(IF(($B$4:$B$8763=$P26)+($C$4:$C$8763=$Q26)=2,H$4:H$8763)) -> 137.1429734
A27: 2019-01-01 | B27: 1 | C27: 24 | D27: ='Hourly - NLH'!AC36 -> 1203.902463 | E27: ='Hourly - NLH'!BG36 -> 72.1661739 | F27: ='Hourly - NLH'!BO36 -> 8.462135303 | G27: ='Hourly - NLH'!BS36 -> 214.1829079 | H27: ='Hourly - NLH'!BY36 -> 294.8112171 | P27: 1 | Q27: 24 | R27: =AVERAGE(IF(($B$4:$B$8763=$P27)+($C$4:$C$8763=$Q27)=2,D$4:D$8763)) -> 952.8554465 | S27: =AVERAGE(IF(($B$4:$B$8763=$P27)+($C$4:$C$8763=$Q27)=2,E$4:E$8763)) -> 89.33548679 | T27: =AVERAGE(IF(($B$4:$B$8763=$P27)+($C$4:$C$8763=$Q27)=2,F$4:F$8763)) -> 0.2729721066 | U27: =AVERAGE(IF(($B$4:$B$8763=$P27)+($C$4:$C$8763=$Q27)=2,G$4:G$8763)) -> 6.90912606 | V27: =AVERAGE(IF(($B$4:$B$8763=$P27)+($C$4:$C$8763=$Q27)=2,H$4:H$8763)) -> 96.51758496
A28: 2019-01-02 | B28: 1 | C28: 1 | D28: ='Hourly - NLH'!AC37 -> 1161.773719 | E28: ='Hourly - NLH'!BG37 -> 56.5176837 | F28: ='Hourly - NLH'!BO37 -> 0 | G28: ='Hourly - NLH'!BS37 -> 62.13161454 | H28: ='Hourly - NLH'!BY37 -> 118.6492982
A29: 2019-01-02 | B29: 1 | C29: 2 | D29: ='Hourly - NLH'!AC38 -> 1143.456009 | E29: ='Hourly - NLH'!BG38 -> 48.31649804 | F29: ='Hourly - NLH'!BO38 -> 0 | G29: ='Hourly - NLH'!BS38 -> 0 | H29: ='Hourly - NLH'!BY38 -> 48.31649804 | Q29: Average Hourly Load and Marginal Cost, July
A30: 2019-01-02 | B30: 1 | C30: 3 | D30: ='Hourly - NLH'!AC39 -> 1148.830131 | E30: ='Hourly - NLH'!BG39 -> 44.26726091 | F30: ='Hourly - NLH'!BO39 -> 0 | G30: ='Hourly - NLH'!BS39 -> 16.66253907 | H30: ='Hourly - NLH'!BY39 -> 60.92979997 | P30: Month | Q30: Hour | R30: Loads | S30: Energy | T30: Trans | U30: Gen | V30: All in
A31: 2019-01-02 | B31: 1 | C31: 4 | D31: ='Hourly - NLH'!AC40 -> 1149.485754 | E31: ='Hourly - NLH'!BG40 -> 59.44938493 | F31: ='Hourly - NLH'!BO40 -> 0 | G31: ='Hourly - NLH'!BS40 -> 18.93164387 | H31: ='Hourly - NLH'!BY40 -> 78.3810288 | P31: 7 | Q31: 1 | R31: =AVERAGE(IF(($B$4:$B$8763=$P31)+($C$4:$C$8763=$Q31)=2,D$4:D$8763)) -> 434.7844755 | S31: =AVERAGE(IF(($B$4:$B$8763=$P31)+($C$4:$C$8763=$Q31)=2,E$4:E$8763)) -> 34.87212764 | T31: =AVERAGE(IF(($B$4:$B$8763=$P31)+($C$4:$C$8763=$Q31)=2,F$4:F$8763)) -> 0 | U31: =AVERAGE(IF(($B$4:$B$8763=$P31)+($C$4:$C$8763=$Q31)=2,G$4:G$8763)) -> 0 | V31: =AVERAGE(IF(($B$4:$B$8763=$P31)+($C$4:$C$8763=$Q31)=2,H$4:H$8763)) -> 34.87212764
A32: 2019-01-02 | B32: 1 | C32: 5 | D32: ='Hourly - NLH'!AC41 -> 1154.065182 | E32: ='Hourly - NLH'!BG41 -> 53.46122817 | F32: ='Hourly - NLH'!BO41 -> 0 | G32: ='Hourly - NLH'!BS41 -> 34.90911836 | H32: ='Hourly - NLH'!BY41 -> 88.37034654 | P32: 7 | Q32: 2 | R32: =AVERAGE(IF(($B$4:$B$8763=$P32)+($C$4:$C$8763=$Q32)=2,D$4:D$8763)) -> 420.4218051 | S32: =AVERAGE(IF(($B$4:$B$8763=$P32)+($C$4:$C$8763=$Q32)=2,E$4:E$8763)) -> 29.96588444 | T32: =AVERAGE(IF(($B$4:$B$8763=$P32)+($C$4:$C$8763=$Q32)=2,F$4:F$8763)) -> 0 | U32: =AVERAGE(IF(($B$4:$B$8763=$P32)+($C$4:$C$8763=$Q32)=2,G$4:G$8763)) -> 0 | V32: =AVERAGE(IF(($B$4:$B$8763=$P32)+($C$4:$C$8763=$Q32)=2,H$4:H$8763)) -> 29.96588444
A33: 2019-01-02 | B33: 1 | C33: 6 | D33: ='Hourly - NLH'!AC42 -> 1235.99819 | E33: ='Hourly - NLH'!BG42 -> 57.10454847 | F33: ='Hourly - NLH'!BO42 -> 26.66614415 | G33: ='Hourly - NLH'!BS42 -> 332.0558253 | H33: ='Hourly - NLH'!BY42 -> 415.8265179 | P33: 7 | Q33: 3 | R33: =AVERAGE(IF(($B$4:$B$8763=$P33)+($C$4:$C$8763=$Q33)=2,D$4:D$8763)) -> 412.1455919 | S33: =AVERAGE(IF(($B$4:$B$8763=$P33)+($C$4:$C$8763=$Q33)=2,E$4:E$8763)) -> 24.05605589 | T33: =AVERAGE(IF(($B$4:$B$8763=$P33)+($C$4:$C$8763=$Q33)=2,F$4:F$8763)) -> 0 | U33: =AVERAGE(IF(($B$4:$B$8763=$P33)+($C$4:$C$8763=$Q33)=2,G$4:G$8763)) -> 0 | V33: =AVERAGE(IF(($B$4:$B$8763=$P33)+($C$4:$C$8763=$Q33)=2,H$4:H$8763)) -> 24.05605589
A34: 2019-01-02 | B34: 1 | C34: 7 | D34: ='Hourly - NLH'!AC43 -> 1358.37139 | E34: ='Hourly - NLH'!BG43 -> 73.09453686 | F34: ='Hourly - NLH'!BO43 -> 97.79979306 | G34: ='Hourly - NLH'!BS43 -> 790.4730792 | H34: ='Hourly - NLH'!BY43 -> 961.3674091 | P34: 7 | Q34: 4 | R34: =AVERAGE(IF(($B$4:$B$8763=$P34)+($C$4:$C$8763=$Q34)=2,D$4:D$8763)) -> 410.8333186 | S34: =AVERAGE(IF(($B$4:$B$8763=$P34)+($C$4:$C$8763=$Q34)=2,E$4:E$8763)) -> 21.85985323 | T34: =AVERAGE(IF(($B$4:$B$8763=$P34)+($C$4:$C$8763=$Q34)=2,F$4:F$8763)) -> 0 | U34: =AVERAGE(IF(($B$4:$B$8763=$P34)+($C$4:$C$8763=$Q34)=2,G$4:G$8763)) -> 0 | V34: =AVERAGE(IF(($B$4:$B$8763=$P34)+($C$4:$C$8763=$Q34)=2,H$4:H$8763)) -> 21.85985323
A35: 2019-01-02 | B35: 1 | C35: 8 | D35: ='Hourly - NLH'!AC44 -> 1338.374888 | E35: ='Hourly - NLH'!BG44 -> 69.8258953 | F35: ='Hourly - NLH'!BO44 -> 86.0727539 | G35: ='Hourly - NLH'!BS44 -> 714.7917441 | H35: ='Hourly - NLH'!BY44 -> 870.6903933 | P35: 7 | Q35: 5 | R35: =AVERAGE(IF(($B$4:$B$8763=$P35)+($C$4:$C$8763=$Q35)=2,D$4:D$8763)) -> 414.0602845 | S35: =AVERAGE(IF(($B$4:$B$8763=$P35)+($C$4:$C$8763=$Q35)=2,E$4:E$8763)) -> 18.14665554 | T35: =AVERAGE(IF(($B$4:$B$8763=$P35)+($C$4:$C$8763=$Q35)=2,F$4:F$8763)) -> 0 | U35: =AVERAGE(IF(($B$4:$B$8763=$P35)+($C$4:$C$8763=$Q35)=2,G$4:G$8763)) -> 0 | V35: =AVERAGE(IF(($B$4:$B$8763=$P35)+($C$4:$C$8763=$Q35)=2,H$4:H$8763)) -> 18.14665554
A36: 2019-01-02 | B36: 1 | C36: 9 | D36: ='Hourly - NLH'!AC45 -> 1417.437062 | E36: ='Hourly - NLH'!BG45 -> 71.2474132 | F36: ='Hourly - NLH'!BO45 -> 132.5904559 | G36: ='Hourly - NLH'!BS45 -> 1015.470182 | H36: ='Hourly - NLH'!BY45 -> 1219.308051 | P36: 7 | Q36: 6 | R36: =AVERAGE(IF(($B$4:$B$8763=$P36)+($C$4:$C$8763=$Q36)=2,D$4:D$8763)) -> 428.2983062 | S36: =AVERAGE(IF(($B$4:$B$8763=$P36)+($C$4:$C$8763=$Q36)=2,E$4:E$8763)) -> 15.69167592 | T36: =AVERAGE(IF(($B$4:$B$8763=$P36)+($C$4:$C$8763=$Q36)=2,F$4:F$8763)) -> 0 | U36: =AVERAGE(IF(($B$4:$B$8763=$P36)+($C$4:$C$8763=$Q36)=2,G$4:G$8763)) -> 0 | V36: =AVERAGE(IF(($B$4:$B$8763=$P36)+($C$4:$C$8763=$Q36)=2,H$4:H$8763)) -> 15.69167592
A37: 2019-01-02 | B37: 1 | C37: 10 | D37: ='Hourly - NLH'!AC46 -> 1430.440251 | E37: ='Hourly - NLH'!BG46 -> 75.31254074 | F37: ='Hourly - NLH'!BO46 -> 140.2755717 | G37: ='Hourly - NLH'!BS46 -> 1065.273799 | H37: ='Hourly - NLH'!BY46 -> 1280.861912 | P37: 7 | Q37: 7 | R37: =AVERAGE(IF(($B$4:$B$8763=$P37)+($C$4:$C$8763=$Q37)=2,D$4:D$8763)) -> 474.2869878 | S37: =AVERAGE(IF(($B$4:$B$8763=$P37)+($C$4:$C$8763=$Q37)=2,E$4:E$8763)) -> 13.48563049 | T37: =AVERAGE(IF(($B$4:$B$8763=$P37)+($C$4:$C$8763=$Q37)=2,F$4:F$8763)) -> 0 | U37: =AVERAGE(IF(($B$4:$B$8763=$P37)+($C$4:$C$8763=$Q37)=2,G$4:G$8763)) -> 0 | V37: =AVERAGE(IF(($B$4:$B$8763=$P37)+($C$4:$C$8763=$Q37)=2,H$4:H$8763)) -> 13.48563049
A38: 2019-01-02 | B38: 1 | C38: 11 | D38: ='Hourly - NLH'!AC47 -> 1402.556407 | E38: ='Hourly - NLH'!BG47 -> 82.70478726 | F38: ='Hourly - NLH'!BO47 -> 123.8064645 | G38: ='Hourly - NLH'!BS47 -> 958.591898 | H38: ='Hourly - NLH'!BY47 -> 1165.10315 | P38: 7 | Q38: 8 | R38: =AVERAGE(IF(($B$4:$B$8763=$P38)+($C$4:$C$8763=$Q38)=2,D$4:D$8763)) -> 542.1588079 | S38: =AVERAGE(IF(($B$4:$B$8763=$P38)+($C$4:$C$8763=$Q38)=2,E$4:E$8763)) -> 11.27795495 | T38: =AVERAGE(IF(($B$4:$B$8763=$P38)+($C$4:$C$8763=$Q38)=2,F$4:F$8763)) -> 0 | U38: =AVERAGE(IF(($B$4:$B$8763=$P38)+($C$4:$C$8763=$Q38)=2,G$4:G$8763)) -> 0 | V38: =AVERAGE(IF(($B$4:$B$8763=$P38)+($C$4:$C$8763=$Q38)=2,H$4:H$8763)) -> 11.27795495
A39: 2019-01-02 | B39: 1 | C39: 12 | D39: ='Hourly - NLH'!AC48 -> 1392.215444 | E39: ='Hourly - NLH'!BG48 -> 100.4874382 | F39: ='Hourly - NLH'!BO48 -> 117.7093769 | G39: ='Hourly - NLH'!BS48 -> 919.1406372 | H39: ='Hourly - NLH'!BY48 -> 1137.337452 | P39: 7 | Q39: 9 | R39: =AVERAGE(IF(($B$4:$B$8763=$P39)+($C$4:$C$8763=$Q39)=2,D$4:D$8763)) -> 588.3349328 | S39: =AVERAGE(IF(($B$4:$B$8763=$P39)+($C$4:$C$8763=$Q39)=2,E$4:E$8763)) -> 8.785054494 | T39: =AVERAGE(IF(($B$4:$B$8763=$P39)+($C$4:$C$8763=$Q39)=2,F$4:F$8763)) -> 0 | U39: =AVERAGE(IF(($B$4:$B$8763=$P39)+($C$4:$C$8763=$Q39)=2,G$4:G$8763)) -> 0 | V39: =AVERAGE(IF(($B$4:$B$8763=$P39)+($C$4:$C$8763=$Q39)=2,H$4:H$8763)) -> 8.785054494
A40: 2019-01-02 | B40: 1 | C40: 13 | D40: ='Hourly - NLH'!AC49 -> 1374.195745 | E40: ='Hourly - NLH'!BG49 -> 110.8919992 | F40: ='Hourly - NLH'!BO49 -> 107.0998441 | G40: ='Hourly - NLH'!BS49 -> 850.5462075 | H40: ='Hourly - NLH'!BY49 -> 1068.538051 | P40: 7 | Q40: 10 | R40: =AVERAGE(IF(($B$4:$B$8763=$P40)+($C$4:$C$8763=$Q40)=2,D$4:D$8763)) -> 620.8739772 | S40: =AVERAGE(IF(($B$4:$B$8763=$P40)+($C$4:$C$8763=$Q40)=2,E$4:E$8763)) -> 8.986260034 | T40: =AVERAGE(IF(($B$4:$B$8763=$P40)+($C$4:$C$8763=$Q40)=2,F$4:F$8763)) -> 0 | U40: =AVERAGE(IF(($B$4:$B$8763=$P40)+($C$4:$C$8763=$Q40)=2,G$4:G$8763)) -> 0 | V40: =AVERAGE(IF(($B$4:$B$8763=$P40)+($C$4:$C$8763=$Q40)=2,H$4:H$8763)) -> 8.986260034
A41: 2019-01-02 | B41: 1 | C41: 14 | D41: ='Hourly - NLH'!AC50 -> 1373.142775 | E41: ='Hourly - NLH'!BG50 -> 106.9128018 | F41: ='Hourly - NLH'!BO50 -> 106.4805004 | G41: ='Hourly - NLH'!BS50 -> 846.544025 | H41: ='Hourly - NLH'!BY50 -> 1059.937327 | P41: 7 | Q41: 11 | R41: =AVERAGE(IF(($B$4:$B$8763=$P41)+($C$4:$C$8763=$Q41)=2,D$4:D$8763)) -> 625.8860438 | S41: =AVERAGE(IF(($B$4:$B$8763=$P41)+($C$4:$C$8763=$Q41)=2,E$4:E$8763)) -> 10.49376105 | T41: =AVERAGE(IF(($B$4:$B$8763=$P41)+($C$4:$C$8763=$Q41)=2,F$4:F$8763)) -> 0 | U41: =AVERAGE(IF(($B$4:$B$8763=$P41)+($C$4:$C$8763=$Q41)=2,G$4:G$8763)) -> 0 | V41: =AVERAGE(IF(($B$4:$B$8763=$P41)+($C$4:$C$8763=$Q41)=2,H$4:H$8763)) -> 10.49376105
A42: 2019-01-02 | B42: 1 | C42: 15 | D42: ='Hourly - NLH'!AC51 -> 1380.265224 | E42: ='Hourly - NLH'!BG51 -> 103.2111731 | F42: ='Hourly - NLH'!BO51 -> 110.671192 | G42: ='Hourly - NLH'!BS51 -> 873.6286279 | H42: ='Hourly - NLH'!BY51 -> 1087.510993 | P42: 7 | Q42: 12 | R42: =AVERAGE(IF(($B$4:$B$8763=$P42)+($C$4:$C$8763=$Q42)=2,D$4:D$8763)) -> 635.1795768 | S42: =AVERAGE(IF(($B$4:$B$8763=$P42)+($C$4:$C$8763=$Q42)=2,E$4:E$8763)) -> 13.39300378 | T42: =AVERAGE(IF(($B$4:$B$8763=$P42)+($C$4:$C$8763=$Q42)=2,F$4:F$8763)) -> 0 | U42: =AVERAGE(IF(($B$4:$B$8763=$P42)+($C$4:$C$8763=$Q42)=2,G$4:G$8763)) -> 0 | V42: =AVERAGE(IF(($B$4:$B$8763=$P42)+($C$4:$C$8763=$Q42)=2,H$4:H$8763)) -> 13.39300378
A43: 2019-01-02 | B43: 1 | C43: 16 | D43: ='Hourly - NLH'!AC52 -> 1423.397271 | E43: ='Hourly - NLH'!BG52 -> 96.53160634 | F43: ='Hourly - NLH'!BO52 -> 136.1119907 | G43: ='Hourly - NLH'!BS52 -> 1038.286825 | H43: ='Hourly - NLH'!BY52 -> 1270.930422 | P43: 7 | Q43: 13 | R43: =AVERAGE(IF(($B$4:$B$8763=$P43)+($C$4:$C$8763=$Q43)=2,D$4:D$8763)) -> 613.6543003 | S43: =AVERAGE(IF(($B$4:$B$8763=$P43)+($C$4:$C$8763=$Q43)=2,E$4:E$8763)) -> 16.65799285 | T43: =AVERAGE(IF(($B$4:$B$8763=$P43)+($C$4:$C$8763=$Q43)=2,F$4:F$8763)) -> 0 | U43: =AVERAGE(IF(($B$4:$B$8763=$P43)+($C$4:$C$8763=$Q43)=2,G$4:G$8763)) -> 0 | V43: =AVERAGE(IF(($B$4:$B$8763=$P43)+($C$4:$C$8763=$Q43)=2,H$4:H$8763)) -> 16.65799285
A44: 2019-01-02 | B44: 1 | C44: 17 | D44: ='Hourly - NLH'!AC53 -> 1463.340606 | E44: ='Hourly - NLH'!BG53 -> 93.86480412 | F44: ='Hourly - NLH'!BO53 -> 159.7562614 | G44: ='Hourly - NLH'!BS53 -> 1191.693055 | H44: ='Hourly - NLH'!BY53 -> 1445.314121 | P44: 7 | Q44: 14 | R44: =AVERAGE(IF(($B$4:$B$8763=$P44)+($C$4:$C$8763=$Q44)=2,D$4:D$8763)) -> 589.4857468 | S44: =AVERAGE(IF(($B$4:$B$8763=$P44)+($C$4:$C$8763=$Q44)=2,E$4:E$8763)) -> 20.53288423 | T44: =AVERAGE(IF(($B$4:$B$8763=$P44)+($C$4:$C$8763=$Q44)=2,F$4:F$8763)) -> 0 | U44: =AVERAGE(IF(($B$4:$B$8763=$P44)+($C$4:$C$8763=$Q44)=2,G$4:G$8763)) -> 0 | V44: =AVERAGE(IF(($B$4:$B$8763=$P44)+($C$4:$C$8763=$Q44)=2,H$4:H$8763)) -> 20.53288423
A45: 2019-01-02 | B45: 1 | C45: 18 | D45: ='Hourly - NLH'!AC54 -> 1426.466779 | E45: ='Hourly - NLH'!BG54 -> 85.43850446 | F45: ='Hourly - NLH'!BO54 -> 137.9262812 | G45: ='Hourly - NLH'!BS54 -> 1050.045075 | H45: ='Hourly - NLH'!BY54 -> 1273.409861 | P45: 7 | Q45: 15 | R45: =AVERAGE(IF(($B$4:$B$8763=$P45)+($C$4:$C$8763=$Q45)=2,D$4:D$8763)) -> 572.0939207 | S45: =AVERAGE(IF(($B$4:$B$8763=$P45)+($C$4:$C$8763=$Q45)=2,E$4:E$8763)) -> 24.18811318 | T45: =AVERAGE(IF(($B$4:$B$8763=$P45)+($C$4:$C$8763=$Q45)=2,F$4:F$8763)) -> 0 | U45: =AVERAGE(IF(($B$4:$B$8763=$P45)+($C$4:$C$8763=$Q45)=2,G$4:G$8763)) -> 0 | V45: =AVERAGE(IF(($B$4:$B$8763=$P45)+($C$4:$C$8763=$Q45)=2,H$4:H$8763)) -> 24.18811318
A46: 2019-01-02 | B46: 1 | C46: 19 | D46: ='Hourly - NLH'!AC55 -> 1413.602661 | E46: ='Hourly - NLH'!BG55 -> 82.45118051 | F46: ='Hourly - NLH'!BO55 -> 130.3259013 | G46: ='Hourly - NLH'!BS55 -> 1000.801966 | H46: ='Hourly - NLH'!BY55 -> 1213.579047 | P46: 7 | Q46: 16 | R46: =AVERAGE(IF(($B$4:$B$8763=$P46)+($C$4:$C$8763=$Q46)=2,D$4:D$8763)) -> 576.1411183 | S46: =AVERAGE(IF(($B$4:$B$8763=$P46)+($C$4:$C$8763=$Q46)=2,E$4:E$8763)) -> 27.36360618 | T46: =AVERAGE(IF(($B$4:$B$8763=$P46)+($C$4:$C$8763=$Q46)=2,F$4:F$8763)) -> 0 | U46: =AVERAGE(IF(($B$4:$B$8763=$P46)+($C$4:$C$8763=$Q46)=2,G$4:G$8763)) -> 0 | V46: =AVERAGE(IF(($B$4:$B$8763=$P46)+($C$4:$C$8763=$Q46)=2,H$4:H$8763)) -> 27.36360618
A47: 2019-01-02 | B47: 1 | C47: 20 | D47: ='Hourly - NLH'!AC56 -> 1420.725111 | E47: ='Hourly - NLH'!BG56 -> 80.56284933 | F47: ='Hourly - NLH'!BO56 -> 134.5329455 | G47: ='Hourly - NLH'!BS56 -> 1028.054921 | H47: ='Hourly - NLH'!BY56 -> 1243.150716 | P47: 7 | Q47: 17 | R47: =AVERAGE(IF(($B$4:$B$8763=$P47)+($C$4:$C$8763=$Q47)=2,D$4:D$8763)) -> 596.7476783 | S47: =AVERAGE(IF(($B$4:$B$8763=$P47)+($C$4:$C$8763=$Q47)=2,E$4:E$8763)) -> 32.37772758 | T47: =AVERAGE(IF(($B$4:$B$8763=$P47)+($C$4:$C$8763=$Q47)=2,F$4:F$8763)) -> 0 | U47: =AVERAGE(IF(($B$4:$B$8763=$P47)+($C$4:$C$8763=$Q47)=2,G$4:G$8763)) -> 0 | V47: =AVERAGE(IF(($B$4:$B$8763=$P47)+($C$4:$C$8763=$Q47)=2,H$4:H$8763)) -> 32.37772758
A48: 2019-01-02 | B48: 1 | C48: 21 | D48: ='Hourly - NLH'!AC57 -> 1396.556463 | E48: ='Hourly - NLH'!BG57 -> 80.8142215 | F48: ='Hourly - NLH'!BO57 -> 120.2681291 | G48: ='Hourly - NLH'!BS57 -> 935.6942322 | H48: ='Hourly - NLH'!BY57 -> 1136.776583 | P48: 7 | Q48: 18 | R48: =AVERAGE(IF(($B$4:$B$8763=$P48)+($C$4:$C$8763=$Q48)=2,D$4:D$8763)) -> 582.52302 | S48: =AVERAGE(IF(($B$4:$B$8763=$P48)+($C$4:$C$8763=$Q48)=2,E$4:E$8763)) -> 35.92141802 | T48: =AVERAGE(IF(($B$4:$B$8763=$P48)+($C$4:$C$8763=$Q48)=2,F$4:F$8763)) -> 0 | U48: =AVERAGE(IF(($B$4:$B$8763=$P48)+($C$4:$C$8763=$Q48)=2,G$4:G$8763)) -> 0 | V48: =AVERAGE(IF(($B$4:$B$8763=$P48)+($C$4:$C$8763=$Q48)=2,H$4:H$8763)) -> 35.92141802
A49: 2019-01-02 | B49: 1 | C49: 22 | D49: ='Hourly - NLH'!AC58 -> 1227.604228 | E49: ='Hourly - NLH'!BG58 -> 69.55939096 | F49: ='Hourly - NLH'!BO58 -> 21.87045611 | G49: ='Hourly - NLH'!BS58 -> 301.1047472 | H49: ='Hourly - NLH'!BY58 -> 392.5345943 | P49: 7 | Q49: 19 | R49: =AVERAGE(IF(($B$4:$B$8763=$P49)+($C$4:$C$8763=$Q49)=2,D$4:D$8763)) -> 567.1118738 | S49: =AVERAGE(IF(($B$4:$B$8763=$P49)+($C$4:$C$8763=$Q49)=2,E$4:E$8763)) -> 39.60807404 | T49: =AVERAGE(IF(($B$4:$B$8763=$P49)+($C$4:$C$8763=$Q49)=2,F$4:F$8763)) -> 0 | U49: =AVERAGE(IF(($B$4:$B$8763=$P49)+($C$4:$C$8763=$Q49)=2,G$4:G$8763)) -> 0 | V49: =AVERAGE(IF(($B$4:$B$8763=$P49)+($C$4:$C$8763=$Q49)=2,H$4:H$8763)) -> 39.60807404
A50: 2019-01-02 | B50: 1 | C50: 23 | D50: ='Hourly - NLH'!AC59 -> 1122.128395 | E50: ='Hourly - NLH'!BG59 -> 108.2885371 | F50: ='Hourly - NLH'!BO59 -> 0 | G50: ='Hourly - NLH'!BS59 -> 0 | H50: ='Hourly - NLH'!BY59 -> 108.2885371 | P50: 7 | Q50: 20 | R50: =AVERAGE(IF(($B$4:$B$8763=$P50)+($C$4:$C$8763=$Q50)=2,D$4:D$8763)) -> 562.3470184 | S50: =AVERAGE(IF(($B$4:$B$8763=$P50)+($C$4:$C$8763=$Q50)=2,E$4:E$8763)) -> 42.56733833 | T50: =AVERAGE(IF(($B$4:$B$8763=$P50)+($C$4:$C$8763=$Q50)=2,F$4:F$8763)) -> 0 | U50: =AVERAGE(IF(($B$4:$B$8763=$P50)+($C$4:$C$8763=$Q50)=2,G$4:G$8763)) -> 0 | V50: =AVERAGE(IF(($B$4:$B$8763=$P50)+($C$4:$C$8763=$Q50)=2,H$4:H$8763)) -> 42.56733833
A51: 2019-01-02 | B51: 1 | C51: 24 | D51: ='Hourly - NLH'!AC60 -> 1023.914082 | E51: ='Hourly - NLH'!BG60 -> 96.5445163 | F51: ='Hourly - NLH'!BO60 -> 0 | G51: ='Hourly - NLH'!BS60 -> 0 | H51: ='Hourly - NLH'!BY60 -> 96.5445163 | P51: 7 | Q51: 21 | R51: =AVERAGE(IF(($B$4:$B$8763=$P51)+($C$4:$C$8763=$Q51)=2,D$4:D$8763)) -> 581.5750933 | S51: =AVERAGE(IF(($B$4:$B$8763=$P51)+($C$4:$C$8763=$Q51)=2,E$4:E$8763)) -> 44.79372982 | T51: =AVERAGE(IF(($B$4:$B$8763=$P51)+($C$4:$C$8763=$Q51)=2,F$4:F$8763)) -> 0 | U51: =AVERAGE(IF(($B$4:$B$8763=$P51)+($C$4:$C$8763=$Q51)=2,G$4:G$8763)) -> 0 | V51: =AVERAGE(IF(($B$4:$B$8763=$P51)+($C$4:$C$8763=$Q51)=2,H$4:H$8763)) -> 44.79372982
A52: 2019-01-03 | B52: 1 | C52: 1 | D52: ='Hourly - NLH'!AC61 -> 975.9641999 | E52: ='Hourly - NLH'!BG61 -> 78.67962821 | F52: ='Hourly - NLH'!BO61 -> 0 | G52: ='Hourly - NLH'!BS61 -> 0 | H52: ='Hourly - NLH'!BY61 -> 78.67962821 | P52: 7 | Q52: 22 | R52: =AVERAGE(IF(($B$4:$B$8763=$P52)+($C$4:$C$8763=$Q52)=2,D$4:D$8763)) -> 578.2906697 | S52: =AVERAGE(IF(($B$4:$B$8763=$P52)+($C$4:$C$8763=$Q52)=2,E$4:E$8763)) -> 46.47544371 | T52: =AVERAGE(IF(($B$4:$B$8763=$P52)+($C$4:$C$8763=$Q52)=2,F$4:F$8763)) -> 0 | U52: =AVERAGE(IF(($B$4:$B$8763=$P52)+($C$4:$C$8763=$Q52)=2,G$4:G$8763)) -> 0 | V52: =AVERAGE(IF(($B$4:$B$8763=$P52)+($C$4:$C$8763=$Q52)=2,H$4:H$8763)) -> 46.47544371
A53: 2019-01-03 | B53: 1 | C53: 2 | D53: ='Hourly - NLH'!AC62 -> 950.9611228 | E53: ='Hourly - NLH'!BG62 -> 71.03534346 | F53: ='Hourly - NLH'!BO62 -> 0 | G53: ='Hourly - NLH'!BS62 -> 0 | H53: ='Hourly - NLH'!BY62 -> 71.03534346 | P53: 7 | Q53: 23 | R53: =AVERAGE(IF(($B$4:$B$8763=$P53)+($C$4:$C$8763=$Q53)=2,D$4:D$8763)) -> 517.6688577 | S53: =AVERAGE(IF(($B$4:$B$8763=$P53)+($C$4:$C$8763=$Q53)=2,E$4:E$8763)) -> 45.93385601 | T53: =AVERAGE(IF(($B$4:$B$8763=$P53)+($C$4:$C$8763=$Q53)=2,F$4:F$8763)) -> 0 | U53: =AVERAGE(IF(($B$4:$B$8763=$P53)+($C$4:$C$8763=$Q53)=2,G$4:G$8763)) -> 0 | V53: =AVERAGE(IF(($B$4:$B$8763=$P53)+($C$4:$C$8763=$Q53)=2,H$4:H$8763)) -> 45.93385601
A54: 2019-01-03 | B54: 1 | C54: 3 | D54: ='Hourly - NLH'!AC63 -> 940.4910221 | E54: ='Hourly - NLH'!BG63 -> 59.12681766 | F54: ='Hourly - NLH'!BO63 -> 0 | G54: ='Hourly - NLH'!BS63 -> 0 | H54: ='Hourly - NLH'!BY63 -> 59.12681766 | P54: 7 | Q54: 24 | R54: =AVERAGE(IF(($B$4:$B$8763=$P54)+($C$4:$C$8763=$Q54)=2,D$4:D$8763)) -> 455.8599789 | S54: =AVERAGE(IF(($B$4:$B$8763=$P54)+($C$4:$C$8763=$Q54)=2,E$4:E$8763)) -> 40.42923196 | T54: =AVERAGE(IF(($B$4:$B$8763=$P54)+($C$4:$C$8763=$Q54)=2,F$4:F$8763)) -> 0 | U54: =AVERAGE(IF(($B$4:$B$8763=$P54)+($C$4:$C$8763=$Q54)=2,G$4:G$8763)) -> 0 | V54: =AVERAGE(IF(($B$4:$B$8763=$P54)+($C$4:$C$8763=$Q54)=2,H$4:H$8763)) -> 40.42923196
A55: 2019-01-03 | B55: 1 | C55: 4 | D55: ='Hourly - NLH'!AC64 -> 935.7228548 | E55: ='Hourly - NLH'!BG64 -> 50.48534029 | F55: ='Hourly - NLH'!BO64 -> 0 | G55: ='Hourly - NLH'!BS64 -> 0 | H55: ='Hourly - NLH'!BY64 -> 50.48534029
A56: 2019-01-03 | B56: 1 | C56: 5 | D56: ='Hourly - NLH'!AC65 -> 933.7559858 | E56: ='Hourly - NLH'!BG65 -> 46.77347535 | F56: ='Hourly - NLH'!BO65 -> 0 | G56: ='Hourly - NLH'!BS65 -> 0 | H56: ='Hourly - NLH'!BY65 -> 46.77347535
A57: 2019-01-03 | B57: 1 | C57: 6 | D57: ='Hourly - NLH'!AC66 -> 964.3020575 | E57: ='Hourly - NLH'!BG66 -> 41.20686583 | F57: ='Hourly - NLH'!BO66 -> 0 | G57: ='Hourly - NLH'!BS66 -> 0 | H57: ='Hourly - NLH'!BY66 -> 41.20686583
A58: 2019-01-03 | B58: 1 | C58: 7 | D58: ='Hourly - NLH'!AC67 -> 1065.585878 | E58: ='Hourly - NLH'!BG67 -> 47.39615602 | F58: ='Hourly - NLH'!BO67 -> 0 | G58: ='Hourly - NLH'!BS67 -> 0 | H58: ='Hourly - NLH'!BY67 -> 47.39615602
A59: 2019-01-03 | B59: 1 | C59: 8 | D59: ='Hourly - NLH'!AC68 -> 1118.224458 | E59: ='Hourly - NLH'!BG68 -> 42.44572028 | F59: ='Hourly - NLH'!BO68 -> 0 | G59: ='Hourly - NLH'!BS68 -> 0 | H59: ='Hourly - NLH'!BY68 -> 42.44572028
A60: 2019-01-03 | B60: 1 | C60: 9 | D60: ='Hourly - NLH'!AC69 -> 1101.009387 | E60: ='Hourly - NLH'!BG69 -> 42.23480929 | F60: ='Hourly - NLH'!BO69 -> 0 | G60: ='Hourly - NLH'!BS69 -> 0 | H60: ='Hourly - NLH'!BY69 -> 42.23480929
A61: 2019-01-03 | B61: 1 | C61: 10 | D61: ='Hourly - NLH'!AC70 -> 1094.840571 | E61: ='Hourly - NLH'!BG70 -> 52.77707954 | F61: ='Hourly - NLH'!BO70 -> 0 | G61: ='Hourly - NLH'!BS70 -> 0 | H61: ='Hourly - NLH'!BY70 -> 52.77707954
A62: 2019-01-03 | B62: 1 | C62: 11 | D62: ='Hourly - NLH'!AC71 -> 1080.257926 | E62: ='Hourly - NLH'!BG71 -> 64.27206883 | F62: ='Hourly - NLH'!BO71 -> 0 | G62: ='Hourly - NLH'!BS71 -> 0 | H62: ='Hourly - NLH'!BY71 -> 64.27206883
A63: 2019-01-03 | B63: 1 | C63: 12 | D63: ='Hourly - NLH'!AC72 -> 1062.307763 | E63: ='Hourly - NLH'!BG72 -> 89.43910539 | F63: ='Hourly - NLH'!BO72 -> 0 | G63: ='Hourly - NLH'!BS72 -> 0 | H63: ='Hourly - NLH'!BY72 -> 89.43910539
A64: 2019-01-03 | B64: 1 | C64: 13 | D64: ='Hourly - NLH'!AC73 -> 1038.486793 | E64: ='Hourly - NLH'!BG73 -> 85.88547468 | F64: ='Hourly - NLH'!BO73 -> 0 | G64: ='Hourly - NLH'!BS73 -> 0 | H64: ='Hourly - NLH'!BY73 -> 85.88547468
A65: 2019-01-03 | B65: 1 | C65: 14 | D65: ='Hourly - NLH'!AC74 -> 1005.387766 | E65: ='Hourly - NLH'!BG74 -> 78.92524001 | F65: ='Hourly - NLH'!BO74 -> 0 | G65: ='Hourly - NLH'!BS74 -> 0 | H65: ='Hourly - NLH'!BY74 -> 78.92524001
A66: 2019-01-03 | B66: 1 | C66: 15 | D66: ='Hourly - NLH'!AC75 -> 997.9772389 | E66: ='Hourly - NLH'!BG75 -> 80.78361149 | F66: ='Hourly - NLH'!BO75 -> 0 | G66: ='Hourly - NLH'!BS75 -> 0 | H66: ='Hourly - NLH'!BY75 -> 80.78361149
A67: 2019-01-03 | B67: 1 | C67: 16 | D67: ='Hourly - NLH'!AC76 -> 1035.546424 | E67: ='Hourly - NLH'!BG76 -> 83.32952806 | F67: ='Hourly - NLH'!BO76 -> 0 | G67: ='Hourly - NLH'!BS76 -> 0 | H67: ='Hourly - NLH'!BY76 -> 83.32952806
A68: 2019-01-03 | B68: 1 | C68: 17 | D68: ='Hourly - NLH'!AC77 -> 1144.648051 | E68: ='Hourly - NLH'!BG77 -> 78.7528402 | F68: ='Hourly - NLH'!BO77 -> 0 | G68: ='Hourly - NLH'!BS77 -> 2.400333202 | H68: ='Hourly - NLH'!BY77 -> 81.1531734
A69: 2019-01-03 | B69: =MONTH(A69) -> 1 | C69: 18 | D69: ='Hourly - NLH'!AC78 -> 1139.263996 | E69: ='Hourly - NLH'!BG78 -> 76.94859328 | F69: ='Hourly - NLH'!BO78 -> 0 | G69: ='Hourly - NLH'!BS78 -> 0 | H69: ='Hourly - NLH'!BY78 -> 76.94859328
A70: 2019-01-03 | B70: 1 | C70: 19 | D70: ='Hourly - NLH'!AC79 -> 1125.019096 | E70: ='Hourly - NLH'!BG79 -> 73.92032313 | F70: ='Hourly - NLH'!BO79 -> 0 | G70: ='Hourly - NLH'!BS79 -> 0 | H70: ='Hourly - NLH'!BY79 -> 73.92032313
A71: 2019-01-03 | B71: 1 | C71: 20 | D71: ='Hourly - NLH'!AC80 -> 1119.784046 | E71: ='Hourly - NLH'!BG80 -> 72.76653793 | F71: ='Hourly - NLH'!BO80 -> 0 | G71: ='Hourly - NLH'!BS80 -> 0 | H71: ='Hourly - NLH'!BY80 -> 72.76653793
A72: 2019-01-03 | B72: 1 | C72: 21 | D72: ='Hourly - NLH'!AC81 -> 1099.092186 | E72: ='Hourly - NLH'!BG81 -> 73.84265551 | F72: ='Hourly - NLH'!BO81 -> 0 | G72: ='Hourly - NLH'!BS81 -> 0 | H72: ='Hourly - NLH'!BY81 -> 73.84265551
A73: 2019-01-03 | B73: 1 | C73: 22 | D73: ='Hourly - NLH'!AC82 -> 1050.913829 | E73: ='Hourly - NLH'!BG82 -> 63.38663064 | F73: ='Hourly - NLH'!BO82 -> 0 | G73: ='Hourly - NLH'!BS82 -> 0 | H73: ='Hourly - NLH'!BY82 -> 63.38663064
A74: 2019-01-03 | B74: 1 | C74: 23 | D74: ='Hourly - NLH'!AC83 -> 969.5371078 | E74: ='Hourly - NLH'!BG83 -> 91.75769034 | F74: ='Hourly - NLH'!BO83 -> 0 | G74: ='Hourly - NLH'!BS83 -> 0 | H74: ='Hourly - NLH'!BY83 -> 91.75769034
A75: 2019-01-03 | B75: 1 | C75: 24 | D75: ='Hourly - NLH'!AC84 -> 897.3291745 | E75: ='Hourly - NLH'!BG84 -> 80.55690045 | F75: ='Hourly - NLH'!BO84 -> 0 | G75: ='Hourly - NLH'!BS84 -> 0 | H75: ='Hourly - NLH'!BY84 -> 80.55690045
A76: 2019-01-04 | B76: 1 | C76: 1 | D76: ='Hourly - NLH'!AC85 -> 853.7799133 | E76: ='Hourly - NLH'!BG85 -> 68.86210805 | F76: ='Hourly - NLH'!BO85 -> 0 | G76: ='Hourly - NLH'!BS85 -> 0 | H76: ='Hourly - NLH'!BY85 -> 68.86210805
A77: 2019-01-04 | B77: 1 | C77: 2 | D77: ='Hourly - NLH'!AC86 -> 861.0811695 | E77: ='Hourly - NLH'!BG86 -> 66.37176072 | F77: ='Hourly - NLH'!BO86 -> 0 | G77: ='Hourly - NLH'!BS86 -> 0 | H77: ='Hourly - NLH'!BY86 -> 66.37176072
A78: 2019-01-04 | B78: 1 | C78: 3 | D78: ='Hourly - NLH'!AC87 -> 888.7663407 | E78: ='Hourly - NLH'!BG87 -> 63.11056898 | F78: ='Hourly - NLH'!BO87 -> 0 | G78: ='Hourly - NLH'!BS87 -> 0 | H78: ='Hourly - NLH'!BY87 -> 63.11056898
A79: 2019-01-04 | B79: 1 | C79: 4 | D79: ='Hourly - NLH'!AC88 -> 911.0873238 | E79: ='Hourly - NLH'!BG88 -> 66.00286806 | F79: ='Hourly - NLH'!BO88 -> 0 | G79: ='Hourly - NLH'!BS88 -> 0 | H79: ='Hourly - NLH'!BY88 -> 66.00286806
A80: 2019-01-04 | B80: 1 | C80: 5 | D80: ='Hourly - NLH'!AC89 -> 962.6232652 | E80: ='Hourly - NLH'!BG89 -> 62.30719375 | F80: ='Hourly - NLH'!BO89 -> 0 | G80: ='Hourly - NLH'!BS89 -> 0 | H80: ='Hourly - NLH'!BY89 -> 62.30719375
A81: 2019-01-04 | B81: 1 | C81: 6 | D81: ='Hourly - NLH'!AC90 -> 1019.145915 | E81: ='Hourly - NLH'!BG90 -> 49.8136326 | F81: ='Hourly - NLH'!BO90 -> 0 | G81: ='Hourly - NLH'!BS90 -> 0 | H81: ='Hourly - NLH'!BY90 -> 49.8136326
A82: 2019-01-04 | B82: 1 | C82: 7 | D82: ='Hourly - NLH'!AC91 -> 1158.386333 | E82: ='Hourly - NLH'!BG91 -> 63.48713781 | F82: ='Hourly - NLH'!BO91 -> 0 | G82: ='Hourly - NLH'!BS91 -> 50.12994944 | H82: ='Hourly - NLH'!BY91 -> 113.6170872
A83: 2019-01-04 | B83: 1 | C83: 8 | D83: ='Hourly - NLH'!AC92 -> 1349.431076 | E83: ='Hourly - NLH'!BG92 -> 59.19699528 | F83: ='Hourly - NLH'!BO92 -> 92.55308553 | G83: ='Hourly - NLH'!BS92 -> 756.6039193 | H83: ='Hourly - NLH'!BY92 -> 908.3540001
A84: 2019-01-04 | B84: 1 | C84: 9 | D84: ='Hourly - NLH'!AC93 -> 1367.97726 | E84: ='Hourly - NLH'!BG93 -> 56.9763248 | F84: ='Hourly - NLH'!BO93 -> 103.4432412 | G84: ='Hourly - NLH'!BS93 -> 826.920611 | H84: ='Hourly - NLH'!BY93 -> 987.3401769
A85: 2019-01-04 | B85: 1 | C85: 10 | D85: ='Hourly - NLH'!AC94 -> 1363.616374 | E85: ='Hourly - NLH'!BG94 -> 64.18795215 | F85: ='Hourly - NLH'!BO94 -> 100.8804521 | G85: ='Hourly - NLH'!BS94 -> 810.366883 | H85: ='Hourly - NLH'!BY94 -> 975.4352873
A86: 2019-01-04 | B86: 1 | C86: 11 | D86: ='Hourly - NLH'!AC95 -> 1356.235648 | E86: ='Hourly - NLH'!BG95 -> 77.93444958 | F86: ='Hourly - NLH'!BO95 -> 96.54589965 | G86: ='Hourly - NLH'!BS95 -> 782.3774145 | H86: ='Hourly - NLH'!BY95 -> 956.8577638
A87: 2019-01-04 | B87: 1 | C87: 12 | D87: ='Hourly - NLH'!AC96 -> 1245.991473 | E87: ='Hourly - NLH'!BG96 -> 130.1926174 | F87: ='Hourly - NLH'!BO96 -> 32.3975914 | G87: ='Hourly - NLH'!BS96 -> 369.0051521 | H87: ='Hourly - NLH'!BY96 -> 531.5953608
A88: 2019-01-04 | B88: 1 | C88: 13 | D88: ='Hourly - NLH'!AC97 -> 1229.908843 | E88: ='Hourly - NLH'!BG97 -> 124.4614287 | F88: ='Hourly - NLH'!BO97 -> 23.18526134 | G88: ='Hourly - NLH'!BS97 -> 309.5945079 | H88: ='Hourly - NLH'!BY97 -> 457.2411979
A89: 2019-01-04 | B89: 1 | C89: 14 | D89: ='Hourly - NLH'!AC98 -> 1242.047802 | E89: ='Hourly - NLH'!BG98 -> 109.5013657 | F89: ='Hourly - NLH'!BO98 -> 30.1331852 | G89: ='Hourly - NLH'!BS98 -> 354.411111 | H89: ='Hourly - NLH'!BY98 -> 494.0456619
A90: 2019-01-04 | B90: 1 | C90: 15 | D90: ='Hourly - NLH'!AC99 -> 1345.705945 | E90: ='Hourly - NLH'!BG99 -> 104.6574704 | F90: ='Hourly - NLH'!BO99 -> 90.36865917 | G90: ='Hourly - NLH'!BS99 -> 742.5071726 | H90: ='Hourly - NLH'!BY99 -> 937.5333022
A91: 2019-01-04 | B91: 1 | C91: 16 | D91: ='Hourly - NLH'!AC100 -> 1395.225349 | E91: ='Hourly - NLH'!BG100 -> 105.4426455 | F91: ='Hourly - NLH'!BO100 -> 119.4834086 | G91: ='Hourly - NLH'!BS100 -> 930.6171266 | H91: ='Hourly - NLH'!BY100 -> 1155.543181
A92: 2019-01-04 | B92: 1 | C92: 17 | D92: ='Hourly - NLH'!AC101 -> 1430.569389 | E92: ='Hourly - NLH'!BG101 -> 98.46071092 | F92: ='Hourly - NLH'!BO101 -> 140.3519366 | G92: ='Hourly - NLH'!BS101 -> 1065.768878 | H92: ='Hourly - NLH'!BY101 -> 1304.581525
A93: 2019-01-04 | B93: 1 | C93: 18 | D93: ='Hourly - NLH'!AC102 -> 1428.016433 | E93: ='Hourly - NLH'!BG102 -> 85.79363584 | F93: ='Hourly - NLH'!BO102 -> 138.8424119 | G93: ='Hourly - NLH'!BS102 -> 1055.983248 | H93: ='Hourly - NLH'!BY102 -> 1280.619296
A94: 2019-01-04 | B94: 1 | C94: 19 | D94: ='Hourly - NLH'!AC103 -> 1421.271463 | E94: ='Hourly - NLH'!BG103 -> 86.27717303 | F94: ='Hourly - NLH'!BO103 -> 134.8557692 | G94: ='Hourly - NLH'!BS103 -> 1030.146624 | H94: ='Hourly - NLH'!BY103 -> 1251.279566
A95: 2019-01-04 | B95: 1 | C95: 20 | D95: ='Hourly - NLH'!AC104 -> 1411.000036 | E95: ='Hourly - NLH'!BG104 -> 82.71165718 | F95: ='Hourly - NLH'!BO104 -> 128.7892588 | G95: ='Hourly - NLH'!BS104 -> 990.8505366 | H95: ='Hourly - NLH'!BY104 -> 1202.351453
A96: 2019-01-04 | B96: 1 | C96: 21 | D96: ='Hourly - NLH'!AC105 -> 1375.030174 | E96: ='Hourly - NLH'!BG105 -> 88.36596931 | F96: ='Hourly - NLH'!BO105 -> 107.5906947 | G96: ='Hourly - NLH'!BS105 -> 853.7182326 | H96: ='Hourly - NLH'!BY105 -> 1049.674897
A97: 2019-01-04 | B97: 1 | C97: 22 | D97: ='Hourly - NLH'!AC106 -> 1243.239844 | E97: ='Hourly - NLH'!BG106 -> 83.39754524 | F97: ='Hourly - NLH'!BO106 -> 30.81729973 | G97: ='Hourly - NLH'!BS106 -> 358.8206995 | H97: ='Hourly - NLH'!BY106 -> 473.0355445
A98: 2019-01-04 | B98: 1 | C98: 23 | D98: ='Hourly - NLH'!AC107 -> 1138.151423 | E98: ='Hourly - NLH'!BG107 -> 124.5568555 | F98: ='Hourly - NLH'!BO107 -> 0 | G98: ='Hourly - NLH'!BS107 -> 0 | H98: ='Hourly - NLH'!BY107 -> 124.5568555
A99: 2019-01-04 | B99: 1 | C99: 24 | D99: ='Hourly - NLH'!AC108 -> 1026.755115 | E99: ='Hourly - NLH'!BG108 -> 115.3957392 | F99: ='Hourly - NLH'!BO108 -> 0 | G99: ='Hourly - NLH'!BS108 -> 0 | H99: ='Hourly - NLH'!BY108 -> 115.3957392
A100: 2019-01-05 | B100: 1 | C100: 1 | D100: ='Hourly - NLH'!AC109 -> 1016.026739 | E100: ='Hourly - NLH'!BG109 -> 91.82347493 | F100: ='Hourly - NLH'!BO109 -> 0 | G100: ='Hourly - NLH'!BS109 -> 0 | H100: ='Hourly - NLH'!BY109 -> 91.82347493
A101: 2019-01-05 | B101: 1 | C101: 2 | D101: ='Hourly - NLH'!AC110 -> 1000.619598 | E101: ='Hourly - NLH'!BG110 -> 89.8466986 | F101: ='Hourly - NLH'!BO110 -> 0 | G101: ='Hourly - NLH'!BS110 -> 0 | H101: ='Hourly - NLH'!BY110 -> 89.8466986
A102: 2019-01-05 | B102: 1 | C102: 3 | D102: ='Hourly - NLH'!AC111 -> 1000.38119 | E102: ='Hourly - NLH'!BG111 -> 73.98371467 | F102: ='Hourly - NLH'!BO111 -> 0 | G102: ='Hourly - NLH'!BS111 -> 0 | H102: ='Hourly - NLH'!BY111 -> 73.98371467
A103: 2019-01-05 | B103: 1 | C103: 4 | D103: ='Hourly - NLH'!AC112 -> 1013.563186 | E103: ='Hourly - NLH'!BG112 -> 80.80797595 | F103: ='Hourly - NLH'!BO112 -> 0 | G103: ='Hourly - NLH'!BS112 -> 0 | H103: ='Hourly - NLH'!BY112 -> 80.80797595
A104: 2019-01-05 | B104: 1 | C104: 5 | D104: ='Hourly - NLH'!AC113 -> 1035.288148 | E104: ='Hourly - NLH'!BG113 -> 72.56761442 | F104: ='Hourly - NLH'!BO113 -> 0 | G104: ='Hourly - NLH'!BS113 -> 0 | H104: ='Hourly - NLH'!BY113 -> 72.56761442
A105: 2019-01-05 | B105: 1 | C105: 6 | D105: ='Hourly - NLH'!AC114 -> 1087.906861 | E105: ='Hourly - NLH'!BG114 -> 74.73152165 | F105: ='Hourly - NLH'!BO114 -> 0 | G105: ='Hourly - NLH'!BS114 -> 0 | H105: ='Hourly - NLH'!BY114 -> 74.73152165
A106: 2019-01-05 | B106: 1 | C106: 7 | D106: ='Hourly - NLH'!AC115 -> 1212.991782 | E106: ='Hourly - NLH'!BG115 -> 93.81232194 | F106: ='Hourly - NLH'!BO115 -> 13.57455275 | G106: ='Hourly - NLH'!BS115 -> 247.4271657 | H106: ='Hourly - NLH'!BY115 -> 354.8140404
A107: 2019-01-05 | B107: 1 | C107: 8 | D107: ='Hourly - NLH'!AC116 -> 1371.891131 | E107: ='Hourly - NLH'!BG116 -> 93.27762209 | F107: ='Hourly - NLH'!BO116 -> 105.7443913 | G107: ='Hourly - NLH'!BS116 -> 841.7876029 | H107: ='Hourly - NLH'!BY116 -> 1040.809616
A108: 2019-01-05 | B108: 1 | C108: 9 | D108: ='Hourly - NLH'!AC117 -> 1383.672477 | E108: ='Hourly - NLH'!BG117 -> 91.84570564 | F108: ='Hourly - NLH'!BO117 -> 112.6770523 | G108: ='Hourly - NLH'!BS117 -> 886.596321 | H108: ='Hourly - NLH'!BY117 -> 1091.119079
A109: 2019-01-05 | B109: 1 | C109: 10 | D109: ='Hourly - NLH'!AC118 -> 1368.334873 | E109: ='Hourly - NLH'!BG118 -> 93.97460031 | F109: ='Hourly - NLH'!BO118 -> 103.6534572 | G109: ='Hourly - NLH'!BS118 -> 828.2786207 | H109: ='Hourly - NLH'!BY118 -> 1025.906678
A110: 2019-01-05 | B110: 1 | C110: 11 | D110: ='Hourly - NLH'!AC119 -> 1348.060228 | E110: ='Hourly - NLH'!BG119 -> 98.01299099 | F110: ='Hourly - NLH'!BO119 -> 91.74909779 | G110: ='Hourly - NLH'!BS119 -> 751.4152527 | H110: ='Hourly - NLH'!BY119 -> 941.1773414
A111: 2019-01-05 | B111: 1 | C111: 12 | D111: ='Hourly - NLH'!AC120 -> 1337.311984 | E111: ='Hourly - NLH'!BG120 -> 108.9205789 | F111: ='Hourly - NLH'!BO120 -> 85.45024982 | G111: ='Hourly - NLH'!BS120 -> 710.7763866 | H111: ='Hourly - NLH'!BY120 -> 905.1472154
A112: 2019-01-05 | B112: 1 | C112: 13 | D112: ='Hourly - NLH'!AC121 -> 1224.594323 | E112: ='Hourly - NLH'!BG121 -> 110.4267952 | F112: ='Hourly - NLH'!BO121 -> 20.15562196 | G112: ='Hourly - NLH'!BS121 -> 290.026304 | H112: ='Hourly - NLH'!BY121 -> 420.6087212
A113: 2019-01-05 | B113: 1 | C113: 14 | D113: ='Hourly - NLH'!AC122 -> 1203.614387 | E113: ='Hourly - NLH'!BG122 -> 121.8576904 | F113: ='Hourly - NLH'!BO122 -> 8.300939771 | G113: ='Hourly - NLH'!BS122 -> 213.1312468 | H113: ='Hourly - NLH'!BY122 -> 343.2898771
A114: 2019-01-05 | B114: 1 | C114: 15 | D114: ='Hourly - NLH'!AC123 -> 1211.760006 | E114: ='Hourly - NLH'!BG123 -> 138.0980451 | F114: ='Hourly - NLH'!BO123 -> 12.87911099 | G114: ='Hourly - NLH'!BS123 -> 242.9150606 | H114: ='Hourly - NLH'!BY123 -> 393.8922167
A115: 2019-01-05 | B115: 1 | C115: 16 | D115: ='Hourly - NLH'!AC124 -> 1245.445121 | E115: ='Hourly - NLH'!BG124 -> 139.8312727 | F115: ='Hourly - NLH'!BO124 -> 32.08369239 | G115: ='Hourly - NLH'!BS124 -> 366.9823457 | H115: ='Hourly - NLH'!BY124 -> 538.8973108
A116: 2019-01-05 | B116: 1 | C116: 17 | D116: ='Hourly - NLH'!AC125 -> 1403.112693 | E116: ='Hourly - NLH'!BG125 -> 139.9014313 | F116: ='Hourly - NLH'!BO125 -> 124.1346235 | G116: ='Hourly - NLH'!BS125 -> 960.7159159 | H116: ='Hourly - NLH'!BY125 -> 1224.751971
A117: 2019-01-05 | B117: 1 | C117: 18 | D117: ='Hourly - NLH'!AC126 -> 1384.367835 | E117: ='Hourly - NLH'!BG126 -> 132.425749 | F117: ='Hourly - NLH'!BO126 -> 113.086498 | G117: ='Hourly - NLH'!BS126 -> 889.2436483 | H117: ='Hourly - NLH'!BY126 -> 1134.755895
A118: 2019-01-05 | B118: 1 | C118: 19 | D118: ='Hourly - NLH'!AC127 -> 1359.712437 | E118: ='Hourly - NLH'!BG127 -> 127.5056411 | F118: ='Hourly - NLH'!BO127 -> 98.58728287 | G118: ='Hourly - NLH'!BS127 -> 795.557897 | H118: ='Hourly - NLH'!BY127 -> 1021.650821
A119: 2019-01-05 | B119: 1 | C119: 20 | D119: ='Hourly - NLH'!AC128 -> 1376.073211 | E119: ='Hourly - NLH'!BG128 -> 122.1191783 | F119: ='Hourly - NLH'!BO128 -> 108.2043196 | G119: ='Hourly - NLH'!BS128 -> 857.6838647 | H119: ='Hourly - NLH'!BY128 -> 1088.007363
A120: 2019-01-05 | B120: 1 | C120: 21 | D120: ='Hourly - NLH'!AC129 -> 1247.362322 | E120: ='Hourly - NLH'!BG129 -> 126.562689 | F120: ='Hourly - NLH'!BO129 -> 33.18545393 | G120: ='Hourly - NLH'!BS129 -> 374.0819025 | H120: ='Hourly - NLH'!BY129 -> 533.8300454
A121: 2019-01-05 | B121: 1 | C121: 22 | D121: ='Hourly - NLH'!AC130 -> 1193.233689 | E121: ='Hourly - NLH'!BG130 -> 116.0626799 | F121: ='Hourly - NLH'!BO130 -> 2.547619342 | G121: ='Hourly - NLH'!BS130 -> 175.3238645 | H121: ='Hourly - NLH'!BY130 -> 293.9341638
A122: 2019-01-05 | B122: 1 | C122: 23 | D122: ='Hourly - NLH'!AC131 -> 1114.439725 | E122: ='Hourly - NLH'!BG131 -> 143.3805537 | F122: ='Hourly - NLH'!BO131 -> 0 | G122: ='Hourly - NLH'!BS131 -> 0 | H122: ='Hourly - NLH'!BY131 -> 143.3805537
A123: 2019-01-05 | B123: 1 | C123: 24 | D123: ='Hourly - NLH'!AC132 -> 1033.927233 | E123: ='Hourly - NLH'!BG132 -> 130.4316895 | F123: ='Hourly - NLH'!BO132 -> 0 | G123: ='Hourly - NLH'!BS132 -> 0 | H123: ='Hourly - NLH'!BY132 -> 130.4316895
A124: 2019-01-06 | B124: 1 | C124: 1 | D124: ='Hourly - NLH'!AC133 -> 992.2355708 | E124: ='Hourly - NLH'!BG133 -> 124.4552919 | F124: ='Hourly - NLH'!BO133 -> 0 | G124: ='Hourly - NLH'!BS133 -> 0 | H124: ='Hourly - NLH'!BY133 -> 124.4552919
A125: 2019-01-06 | B125: 1 | C125: 2 | D125: ='Hourly - NLH'!AC134 -> 987.7058119 | E125: ='Hourly - NLH'!BG134 -> 101.4104577 | F125: ='Hourly - NLH'!BO134 -> 0 | G125: ='Hourly - NLH'!BS134 -> 0 | H125: ='Hourly - NLH'!BY134 -> 101.4104577
... 156 more rows

Sheet Controls
B2: CONTROLS | L2: LOOKUP TABLES & INPUTS | S2: DROPDOWN MENU INPUTS
L3: Alpha | O3: With/Without Exports | S3: Export Ctrls
B4: FLM Energy Cost Controls | L4: Generation (Internal) and Transmission | O4: 1 | P4: With Exports | S4: With Exports
L5: 1 | M5: 0.5 | N5: 2 | O5: 2 | P5: Without Exports | S5: Without Exports
L6: 2 | M6: 0.6 | N6: 5 | S6: Smooth Ctrls
B7: Capacity Cost Controls - 2021 through 2040 | L7: 3 | M7: 0.77 | N7: 8 | S7: unsmoothed
B8: Alpha | L8: 4 | M8: 0.8 | N8: 11 | S8: smoothed 1
C9: 1 | L9: 5 | M9: 0.9 | N9: 14 | S9: smoothed 2
S10: Line Ctrls
B11: Capacity Cost Controls - 2018 - 2020 | L11: NYISO Weight | S11: Algorithm
L12: 1 | M12: 0 | S12: Load Flow
B13: Alpha - Internal Gen | L13: 2 | M13: 0.25 | S13: Cap Cost Ctrls
C14: 3 | L14: 3 | M14: 0.5 | S14: Internal Cost
B15: Alpha - Transmission | S15: NEISO Auction Price
C16: 4 | L16: Line Losses | S16: Reserves Ctrls
L17: 1 | M17: 0 | S17: Reserves
B18: Line Loss Parameters | L18: 2 | M18: 0.2 | S18: No Reserves
L19: 3 | M19: 0.5 | S19: Transmission Capacity
B20: Exponent | L20: 4 | M20: 0.7 | S20: Include in Marginal Cost
B21: 5 | C21: =VLOOKUP(B21,$L$17:$M$21,2,FALSE) -> 1 | L21: 5 | M21: 1 | S21: Exclude from Marginal Cost
B22: Multiplier | S22: Transmission Access Fees NE
B23: 4 | C23: =VLOOKUP(B23,$L$17:$M$21,2,FALSE) -> 0.7 | L23: Max Function Load Exponent | S23: YES
L24: 1 | M24: 1 | S24: NO
B25: Other Parameters | L25: 2 | M25: 1.02 | S25: Transmission Access Fees NY
L26: 3 | M26: 1.04 | S26: YES
B27: NYISO Average Marginal Cost Weight | L27: 4 | M27: 1.06 | S27: NO
B28: 1 | C28: =VLOOKUP($B$28,$L$12:$M$14,2,FALSE) -> 0 | L28: 5 | M28: 1.08 | S28: Loss Calcs based on Year:
B29: Max Function Load Exponent (Generation) | S29: 2019
B30: 2 | C30: =VLOOKUP($B$30,$L$24:$M$28,2,FALSE) -> 1.02 | S30: 2020
B31: Max Function Load Exponent (Transmission) | S31: 2021
B32: 2 | C32: =VLOOKUP($B$32,$L$24:$M$28,2,FALSE) -> 1.02
B34: Hourly 2019, 2020 & 2021 Controls
B36: Marginal Energy Price
B37: Smoothing Controls
C38: 3
B39: Marginal Line Loss Controls
C40: 1
B41: Operating Reserves
C42: 1 | E42: Note: Switch controls 2019-2040
B43: Transmission Capacity
C44: 1 | E44: Note: Switch controls 2019-2040
B46: Access Fees for Transmission Paths to Northeast Markets
B47: NS/NB to NE ISO
C48: 1
B50: HQ to NYISO A
C51: 1
B53: Inputs
B54: Model Start Year | D54: 2019
B55: Use Hourly calc for x years | D55: 3 | E55: =D54+D55 -> 2022
B56: Loss Calcs Based on: | D56: 2021
B57: Peak Hours Per Day (Commercial) | D57: 16
B58: Peak Hours Per Day (Winter, NLH) | D58: 15
B59: Peak Hours Per Day (Summer, NLH) | D59: 14
B60: Exports Based on: | D60: 2021
B62: Parameter
B63: Seasons:
B64: Winter | D64: 0
B65: Spring-Fall | D65: 1
B66: Summer Cool | D66: 2
B67: Summer Warm | D67: 3

Sheet System Summary - Hydro
E1: All Hours | H1: Peak Hours | K1: Off-Peak Hours | N1: DIAGNOSTICS, MONTHLY | U1: DIAGNOSTICS, ANNUAL | AA1: ANNUAL MARGINAL COSTS | AN1: (Peak Hours)
B2: Year | C2: Month | E2: All-In Marginal Costs including Energy, Capacity, Reserves, Losses | H2: All-In Marginal Costs including Energy, Capacity, Reserves, Losses | K2: All-In Marginal Costs including Energy, Capacity, Reserves, Losses | N2: Year | O2: Month | P2: Ratio Peak/Average | R2: Ratio Off-Peak/Peak | V2: Ratio Peak/Average | X2: Ratio Off-Peak/Peak | AA2: AVERAGE, PEAK and OFF-PEAK | AE2: AVERAGE, PEAK HOURS | AI2: AVERAGE, OFF-PEAK HOURS | AM2: Internal Gen Cap Summary | AR2: =MATCH(1,('Hourly - NLH'!$BC$11:$BH$11='System Summary - Hydro'!AM4)*('Hourly - NLH'!$BC$11:$BH$11='System Summary - Hydro'!AM4)) -> 6 | AS2: =MATCH('System Summary - Hydro'!AM4,('Hourly - NLH'!$BC$11:$BH$11),0) -> 1
E3: NE ISO | F3: NY Zone A | H3: NE ISO | I3: NY Zone A | K3: NE ISO | L3: NY Zone A | P3: NE ISO | Q3: NY Zone A | R3: NE ISO | S3: NY Zone A | U3: Year | V3: NE ISO | W3: NY Zone A | X3: NE ISO | Y3: NY Zone A | AA3: Year | AB3: NE ISO | AC3: NY Zone A | AE3: Year | AF3: NE ISO | AG3: NY Zone A | AI3: Year | AJ3: NE ISO | AK3: NY Zone A | AM3: Year | AN3: Marginal Cost, All-in | AO3: Marginal Energy and Operating Reserve Costs | AP3: Marginal G&T Capacity Costs | AR3: =MATCH(1,('Hourly - NLH'!$BC$11:$BH$11='System Summary - Hydro'!AM6)*('Hourly - NLH'!$BC$11:$BH$11='System Summary - Hydro'!AM6)) -> 6
B4: =Controls!$D$54 -> 2019 | C4: 1 | E4: =IFERROR((('System Detail - Hydro'!W5*'System Detail - Hydro'!$N5)+('System Detail - Hydro'!AU5*'System Detail - Hydro'!$AL5))/SUM('System Detail - Hydro'!$N5+'System Detail - Hydro'!$AL5),"") -> 270.847522 | F4: =IFERROR((('System Detail - Hydro'!X5*'System Detail - Hydro'!$N5)+('System Detail - Hydro'!AV5*'System Detail - Hydro'!$AL5))/SUM('System Detail - Hydro'!$N5+'System Detail - Hydro'!$AL5),"") -> 228.827852 | H4: ='System Detail - Hydro'!W5 -> 370.7002577 | I4: ='System Detail - Hydro'!X5 -> 333.4758062 | K4: ='System Detail - Hydro'!AU5 -> 104.4262957 | L4: ='System Detail - Hydro'!AV5 -> 54.41459496 | N4: =Controls!$D$54 -> 2019 | O4: 1 | P4: =H4/E4 -> 1.36866771 | Q4: 1.457321752 | R4: =K4/H4 -> 0.2817000894 | S4: 0.1631740413 | U4: =Controls!$D$54 -> 2019 | V4: =AF4/AB4 -> 1.291562242 | W4: 1.391937742 | X4: =AJ4/AF4 -> 0.4037069323 | Y4: 0.2587247228 | AA4: =Controls!$D$54 -> 2019 | AB4: =AVERAGEIF($B$4:$B$267,AA4,$E$4:$E$267) -> 79.20446582 | AC4: =AVERAGEIF($B$4:$B$267,AA4,$F$4:$F$267) -> 63.96424509 | AE4: =Controls!$D$54 -> 2019 | AF4: =AVERAGEIF($B$4:$B$267,AE4,$H$4:$H$267) -> 102.2974975 | AG4: =AVERAGEIF($B$4:$B$267,AE4,$I$4:$I$267) -> 89.03424685 | AI4: =Controls!$D$54 -> 2019 | AJ4: =AVERAGEIF($B$4:$B$267,AI4,$K$4:$K$267) -> 41.29820888 | AK4: =AVERAGEIF($B$4:$B$267,AI4,$L$4:$L$267) -> 23.03536084 | AM4: =Controls!$D$54 -> 2019 | AN4: =AO4+AP4 -> 104.8560527 | AO4: =IF(AM4<Controls!$E$55,AVERAGEIFS(INDEX('Hourly - NLH'!$BC$11:$BH$8772,,MATCH(1,('Hourly - NLH'!$BC$11:$BH$11='System Summary - Hydro'!AM4)*('Hourly - NLH'!$BC$11:$BH$11='System Summary - Hydro'!AM4),0)),'Hourly - NLH'!$G$11:$G$8772,"on-peak"),AVERAGEIF('System Detail - Hydro'!$B$5:$B$268,AM4,'System Detail - Hydro'!$BV$5:$BV$268)) -> 39.83185091 | AP4: =SUM('System Detail - Hydro'!BJ5:BK5) -> 65.02420176 | AQ4: AVERAGEIFS(INDEX('Hourly - NLH'!$BO$11:$BQ$8772,,MATCH(1,('Hourly - NLH'!$BO$11:$BQ$11='System Detail (MC w Internal)'!BI5)*('Hourly - NLH'!$BO$11:$BQ$11='System Detail (MC w Internal)'!BI5),0)),'Hourly - NLH'!$E$11:$E$8772,"on-peak")
B5: =B4 -> 2019 | C5: =C4+1 -> 2 | E5: =IFERROR((('System Detail - Hydro'!W6*'System Detail - Hydro'!$N6)+('System Detail - Hydro'!AU6*'System Detail - Hydro'!$AL6))/SUM('System Detail - Hydro'!$N6+'System Detail - Hydro'!$AL6),"") -> 222.8403203 | F5: =IFERROR((('System Detail - Hydro'!X6*'System Detail - Hydro'!$N6)+('System Detail - Hydro'!AV6*'System Detail - Hydro'!$AL6))/SUM('System Detail - Hydro'!$N6+'System Detail - Hydro'!$AL6),"") -> 178.3250126 | H5: ='System Detail - Hydro'!W6 -> 299.585549 | I5: ='System Detail - Hydro'!X6 -> 255.9659737 | K5: ='System Detail - Hydro'!AU6 -> 94.9316058 | L5: ='System Detail - Hydro'!AV6 -> 48.9234107 | N5: =N4 -> 2019 | O5: =O4+1 -> 2 | P5: 1.344395613 | Q5: 1.43539019 | R5: 0.3168764518 | S5: 0.1911324775 | U5: =U4+1 -> 2020 | V5: 1.305098824 | W5: 1.410152152 | X5: 0.3823342502 | Y5: 0.2343970484 | AA5: =AA4+1 -> 2020 | AB5: =AVERAGEIF($B$4:$B$267,AA5,$E$4:$E$267) -> 77.97037467 | AC5: =AVERAGEIF($B$4:$B$267,AA5,$F$4:$F$267) -> 62.83524149 | AE5: =AE4+1 -> 2020 | AF5: =AVERAGEIF($B$4:$B$267,AE5,$H$4:$H$267) -> 101.7590443 | AG5: =AVERAGEIF($B$4:$B$267,AE5,$I$4:$I$267) -> 88.60725103 | AI5: =AI4+1 -> 2020 | AJ5: =AVERAGEIF($B$4:$B$267,AI5,$K$4:$K$267) -> 38.90596791 | AK5: =AVERAGEIF($B$4:$B$267,AI5,$L$4:$L$267) -> 20.76927811 | AM5: =AM4+1 -> 2020 | AN5: 104.349833 | AO5: =IF(AM5<Controls!$E$55,AVERAGEIFS(INDEX('Hourly - NLH'!$BC$11:$BH$8772,,MATCH(1,('Hourly - NLH'!$BC$11:$BH$11='System Summary - Hydro'!AM5)*('Hourly - NLH'!$BC$11:$BH$11='System Summary - Hydro'!AM5),0)),'Hourly - NLH'!$G$11:$G$8772,"on-peak"),AVERAGEIF('System Detail - Hydro'!$B$5:$B$268,AM5,'System Detail - Hydro'!$BV$5:$BV$268)) -> 37.79758011 | AP5: =SUM('System Detail - Hydro'!BJ6:BK6) -> 66.55225286
B6: =B5 -> 2019 | C6: =C5+1 -> 3 | E6: =IFERROR((('System Detail - Hydro'!W7*'System Detail - Hydro'!$N7)+('System Detail - Hydro'!AU7*'System Detail - Hydro'!$AL7))/SUM('System Detail - Hydro'!$N7+'System Detail - Hydro'!$AL7),"") -> 90.033889 | F6: =IFERROR((('System Detail - Hydro'!X7*'System Detail - Hydro'!$N7)+('System Detail - Hydro'!AV7*'System Detail - Hydro'!$AL7))/SUM('System Detail - Hydro'!$N7+'System Detail - Hydro'!$AL7),"") -> 67.4474443 | H6: ='System Detail - Hydro'!W7 -> 114.4546345 | I6: ='System Detail - Hydro'!X7 -> 91.27002897 | K6: ='System Detail - Hydro'!AU7 -> 49.33264651 | L6: ='System Detail - Hydro'!AV7 -> 27.74313652 | N6: =N5 -> 2019 | O6: =O5+1 -> 3 | P6: 1.271239483 | Q6: 1.353202185 | R6: 0.4310235818 | S6: 0.3039676533 | U6: =U5+1 -> 2021 | V6: 1.283285426 | W6: 1.362822431 | X6: 0.4134579945 | Y6: 0.2945235862 | AA6: =AA5+1 -> 2021 | AB6: 80.64406469 | AC6: 67.21141864 | AE6: =AE5+1 -> 2021 | AF6: 103.4893529 | AG6: 91.59722896 | AI6: =AI5+1 -> 2021 | AJ6: 42.78850029 | AK6: 26.97754436 | AM6: =AM5+1 -> 2021 | AN6: 106.0839538 | AO6: =IF(AM6<Controls!$E$55,AVERAGEIFS(INDEX('Hourly - NLH'!$BC$11:$BH$8772,,MATCH(1,('Hourly - NLH'!$BC$11:$BH$11='System Summary - Hydro'!AM6)*('Hourly - NLH'!$BC$11:$BH$11='System Summary - Hydro'!AM6),0)),'Hourly - NLH'!$G$11:$G$8772,"on-peak"),AVERAGEIF('System Detail - Hydro'!$B$5:$B$268,AM6,'System Detail - Hydro'!$BV$5:$BV$268)) -> 37.96707139 | AP6: =SUM('System Detail - Hydro'!BJ7:BK7) -> 68.1168824 | AQ6: =IF(AM6<Controls!$E$55,AVERAGEIFS(INDEX('Hourly - NLH'!$BC$11:$BH$8772,,MATCH(1,('Hourly - NLH'!$BC$11:$BH$11='System Summary - Hydro'!AM6)*('Hourly - NLH'!$BC$11:$BH$11='System Summary - Hydro'!AM6),0)),'Hourly - NLH'!$G$11:$G$8772,"off-peak"),AVERAGEIF('System Detail - Hydro'!$B$5:$B$268,AM6,'System Detail - Hydro'!$BV$5:$BV$268)) -> 34.08480886
B7: 2019 | C7: 4 | E7: =IFERROR((('System Detail - Hydro'!W8*'System Detail - Hydro'!$N8)+('System Detail - Hydro'!AU8*'System Detail - Hydro'!$AL8))/SUM('System Detail - Hydro'!$N8+'System Detail - Hydro'!$AL8),"") -> 25.3359825 | F7: =IFERROR((('System Detail - Hydro'!X8*'System Detail - Hydro'!$N8)+('System Detail - Hydro'!AV8*'System Detail - Hydro'!$AL8))/SUM('System Detail - Hydro'!$N8+'System Detail - Hydro'!$AL8),"") -> 16.92082328 | H7: ='System Detail - Hydro'!W8 -> 27.43684213 | I7: ='System Detail - Hydro'!X8 -> 18.83462602 | K7: ='System Detail - Hydro'!AU8 -> 22.39477903 | L7: ='System Detail - Hydro'!AV8 -> 14.24149944 | N7: 2019 | O7: 4 | P7: 1.082919998 | Q7: 1.113103406 | R7: 0.8162301962 | S7: 0.7561339114 | U7: 2022 | V7: 1.312620648 | W7: 1.349790859 | X7: 0.3700871049 | Y7: 0.3132438832 | AA7: 2022 | AB7: 81.40361657 | AC7: 69.88130354 | AE7: 2022 | AF7: 106.8520679 | AG7: 94.32514471 | AI7: 2022 | AJ7: 39.54457246 | AK7: 29.54677461 | AM7: 2022 | AN7: 106.8520679 | AO7: =IF(AM7<Controls!$E$55,AVERAGEIFS(INDEX('Hourly - NLH'!$BC$11:$BH$8772,,MATCH(1,('Hourly - NLH'!$BC$11:$BH$11='System Summary - Hydro'!AM7)*('Hourly - NLH'!$BC$11:$BH$11='System Summary - Hydro'!AM7),0)),'Hourly - NLH'!$G$11:$G$8772,"on-peak"),AVERAGEIF('System Detail - Hydro'!$B$5:$B$268,AM7,'System Detail - Hydro'!$BV$5:$BV$268)) -> 39.89516187 | AP7: =SUM('System Detail - Hydro'!BJ8:BK8) -> 66.95690602 | AQ7: =IF(AM7<Controls!$E$55,AVERAGEIFS(INDEX('Hourly - NLH'!$BC$11:$BH$8772,,MATCH(1,('Hourly - NLH'!$BC$11:$BH$11='System Summary - Hydro'!AM7)*('Hourly - NLH'!$BC$11:$BH$11='System Summary - Hydro'!AM7),0)),'Hourly - NLH'!$G$11:$G$8772,"off-peak"),AVERAGEIF('System Detail - Hydro'!$B$5:$B$268,AM7,'System Detail - Hydro'!$BV$5:$BV$268)) -> 39.89516187 | BA7: =(AN14/AN6) -> 1.206433846 | BB7: =(AO14/AO6) -> 1.295170272 | BC7: 1.156973828
B8: 2019 | C8: 5 | E8: =IFERROR((('System Detail - Hydro'!W9*'System Detail - Hydro'!$N9)+('System Detail - Hydro'!AU9*'System Detail - Hydro'!$AL9))/SUM('System Detail - Hydro'!$N9+'System Detail - Hydro'!$AL9),"") -> 19.52879165 | F8: =IFERROR((('System Detail - Hydro'!X9*'System Detail - Hydro'!$N9)+('System Detail - Hydro'!AV9*'System Detail - Hydro'!$AL9))/SUM('System Detail - Hydro'!$N9+'System Detail - Hydro'!$AL9),"") -> 15.48684537 | H8: ='System Detail - Hydro'!W9 -> 21.23674393 | I8: ='System Detail - Hydro'!X9 -> 18.83949588 | K8: ='System Detail - Hydro'!AU9 -> 17.13765846 | L8: ='System Detail - Hydro'!AV9 -> 10.79313464 | N8: 2019 | O8: 5 | P8: 1.087458165 | Q8: 1.21648376 | R8: 0.8069814524 | S8: 0.5728993339 | U8: 2023 | V8: 1.31453964 | W8: 1.352679752 | X8: 0.3669920681 | Y8: 0.3086926585 | AA8: 2023 | AB8: 81.15803664 | AC8: 70.06271113 | AE8: 2023 | AF8: 106.6854563 | AG8: 94.7724107 | AI8: 2023 | AJ8: 39.15271624 | AK8: 29.25554741 | AM8: 2023 | AN8: 106.6854563 | AO8: =IF(AM8<Controls!$E$55,AVERAGEIFS(INDEX('Hourly - NLH'!$BC$11:$BH$8772,,MATCH(1,('Hourly - NLH'!$BC$11:$BH$11='System Summary - Hydro'!AM8)*('Hourly - NLH'!$BC$11:$BH$11='System Summary - Hydro'!AM8),0)),'Hourly - NLH'!$G$11:$G$8772,"on-peak"),AVERAGEIF('System Detail - Hydro'!$B$5:$B$268,AM8,'System Detail - Hydro'!$BV$5:$BV$268)) -> 38.15319564 | AP8: =SUM('System Detail - Hydro'!BJ9:BK9) -> 68.53226063 | AQ8: =IF(AM8<Controls!$E$55,AVERAGEIFS(INDEX('Hourly - NLH'!$BC$11:$BH$8772,,MATCH(1,('Hourly - NLH'!$BC$11:$BH$11='System Summary - Hydro'!AM8)*('Hourly - NLH'!$BC$11:$BH$11='System Summary - Hydro'!AM8),0)),'Hourly - NLH'!$G$11:$G$8772,"off-peak"),AVERAGEIF('System Detail - Hydro'!$B$5:$B$268,AM8,'System Detail - Hydro'!$BV$5:$BV$268)) -> 38.15319564 | BA8: =BA7^(1/8)-1 -> 0.02373591378 | BB8: =BB7^(1/8)-1 -> 0.03285857255 | BC8: 0.01839308528
B9: 2019 | C9: 6 | E9: =IFERROR((('System Detail - Hydro'!W10*'System Detail - Hydro'!$N10)+('System Detail - Hydro'!AU10*'System Detail - Hydro'!$AL10))/SUM('System Detail - Hydro'!$N10+'System Detail - Hydro'!$AL10),"") -> 20.712035 | F9: =IFERROR((('System Detail - Hydro'!X10*'System Detail - Hydro'!$N10)+('System Detail - Hydro'!AV10*'System Detail - Hydro'!$AL10))/SUM('System Detail - Hydro'!$N10+'System Detail - Hydro'!$AL10),"") -> 16.67956694 | H9: ='System Detail - Hydro'!W10 -> 23.17889865 | I9: ='System Detail - Hydro'!X10 -> 20.25016056 | K9: ='System Detail - Hydro'!AU10 -> 17.2584259 | L9: ='System Detail - Hydro'!AV10 -> 11.68073586 | N9: 2019 | O9: 6 | P9: 1.11910291 | Q9: 1.214069924 | R9: 0.7445748894 | S9: 0.5768218885 | U9: 2024 | V9: 1.315471958 | W9: 1.354502362 | X9: 0.3656149596 | Y9: 0.3062318348 | AA9: 2024 | AB9: 82.2277608 | AC9: 71.63383863 | AE9: 2024 | AF9: 108.1683135 | AG9: 97.02820361 | AI9: 2024 | AJ9: 39.54795357 | AK9: 29.71312482 | AM9: 2024 | AN9: 108.1683135 | AO9: =IF(AM9<Controls!$E$55,AVERAGEIFS(INDEX('Hourly - NLH'!$BC$11:$BH$8772,,MATCH(1,('Hourly - NLH'!$BC$11:$BH$11='System Summary - Hydro'!AM9)*('Hourly - NLH'!$BC$11:$BH$11='System Summary - Hydro'!AM9),0)),'Hourly - NLH'!$G$11:$G$8772,"on-peak"),AVERAGEIF('System Detail - Hydro'!$B$5:$B$268,AM9,'System Detail - Hydro'!$BV$5:$BV$268)) -> 38.02296584 | AP9: =SUM('System Detail - Hydro'!BJ10:BK10) -> 70.14534767 | AQ9: =IF(AM9<Controls!$E$55,AVERAGEIFS(INDEX('Hourly - NLH'!$BC$11:$BH$8772,,MATCH(1,('Hourly - NLH'!$BC$11:$BH$11='System Summary - Hydro'!AM9)*('Hourly - NLH'!$BC$11:$BH$11='System Summary - Hydro'!AM9),0)),'Hourly - NLH'!$G$11:$G$8772,"off-peak"),AVERAGEIF('System Detail - Hydro'!$B$5:$B$268,AM9,'System Detail - Hydro'!$BV$5:$BV$268)) -> 38.02296584
B10: 2019 | C10: 7 | E10: =IFERROR((('System Detail - Hydro'!W11*'System Detail - Hydro'!$N11)+('System Detail - Hydro'!AU11*'System Detail - Hydro'!$AL11))/SUM('System Detail - Hydro'!$N11+'System Detail - Hydro'!$AL11),"") -> 26.04600111 | F10: =IFERROR((('System Detail - Hydro'!X11*'System Detail - Hydro'!$N11)+('System Detail - Hydro'!AV11*'System Detail - Hydro'!$AL11))/SUM('System Detail - Hydro'!$N11+'System Detail - Hydro'!$AL11),"") -> 25.6547422 | H10: ='System Detail - Hydro'!W11 -> 28.27061983 | I10: ='System Detail - Hydro'!X11 -> 30.72532875 | K10: ='System Detail - Hydro'!AU11 -> 22.93153491 | L10: ='System Detail - Hydro'!AV11 -> 18.55592103 | N10: 2019 | O10: 7 | P10: 1.085411143 | Q10: 1.197647145 | R10: 0.8111436909 | S10: 0.6039291289 | U10: 2025 | V10: 1.312872095 | W10: 1.34728111 | X10: 0.3696621519 | Y10: 0.3167907573 | AA10: 2025 | AB10: 84.67999722 | AC10: 75.04820401 | AE10: 2025 | AF10: 111.1740053 | AG10: 101.1110276 | AI10: 2025 | AJ10: 41.09682205 | AK10: 32.031039 | AM10: 2025 | AN10: 111.1740053 | AO10: =IF(AM10<Controls!$E$55,AVERAGEIFS(INDEX('Hourly - NLH'!$BC$11:$BH$8772,,MATCH(1,('Hourly - NLH'!$BC$11:$BH$11='System Summary - Hydro'!AM10)*('Hourly - NLH'!$BC$11:$BH$11='System Summary - Hydro'!AM10),0)),'Hourly - NLH'!$G$11:$G$8772,"on-peak"),AVERAGEIF('System Detail - Hydro'!$B$5:$B$268,AM10,'System Detail - Hydro'!$BV$5:$BV$268)) -> 39.37692691 | AP10: =SUM('System Detail - Hydro'!BJ11:BK11) -> 71.79707842 | AQ10: =IF(AM10<Controls!$E$55,AVERAGEIFS(INDEX('Hourly - NLH'!$BC$11:$BH$8772,,MATCH(1,('Hourly - NLH'!$BC$11:$BH$11='System Summary - Hydro'!AM10)*('Hourly - NLH'!$BC$11:$BH$11='System Summary - Hydro'!AM10),0)),'Hourly - NLH'!$G$11:$G$8772,"off-peak"),AVERAGEIF('System Detail - Hydro'!$B$5:$B$268,AM10,'System Detail - Hydro'!$BV$5:$BV$268)) -> 39.37692691 | BA10: =(AN14/AN8) -> 1.19963186 | BB10: =(AO14/AO8) -> 1.288851991 | BC10: 1.149961339
B11: 2019 | C11: 8 | E11: =IFERROR((('System Detail - Hydro'!W12*'System Detail - Hydro'!$N12)+('System Detail - Hydro'!AU12*'System Detail - Hydro'!$AL12))/SUM('System Detail - Hydro'!$N12+'System Detail - Hydro'!$AL12),"") -> 26.32512543 | F11: =IFERROR((('System Detail - Hydro'!X12*'System Detail - Hydro'!$N12)+('System Detail - Hydro'!AV12*'System Detail - Hydro'!$AL12))/SUM('System Detail - Hydro'!$N12+'System Detail - Hydro'!$AL12),"") -> 23.68968557 | H11: ='System Detail - Hydro'!W12 -> 31.01725941 | I11: ='System Detail - Hydro'!X12 -> 29.22653787 | K11: ='System Detail - Hydro'!AU12 -> 19.75613786 | L11: ='System Detail - Hydro'!AV12 -> 15.93809235 | N11: 2019 | O11: 8 | P11: 1.178237858 | Q11: 1.233724179 | R11: 0.6369401501 | S11: 0.5453294681 | U11: 2026 | V11: 1.30712321 | W11: 1.344307782 | X11: 0.3785585473 | Y11: 0.3213233177 | AA11: 2026 | AB11: 87.26203186 | AC11: 77.38854172 | AE11: 2026 | AF11: 114.0622272 | AG11: 104.0340188 | AI11: 2026 | AJ11: 43.17923103 | AK11: 33.42855609 | AM11: 2026 | AN11: 114.0622272 | AO11: =IF(AM11<Controls!$E$55,AVERAGEIFS(INDEX('Hourly - NLH'!$BC$11:$BH$8772,,MATCH(1,('Hourly - NLH'!$BC$11:$BH$11='System Summary - Hydro'!AM11)*('Hourly - NLH'!$BC$11:$BH$11='System Summary - Hydro'!AM11),0)),'Hourly - NLH'!$G$11:$G$8772,"on-peak"),AVERAGEIF('System Detail - Hydro'!$B$5:$B$268,AM11,'System Detail - Hydro'!$BV$5:$BV$268)) -> 40.5738409 | AP11: =SUM('System Detail - Hydro'!BJ12:BK12) -> 73.4883863 | AQ11: =IF(AM11<Controls!$E$55,AVERAGEIFS(INDEX('Hourly - NLH'!$BC$11:$BH$8772,,MATCH(1,('Hourly - NLH'!$BC$11:$BH$11='System Summary - Hydro'!AM11)*('Hourly - NLH'!$BC$11:$BH$11='System Summary - Hydro'!AM11),0)),'Hourly - NLH'!$G$11:$G$8772,"off-peak"),AVERAGEIF('System Detail - Hydro'!$B$5:$B$268,AM11,'System Detail - Hydro'!$BV$5:$BV$268)) -> 40.5738409 | BA11: =BA10^(1/6)-1 -> 0.03080060608 | BB11: =BB10^(1/6)-1 -> 0.04319902978 | BC11: 0.02356133794
B12: 2019 | C12: 9 | E12: =IFERROR((('System Detail - Hydro'!W13*'System Detail - Hydro'!$N13)+('System Detail - Hydro'!AU13*'System Detail - Hydro'!$AL13))/SUM('System Detail - Hydro'!$N13+'System Detail - Hydro'!$AL13),"") -> 20.07822232 | F12: =IFERROR((('System Detail - Hydro'!X13*'System Detail - Hydro'!$N13)+('System Detail - Hydro'!AV13*'System Detail - Hydro'!$AL13))/SUM('System Detail - Hydro'!$N13+'System Detail - Hydro'!$AL13),"") -> 16.69656695 | H12: ='System Detail - Hydro'!W13 -> 22.0923411 | I12: ='System Detail - Hydro'!X13 -> 21.66912431 | K12: ='System Detail - Hydro'!AU13 -> 17.25845603 | L12: ='System Detail - Hydro'!AV13 -> 9.734986655 | N12: 2019 | O12: 9 | P12: 1.100313601 | Q12: 1.297819149 | R12: 0.7811963411 | S12: 0.4492561174 | U12: 2027 | V12: 1.308851548 | W12: 1.340119373 | X12: 0.3761272426 | Y12: 0.327576424 | AA12: 2027 | AB12: 89.37738489 | AC12: 80.4440474 | AE12: 2027 | AF12: 116.9817286 | AG12: 107.8046264 | AI12: 2027 | AJ12: 44.000015 | AK12: 35.314254 | AM12: 2027 | AN12: 116.9817286 | AO12: =IF(AM12<Controls!$E$55,AVERAGEIFS(INDEX('Hourly - NLH'!$BC$11:$BH$8772,,MATCH(1,('Hourly - NLH'!$BC$11:$BH$11='System Summary - Hydro'!AM12)*('Hourly - NLH'!$BC$11:$BH$11='System Summary - Hydro'!AM12),0)),'Hourly - NLH'!$G$11:$G$8772,"on-peak"),AVERAGEIF('System Detail - Hydro'!$B$5:$B$268,AM12,'System Detail - Hydro'!$BV$5:$BV$268)) -> 41.76150118 | AP12: =SUM('System Detail - Hydro'!BJ13:BK13) -> 75.22022739 | AQ12: =IF(AM12<Controls!$E$55,AVERAGEIFS(INDEX('Hourly - NLH'!$BC$11:$BH$8772,,MATCH(1,('Hourly - NLH'!$BC$11:$BH$11='System Summary - Hydro'!AM12)*('Hourly - NLH'!$BC$11:$BH$11='System Summary - Hydro'!AM12),0)),'Hourly - NLH'!$G$11:$G$8772,"off-peak"),AVERAGEIF('System Detail - Hydro'!$B$5:$B$268,AM12,'System Detail - Hydro'!$BV$5:$BV$268)) -> 41.76150118
B13: 2019 | C13: 10 | E13: =IFERROR((('System Detail - Hydro'!W14*'System Detail - Hydro'!$N14)+('System Detail - Hydro'!AU14*'System Detail - Hydro'!$AL14))/SUM('System Detail - Hydro'!$N14+'System Detail - Hydro'!$AL14),"") -> 22.47749513 | F13: =IFERROR((('System Detail - Hydro'!X14*'System Detail - Hydro'!$N14)+('System Detail - Hydro'!AV14*'System Detail - Hydro'!$AL14))/SUM('System Detail - Hydro'!$N14+'System Detail - Hydro'!$AL14),"") -> 13.64930695 | H13: ='System Detail - Hydro'!W14 -> 24.94881996 | I13: ='System Detail - Hydro'!X14 -> 17.13052635 | K13: ='System Detail - Hydro'!AU14 -> 19.01764036 | L13: ='System Detail - Hydro'!AV14 -> 8.775599787 | N13: 2019 | O13: 10 | P13: 1.10994663 | Q13: 1.255047338 | R13: 0.7622661268 | S13: 0.5122784676 | U13: 2028 | V13: 1.300514578 | W13: 1.331881539 | X13: 0.3891563849 | Y13: 0.3399711763 | AA13: 2028 | AB13: 94.46608928 | AC13: 84.96472312 | AE13: 2028 | AF13: 122.8545262 | AG13: 113.1629462 | AI13: 2028 | AJ13: 47.80962329 | AK13: 38.47213991 | AM13: 2028 | AN13: 122.8545262 | AO13: =IF(AM13<Controls!$E$55,AVERAGEIFS(INDEX('Hourly - NLH'!$BC$11:$BH$8772,,MATCH(1,('Hourly - NLH'!$BC$11:$BH$11='System Summary - Hydro'!AM13)*('Hourly - NLH'!$BC$11:$BH$11='System Summary - Hydro'!AM13),0)),'Hourly - NLH'!$G$11:$G$8772,"on-peak"),AVERAGEIF('System Detail - Hydro'!$B$5:$B$268,AM13,'System Detail - Hydro'!$BV$5:$BV$268)) -> 45.86094524 | AP13: =SUM('System Detail - Hydro'!BJ14:BK14) -> 76.99358099 | AQ13: =IF(AM13<Controls!$E$55,AVERAGEIFS(INDEX('Hourly - NLH'!$BC$11:$BH$8772,,MATCH(1,('Hourly - NLH'!$BC$11:$BH$11='System Summary - Hydro'!AM13)*('Hourly - NLH'!$BC$11:$BH$11='System Summary - Hydro'!AM13),0)),'Hourly - NLH'!$G$11:$G$8772,"off-peak"),AVERAGEIF('System Detail - Hydro'!$B$5:$B$268,AM13,'System Detail - Hydro'!$BV$5:$BV$268)) -> 45.86094524
B14: 2019 | C14: 11 | E14: =IFERROR((('System Detail - Hydro'!W15*'System Detail - Hydro'!$N15)+('System Detail - Hydro'!AU15*'System Detail - Hydro'!$AL15))/SUM('System Detail - Hydro'!$N15+'System Detail - Hydro'!$AL15),"") -> 42.485043 | F14: =IFERROR((('System Detail - Hydro'!X15*'System Detail - Hydro'!$N15)+('System Detail - Hydro'!AV15*'System Detail - Hydro'!$AL15))/SUM('System Detail - Hydro'!$N15+'System Detail - Hydro'!$AL15),"") -> 31.35401769 | H14: ='System Detail - Hydro'!W15 -> 51.00298137 | I14: ='System Detail - Hydro'!X15 -> 41.90609644 | K14: ='System Detail - Hydro'!AU15 -> 30.55992928 | L14: ='System Detail - Hydro'!AV15 -> 16.58110744 | N14: 2019 | O14: 11 | P14: 1.200492639 | Q14: 1.336546303 | R14: 0.5991792726 | S14: 0.3956729175 | U14: 2029 | V14: 1.292631705 | W14: 1.319820606 | X14: 0.4016359349 | Y14: 0.3579783665 | AA14: 2029 | AB14: 99.00985089 | AC14: 89.72012289 | AE14: 2029 | AF14: 127.9832724 | AG14: 118.414467 | AI14: 2029 | AJ14: 51.40268125 | AK14: 42.38981747 | AM14: 2029 | AN14: 127.9832724 | AO14: =IF(AM14<Controls!$E$55,AVERAGEIFS(INDEX('Hourly - NLH'!$BC$11:$BH$8772,,MATCH(1,('Hourly - NLH'!$BC$11:$BH$11='System Summary - Hydro'!AM14)*('Hourly - NLH'!$BC$11:$BH$11='System Summary - Hydro'!AM14),0)),'Hourly - NLH'!$G$11:$G$8772,"on-peak"),AVERAGEIF('System Detail - Hydro'!$B$5:$B$268,AM14,'System Detail - Hydro'!$BV$5:$BV$268)) -> 49.17382218 | AP14: =SUM('System Detail - Hydro'!BJ15:BK15) -> 78.8094502 | AQ14: =IF(AM14<Controls!$E$55,AVERAGEIFS(INDEX('Hourly - NLH'!$BC$11:$BH$8772,,MATCH(1,('Hourly - NLH'!$BC$11:$BH$11='System Summary - Hydro'!AM14)*('Hourly - NLH'!$BC$11:$BH$11='System Summary - Hydro'!AM14),0)),'Hourly - NLH'!$G$11:$G$8772,"off-peak"),AVERAGEIF('System Detail - Hydro'!$B$5:$B$268,AM14,'System Detail - Hydro'!$BV$5:$BV$268)) -> 49.17382218
B15: 2019 | C15: 12 | E15: =IFERROR((('System Detail - Hydro'!W16*'System Detail - Hydro'!$N16)+('System Detail - Hydro'!AU16*'System Detail - Hydro'!$AL16))/SUM('System Detail - Hydro'!$N16+'System Detail - Hydro'!$AL16),"") -> 163.7431624 | F15: =IFERROR((('System Detail - Hydro'!X16*'System Detail - Hydro'!$N16)+('System Detail - Hydro'!AV16*'System Detail - Hydro'!$AL16))/SUM('System Detail - Hydro'!$N16+'System Detail - Hydro'!$AL16),"") -> 132.8390772 | H15: ='System Detail - Hydro'!W16 -> 213.6450219 | I15: ='System Detail - Hydro'!X16 -> 189.1172571 | K15: ='System Detail - Hydro'!AU16 -> 80.57339663 | L15: ='System Detail - Hydro'!AV16 -> 39.04211068 | N15: 2019 | O15: 12 | P15: 1.304756905 | Q15: 1.423656812 | R15: 0.3771367847 | S15: 0.2064439347 | U15: 2030 | V15: 1.287188162 | W15: 1.307331061 | X15: 0.4104367683 | Y15: 0.3767676002 | AA15: 2030 | AB15: 103.9756474 | AC15: 94.97376329 | AE15: 2030 | AF15: 133.8362224 | AG15: 124.1621507 | AI15: 2030 | AJ15: 54.93130662 | AK15: 46.78027555 | AM15: 2030 | AN15: 133.8362224 | AO15: =IF(AM15<Controls!$E$55,AVERAGEIFS(INDEX('Hourly - NLH'!$BC$11:$BH$8772,,MATCH(1,('Hourly - NLH'!$BC$11:$BH$11='System Summary - Hydro'!AM15)*('Hourly - NLH'!$BC$11:$BH$11='System Summary - Hydro'!AM15),0)),'Hourly - NLH'!$G$11:$G$8772,"on-peak"),AVERAGEIF('System Detail - Hydro'!$B$5:$B$268,AM15,'System Detail - Hydro'!$BV$5:$BV$268)) -> 53.16736 | AP15: =SUM('System Detail - Hydro'!BJ16:BK16) -> 80.66886244
B16: =B4+1 -> 2020 | C16: =C4 -> 1 | E16: =IFERROR((('System Detail - Hydro'!W17*'System Detail - Hydro'!$N17)+('System Detail - Hydro'!AU17*'System Detail - Hydro'!$AL17))/SUM('System Detail - Hydro'!$N17+'System Detail - Hydro'!$AL17),"") -> 271.4266768 | F16: =IFERROR((('System Detail - Hydro'!X17*'System Detail - Hydro'!$N17)+('System Detail - Hydro'!AV17*'System Detail - Hydro'!$AL17))/SUM('System Detail - Hydro'!$N17+'System Detail - Hydro'!$AL17),"") -> 229.6465743 | H16: ='System Detail - Hydro'!W17 -> 374.5123033 | I16: ='System Detail - Hydro'!X17 -> 336.502636 | K16: ='System Detail - Hydro'!AU17 -> 99.61729921 | L16: ='System Detail - Hydro'!AV17 -> 51.55313818 | N16: =N4+1 -> 2020 | O16: =O4 -> 1 | P16: 1.379791801 | Q16: 1.465306578 | R16: 0.2659920604 | S16: 0.1532027767 | U16: 2031 | V16: 1.286593135 | W16: 1.305321155 | X16: 0.411400624 | Y16: 0.3798681439 | AA16: 2031 | AB16: 106.9870884 | AC16: 97.94436959 | AE16: 2031 | AF16: 137.6488535 | AG16: 127.8488576 | AI16: 2031 | AJ16: 56.6288242 | AK16: 48.56570825 | AM16: 2031 | AN16: 137.6488535 | AO16: =IF(AM16<Controls!$E$55,AVERAGEIFS(INDEX('Hourly - NLH'!$BC$11:$BH$8772,,MATCH(1,('Hourly - NLH'!$BC$11:$BH$11='System Summary - Hydro'!AM16)*('Hourly - NLH'!$BC$11:$BH$11='System Summary - Hydro'!AM16),0)),'Hourly - NLH'!$G$11:$G$8772,"on-peak"),AVERAGEIF('System Detail - Hydro'!$B$5:$B$268,AM16,'System Detail - Hydro'!$BV$5:$BV$268)) -> 55.07598331 | AP16: =SUM('System Detail - Hydro'!BJ17:BK17) -> 82.57287014
B17: =B5+1 -> 2020 | C17: =C5 -> 2 | E17: =IFERROR((('System Detail - Hydro'!W18*'System Detail - Hydro'!$N18)+('System Detail - Hydro'!AU18*'System Detail - Hydro'!$AL18))/SUM('System Detail - Hydro'!$N18+'System Detail - Hydro'!$AL18),"") -> 224.4085966 | F17: =IFERROR((('System Detail - Hydro'!X18*'System Detail - Hydro'!$N18)+('System Detail - Hydro'!AV18*'System Detail - Hydro'!$AL18))/SUM('System Detail - Hydro'!$N18+'System Detail - Hydro'!$AL18),"") -> 179.2628372 | H17: ='System Detail - Hydro'!W18 -> 303.740056 | I17: ='System Detail - Hydro'!X18 -> 259.0827995 | K17: ='System Detail - Hydro'!AU18 -> 92.18949756 | L17: ='System Detail - Hydro'!AV18 -> 46.22956655 | N17: =N5+1 -> 2020 | O17: =O5 -> 2 | P17: 1.35351346 | Q17: 1.445267762 | R17: 0.303514455 | S17: 0.178435491 | U17: 2032 | V17: 1.284414788 | W17: 1.304212573 | X17: 0.4150203829 | Y17: 0.381725142 | AA17: 2032 | AB17: 109.7830084 | AC17: 100.4192644 | AE17: 2032 | AF17: 141.0069195 | AG17: 130.9680672 | AI17: 2032 | AJ17: 58.52074573 | AK17: 49.99380405 | AM17: 2032 | AN17: 141.0069195 | AO17: =IF(AM17<Controls!$E$55,AVERAGEIFS(INDEX('Hourly - NLH'!$BC$11:$BH$8772,,MATCH(1,('Hourly - NLH'!$BC$11:$BH$11='System Summary - Hydro'!AM17)*('Hourly - NLH'!$BC$11:$BH$11='System Summary - Hydro'!AM17),0)),'Hourly - NLH'!$G$11:$G$8772,"on-peak"),AVERAGEIF('System Detail - Hydro'!$B$5:$B$268,AM17,'System Detail - Hydro'!$BV$5:$BV$268)) -> 56.48436825 | AP17: =SUM('System Detail - Hydro'!BJ18:BK18) -> 84.52255126
B18: 2020 | C18: 3 | E18: =IFERROR((('System Detail - Hydro'!W19*'System Detail - Hydro'!$N19)+('System Detail - Hydro'!AU19*'System Detail - Hydro'!$AL19))/SUM('System Detail - Hydro'!$N19+'System Detail - Hydro'!$AL19),"") -> 89.27016979 | F18: =IFERROR((('System Detail - Hydro'!X19*'System Detail - Hydro'!$N19)+('System Detail - Hydro'!AV19*'System Detail - Hydro'!$AL19))/SUM('System Detail - Hydro'!$N19+'System Detail - Hydro'!$AL19),"") -> 66.4579275 | H18: ='System Detail - Hydro'!W19 -> 114.4641263 | I18: ='System Detail - Hydro'!X19 -> 91.14732977 | K18: ='System Detail - Hydro'!AU19 -> 47.28024235 | L18: ='System Detail - Hydro'!AV19 -> 25.30892372 | N18: 2020 | O18: 3 | P18: 1.282221447 | Q18: 1.371504246 | R18: 0.4130572949 | S18: 0.27767049 | U18: 2033 | V18: 1.285998707 | W18: 1.303744824 | X18: 0.4124449236 | Y18: 0.3823456715 | AA18: 2033 | AB18: 112.371916 | AC18: 102.9533855 | AE18: 2033 | AF18: 144.5101387 | AG18: 134.2249434 | AI18: 2033 | AJ18: 59.6024731 | AK18: 51.32032611 | AM18: 2033 | AN18: 144.5101387 | AO18: =IF(AM18<Controls!$E$55,AVERAGEIFS(INDEX('Hourly - NLH'!$BC$11:$BH$8772,,MATCH(1,('Hourly - NLH'!$BC$11:$BH$11='System Summary - Hydro'!AM18)*('Hourly - NLH'!$BC$11:$BH$11='System Summary - Hydro'!AM18),0)),'Hourly - NLH'!$G$11:$G$8772,"on-peak"),AVERAGEIF('System Detail - Hydro'!$B$5:$B$268,AM18,'System Detail - Hydro'!$BV$5:$BV$268)) -> 57.99112868 | AP18: =SUM('System Detail - Hydro'!BJ19:BK19) -> 86.51900998
B19: 2020 | C19: 4 | E19: =IFERROR((('System Detail - Hydro'!W20*'System Detail - Hydro'!$N20)+('System Detail - Hydro'!AU20*'System Detail - Hydro'!$AL20))/SUM('System Detail - Hydro'!$N20+'System Detail - Hydro'!$AL20),"") -> 22.92965329 | F19: =IFERROR((('System Detail - Hydro'!X20*'System Detail - Hydro'!$N20)+('System Detail - Hydro'!AV20*'System Detail - Hydro'!$AL20))/SUM('System Detail - Hydro'!$N20+'System Detail - Hydro'!$AL20),"") -> 15.35891593 | H19: ='System Detail - Hydro'!W20 -> 25.26981393 | I19: ='System Detail - Hydro'!X20 -> 17.51032348 | K19: ='System Detail - Hydro'!AU20 -> 19.65342839 | L19: ='System Detail - Hydro'!AV20 -> 12.34694536 | N19: 2020 | O19: 4 | P19: 1.102058265 | Q19: 1.140075482 | R19: 0.7777432965 | S19: 0.7051237732 | U19: 2034 | V19: 1.285120911 | W19: 1.301091014 | X19: 0.4138205101 | Y19: 0.3863084403 | AA19: 2034 | AB19: 115.0025899 | AC19: 105.7760033 | AE19: 2034 | AF19: 147.7922331 | AG19: 137.6242075 | AI19: 2034 | AJ19: 61.15945731 | AK19: 53.16539292 | AM19: 2034 | AN19: 147.7922331 | AO19: =IF(AM19<Controls!$E$55,AVERAGEIFS(INDEX('Hourly - NLH'!$BC$11:$BH$8772,,MATCH(1,('Hourly - NLH'!$BC$11:$BH$11='System Summary - Hydro'!AM19)*('Hourly - NLH'!$BC$11:$BH$11='System Summary - Hydro'!AM19),0)),'Hourly - NLH'!$G$11:$G$8772,"on-peak"),AVERAGEIF('System Detail - Hydro'!$B$5:$B$268,AM19,'System Detail - Hydro'!$BV$5:$BV$268)) -> 59.22885587 | AP19: =SUM('System Detail - Hydro'!BJ20:BK20) -> 88.56337727
B20: 2020 | C20: 5 | E20: =IFERROR((('System Detail - Hydro'!W21*'System Detail - Hydro'!$N21)+('System Detail - Hydro'!AU21*'System Detail - Hydro'!$AL21))/SUM('System Detail - Hydro'!$N21+'System Detail - Hydro'!$AL21),"") -> 18.63556387 | F20: =IFERROR((('System Detail - Hydro'!X21*'System Detail - Hydro'!$N21)+('System Detail - Hydro'!AV21*'System Detail - Hydro'!$AL21))/SUM('System Detail - Hydro'!$N21+'System Detail - Hydro'!$AL21),"") -> 13.86452697 | H20: ='System Detail - Hydro'!W21 -> 20.3001165 | I20: ='System Detail - Hydro'!X21 -> 17.43741534 | K20: ='System Detail - Hydro'!AU21 -> 16.30519018 | L20: ='System Detail - Hydro'!AV21 -> 8.862483238 | N20: 2020 | O20: 5 | P20: =H20/E20 -> 1.089321292 | Q20: 1.257699984 | R20: =K20/H20 -> 0.8032067293 | S20: 0.5082452338 | U20: 2035 | V20: 1.28442725 | W20: 1.297730034 | X20: 0.4152469901 | Y20: 0.3913509236 | AA20: 2035 | AB20: 118.0957188 | AC20: 108.7532278 | AE20: 2035 | AF20: 151.6853594 | AG20: 141.13233 | AI20: 2035 | AJ20: 62.98688894 | AK20: 55.23226769 | AM20: 2035 | AN20: 151.6853594 | AO20: =IF(AM20<Controls!$E$55,AVERAGEIFS(INDEX('Hourly - NLH'!$BC$11:$BH$8772,,MATCH(1,('Hourly - NLH'!$BC$11:$BH$11='System Summary - Hydro'!AM20)*('Hourly - NLH'!$BC$11:$BH$11='System Summary - Hydro'!AM20),0)),'Hourly - NLH'!$G$11:$G$8772,"on-peak"),AVERAGEIF('System Detail - Hydro'!$B$5:$B$268,AM20,'System Detail - Hydro'!$BV$5:$BV$268)) -> 61.02854778 | AP20: =SUM('System Detail - Hydro'!BJ21:BK21) -> 90.65681163
B21: 2020 | C21: 6 | E21: =IFERROR((('System Detail - Hydro'!W22*'System Detail - Hydro'!$N22)+('System Detail - Hydro'!AU22*'System Detail - Hydro'!$AL22))/SUM('System Detail - Hydro'!$N22+'System Detail - Hydro'!$AL22),"") -> 19.16137324 | F21: =IFERROR((('System Detail - Hydro'!X22*'System Detail - Hydro'!$N22)+('System Detail - Hydro'!AV22*'System Detail - Hydro'!$AL22))/SUM('System Detail - Hydro'!$N22+'System Detail - Hydro'!$AL22),"") -> 15.03872229 | H21: ='System Detail - Hydro'!W22 -> 21.46337378 | I21: ='System Detail - Hydro'!X22 -> 18.87970812 | K21: ='System Detail - Hydro'!AU22 -> 15.93857249 | L21: ='System Detail - Hydro'!AV22 -> 9.661342134 | N21: 2020 | O21: 6 | P21: 1.120137555 | Q21: 1.255406394 | R21: 0.7425939958 | S21: 0.5117315412 | U21: 2036 | V21: 1.279345316 | W21: 1.295209113 | X21: 0.4229033015 | Y21: 0.3951630577 | AA21: 2036 | AB21: 122.0614695 | AC21: 111.9110343 | AE21: 2036 | AF21: 156.1587693 | AG21: 144.9481916 | AI21: 2036 | AJ21: 66.04005911 | AK21: 57.27817059 | AM21: 2036 | AN21: 156.1587693 | AO21: =IF(AM21<Controls!$E$55,AVERAGEIFS(INDEX('Hourly - NLH'!$BC$11:$BH$8772,,MATCH(1,('Hourly - NLH'!$BC$11:$BH$11='System Summary - Hydro'!AM21)*('Hourly - NLH'!$BC$11:$BH$11='System Summary - Hydro'!AM21),0)),'Hourly - NLH'!$G$11:$G$8772,"on-peak"),AVERAGEIF('System Detail - Hydro'!$B$5:$B$268,AM21,'System Detail - Hydro'!$BV$5:$BV$268)) -> 63.35826963 | AP21: =SUM('System Detail - Hydro'!BJ22:BK22) -> 92.80049969
B22: 2020 | C22: 7 | E22: =IFERROR((('System Detail - Hydro'!W23*'System Detail - Hydro'!$N23)+('System Detail - Hydro'!AU23*'System Detail - Hydro'!$AL23))/SUM('System Detail - Hydro'!$N23+'System Detail - Hydro'!$AL23),"") -> 23.88586911 | F22: =IFERROR((('System Detail - Hydro'!X23*'System Detail - Hydro'!$N23)+('System Detail - Hydro'!AV23*'System Detail - Hydro'!$AL23))/SUM('System Detail - Hydro'!$N23+'System Detail - Hydro'!$AL23),"") -> 23.27800369 | H22: ='System Detail - Hydro'!W23 -> 25.80391573 | I22: ='System Detail - Hydro'!X23 -> 28.64075593 | K22: ='System Detail - Hydro'!AU23 -> 21.20060383 | L22: ='System Detail - Hydro'!AV23 -> 15.77015056 | N22: 2020 | O22: 7 | P22: 1.080300475 | Q22: 1.230378528 | R22: 0.8216041336 | S22: 0.5506192155 | U22: 2037 | V22: 1.279277029 | W22: 1.294720062 | X22: 0.4230488573 | Y22: 0.3959557872 | AA22: 2037 | AB22: 125.1555327 | AC22: 114.6819285 | AE22: 2037 | AF22: 160.1085981 | AG22: 148.4809936 | AI22: 2037 | AJ22: 67.73375946 | AK22: 58.7919087 | AM22: 2037 | AN22: 160.1085981 | AO22: =IF(AM22<Controls!$E$55,AVERAGEIFS(INDEX('Hourly - NLH'!$BC$11:$BH$8772,,MATCH(1,('Hourly - NLH'!$BC$11:$BH$11='System Summary - Hydro'!AM22)*('Hourly - NLH'!$BC$11:$BH$11='System Summary - Hydro'!AM22),0)),'Hourly - NLH'!$G$11:$G$8772,"on-peak"),AVERAGEIF('System Detail - Hydro'!$B$5:$B$268,AM22,'System Detail - Hydro'!$BV$5:$BV$268)) -> 65.11294116 | AP22: =SUM('System Detail - Hydro'!BJ23:BK23) -> 94.99565693
B23: 2020 | C23: 8 | E23: =IFERROR((('System Detail - Hydro'!W24*'System Detail - Hydro'!$N24)+('System Detail - Hydro'!AU24*'System Detail - Hydro'!$AL24))/SUM('System Detail - Hydro'!$N24+'System Detail - Hydro'!$AL24),"") -> 24.66957774 | F23: =IFERROR((('System Detail - Hydro'!X24*'System Detail - Hydro'!$N24)+('System Detail - Hydro'!AV24*'System Detail - Hydro'!$AL24))/SUM('System Detail - Hydro'!$N24+'System Detail - Hydro'!$AL24),"") -> 21.38571147 | H23: ='System Detail - Hydro'!W24 -> 29.26037292 | I23: ='System Detail - Hydro'!X24 -> 27.16965869 | K23: ='System Detail - Hydro'!AU24 -> 18.24246449 | L23: ='System Detail - Hydro'!AV24 -> 13.28818536 | N23: 2020 | O23: 8 | P23: 1.186091356 | Q23: 1.270458489 | R23: 0.6234529045 | S23: 0.4890817921 | U23: 2038 | V23: 1.279879764 | W23: 1.295984399 | X23: 0.4223770006 | Y23: 0.3942046291 | AA23: 2038 | AB23: 127.7585956 | AC23: 117.0194415 | AE23: 2038 | AF23: 163.5156411 | AG23: 151.6553705 | AI23: 2038 | AJ23: 69.06524605 | AK23: 59.7832491 | AM23: 2038 | AN23: 163.5156411 | AO23: =IF(AM23<Controls!$E$55,AVERAGEIFS(INDEX('Hourly - NLH'!$BC$11:$BH$8772,,MATCH(1,('Hourly - NLH'!$BC$11:$BH$11='System Summary - Hydro'!AM23)*('Hourly - NLH'!$BC$11:$BH$11='System Summary - Hydro'!AM23),0)),'Hourly - NLH'!$G$11:$G$8772,"on-peak"),AVERAGEIF('System Detail - Hydro'!$B$5:$B$268,AM23,'System Detail - Hydro'!$BV$5:$BV$268)) -> 66.27211274 | AP23: =SUM('System Detail - Hydro'!BJ24:BK24) -> 97.24352837
B24: 2020 | C24: 9 | E24: =IFERROR((('System Detail - Hydro'!W25*'System Detail - Hydro'!$N25)+('System Detail - Hydro'!AU25*'System Detail - Hydro'!$AL25))/SUM('System Detail - Hydro'!$N25+'System Detail - Hydro'!$AL25),"") -> 18.51294291 | F24: =IFERROR((('System Detail - Hydro'!X25*'System Detail - Hydro'!$N25)+('System Detail - Hydro'!AV25*'System Detail - Hydro'!$AL25))/SUM('System Detail - Hydro'!$N25+'System Detail - Hydro'!$AL25),"") -> 14.91936348 | H24: ='System Detail - Hydro'!W25 -> 20.47569426 | I24: ='System Detail - Hydro'!X25 -> 19.90819416 | K24: ='System Detail - Hydro'!AU25 -> 15.76509103 | L24: ='System Detail - Hydro'!AV25 -> 7.935000514 | N24: 2020 | O24: 9 | P24: 1.106020493 | Q24: 1.334386296 | R24: 0.7699417092 | S24: 0.3985796225 | U24: 2039 | V24: 1.281953489 | W24: 1.29624614 | X24: 0.4189299871 | Y24: 0.3937449045 | AA24: 2039 | AB24: 130.2296612 | AC24: 119.8911982 | AE24: 2039 | AF24: 166.9483685 | AG24: 155.4085029 | AI24: 2039 | AJ24: 69.93967787 | AK24: 61.19130614 | AM24: 2039 | AN24: 166.9483685 | AO24: =IF(AM24<Controls!$E$55,AVERAGEIFS(INDEX('Hourly - NLH'!$BC$11:$BH$8772,,MATCH(1,('Hourly - NLH'!$BC$11:$BH$11='System Summary - Hydro'!AM24)*('Hourly - NLH'!$BC$11:$BH$11='System Summary - Hydro'!AM24),0)),'Hourly - NLH'!$G$11:$G$8772,"on-peak"),AVERAGEIF('System Detail - Hydro'!$B$5:$B$268,AM24,'System Detail - Hydro'!$BV$5:$BV$268)) -> 67.40297922 | AP24: =SUM('System Detail - Hydro'!BJ25:BK25) -> 99.54538931
B25: 2020 | C25: 10 | E25: =IFERROR((('System Detail - Hydro'!W26*'System Detail - Hydro'!$N26)+('System Detail - Hydro'!AU26*'System Detail - Hydro'!$AL26))/SUM('System Detail - Hydro'!$N26+'System Detail - Hydro'!$AL26),"") -> 20.75392195 | F25: =IFERROR((('System Detail - Hydro'!X26*'System Detail - Hydro'!$N26)+('System Detail - Hydro'!AV26*'System Detail - Hydro'!$AL26))/SUM('System Detail - Hydro'!$N26+'System Detail - Hydro'!$AL26),"") -> 11.77144128 | H25: ='System Detail - Hydro'!W26 -> 23.52093912 | I25: ='System Detail - Hydro'!X26 -> 15.23921056 | K25: ='System Detail - Hydro'!AU26 -> 16.88009792 | L25: ='System Detail - Hydro'!AV26 -> 6.916564303 | N25: 2020 | O25: 10 | P25: 1.133325025 | Q25: 1.294591732 | R25: 0.7176625829 | S25: 0.4538663127 | U25: 2040 | V25: 1.283206098 | W25: 1.296593697 | X25: 0.4168892859 | Y25: 0.3932175237 | AA25: 2040 | AB25: 133.232502 | AC25: 122.8938673 | AE25: 2040 | AF25: 170.964759 | AG25: 159.3434138 | AI25: 2040 | AJ25: 71.2733763 | AK25: 62.65662259 | AM25: 2040 | AN25: 170.964759 | AO25: =IF(AM25<Controls!$E$55,AVERAGEIFS(INDEX('Hourly - NLH'!$BC$11:$BH$8772,,MATCH(1,('Hourly - NLH'!$BC$11:$BH$11='System Summary - Hydro'!AM25)*('Hourly - NLH'!$BC$11:$BH$11='System Summary - Hydro'!AM25),0)),'Hourly - NLH'!$G$11:$G$8772,"on-peak"),AVERAGEIF('System Detail - Hydro'!$B$5:$B$268,AM25,'System Detail - Hydro'!$BV$5:$BV$268)) -> 69.06221298 | AP25: =SUM('System Detail - Hydro'!BJ26:BK26) -> 101.902546
B26: 2020 | C26: 11 | E26: =IFERROR((('System Detail - Hydro'!W27*'System Detail - Hydro'!$N27)+('System Detail - Hydro'!AU27*'System Detail - Hydro'!$AL27))/SUM('System Detail - Hydro'!$N27+'System Detail - Hydro'!$AL27),"") -> 40.25658429 | F26: =IFERROR((('System Detail - Hydro'!X27*'System Detail - Hydro'!$N27)+('System Detail - Hydro'!AV27*'System Detail - Hydro'!$AL27))/SUM('System Detail - Hydro'!$N27+'System Detail - Hydro'!$AL27),"") -> 29.54001126 | H26: ='System Detail - Hydro'!W27 -> 48.96317986 | I26: ='System Detail - Hydro'!X27 -> 40.30379442 | K26: ='System Detail - Hydro'!AU27 -> 28.06735049 | L26: ='System Detail - Hydro'!AV27 -> 14.47071482 | N26: 2020 | O26: 11 | P26: 1.216277554 | Q26: 1.364379792 | R26: 0.5732338173 | S26: 0.3590410043
B27: 2020 | C27: 12 | E27: =IFERROR((('System Detail - Hydro'!W28*'System Detail - Hydro'!$N28)+('System Detail - Hydro'!AU28*'System Detail - Hydro'!$AL28))/SUM('System Detail - Hydro'!$N28+'System Detail - Hydro'!$AL28),"") -> 161.7335664 | F27: =IFERROR((('System Detail - Hydro'!X28*'System Detail - Hydro'!$N28)+('System Detail - Hydro'!AV28*'System Detail - Hydro'!$AL28))/SUM('System Detail - Hydro'!$N28+'System Detail - Hydro'!$AL28),"") -> 133.4988625 | H27: ='System Detail - Hydro'!W28 -> 213.3346401 | I27: ='System Detail - Hydro'!X28 -> 191.4651865 | K27: ='System Detail - Hydro'!AU28 -> 75.73177699 | L27: ='System Detail - Hydro'!AV28 -> 36.88832262 | N27: 2020 | O27: 12 | P27: 1.319049872 | Q27: 1.434208373 | R27: 0.3549905301 | S27: 0.1926633415
B28: 2021 | C28: 1 | E28: =IFERROR((('System Detail - Hydro'!W29*'System Detail - Hydro'!$N29)+('System Detail - Hydro'!AU29*'System Detail - Hydro'!$AL29))/SUM('System Detail - Hydro'!$N29+'System Detail - Hydro'!$AL29),"") -> 274.52222 | F28: =IFERROR((('System Detail - Hydro'!X29*'System Detail - Hydro'!$N29)+('System Detail - Hydro'!AV29*'System Detail - Hydro'!$AL29))/SUM('System Detail - Hydro'!$N29+'System Detail - Hydro'!$AL29),"") -> 235.4843009 | H28: ='System Detail - Hydro'!W29 -> 380.9586274 | I28: ='System Detail - Hydro'!X29 -> 345.5159845 | K28: ='System Detail - Hydro'!AU29 -> 97.12820757 | L28: ='System Detail - Hydro'!AV29 -> 52.09816151 | N28: 2021 | O28: 1 | P28: 1.387715091 | Q28: 1.467256982 | R28: 0.2549573643 | S28: 0.1507836507
B29: 2021 | C29: 2 | E29: =IFERROR((('System Detail - Hydro'!W30*'System Detail - Hydro'!$N30)+('System Detail - Hydro'!AU30*'System Detail - Hydro'!$AL30))/SUM('System Detail - Hydro'!$N30+'System Detail - Hydro'!$AL30),"") -> 226.3707187 | F29: =IFERROR((('System Detail - Hydro'!X30*'System Detail - Hydro'!$N30)+('System Detail - Hydro'!AV30*'System Detail - Hydro'!$AL30))/SUM('System Detail - Hydro'!$N30+'System Detail - Hydro'!$AL30),"") -> 183.859846 | H29: ='System Detail - Hydro'!W30 -> 308.5564686 | I29: ='System Detail - Hydro'!X30 -> 266.2044672 | K29: ='System Detail - Hydro'!AU30 -> 89.39446903 | L29: ='System Detail - Hydro'!AV30 -> 46.61881064 | N29: 2021 | O29: 2 | P29: 1.363058218 | Q29: 1.447866258 | R29: 0.2897183438 | S29: 0.1751240734
B30: 2021 | C30: 3 | E30: =IFERROR((('System Detail - Hydro'!W31*'System Detail - Hydro'!$N31)+('System Detail - Hydro'!AU31*'System Detail - Hydro'!$AL31))/SUM('System Detail - Hydro'!$N31+'System Detail - Hydro'!$AL31),"") -> 90.9761158 | F30: =IFERROR((('System Detail - Hydro'!X31*'System Detail - Hydro'!$N31)+('System Detail - Hydro'!AV31*'System Detail - Hydro'!$AL31))/SUM('System Detail - Hydro'!$N31+'System Detail - Hydro'!$AL31),"") -> 68.27260852 | H30: ='System Detail - Hydro'!W31 -> 116.2668422 | I30: ='System Detail - Hydro'!X31 -> 93.77663383 | K30: ='System Detail - Hydro'!AU31 -> 48.82490519 | L30: ='System Detail - Hydro'!AV31 -> 25.76589967 | N30: 2021 | O30: 3 | P30: 1.277993033 | Q30: 1.373561606 | R30: 0.4199383443 | S30: 0.274758206
B31: 2021 | C31: 4 | E31: =IFERROR((('System Detail - Hydro'!W32*'System Detail - Hydro'!$N32)+('System Detail - Hydro'!AU32*'System Detail - Hydro'!$AL32))/SUM('System Detail - Hydro'!$N32+'System Detail - Hydro'!$AL32),"") -> 23.14317227 | F31: =IFERROR((('System Detail - Hydro'!X32*'System Detail - Hydro'!$N32)+('System Detail - Hydro'!AV32*'System Detail - Hydro'!$AL32))/SUM('System Detail - Hydro'!$N32+'System Detail - Hydro'!$AL32),"") -> 15.79757331 | H31: ='System Detail - Hydro'!W32 -> 25.24585451 | I31: ='System Detail - Hydro'!X32 -> 18.38918426 | K31: ='System Detail - Hydro'!AU32 -> 20.19941713 | L31: ='System Detail - Hydro'!AV32 -> 12.16931799 | N31: 2021 | O31: 4 | P31: 1.090855403 | Q31: 1.164051205 | R31: 0.8001082758 | S31: 0.6617649711
B32: 2021 | C32: 5 | E32: =IFERROR((('System Detail - Hydro'!W33*'System Detail - Hydro'!$N33)+('System Detail - Hydro'!AU33*'System Detail - Hydro'!$AL33))/SUM('System Detail - Hydro'!$N33+'System Detail - Hydro'!$AL33),"") -> 24.44195445 | F32: =IFERROR((('System Detail - Hydro'!X33*'System Detail - Hydro'!$N33)+('System Detail - Hydro'!AV33*'System Detail - Hydro'!$AL33))/SUM('System Detail - Hydro'!$N33+'System Detail - Hydro'!$AL33),"") -> 18.95773253 | H32: ='System Detail - Hydro'!W33 -> 24.43813562 | I32: ='System Detail - Hydro'!X33 -> 20.11855326 | K32: ='System Detail - Hydro'!AU33 -> 24.44730082 | L32: ='System Detail - Hydro'!AV33 -> 17.33258351 | N32: 2021 | O32: 5 | P32: 0.999843759 | Q32: 1.061232045 | R32: 1.000375037 | S32: 0.8615223612
B33: 2021 | C33: 6 | E33: =IFERROR((('System Detail - Hydro'!W34*'System Detail - Hydro'!$N34)+('System Detail - Hydro'!AU34*'System Detail - Hydro'!$AL34))/SUM('System Detail - Hydro'!$N34+'System Detail - Hydro'!$AL34),"") -> 23.14976221 | F33: =IFERROR((('System Detail - Hydro'!X34*'System Detail - Hydro'!$N34)+('System Detail - Hydro'!AV34*'System Detail - Hydro'!$AL34))/SUM('System Detail - Hydro'!$N34+'System Detail - Hydro'!$AL34),"") -> 19.88971676 | H33: ='System Detail - Hydro'!W34 -> 23.19233272 | I33: ='System Detail - Hydro'!X34 -> 20.99188789 | K33: ='System Detail - Hydro'!AU34 -> 23.0901635 | L33: ='System Detail - Hydro'!AV34 -> 18.34667718 | N33: 2021 | O33: 6 | P33: 1.001838918 | Q33: 1.055414119 | R33: 0.9955946983 | S33: 0.8739889083
B34: 2021 | C34: 7 | E34: =IFERROR((('System Detail - Hydro'!W35*'System Detail - Hydro'!$N35)+('System Detail - Hydro'!AU35*'System Detail - Hydro'!$AL35))/SUM('System Detail - Hydro'!$N35+'System Detail - Hydro'!$AL35),"") -> 26.16097222 | F34: =IFERROR((('System Detail - Hydro'!X35*'System Detail - Hydro'!$N35)+('System Detail - Hydro'!AV35*'System Detail - Hydro'!$AL35))/SUM('System Detail - Hydro'!$N35+'System Detail - Hydro'!$AL35),"") -> 25.29116841 | H34: ='System Detail - Hydro'!W35 -> 26.58174338 | I34: ='System Detail - Hydro'!X35 -> 27.24718532 | K34: ='System Detail - Hydro'!AU35 -> 25.57189261 | L34: ='System Detail - Hydro'!AV35 -> 22.55274474 | N34: 2021 | O34: 7 | P34: 1.016083927 | Q34: 1.077339919 | R34: 0.962009611 | S34: 0.827709155
B35: 2021 | C35: 8 | E35: =IFERROR((('System Detail - Hydro'!W36*'System Detail - Hydro'!$N36)+('System Detail - Hydro'!AU36*'System Detail - Hydro'!$AL36))/SUM('System Detail - Hydro'!$N36+'System Detail - Hydro'!$AL36),"") -> 26.53934927 | F35: =IFERROR((('System Detail - Hydro'!X36*'System Detail - Hydro'!$N36)+('System Detail - Hydro'!AV36*'System Detail - Hydro'!$AL36))/SUM('System Detail - Hydro'!$N36+'System Detail - Hydro'!$AL36),"") -> 26.22045352 | H35: ='System Detail - Hydro'!W36 -> 28.43213266 | I35: ='System Detail - Hydro'!X36 -> 27.64545426 | K35: ='System Detail - Hydro'!AU36 -> 23.88945253 | L35: ='System Detail - Hydro'!AV36 -> 24.22545248 | N35: 2021 | O35: 8 | P35: 1.071319887 | Q35: 1.054346914 | R35: 0.8402272462 | S35: 0.8762906284
B36: 2021 | C36: 9 | E36: =IFERROR((('System Detail - Hydro'!W37*'System Detail - Hydro'!$N37)+('System Detail - Hydro'!AU37*'System Detail - Hydro'!$AL37))/SUM('System Detail - Hydro'!$N37+'System Detail - Hydro'!$AL37),"") -> 22.97628776 | F36: =IFERROR((('System Detail - Hydro'!X37*'System Detail - Hydro'!$N37)+('System Detail - Hydro'!AV37*'System Detail - Hydro'!$AL37))/SUM('System Detail - Hydro'!$N37+'System Detail - Hydro'!$AL37),"") -> 20.6784631 | H36: ='System Detail - Hydro'!W37 -> 22.35061338 | I36: ='System Detail - Hydro'!X37 -> 22.24376234 | K36: ='System Detail - Hydro'!AU37 -> 23.8522319 | L36: ='System Detail - Hydro'!AV37 -> 18.48704417 | N36: 2021 | O36: 9 | P36: 0.9727686915 | Q36: 1.075697078 | R36: 1.067184667 | S36: 0.8311113871
B37: 2021 | C37: 10 | E37: =IFERROR((('System Detail - Hydro'!W38*'System Detail - Hydro'!$N38)+('System Detail - Hydro'!AU38*'System Detail - Hydro'!$AL38))/SUM('System Detail - Hydro'!$N38+'System Detail - Hydro'!$AL38),"") -> 24.95419811 | F37: =IFERROR((('System Detail - Hydro'!X38*'System Detail - Hydro'!$N38)+('System Detail - Hydro'!AV38*'System Detail - Hydro'!$AL38))/SUM('System Detail - Hydro'!$N38+'System Detail - Hydro'!$AL38),"") -> 17.22398677 | H37: ='System Detail - Hydro'!W38 -> 25.28967543 | I37: ='System Detail - Hydro'!X38 -> 18.02882896 | K37: ='System Detail - Hydro'!AU38 -> 24.48452985 | L37: ='System Detail - Hydro'!AV38 -> 16.0972077 | N37: 2021 | O37: 10 | P37: 1.013443723 | Q37: 1.046727985 | R37: 0.9681630719 | S37: 0.8928593051
B38: 2021 | C38: 11 | E38: =IFERROR((('System Detail - Hydro'!W39*'System Detail - Hydro'!$N39)+('System Detail - Hydro'!AU39*'System Detail - Hydro'!$AL39))/SUM('System Detail - Hydro'!$N39+'System Detail - Hydro'!$AL39),"") -> 43.77740536 | F38: =IFERROR((('System Detail - Hydro'!X39*'System Detail - Hydro'!$N39)+('System Detail - Hydro'!AV39*'System Detail - Hydro'!$AL39))/SUM('System Detail - Hydro'!$N39+'System Detail - Hydro'!$AL39),"") -> 36.00597956 | H38: ='System Detail - Hydro'!W39 -> 49.50882944 | I38: ='System Detail - Hydro'!X39 -> 43.81164881 | K38: ='System Detail - Hydro'!AU39 -> 35.75341165 | L38: ='System Detail - Hydro'!AV39 -> 25.07804262 | N38: 2021 | O38: 11 | P38: 1.130921968 | Q38: 1.216788137 | R38: 0.7221623305 | S38: 0.5724058167
B39: 2021 | C39: 12 | E39: =IFERROR((('System Detail - Hydro'!W40*'System Detail - Hydro'!$N40)+('System Detail - Hydro'!AU40*'System Detail - Hydro'!$AL40))/SUM('System Detail - Hydro'!$N40+'System Detail - Hydro'!$AL40),"") -> 160.7166201 | F39: =IFERROR((('System Detail - Hydro'!X40*'System Detail - Hydro'!$N40)+('System Detail - Hydro'!AV40*'System Detail - Hydro'!$AL40))/SUM('System Detail - Hydro'!$N40+'System Detail - Hydro'!$AL40),"") -> 138.8551943 | H39: ='System Detail - Hydro'!W40 -> 211.0509791 | I39: ='System Detail - Hydro'!X40 -> 195.1931569 | K39: ='System Detail - Hydro'!AU40 -> 76.82602169 | L39: ='System Detail - Hydro'!AV40 -> 44.95859007 | N39: 2021 | O39: 12 | P39: 1.313187018 | Q39: 1.405731761 | R39: 0.3640164192 | S39: 0.2303287205
B40: 2022 | C40: 1 | E40: =IFERROR((('System Detail - Hydro'!W41*'System Detail - Hydro'!$N41)+('System Detail - Hydro'!AU41*'System Detail - Hydro'!$AL41))/SUM('System Detail - Hydro'!$N41+'System Detail - Hydro'!$AL41),"") -> 275.4425938 | F40: =IFERROR((('System Detail - Hydro'!X41*'System Detail - Hydro'!$N41)+('System Detail - Hydro'!AV41*'System Detail - Hydro'!$AL41))/SUM('System Detail - Hydro'!$N41+'System Detail - Hydro'!$AL41),"") -> 242.6517475 | H40: ='System Detail - Hydro'!W41 -> 388.0291671 | I40: ='System Detail - Hydro'!X41 -> 353.678936 | K40: ='System Detail - Hydro'!AU41 -> 87.79830511 | L40: ='System Detail - Hydro'!AV41 -> 57.60643344 | N40: 2022 | O40: 1 | P40: 1.408747869 | Q40: 1.457557753 | R40: 0.2262672824 | S40: 0.1628777617
B41: 2022 | C41: 2 | E41: =IFERROR((('System Detail - Hydro'!W42*'System Detail - Hydro'!$N42)+('System Detail - Hydro'!AU42*'System Detail - Hydro'!$AL42))/SUM('System Detail - Hydro'!$N42+'System Detail - Hydro'!$AL42),"") -> 223.2865082 | F41: =IFERROR((('System Detail - Hydro'!X42*'System Detail - Hydro'!$N42)+('System Detail - Hydro'!AV42*'System Detail - Hydro'!$AL42))/SUM('System Detail - Hydro'!$N42+'System Detail - Hydro'!$AL42),"") -> 188.8270801 | H41: ='System Detail - Hydro'!W42 -> 309.1205703 | I41: ='System Detail - Hydro'!X42 -> 271.3051065 | K41: ='System Detail - Hydro'!AU42 -> 80.22973794 | L41: ='System Detail - Hydro'!AV42 -> 51.36370278 | N41: 2022 | O41: 2 | P41: 1.384412219 | Q41: 1.436791303 | R41: 0.2595418929 | S41: 0.1893208109
B42: 2022 | C42: 3 | E42: =IFERROR((('System Detail - Hydro'!W43*'System Detail - Hydro'!$N43)+('System Detail - Hydro'!AU43*'System Detail - Hydro'!$AL43))/SUM('System Detail - Hydro'!$N43+'System Detail - Hydro'!$AL43),"") -> 88.67992374 | F42: =IFERROR((('System Detail - Hydro'!X43*'System Detail - Hydro'!$N43)+('System Detail - Hydro'!AV43*'System Detail - Hydro'!$AL43))/SUM('System Detail - Hydro'!$N43+'System Detail - Hydro'!$AL43),"") -> 74.30290428 | H42: ='System Detail - Hydro'!W43 -> 112.7125045 | I42: ='System Detail - Hydro'!X43 -> 98.08264148 | K42: ='System Detail - Hydro'!AU43 -> 48.62562251 | L42: ='System Detail - Hydro'!AV43 -> 34.67000895 | N42: 2022 | O42: 3 | P42: 1.271003624 | Q42: 1.320037789 | R42: 0.4314128476 | S42: 0.3534775209
B43: 2022 | C43: 4 | E43: =IFERROR((('System Detail - Hydro'!W44*'System Detail - Hydro'!$N44)+('System Detail - Hydro'!AU44*'System Detail - Hydro'!$AL44))/SUM('System Detail - Hydro'!$N44+'System Detail - Hydro'!$AL44),"") -> 27.04847641 | F43: =IFERROR((('System Detail - Hydro'!X44*'System Detail - Hydro'!$N44)+('System Detail - Hydro'!AV44*'System Detail - Hydro'!$AL44))/SUM('System Detail - Hydro'!$N44+'System Detail - Hydro'!$AL44),"") -> 22.38967205 | H43: ='System Detail - Hydro'!W44 -> 27.98623883 | I43: ='System Detail - Hydro'!X44 -> 22.33144297 | K43: ='System Detail - Hydro'!AU44 -> 25.73560903 | L43: ='System Detail - Hydro'!AV44 -> 22.47119276 | N43: 2022 | O43: 4 | P43: 1.034669695 | Q43: 0.9973992885 | R43: 0.9195808407 | S43: 1.006257983
B44: 2022 | C44: 5 | E44: =IFERROR((('System Detail - Hydro'!W45*'System Detail - Hydro'!$N45)+('System Detail - Hydro'!AU45*'System Detail - Hydro'!$AL45))/SUM('System Detail - Hydro'!$N45+'System Detail - Hydro'!$AL45),"") -> 24.65605301 | F44: =IFERROR((('System Detail - Hydro'!X45*'System Detail - Hydro'!$N45)+('System Detail - Hydro'!AV45*'System Detail - Hydro'!$AL45))/SUM('System Detail - Hydro'!$N45+'System Detail - Hydro'!$AL45),"") -> 18.53905217 | H44: ='System Detail - Hydro'!W45 -> 26.57815978 | I44: ='System Detail - Hydro'!X45 -> 20.0441348 | K44: ='System Detail - Hydro'!AU45 -> 21.96510353 | L44: ='System Detail - Hydro'!AV45 -> 16.43193648 | N44: 2022 | O44: 5 | P44: 1.077956791 | Q44: 1.081184444 | R44: 0.8264343246 | S44: 0.8197877655
B45: 2022 | C45: 6 | E45: =IFERROR((('System Detail - Hydro'!W46*'System Detail - Hydro'!$N46)+('System Detail - Hydro'!AU46*'System Detail - Hydro'!$AL46))/SUM('System Detail - Hydro'!$N46+'System Detail - Hydro'!$AL46),"") -> 24.22036637 | F45: =IFERROR((('System Detail - Hydro'!X46*'System Detail - Hydro'!$N46)+('System Detail - Hydro'!AV46*'System Detail - Hydro'!$AL46))/SUM('System Detail - Hydro'!$N46+'System Detail - Hydro'!$AL46),"") -> 21.10965652 | H45: ='System Detail - Hydro'!W46 -> 26.32880783 | I45: ='System Detail - Hydro'!X46 -> 22.33220882 | K45: ='System Detail - Hydro'!AU46 -> 21.26854831 | L45: ='System Detail - Hydro'!AV46 -> 19.39808329 | N45: 2022 | O45: 6 | P45: 1.087052418 | Q45: 1.057914363 | R45: 0.8078052165 | S45: 0.8686146294
B46: 2022 | C46: 7 | E46: =IFERROR((('System Detail - Hydro'!W47*'System Detail - Hydro'!$N47)+('System Detail - Hydro'!AU47*'System Detail - Hydro'!$AL47))/SUM('System Detail - Hydro'!$N47+'System Detail - Hydro'!$AL47),"") -> 27.29329267 | F46: =IFERROR((('System Detail - Hydro'!X47*'System Detail - Hydro'!$N47)+('System Detail - Hydro'!AV47*'System Detail - Hydro'!$AL47))/SUM('System Detail - Hydro'!$N47+'System Detail - Hydro'!$AL47),"") -> 26.41883148 | H46: ='System Detail - Hydro'!W47 -> 31.58460576 | I46: ='System Detail - Hydro'!X47 -> 29.31106147 | K46: ='System Detail - Hydro'!AU47 -> 21.28545435 | L46: ='System Detail - Hydro'!AV47 -> 22.36970951 | N46: 2022 | O46: 7 | P46: 1.157229585 | Q46: 1.109476075 | R46: 0.6739186335 | S46: 0.763183194
B47: 2022 | C47: 8 | E47: =IFERROR((('System Detail - Hydro'!W48*'System Detail - Hydro'!$N48)+('System Detail - Hydro'!AU48*'System Detail - Hydro'!$AL48))/SUM('System Detail - Hydro'!$N48+'System Detail - Hydro'!$AL48),"") -> 26.73293266 | F47: =IFERROR((('System Detail - Hydro'!X48*'System Detail - Hydro'!$N48)+('System Detail - Hydro'!AV48*'System Detail - Hydro'!$AL48))/SUM('System Detail - Hydro'!$N48+'System Detail - Hydro'!$AL48),"") -> 26.71943649 | H47: ='System Detail - Hydro'!W48 -> 29.88463699 | I47: ='System Detail - Hydro'!X48 -> 28.50525694 | K47: ='System Detail - Hydro'!AU48 -> 22.32054659 | L47: ='System Detail - Hydro'!AV48 -> 24.21928786 | N47: 2022 | O47: 8 | P47: 1.117895944 | Q47: 1.066836007 | R47: 0.7468903369 | S47: 0.849642854
B48: 2022 | C48: 9 | E48: =IFERROR((('System Detail - Hydro'!W49*'System Detail - Hydro'!$N49)+('System Detail - Hydro'!AU49*'System Detail - Hydro'!$AL49))/SUM('System Detail - Hydro'!$N49+'System Detail - Hydro'!$AL49),"") -> 23.87553174 | F48: =IFERROR((('System Detail - Hydro'!X49*'System Detail - Hydro'!$N49)+('System Detail - Hydro'!AV49*'System Detail - Hydro'!$AL49))/SUM('System Detail - Hydro'!$N49+'System Detail - Hydro'!$AL49),"") -> 20.39645826 | H48: ='System Detail - Hydro'!W49 -> 26.18354703 | I48: ='System Detail - Hydro'!X49 -> 21.57656537 | K48: ='System Detail - Hydro'!AU49 -> 20.64431032 | L48: ='System Detail - Hydro'!AV49 -> 18.7443083 | N48: 2022 | O48: 9 | P48: 1.096668645 | Q48: 1.057858433 | R48: 0.7884459007 | S48: 0.8687345728
B49: 2022 | C49: 10 | E49: =IFERROR((('System Detail - Hydro'!W50*'System Detail - Hydro'!$N50)+('System Detail - Hydro'!AU50*'System Detail - Hydro'!$AL50))/SUM('System Detail - Hydro'!$N50+'System Detail - Hydro'!$AL50),"") -> 24.2025762 | F49: =IFERROR((('System Detail - Hydro'!X50*'System Detail - Hydro'!$N50)+('System Detail - Hydro'!AV50*'System Detail - Hydro'!$AL50))/SUM('System Detail - Hydro'!$N50+'System Detail - Hydro'!$AL50),"") -> 17.69872804 | H49: ='System Detail - Hydro'!W50 -> 26.30623664 | I49: ='System Detail - Hydro'!X50 -> 18.9866886 | K49: ='System Detail - Hydro'!AU50 -> 21.25745159 | L49: ='System Detail - Hydro'!AV50 -> 15.89558326 | N49: 2022 | O49: 10 | P49: 1.086918864 | Q49: 1.072771363 | R49: 0.8080764981 | S49: 0.8371961852
B50: 2022 | C50: 11 | E50: =IFERROR((('System Detail - Hydro'!W51*'System Detail - Hydro'!$N51)+('System Detail - Hydro'!AU51*'System Detail - Hydro'!$AL51))/SUM('System Detail - Hydro'!$N51+'System Detail - Hydro'!$AL51),"") -> 45.92554577 | F50: =IFERROR((('System Detail - Hydro'!X51*'System Detail - Hydro'!$N51)+('System Detail - Hydro'!AV51*'System Detail - Hydro'!$AL51))/SUM('System Detail - Hydro'!$N51+'System Detail - Hydro'!$AL51),"") -> 37.61198671 | H50: ='System Detail - Hydro'!W51 -> 54.07940624 | I50: ='System Detail - Hydro'!X51 -> 46.03074831 | K50: ='System Detail - Hydro'!AU51 -> 34.51014112 | L50: ='System Detail - Hydro'!AV51 -> 25.82572047 | N50: 2022 | O50: 11 | P50: 1.177545206 | Q50: 1.223831878 | R50: 0.638138314 | S50: 0.5610536742
B51: 2022 | C51: 12 | E51: =IFERROR((('System Detail - Hydro'!W52*'System Detail - Hydro'!$N52)+('System Detail - Hydro'!AU52*'System Detail - Hydro'!$AL52))/SUM('System Detail - Hydro'!$N52+'System Detail - Hydro'!$AL52),"") -> 165.4795983 | F51: =IFERROR((('System Detail - Hydro'!X52*'System Detail - Hydro'!$N52)+('System Detail - Hydro'!AV52*'System Detail - Hydro'!$AL52))/SUM('System Detail - Hydro'!$N52+'System Detail - Hydro'!$AL52),"") -> 141.9100889 | H51: ='System Detail - Hydro'!W52 -> 223.4309337 | I51: ='System Detail - Hydro'!X52 -> 199.7169453 | K51: ='System Detail - Hydro'!AU52 -> 68.89403912 | L51: ='System Detail - Hydro'!AV52 -> 45.56532824 | N51: 2022 | O51: 12 | P51: 1.350202297 | Q51: 1.407348462 | R51: 0.3083460198 | S51: 0.2281495352
B52: 2023 | C52: 1 | E52: =IFERROR((('System Detail - Hydro'!W53*'System Detail - Hydro'!$N53)+('System Detail - Hydro'!AU53*'System Detail - Hydro'!$AL53))/SUM('System Detail - Hydro'!$N53+'System Detail - Hydro'!$AL53),"") -> 274.7426508 | F52: =IFERROR((('System Detail - Hydro'!X53*'System Detail - Hydro'!$N53)+('System Detail - Hydro'!AV53*'System Detail - Hydro'!$AL53))/SUM('System Detail - Hydro'!$N53+'System Detail - Hydro'!$AL53),"") -> 245.103198 | H52: ='System Detail - Hydro'!W53 -> 386.5251235 | I52: ='System Detail - Hydro'!X53 -> 357.5843262 | K52: ='System Detail - Hydro'!AU53 -> 88.43852975 | L52: ='System Detail - Hydro'!AV53 -> 57.63465102 | N52: 2023 | O52: 1 | P52: 1.406862467 | Q52: 1.458913344 | R52: 0.2288040916 | S52: 0.1611777889
B53: 2023 | C53: 2 | E53: =IFERROR((('System Detail - Hydro'!W54*'System Detail - Hydro'!$N54)+('System Detail - Hydro'!AU54*'System Detail - Hydro'!$AL54))/SUM('System Detail - Hydro'!$N54+'System Detail - Hydro'!$AL54),"") -> 220.5460923 | F53: =IFERROR((('System Detail - Hydro'!X54*'System Detail - Hydro'!$N54)+('System Detail - Hydro'!AV54*'System Detail - Hydro'!$AL54))/SUM('System Detail - Hydro'!$N54+'System Detail - Hydro'!$AL54),"") -> 190.4156694 | H53: ='System Detail - Hydro'!W54 -> 307.2025859 | I53: ='System Detail - Hydro'!X54 -> 274.2679458 | K53: ='System Detail - Hydro'!AU54 -> 76.11860296 | L53: ='System Detail - Hydro'!AV54 -> 50.66187532 | N53: 2023 | O53: 2 | P53: 1.392917837 | Q53: 1.440364371 | R53: 0.2477798249 | S53: 0.1847167199
B54: 2023 | C54: 3 | E54: =IFERROR((('System Detail - Hydro'!W55*'System Detail - Hydro'!$N55)+('System Detail - Hydro'!AU55*'System Detail - Hydro'!$AL55))/SUM('System Detail - Hydro'!$N55+'System Detail - Hydro'!$AL55),"") -> 86.91602375 | F54: =IFERROR((('System Detail - Hydro'!X55*'System Detail - Hydro'!$N55)+('System Detail - Hydro'!AV55*'System Detail - Hydro'!$AL55))/SUM('System Detail - Hydro'!$N55+'System Detail - Hydro'!$AL55),"") -> 73.73025105 | H54: ='System Detail - Hydro'!W55 -> 111.5545257 | I54: ='System Detail - Hydro'!X55 -> 97.97423341 | K54: ='System Detail - Hydro'!AU55 -> 45.85185383 | L54: ='System Detail - Hydro'!AV55 -> 33.32361378 | N54: 2023 | O54: 3 | P54: 1.283474794 | Q54: 1.328820016 | R54: 0.4110263886 | S54: 0.3401263028
B55: 2023 | C55: 4 | E55: =IFERROR((('System Detail - Hydro'!W56*'System Detail - Hydro'!$N56)+('System Detail - Hydro'!AU56*'System Detail - Hydro'!$AL56))/SUM('System Detail - Hydro'!$N56+'System Detail - Hydro'!$AL56),"") -> 27.06484032 | F55: =IFERROR((('System Detail - Hydro'!X56*'System Detail - Hydro'!$N56)+('System Detail - Hydro'!AV56*'System Detail - Hydro'!$AL56))/SUM('System Detail - Hydro'!$N56+'System Detail - Hydro'!$AL56),"") -> 21.99202221 | H55: ='System Detail - Hydro'!W56 -> 27.59955649 | I55: ='System Detail - Hydro'!X56 -> 21.52694397 | K55: ='System Detail - Hydro'!AU56 -> 26.31623767 | L55: ='System Detail - Hydro'!AV56 -> 22.64313175 | N55: 2023 | O55: 4 | P55: 1.019756857 | Q55: 0.9788524112 | R55: 0.953502194 | S55: 1.051850731
B56: 2023 | C56: 5 | E56: =IFERROR((('System Detail - Hydro'!W57*'System Detail - Hydro'!$N57)+('System Detail - Hydro'!AU57*'System Detail - Hydro'!$AL57))/SUM('System Detail - Hydro'!$N57+'System Detail - Hydro'!$AL57),"") -> 24.40150736 | F56: =IFERROR((('System Detail - Hydro'!X57*'System Detail - Hydro'!$N57)+('System Detail - Hydro'!AV57*'System Detail - Hydro'!$AL57))/SUM('System Detail - Hydro'!$N57+'System Detail - Hydro'!$AL57),"") -> 19.47428865 | H56: ='System Detail - Hydro'!W57 -> 26.66525179 | I56: ='System Detail - Hydro'!X57 -> 20.55836861 | K56: ='System Detail - Hydro'!AU57 -> 21.23226515 | L56: ='System Detail - Hydro'!AV57 -> 17.95657671 | N56: 2023 | O56: 5 | P56: 1.09277068 | Q56: 1.055667243 | R56: 0.7962521907 | S56: 0.8734436595
B57: 2023 | C57: 6 | E57: =IFERROR((('System Detail - Hydro'!W58*'System Detail - Hydro'!$N58)+('System Detail - Hydro'!AU58*'System Detail - Hydro'!$AL58))/SUM('System Detail - Hydro'!$N58+'System Detail - Hydro'!$AL58),"") -> 24.25568179 | F57: =IFERROR((('System Detail - Hydro'!X58*'System Detail - Hydro'!$N58)+('System Detail - Hydro'!AV58*'System Detail - Hydro'!$AL58))/SUM('System Detail - Hydro'!$N58+'System Detail - Hydro'!$AL58),"") -> 21.23939552 | H57: ='System Detail - Hydro'!W58 -> 26.35789813 | I57: ='System Detail - Hydro'!X58 -> 22.28545658 | K57: ='System Detail - Hydro'!AU58 -> 21.31257893 | L57: ='System Detail - Hydro'!AV58 -> 19.77491002 | N57: 2023 | O57: 6 | P57: 1.086669027 | Q57: 1.049250981 | R57: 0.8085841604 | S57: 0.887345967
B58: 2023 | C58: 7 | E58: =IFERROR((('System Detail - Hydro'!W59*'System Detail - Hydro'!$N59)+('System Detail - Hydro'!AU59*'System Detail - Hydro'!$AL59))/SUM('System Detail - Hydro'!$N59+'System Detail - Hydro'!$AL59),"") -> 26.74915234 | F58: =IFERROR((('System Detail - Hydro'!X59*'System Detail - Hydro'!$N59)+('System Detail - Hydro'!AV59*'System Detail - Hydro'!$AL59))/SUM('System Detail - Hydro'!$N59+'System Detail - Hydro'!$AL59),"") -> 26.33880584 | H58: ='System Detail - Hydro'!W59 -> 30.8586361 | I58: ='System Detail - Hydro'!X59 -> 29.2025728 | K58: ='System Detail - Hydro'!AU59 -> 20.99587508 | L58: ='System Detail - Hydro'!AV59 -> 22.3295321 | N58: 2023 | O58: 7 | P58: 1.153630429 | Q58: 1.108728048 | R58: 0.6803889521 | S58: 0.7646426311
B59: 2023 | C59: 8 | E59: =IFERROR((('System Detail - Hydro'!W60*'System Detail - Hydro'!$N60)+('System Detail - Hydro'!AU60*'System Detail - Hydro'!$AL60))/SUM('System Detail - Hydro'!$N60+'System Detail - Hydro'!$AL60),"") -> 26.59303385 | F59: =IFERROR((('System Detail - Hydro'!X60*'System Detail - Hydro'!$N60)+('System Detail - Hydro'!AV60*'System Detail - Hydro'!$AL60))/SUM('System Detail - Hydro'!$N60+'System Detail - Hydro'!$AL60),"") -> 26.95815783 | H59: ='System Detail - Hydro'!W60 -> 29.61623966 | I59: ='System Detail - Hydro'!X60 -> 28.48065364 | K59: ='System Detail - Hydro'!AU60 -> 22.36054573 | L59: ='System Detail - Hydro'!AV60 -> 24.82666369 | N59: 2023 | O59: 8 | P59: 1.113684126 | Q59: 1.056476256 | R59: 0.7550096159 | S59: 0.8717027356
B60: 2023 | C60: 9 | E60: =IFERROR((('System Detail - Hydro'!W61*'System Detail - Hydro'!$N61)+('System Detail - Hydro'!AU61*'System Detail - Hydro'!$AL61))/SUM('System Detail - Hydro'!$N61+'System Detail - Hydro'!$AL61),"") -> 23.89522032 | F60: =IFERROR((('System Detail - Hydro'!X61*'System Detail - Hydro'!$N61)+('System Detail - Hydro'!AV61*'System Detail - Hydro'!$AL61))/SUM('System Detail - Hydro'!$N61+'System Detail - Hydro'!$AL61),"") -> 20.70666551 | H60: ='System Detail - Hydro'!W61 -> 26.06341774 | I60: ='System Detail - Hydro'!X61 -> 21.63991147 | K60: ='System Detail - Hydro'!AU61 -> 20.85974392 | L60: ='System Detail - Hydro'!AV61 -> 19.40012116 | N60: 2023 | O60: 9 | P60: 1.090737704 | Q60: 1.045069833 | R60: 0.8003456845 | S60: 0.896497252
B61: 2023 | C61: 10 | E61: =IFERROR((('System Detail - Hydro'!W62*'System Detail - Hydro'!$N62)+('System Detail - Hydro'!AU62*'System Detail - Hydro'!$AL62))/SUM('System Detail - Hydro'!$N62+'System Detail - Hydro'!$AL62),"") -> 26.73311704 | F61: =IFERROR((('System Detail - Hydro'!X62*'System Detail - Hydro'!$N62)+('System Detail - Hydro'!AV62*'System Detail - Hydro'!$AL62))/SUM('System Detail - Hydro'!$N62+'System Detail - Hydro'!$AL62),"") -> 16.85468769 | H61: ='System Detail - Hydro'!W62 -> 28.7477386 | I61: ='System Detail - Hydro'!X62 -> 18.3676417 | K61: ='System Detail - Hydro'!AU62 -> 23.91264684 | L61: ='System Detail - Hydro'!AV62 -> 14.73655208 | N61: 2023 | O61: 10 | P61: 1.075360519 | Q61: 1.089764583 | R61: 0.8318096658 | S61: 0.8023105157
B62: 2023 | C62: 11 | E62: =IFERROR((('System Detail - Hydro'!W63*'System Detail - Hydro'!$N63)+('System Detail - Hydro'!AU63*'System Detail - Hydro'!$AL63))/SUM('System Detail - Hydro'!$N63+'System Detail - Hydro'!$AL63),"") -> 45.15659229 | F62: =IFERROR((('System Detail - Hydro'!X63*'System Detail - Hydro'!$N63)+('System Detail - Hydro'!AV63*'System Detail - Hydro'!$AL63))/SUM('System Detail - Hydro'!$N63+'System Detail - Hydro'!$AL63),"") -> 35.56278078 | H62: ='System Detail - Hydro'!W63 -> 53.25746092 | I62: ='System Detail - Hydro'!X63 -> 43.97035596 | K62: ='System Detail - Hydro'!AU63 -> 33.81537621 | L62: ='System Detail - Hydro'!AV63 -> 23.79217552 | N62: 2023 | O62: 11 | P62: 1.179395039 | Q62: 1.23641501 | R62: 0.6349415768 | S62: 0.5410958134
B63: 2023 | C63: 12 | E63: =IFERROR((('System Detail - Hydro'!W64*'System Detail - Hydro'!$N64)+('System Detail - Hydro'!AU64*'System Detail - Hydro'!$AL64))/SUM('System Detail - Hydro'!$N64+'System Detail - Hydro'!$AL64),"") -> 166.8425275 | F63: =IFERROR((('System Detail - Hydro'!X64*'System Detail - Hydro'!$N64)+('System Detail - Hydro'!AV64*'System Detail - Hydro'!$AL64))/SUM('System Detail - Hydro'!$N64+'System Detail - Hydro'!$AL64),"") -> 142.3766111 | H63: ='System Detail - Hydro'!W64 -> 225.7770407 | I63: ='System Detail - Hydro'!X64 -> 201.4105183 | K63: ='System Detail - Hydro'!AU64 -> 68.61833881 | L63: ='System Detail - Hydro'!AV64 -> 43.9867658 | N63: 2023 | O63: 12 | P63: 1.353234359 | Q63: 1.414632057 | R63: 0.3039207998 | S63: 0.2183935882
B64: 2024 | C64: 1 | E64: =IFERROR((('System Detail - Hydro'!W65*'System Detail - Hydro'!$N65)+('System Detail - Hydro'!AU65*'System Detail - Hydro'!$AL65))/SUM('System Detail - Hydro'!$N65+'System Detail - Hydro'!$AL65),"") -> 277.2034881 | F64: =IFERROR((('System Detail - Hydro'!X65*'System Detail - Hydro'!$N65)+('System Detail - Hydro'!AV65*'System Detail - Hydro'!$AL65))/SUM('System Detail - Hydro'!$N65+'System Detail - Hydro'!$AL65),"") -> 249.1685543 | H64: ='System Detail - Hydro'!W65 -> 392.4739357 | I64: ='System Detail - Hydro'!X65 -> 364.6537295 | K64: ='System Detail - Hydro'!AU65 -> 85.08607531 | L64: ='System Detail - Hydro'!AV65 -> 56.69326248 | N64: 2024 | O64: 1 | P64: 1.415833323 | Q64: 1.463482141 | R64: 0.2167942061 | S64: 0.1554715005
B65: 2024 | C65: 2 | E65: =IFERROR((('System Detail - Hydro'!W66*'System Detail - Hydro'!$N66)+('System Detail - Hydro'!AU66*'System Detail - Hydro'!$AL66))/SUM('System Detail - Hydro'!$N66+'System Detail - Hydro'!$AL66),"") -> 219.3311035 | F65: =IFERROR((('System Detail - Hydro'!X66*'System Detail - Hydro'!$N66)+('System Detail - Hydro'!AV66*'System Detail - Hydro'!$AL66))/SUM('System Detail - Hydro'!$N66+'System Detail - Hydro'!$AL66),"") -> 190.1255428 | H65: ='System Detail - Hydro'!W66 -> 306.0182202 | I65: ='System Detail - Hydro'!X66 -> 275.6618242 | K65: ='System Detail - Hydro'!AU66 -> 74.85257553 | L65: ='System Detail - Hydro'!AV66 -> 47.56507382 | N65: 2024 | O65: 2 | P65: 1.395234034 | Q65: 1.449893687 | R65: 0.2446016955 | S65: 0.1725486435
B66: 2024 | C66: 3 | E66: =IFERROR((('System Detail - Hydro'!W67*'System Detail - Hydro'!$N67)+('System Detail - Hydro'!AU67*'System Detail - Hydro'!$AL67))/SUM('System Detail - Hydro'!$N67+'System Detail - Hydro'!$AL67),"") -> 85.30626701 | F66: =IFERROR((('System Detail - Hydro'!X67*'System Detail - Hydro'!$N67)+('System Detail - Hydro'!AV67*'System Detail - Hydro'!$AL67))/SUM('System Detail - Hydro'!$N67+'System Detail - Hydro'!$AL67),"") -> 74.01382912 | H66: ='System Detail - Hydro'!W67 -> 109.4330223 | I66: ='System Detail - Hydro'!X67 -> 98.76385491 | K66: ='System Detail - Hydro'!AU67 -> 45.0950082 | L66: ='System Detail - Hydro'!AV67 -> 32.76378614 | N66: 2024 | O66: 3 | P66: 1.282825121 | Q66: 1.334397316 | R66: 0.4120786145 | S66: 0.3317386322
B67: 2024 | C67: 4 | E67: =IFERROR((('System Detail - Hydro'!W68*'System Detail - Hydro'!$N68)+('System Detail - Hydro'!AU68*'System Detail - Hydro'!$AL68))/SUM('System Detail - Hydro'!$N68+'System Detail - Hydro'!$AL68),"") -> 24.89493505 | F67: =IFERROR((('System Detail - Hydro'!X68*'System Detail - Hydro'!$N68)+('System Detail - Hydro'!AV68*'System Detail - Hydro'!$AL68))/SUM('System Detail - Hydro'!$N68+'System Detail - Hydro'!$AL68),"") -> 20.98895759 | H67: ='System Detail - Hydro'!W68 -> 25.79290859 | I67: ='System Detail - Hydro'!X68 -> 20.48139801 | K67: ='System Detail - Hydro'!AU68 -> 23.63777209 | L67: ='System Detail - Hydro'!AV68 -> 21.699541 | N67: 2024 | O67: 4 | P67: 1.036070532 | Q67: 0.9758177806 | R67: 0.9164446117 | S67: 1.059475578
B68: 2024 | C68: 5 | E68: =IFERROR((('System Detail - Hydro'!W69*'System Detail - Hydro'!$N69)+('System Detail - Hydro'!AU69*'System Detail - Hydro'!$AL69))/SUM('System Detail - Hydro'!$N69+'System Detail - Hydro'!$AL69),"") -> 23.45830665 | F68: =IFERROR((('System Detail - Hydro'!X69*'System Detail - Hydro'!$N69)+('System Detail - Hydro'!AV69*'System Detail - Hydro'!$AL69))/SUM('System Detail - Hydro'!$N69+'System Detail - Hydro'!$AL69),"") -> 18.46804139 | H68: ='System Detail - Hydro'!W69 -> 25.75751555 | I68: ='System Detail - Hydro'!X69 -> 20.00901244 | K68: ='System Detail - Hydro'!AU69 -> 20.23941419 | L68: ='System Detail - Hydro'!AV69 -> 16.31068193 | N68: 2024 | O68: 5 | P68: 1.098012569 | Q68: 1.083439874 | R68: 0.7857673286 | S68: 0.8151667648
B69: 2024 | C69: 6 | E69: =IFERROR((('System Detail - Hydro'!W70*'System Detail - Hydro'!$N70)+('System Detail - Hydro'!AU70*'System Detail - Hydro'!$AL70))/SUM('System Detail - Hydro'!$N70+'System Detail - Hydro'!$AL70),"") -> 25.36226336 | F69: =IFERROR((('System Detail - Hydro'!X70*'System Detail - Hydro'!$N70)+('System Detail - Hydro'!AV70*'System Detail - Hydro'!$AL70))/SUM('System Detail - Hydro'!$N70+'System Detail - Hydro'!$AL70),"") -> 22.01290817 | H69: ='System Detail - Hydro'!W70 -> 27.39831485 | I69: ='System Detail - Hydro'!X70 -> 23.08851931 | K69: ='System Detail - Hydro'!AU70 -> 22.51179127 | L69: ='System Detail - Hydro'!AV70 -> 20.50705258 | N69: 2024 | O69: 6 | P69: 1.080278777 | Q69: 1.048862746 | R69: 0.8216487542 | S69: 0.8881926253
B70: 2024 | C70: 7 | E70: =IFERROR((('System Detail - Hydro'!W71*'System Detail - Hydro'!$N71)+('System Detail - Hydro'!AU71*'System Detail - Hydro'!$AL71))/SUM('System Detail - Hydro'!$N71+'System Detail - Hydro'!$AL71),"") -> 27.15119332 | F70: =IFERROR((('System Detail - Hydro'!X71*'System Detail - Hydro'!$N71)+('System Detail - Hydro'!AV71*'System Detail - Hydro'!$AL71))/SUM('System Detail - Hydro'!$N71+'System Detail - Hydro'!$AL71),"") -> 26.37253524 | H70: ='System Detail - Hydro'!W71 -> 30.94893969 | I70: ='System Detail - Hydro'!X71 -> 29.00460855 | K70: ='System Detail - Hydro'!AU71 -> 21.8343484 | L70: ='System Detail - Hydro'!AV71 -> 22.68763261 | N70: 2024 | O70: 7 | P70: 1.139874013 | Q70: 1.099803575 | R70: 0.7054958464 | S70: 0.7822078542
B71: 2024 | C71: 8 | E71: =IFERROR((('System Detail - Hydro'!W72*'System Detail - Hydro'!$N72)+('System Detail - Hydro'!AU72*'System Detail - Hydro'!$AL72))/SUM('System Detail - Hydro'!$N72+'System Detail - Hydro'!$AL72),"") -> 26.92161343 | F71: =IFERROR((('System Detail - Hydro'!X72*'System Detail - Hydro'!$N72)+('System Detail - Hydro'!AV72*'System Detail - Hydro'!$AL72))/SUM('System Detail - Hydro'!$N72+'System Detail - Hydro'!$AL72),"") -> 27.03543448 | H71: ='System Detail - Hydro'!W72 -> 30.04425192 | I71: ='System Detail - Hydro'!X72 -> 28.82778275 | K71: ='System Detail - Hydro'!AU72 -> 22.54991954 | L71: ='System Detail - Hydro'!AV72 -> 24.52614691 | N71: 2024 | O71: 8 | P71: 1.11599002 | Q71: 1.066296263 | R71: 0.7505568652 | S71: 0.8507815922
B72: 2024 | C72: 9 | E72: =IFERROR((('System Detail - Hydro'!W73*'System Detail - Hydro'!$N73)+('System Detail - Hydro'!AU73*'System Detail - Hydro'!$AL73))/SUM('System Detail - Hydro'!$N73+'System Detail - Hydro'!$AL73),"") -> 23.88395387 | F72: =IFERROR((('System Detail - Hydro'!X73*'System Detail - Hydro'!$N73)+('System Detail - Hydro'!AV73*'System Detail - Hydro'!$AL73))/SUM('System Detail - Hydro'!$N73+'System Detail - Hydro'!$AL73),"") -> 20.13761149 | H72: ='System Detail - Hydro'!W73 -> 26.11488691 | I72: ='System Detail - Hydro'!X73 -> 21.32682579 | K72: ='System Detail - Hydro'!AU73 -> 20.76064762 | L72: ='System Detail - Hydro'!AV73 -> 18.47271147 | N72: 2024 | O72: 9 | P72: 1.093407191 | Q72: 1.059054387 | R72: 0.7949736751 | S72: 0.8661725682
B73: 2024 | C73: 10 | E73: =IFERROR((('System Detail - Hydro'!W74*'System Detail - Hydro'!$N74)+('System Detail - Hydro'!AU74*'System Detail - Hydro'!$AL74))/SUM('System Detail - Hydro'!$N74+'System Detail - Hydro'!$AL74),"") -> 29.17853247 | F73: =IFERROR((('System Detail - Hydro'!X74*'System Detail - Hydro'!$N74)+('System Detail - Hydro'!AV74*'System Detail - Hydro'!$AL74))/SUM('System Detail - Hydro'!$N74+'System Detail - Hydro'!$AL74),"") -> 19.10356227 | H73: ='System Detail - Hydro'!W74 -> 31.11875977 | I73: ='System Detail - Hydro'!X74 -> 20.60040316 | K73: ='System Detail - Hydro'!AU74 -> 26.46221425 | L73: ='System Detail - Hydro'!AV74 -> 17.00798501 | N73: 2024 | O73: 10 | P73: 1.066495027 | Q73: 1.07835402 | R73: 0.8503621109 | S73: 0.8256141822
B74: 2024 | C74: 11 | E74: =IFERROR((('System Detail - Hydro'!W75*'System Detail - Hydro'!$N75)+('System Detail - Hydro'!AU75*'System Detail - Hydro'!$AL75))/SUM('System Detail - Hydro'!$N75+'System Detail - Hydro'!$AL75),"") -> 52.44526467 | F74: =IFERROR((('System Detail - Hydro'!X75*'System Detail - Hydro'!$N75)+('System Detail - Hydro'!AV75*'System Detail - Hydro'!$AL75))/SUM('System Detail - Hydro'!$N75+'System Detail - Hydro'!$AL75),"") -> 41.04739039 | H74: ='System Detail - Hydro'!W75 -> 61.07061377 | I74: ='System Detail - Hydro'!X75 -> 49.97314294 | K74: ='System Detail - Hydro'!AU75 -> 40.36977594 | L74: ='System Detail - Hydro'!AV75 -> 28.55133682 | N74: 2024 | O74: 11 | P74: 1.16446383 | Q74: 1.217449939 | R74: 0.6610343904 | S74: 0.5713336234
B75: 2024 | C75: 12 | E75: =IFERROR((('System Detail - Hydro'!W76*'System Detail - Hydro'!$N76)+('System Detail - Hydro'!AU76*'System Detail - Hydro'!$AL76))/SUM('System Detail - Hydro'!$N76+'System Detail - Hydro'!$AL76),"") -> 171.5962082 | F75: =IFERROR((('System Detail - Hydro'!X76*'System Detail - Hydro'!$N76)+('System Detail - Hydro'!AV76*'System Detail - Hydro'!$AL76))/SUM('System Detail - Hydro'!$N76+'System Detail - Hydro'!$AL76),"") -> 151.1316963 | H75: ='System Detail - Hydro'!W76 -> 231.8483928 | I75: ='System Detail - Hydro'!X76 -> 211.9473418 | K75: ='System Detail - Hydro'!AU76 -> 71.17590054 | L75: ='System Detail - Hydro'!AV76 -> 49.77228704 | N75: 2024 | O75: 12 | P75: 1.351127716 | Q75: 1.402401661 | R75: 0.3069932885 | S75: 0.2348332686
B76: 2025 | C76: 1 | E76: =IFERROR((('System Detail - Hydro'!W77*'System Detail - Hydro'!$N77)+('System Detail - Hydro'!AU77*'System Detail - Hydro'!$AL77))/SUM('System Detail - Hydro'!$N77+'System Detail - Hydro'!$AL77),"") -> 286.8112895 | F76: =IFERROR((('System Detail - Hydro'!X77*'System Detail - Hydro'!$N77)+('System Detail - Hydro'!AV77*'System Detail - Hydro'!$AL77))/SUM('System Detail - Hydro'!$N77+'System Detail - Hydro'!$AL77),"") -> 260.4915185 | H76: ='System Detail - Hydro'!W77 -> 404.4426895 | I76: ='System Detail - Hydro'!X77 -> 378.8865369 | K76: ='System Detail - Hydro'!AU77 -> 90.75895616 | L76: ='System Detail - Hydro'!AV77 -> 63.16648771 | N76: 2025 | O76: 1 | P76: 1.410135181 | Q76: 1.454506232 | R76: 0.2244049862 | S76: 0.1667161051
B77: 2025 | C77: 2 | E77: =IFERROR((('System Detail - Hydro'!W78*'System Detail - Hydro'!$N78)+('System Detail - Hydro'!AU78*'System Detail - Hydro'!$AL78))/SUM('System Detail - Hydro'!$N78+'System Detail - Hydro'!$AL78),"") -> 225.5039133 | F77: =IFERROR((('System Detail - Hydro'!X78*'System Detail - Hydro'!$N78)+('System Detail - Hydro'!AV78*'System Detail - Hydro'!$AL78))/SUM('System Detail - Hydro'!$N78+'System Detail - Hydro'!$AL78),"") -> 199.5778585 | H77: ='System Detail - Hydro'!W78 -> 313.4614182 | I77: ='System Detail - Hydro'!X78 -> 287.3638911 | K77: ='System Detail - Hydro'!AU78 -> 78.90807179 | L77: ='System Detail - Hydro'!AV78 -> 53.26780417 | N77: 2025 | O77: 2 | P77: 1.390048685 | Q77: 1.439858576 | R77: 0.2517313686 | S77: 0.1853670757
B78: 2025 | C78: 3 | E78: =IFERROR((('System Detail - Hydro'!W79*'System Detail - Hydro'!$N79)+('System Detail - Hydro'!AU79*'System Detail - Hydro'!$AL79))/SUM('System Detail - Hydro'!$N79+'System Detail - Hydro'!$AL79),"") -> 85.85106531 | F78: =IFERROR((('System Detail - Hydro'!X79*'System Detail - Hydro'!$N79)+('System Detail - Hydro'!AV79*'System Detail - Hydro'!$AL79))/SUM('System Detail - Hydro'!$N79+'System Detail - Hydro'!$AL79),"") -> 76.77488174 | H78: ='System Detail - Hydro'!W79 -> 110.8495364 | I78: ='System Detail - Hydro'!X79 -> 102.1269862 | K78: ='System Detail - Hydro'!AU79 -> 44.18694681 | L78: ='System Detail - Hydro'!AV79 -> 34.52137428 | N78: 2025 | O78: 3 | P78: 1.291184169 | Q78: 1.330213527 | R78: 0.3986209437 | S78: 0.3380240185
B79: 2025 | C79: 4 | E79: =IFERROR((('System Detail - Hydro'!W80*'System Detail - Hydro'!$N80)+('System Detail - Hydro'!AU80*'System Detail - Hydro'!$AL80))/SUM('System Detail - Hydro'!$N80+'System Detail - Hydro'!$AL80),"") -> 27.08290651 | F79: =IFERROR((('System Detail - Hydro'!X80*'System Detail - Hydro'!$N80)+('System Detail - Hydro'!AV80*'System Detail - Hydro'!$AL80))/SUM('System Detail - Hydro'!$N80+'System Detail - Hydro'!$AL80),"") -> 22.02995574 | H79: ='System Detail - Hydro'!W80 -> 27.80774171 | I79: ='System Detail - Hydro'!X80 -> 21.6825424 | K79: ='System Detail - Hydro'!AU80 -> 26.06813722 | L79: ='System Detail - Hydro'!AV80 -> 22.51633442 | N79: 2025 | O79: 4 | P79: 1.026763568 | Q79: 0.9842299574 | R79: 0.9374417201 | S79: 1.038454532
B80: 2025 | C80: 5 | E80: =IFERROR((('System Detail - Hydro'!W81*'System Detail - Hydro'!$N81)+('System Detail - Hydro'!AU81*'System Detail - Hydro'!$AL81))/SUM('System Detail - Hydro'!$N81+'System Detail - Hydro'!$AL81),"") -> 25.59058128 | F80: =IFERROR((('System Detail - Hydro'!X81*'System Detail - Hydro'!$N81)+('System Detail - Hydro'!AV81*'System Detail - Hydro'!$AL81))/SUM('System Detail - Hydro'!$N81+'System Detail - Hydro'!$AL81),"") -> 19.24447432 | H80: ='System Detail - Hydro'!W81 -> 27.51700807 | I80: ='System Detail - Hydro'!X81 -> 20.89773745 | K80: ='System Detail - Hydro'!AU81 -> 22.89358377 | L80: ='System Detail - Hydro'!AV81 -> 16.92990593 | N80: 2025 | O80: 5 | P80: 1.075278743 | Q80: 1.085908459 | R80: 0.8319793964 | S80: 0.8101310473
B81: =B69+1 -> 2025 | C81: =C69 -> 6 | E81: =IFERROR((('System Detail - Hydro'!W82*'System Detail - Hydro'!$N82)+('System Detail - Hydro'!AU82*'System Detail - Hydro'!$AL82))/SUM('System Detail - Hydro'!$N82+'System Detail - Hydro'!$AL82),"") -> 26.3113064 | F81: =IFERROR((('System Detail - Hydro'!X82*'System Detail - Hydro'!$N82)+('System Detail - Hydro'!AV82*'System Detail - Hydro'!$AL82))/SUM('System Detail - Hydro'!$N82+'System Detail - Hydro'!$AL82),"") -> 23.24852778 | H81: ='System Detail - Hydro'!W82 -> 28.46230898 | I81: ='System Detail - Hydro'!X82 -> 24.4156 | K81: ='System Detail - Hydro'!AU82 -> 23.29990278 | L81: ='System Detail - Hydro'!AV82 -> 21.61462668 | N81: =N69+1 -> 2025 | O81: =O69 -> 6 | P81: 1.081752025 | Q81: 1.050199833 | R81: 0.818623071 | S81: 0.8852793573
B82: 2025 | C82: 7 | E82: =IFERROR((('System Detail - Hydro'!W83*'System Detail - Hydro'!$N83)+('System Detail - Hydro'!AU83*'System Detail - Hydro'!$AL83))/SUM('System Detail - Hydro'!$N83+'System Detail - Hydro'!$AL83),"") -> 28.93126525 | F82: =IFERROR((('System Detail - Hydro'!X83*'System Detail - Hydro'!$N83)+('System Detail - Hydro'!AV83*'System Detail - Hydro'!$AL83))/SUM('System Detail - Hydro'!$N83+'System Detail - Hydro'!$AL83),"") -> 28.79630281 | H82: ='System Detail - Hydro'!W83 -> 33.07435331 | I82: ='System Detail - Hydro'!X83 -> 31.77724231 | K82: ='System Detail - Hydro'!AU83 -> 23.13094196 | L82: ='System Detail - Hydro'!AV83 -> 24.62298752 | N82: 2025 | O82: 7 | P82: 1.143204524 | Q82: 1.103518133 | R82: 0.6993618814 | S82: 0.7748623144
B83: 2025 | C83: 8 | E83: =IFERROR((('System Detail - Hydro'!W84*'System Detail - Hydro'!$N84)+('System Detail - Hydro'!AU84*'System Detail - Hydro'!$AL84))/SUM('System Detail - Hydro'!$N84+'System Detail - Hydro'!$AL84),"") -> 29.40726095 | F83: =IFERROR((('System Detail - Hydro'!X84*'System Detail - Hydro'!$N84)+('System Detail - Hydro'!AV84*'System Detail - Hydro'!$AL84))/SUM('System Detail - Hydro'!$N84+'System Detail - Hydro'!$AL84),"") -> 30.01507277 | H83: ='System Detail - Hydro'!W84 -> 32.58045411 | I83: ='System Detail - Hydro'!X84 -> 31.87698282 | K83: ='System Detail - Hydro'!AU84 -> 24.96479054 | L83: ='System Detail - Hydro'!AV84 -> 27.40839871 | N83: 2025 | O83: 8 | P83: 1.10790509 | Q83: 1.062032502 | R83: 0.7662505395 | S83: 0.8598178461
B84: 2025 | C84: 9 | E84: =IFERROR((('System Detail - Hydro'!W85*'System Detail - Hydro'!$N85)+('System Detail - Hydro'!AU85*'System Detail - Hydro'!$AL85))/SUM('System Detail - Hydro'!$N85+'System Detail - Hydro'!$AL85),"") -> 25.90281193 | F84: =IFERROR((('System Detail - Hydro'!X85*'System Detail - Hydro'!$N85)+('System Detail - Hydro'!AV85*'System Detail - Hydro'!$AL85))/SUM('System Detail - Hydro'!$N85+'System Detail - Hydro'!$AL85),"") -> 22.62939288 | H84: ='System Detail - Hydro'!W85 -> 28.41461347 | I84: ='System Detail - Hydro'!X85 -> 23.92990758 | K84: ='System Detail - Hydro'!AU85 -> 22.38628977 | L84: ='System Detail - Hydro'!AV85 -> 20.8086723 | N84: 2025 | O84: 9 | P84: =H84/E84 -> 1.096970227 | Q84: 1.057470154 | R84: =K84/H84 -> 0.7878442476 | S84: 0.8695675999
B85: 2025 | C85: 10 | E85: =IFERROR((('System Detail - Hydro'!W86*'System Detail - Hydro'!$N86)+('System Detail - Hydro'!AU86*'System Detail - Hydro'!$AL86))/SUM('System Detail - Hydro'!$N86+'System Detail - Hydro'!$AL86),"") -> 27.50953935 | F85: =IFERROR((('System Detail - Hydro'!X86*'System Detail - Hydro'!$N86)+('System Detail - Hydro'!AV86*'System Detail - Hydro'!$AL86))/SUM('System Detail - Hydro'!$N86+'System Detail - Hydro'!$AL86),"") -> 20.76770921 | H85: ='System Detail - Hydro'!W86 -> 30.14386769 | I85: ='System Detail - Hydro'!X86 -> 22.08427313 | K85: ='System Detail - Hydro'!AU86 -> 23.82147966 | L85: ='System Detail - Hydro'!AV86 -> 18.92451973 | N85: 2025 | O85: 10 | P85: 1.09576054 | Q85: 1.063394759 | R85: 0.7902595615 | S85: 0.8569229162
B86: 2025 | C86: 11 | E86: =IFERROR((('System Detail - Hydro'!W87*'System Detail - Hydro'!$N87)+('System Detail - Hydro'!AU87*'System Detail - Hydro'!$AL87))/SUM('System Detail - Hydro'!$N87+'System Detail - Hydro'!$AL87),"") -> 53.69358162 | F86: =IFERROR((('System Detail - Hydro'!X87*'System Detail - Hydro'!$N87)+('System Detail - Hydro'!AV87*'System Detail - Hydro'!$AL87))/SUM('System Detail - Hydro'!$N87+'System Detail - Hydro'!$AL87),"") -> 42.3974797 | H86: ='System Detail - Hydro'!W87 -> 62.2366314 | I86: ='System Detail - Hydro'!X87 -> 51.40397338 | K86: ='System Detail - Hydro'!AU87 -> 41.73331193 | L86: ='System Detail - Hydro'!AV87 -> 29.78838854 | N86: 2025 | O86: 11 | P86: 1.159107467 | Q86: 1.212429931 | R86: 0.6705586564 | S86: 0.5794958362
B87: 2025 | C87: 12 | E87: =IFERROR((('System Detail - Hydro'!W88*'System Detail - Hydro'!$N88)+('System Detail - Hydro'!AU88*'System Detail - Hydro'!$AL88))/SUM('System Detail - Hydro'!$N88+'System Detail - Hydro'!$AL88),"") -> 173.5644453 | F87: =IFERROR((('System Detail - Hydro'!X88*'System Detail - Hydro'!$N88)+('System Detail - Hydro'!AV88*'System Detail - Hydro'!$AL88))/SUM('System Detail - Hydro'!$N88+'System Detail - Hydro'!$AL88),"") -> 154.6052742 | H87: ='System Detail - Hydro'!W88 -> 235.0974411 | I87: ='System Detail - Hydro'!X88 -> 216.8866579 | K87: ='System Detail - Hydro'!AU88 -> 71.0094522 | L87: ='System Detail - Hydro'!AV88 -> 50.80296807 | N87: 2025 | O87: 12 | P87: 1.354525351 | Q87: 1.402841261 | R87: 0.3020426419 | S87: 0.2342374057
B88: 2026 | C88: 1 | E88: =IFERROR((('System Detail - Hydro'!W89*'System Detail - Hydro'!$N89)+('System Detail - Hydro'!AU89*'System Detail - Hydro'!$AL89))/SUM('System Detail - Hydro'!$N89+'System Detail - Hydro'!$AL89),"") -> 288.2150874 | F88: =IFERROR((('System Detail - Hydro'!X89*'System Detail - Hydro'!$N89)+('System Detail - Hydro'!AV89*'System Detail - Hydro'!$AL89))/SUM('System Detail - Hydro'!$N89+'System Detail - Hydro'!$AL89),"") -> 264.1767379 | H88: ='System Detail - Hydro'!W89 -> 405.5363861 | I88: ='System Detail - Hydro'!X89 -> 384.3989596 | K88: ='System Detail - Hydro'!AU89 -> 92.67958959 | L88: ='System Detail - Hydro'!AV89 -> 63.80636857 | N88: 2026 | O88: 1 | P88: 1.407061614 | Q88: 1.455082543 | R88: 0.2285358177 | S88: 0.1659899617
B89: 2026 | C89: 2 | E89: =IFERROR((('System Detail - Hydro'!W90*'System Detail - Hydro'!$N90)+('System Detail - Hydro'!AU90*'System Detail - Hydro'!$AL90))/SUM('System Detail - Hydro'!$N90+'System Detail - Hydro'!$AL90),"") -> 229.7358876 | F89: =IFERROR((('System Detail - Hydro'!X90*'System Detail - Hydro'!$N90)+('System Detail - Hydro'!AV90*'System Detail - Hydro'!$AL90))/SUM('System Detail - Hydro'!$N90+'System Detail - Hydro'!$AL90),"") -> 202.6119985 | H89: ='System Detail - Hydro'!W90 -> 319.0966949 | I89: ='System Detail - Hydro'!X90 -> 292.2595504 | K89: ='System Detail - Hydro'!AU90 -> 80.80120891 | L89: ='System Detail - Hydro'!AV90 -> 53.19941199 | N89: 2026 | O89: 2 | P89: 1.388971911 | Q89: 1.442459245 | R89: 0.2532185704 | S89: 0.1820279677
B90: 2026 | C90: 3 | E90: =IFERROR((('System Detail - Hydro'!W91*'System Detail - Hydro'!$N91)+('System Detail - Hydro'!AU91*'System Detail - Hydro'!$AL91))/SUM('System Detail - Hydro'!$N91+'System Detail - Hydro'!$AL91),"") -> 93.21538967 | F90: =IFERROR((('System Detail - Hydro'!X91*'System Detail - Hydro'!$N91)+('System Detail - Hydro'!AV91*'System Detail - Hydro'!$AL91))/SUM('System Detail - Hydro'!$N91+'System Detail - Hydro'!$AL91),"") -> 79.93659769 | H90: ='System Detail - Hydro'!W91 -> 118.9759668 | I90: ='System Detail - Hydro'!X91 -> 105.9876938 | K90: ='System Detail - Hydro'!AU91 -> 50.28109453 | L90: ='System Detail - Hydro'!AV91 -> 36.51810424 | N90: 2026 | O90: 3 | P90: 1.276355408 | Q90: 1.325896984 | R90: 0.4226155576 | S90: 0.3445504185
B91: 2026 | C91: 4 | E91: =IFERROR((('System Detail - Hydro'!W92*'System Detail - Hydro'!$N92)+('System Detail - Hydro'!AU92*'System Detail - Hydro'!$AL92))/SUM('System Detail - Hydro'!$N92+'System Detail - Hydro'!$AL92),"") -> 29.64202289 | F91: =IFERROR((('System Detail - Hydro'!X92*'System Detail - Hydro'!$N92)+('System Detail - Hydro'!AV92*'System Detail - Hydro'!$AL92))/SUM('System Detail - Hydro'!$N92+'System Detail - Hydro'!$AL92),"") -> 23.13308058 | H91: ='System Detail - Hydro'!W92 -> 30.18412682 | I91: ='System Detail - Hydro'!X92 -> 22.85442978 | K91: ='System Detail - Hydro'!AU92 -> 28.8830774 | L91: ='System Detail - Hydro'!AV92 -> 23.52319171 | N91: 2026 | O91: 4 | P91: 1.018288358 | Q91: 0.9879544446 | R91: 0.9568962377 | S91: 1.029261808
B92: 2026 | C92: 5 | E92: =IFERROR((('System Detail - Hydro'!W93*'System Detail - Hydro'!$N93)+('System Detail - Hydro'!AU93*'System Detail - Hydro'!$AL93))/SUM('System Detail - Hydro'!$N93+'System Detail - Hydro'!$AL93),"") -> 26.82270903 | F92: =IFERROR((('System Detail - Hydro'!X93*'System Detail - Hydro'!$N93)+('System Detail - Hydro'!AV93*'System Detail - Hydro'!$AL93))/SUM('System Detail - Hydro'!$N93+'System Detail - Hydro'!$AL93),"") -> 21.25800668 | H92: ='System Detail - Hydro'!W93 -> 28.98921491 | I92: ='System Detail - Hydro'!X93 -> 22.91692638 | K92: ='System Detail - Hydro'!AU93 -> 23.7896008 | L92: ='System Detail - Hydro'!AV93 -> 18.9355191 | N92: 2026 | O92: 5 | P92: 1.08077133 | Q92: 1.078037406 | R92: 0.8206362563 | S92: 0.8262678334
B93: 2026 | C93: 6 | E93: =IFERROR((('System Detail - Hydro'!W94*'System Detail - Hydro'!$N94)+('System Detail - Hydro'!AU94*'System Detail - Hydro'!$AL94))/SUM('System Detail - Hydro'!$N94+'System Detail - Hydro'!$AL94),"") -> 27.79835187 | F93: =IFERROR((('System Detail - Hydro'!X94*'System Detail - Hydro'!$N94)+('System Detail - Hydro'!AV94*'System Detail - Hydro'!$AL94))/SUM('System Detail - Hydro'!$N94+'System Detail - Hydro'!$AL94),"") -> 24.86915568 | H93: ='System Detail - Hydro'!W94 -> 30.07586284 | I93: ='System Detail - Hydro'!X94 -> 26.22729946 | K93: ='System Detail - Hydro'!AU94 -> 24.60983652 | L93: ='System Detail - Hydro'!AV94 -> 22.96775437 | N93: 2026 | O93: 6 | P93: 1.081929712 | Q93: 1.054611576 | R93: 0.8182587028 | S93: 0.8757193779
B94: 2026 | C94: 7 | E94: =IFERROR((('System Detail - Hydro'!W95*'System Detail - Hydro'!$N95)+('System Detail - Hydro'!AU95*'System Detail - Hydro'!$AL95))/SUM('System Detail - Hydro'!$N95+'System Detail - Hydro'!$AL95),"") -> 31.01780792 | F94: =IFERROR((('System Detail - Hydro'!X95*'System Detail - Hydro'!$N95)+('System Detail - Hydro'!AV95*'System Detail - Hydro'!$AL95))/SUM('System Detail - Hydro'!$N95+'System Detail - Hydro'!$AL95),"") -> 31.61406231 | H94: ='System Detail - Hydro'!W95 -> 35.42551302 | I94: ='System Detail - Hydro'!X95 -> 34.79949047 | K94: ='System Detail - Hydro'!AU95 -> 24.84702078 | L94: ='System Detail - Hydro'!AV95 -> 27.15446288 | N94: 2026 | O94: 7 | P94: 1.142102405 | Q94: 1.10075985 | R94: 0.7013877474 | S94: 0.7803120825
B95: 2026 | C95: 8 | E95: =IFERROR((('System Detail - Hydro'!W96*'System Detail - Hydro'!$N96)+('System Detail - Hydro'!AU96*'System Detail - Hydro'!$AL96))/SUM('System Detail - Hydro'!$N96+'System Detail - Hydro'!$AL96),"") -> 30.43345537 | F95: =IFERROR((('System Detail - Hydro'!X96*'System Detail - Hydro'!$N96)+('System Detail - Hydro'!AV96*'System Detail - Hydro'!$AL96))/SUM('System Detail - Hydro'!$N96+'System Detail - Hydro'!$AL96),"") -> 32.04718703 | H95: ='System Detail - Hydro'!W96 -> 33.75460462 | I95: ='System Detail - Hydro'!X96 -> 34.03198427 | K95: ='System Detail - Hydro'!AU96 -> 25.78384643 | L95: ='System Detail - Hydro'!AV96 -> 29.26847089 | N95: 2026 | O95: 8 | P95: 1.109128234 | Q95: 1.061933587 | R95: 0.7638616041 | S95: 0.8600283385
B96: 2026 | C96: 9 | E96: =IFERROR((('System Detail - Hydro'!W97*'System Detail - Hydro'!$N97)+('System Detail - Hydro'!AU97*'System Detail - Hydro'!$AL97))/SUM('System Detail - Hydro'!$N97+'System Detail - Hydro'!$AL97),"") -> 27.3484505 | F96: =IFERROR((('System Detail - Hydro'!X97*'System Detail - Hydro'!$N97)+('System Detail - Hydro'!AV97*'System Detail - Hydro'!$AL97))/SUM('System Detail - Hydro'!$N97+'System Detail - Hydro'!$AL97),"") -> 24.29418685 | H96: ='System Detail - Hydro'!W97 -> 29.83187103 | I96: ='System Detail - Hydro'!X97 -> 25.53744499 | K96: ='System Detail - Hydro'!AU97 -> 23.87166176 | L96: ='System Detail - Hydro'!AV97 -> 22.55362546 | N96: 2026 | O96: 9 | P96: 1.090806627 | Q96: 1.051175129 | R96: 0.8002066559 | S96: 0.8831590421
B97: 2026 | C97: 10 | E97: =IFERROR((('System Detail - Hydro'!W98*'System Detail - Hydro'!$N98)+('System Detail - Hydro'!AU98*'System Detail - Hydro'!$AL98))/SUM('System Detail - Hydro'!$N98+'System Detail - Hydro'!$AL98),"") -> 29.13219956 | F97: =IFERROR((('System Detail - Hydro'!X98*'System Detail - Hydro'!$N98)+('System Detail - Hydro'!AV98*'System Detail - Hydro'!$AL98))/SUM('System Detail - Hydro'!$N98+'System Detail - Hydro'!$AL98),"") -> 21.67241387 | H97: ='System Detail - Hydro'!W98 -> 31.40758567 | I97: ='System Detail - Hydro'!X98 -> 23.3491789 | K97: ='System Detail - Hydro'!AU98 -> 25.94665902 | L97: ='System Detail - Hydro'!AV98 -> 19.32494283 | N97: 2026 | O97: 10 | P97: 1.078105537 | Q97: 1.077368633 | R97: 0.8261271433 | S97: 0.8276497822
B98: 2026 | C98: 11 | E98: =IFERROR((('System Detail - Hydro'!W99*'System Detail - Hydro'!$N99)+('System Detail - Hydro'!AU99*'System Detail - Hydro'!$AL99))/SUM('System Detail - Hydro'!$N99+'System Detail - Hydro'!$AL99),"") -> 55.9836837 | F98: =IFERROR((('System Detail - Hydro'!X99*'System Detail - Hydro'!$N99)+('System Detail - Hydro'!AV99*'System Detail - Hydro'!$AL99))/SUM('System Detail - Hydro'!$N99+'System Detail - Hydro'!$AL99),"") -> 43.74005057 | H98: ='System Detail - Hydro'!W99 -> 64.7985147 | I98: ='System Detail - Hydro'!X99 -> 53.12282141 | K98: ='System Detail - Hydro'!AU99 -> 43.64292031 | L98: ='System Detail - Hydro'!AV99 -> 30.60417138 | N98: 2026 | O98: 11 | P98: 1.157453572 | Q98: 1.214512117 | R98: 0.6735172945 | S98: 0.5761021453
B99: 2026 | C99: 12 | E99: =IFERROR((('System Detail - Hydro'!W100*'System Detail - Hydro'!$N100)+('System Detail - Hydro'!AU100*'System Detail - Hydro'!$AL100))/SUM('System Detail - Hydro'!$N100+'System Detail - Hydro'!$AL100),"") -> 177.7993368 | F99: =IFERROR((('System Detail - Hydro'!X100*'System Detail - Hydro'!$N100)+('System Detail - Hydro'!AV100*'System Detail - Hydro'!$AL100))/SUM('System Detail - Hydro'!$N100+'System Detail - Hydro'!$AL100),"") -> 159.3090229 | H99: ='System Detail - Hydro'!W100 -> 240.6703851 | I99: ='System Detail - Hydro'!X100 -> 222.9224468 | K99: ='System Detail - Hydro'!AU100 -> 73.01425629 | L99: ='System Detail - Hydro'!AV100 -> 53.2866497 | N99: 2026 | O99: 12 | P99: 1.353606765 | Q99: 1.399308355 | R99: 0.3033786491 | S99: 0.2390367164
B100: 2027 | C100: 1 | E100: =IFERROR((('System Detail - Hydro'!W101*'System Detail - Hydro'!$N101)+('System Detail - Hydro'!AU101*'System Detail - Hydro'!$AL101))/SUM('System Detail - Hydro'!$N101+'System Detail - Hydro'!$AL101),"") -> 293.7121658 | F100: =IFERROR((('System Detail - Hydro'!X101*'System Detail - Hydro'!$N101)+('System Detail - Hydro'!AV101*'System Detail - Hydro'!$AL101))/SUM('System Detail - Hydro'!$N101+'System Detail - Hydro'!$AL101),"") -> 271.3556039 | H100: ='System Detail - Hydro'!W101 -> 414.9808736 | I100: ='System Detail - Hydro'!X101 -> 394.9968533 | K100: ='System Detail - Hydro'!AU101 -> 91.59765293 | L100: ='System Detail - Hydro'!AV101 -> 65.28685499 | N100: 2027 | O100: 1 | P100: 1.412882822 | Q100: 1.455642882 | R100: 0.2207274088 | S100: 0.1652844939
B101: 2027 | C101: 2 | E101: =IFERROR((('System Detail - Hydro'!W102*'System Detail - Hydro'!$N102)+('System Detail - Hydro'!AU102*'System Detail - Hydro'!$AL102))/SUM('System Detail - Hydro'!$N102+'System Detail - Hydro'!$AL102),"") -> 233.4431678 | F101: =IFERROR((('System Detail - Hydro'!X102*'System Detail - Hydro'!$N102)+('System Detail - Hydro'!AV102*'System Detail - Hydro'!$AL102))/SUM('System Detail - Hydro'!$N102+'System Detail - Hydro'!$AL102),"") -> 209.4856027 | H101: ='System Detail - Hydro'!W102 -> 324.4709058 | I101: ='System Detail - Hydro'!X102 -> 301.1800363 | K101: ='System Detail - Hydro'!AU102 -> 81.73027131 | L101: ='System Detail - Hydro'!AV102 -> 56.6615466 | N101: 2027 | O101: 2 | P101: 1.389935327 | Q101: 1.437712341 | R101: 0.2518878268 | S101: 0.1881318141
B102: 2027 | C102: 3 | E102: =IFERROR((('System Detail - Hydro'!W103*'System Detail - Hydro'!$N103)+('System Detail - Hydro'!AU103*'System Detail - Hydro'!$AL103))/SUM('System Detail - Hydro'!$N103+'System Detail - Hydro'!$AL103),"") -> 93.11713942 | F102: =IFERROR((('System Detail - Hydro'!X103*'System Detail - Hydro'!$N103)+('System Detail - Hydro'!AV103*'System Detail - Hydro'!$AL103))/SUM('System Detail - Hydro'!$N103+'System Detail - Hydro'!$AL103),"") -> 81.91983501 | H102: ='System Detail - Hydro'!W103 -> 119.6582647 | I102: ='System Detail - Hydro'!X103 -> 108.547679 | K102: ='System Detail - Hydro'!AU103 -> 48.88193057 | L102: ='System Detail - Hydro'!AV103 -> 37.54009499 | N102: 2027 | O102: 3 | P102: 1.285029431 | Q102: 1.325047579 | R102: 0.4085127817 | S102: 0.3458396837
B103: 2027 | C103: 4 | E103: =IFERROR((('System Detail - Hydro'!W104*'System Detail - Hydro'!$N104)+('System Detail - Hydro'!AU104*'System Detail - Hydro'!$AL104))/SUM('System Detail - Hydro'!$N104+'System Detail - Hydro'!$AL104),"") -> 28.90992211 | F103: =IFERROR((('System Detail - Hydro'!X104*'System Detail - Hydro'!$N104)+('System Detail - Hydro'!AV104*'System Detail - Hydro'!$AL104))/SUM('System Detail - Hydro'!$N104+'System Detail - Hydro'!$AL104),"") -> 25.47932202 | H103: ='System Detail - Hydro'!W104 -> 30.13156527 | I103: ='System Detail - Hydro'!X104 -> 25.06609481 | K103: ='System Detail - Hydro'!AU104 -> 27.1996217 | L103: ='System Detail - Hydro'!AV104 -> 26.05784012 | N103: 2027 | O103: 4 | P103: 1.042256881 | Q103: 0.9837818599 | R103: 0.9026952786 | S103: 1.03956521
B104: 2027 | C104: 5 | E104: =IFERROR((('System Detail - Hydro'!W105*'System Detail - Hydro'!$N105)+('System Detail - Hydro'!AU105*'System Detail - Hydro'!$AL105))/SUM('System Detail - Hydro'!$N105+'System Detail - Hydro'!$AL105),"") -> 28.26420902 | F104: =IFERROR((('System Detail - Hydro'!X105*'System Detail - Hydro'!$N105)+('System Detail - Hydro'!AV105*'System Detail - Hydro'!$AL105))/SUM('System Detail - Hydro'!$N105+'System Detail - Hydro'!$AL105),"") -> 23.18758693 | H104: ='System Detail - Hydro'!W105 -> 30.83872222 | I104: ='System Detail - Hydro'!X105 -> 25.0680176 | K104: ='System Detail - Hydro'!AU105 -> 24.65989053 | L104: ='System Detail - Hydro'!AV105 -> 20.55498399 | N104: 2027 | O104: 5 | P104: 1.091087396 | Q104: 1.081096436 | R104: 0.7996404765 | S104: 0.8199684683
B105: 2027 | C105: 6 | E105: =IFERROR((('System Detail - Hydro'!W106*'System Detail - Hydro'!$N106)+('System Detail - Hydro'!AU106*'System Detail - Hydro'!$AL106))/SUM('System Detail - Hydro'!$N106+'System Detail - Hydro'!$AL106),"") -> 30.30393912 | F105: =IFERROR((('System Detail - Hydro'!X106*'System Detail - Hydro'!$N106)+('System Detail - Hydro'!AV106*'System Detail - Hydro'!$AL106))/SUM('System Detail - Hydro'!$N106+'System Detail - Hydro'!$AL106),"") -> 27.67749017 | H105: ='System Detail - Hydro'!W106 -> 32.85877206 | I105: ='System Detail - Hydro'!X106 -> 28.91662482 | K105: ='System Detail - Hydro'!AU106 -> 26.72717299 | L105: ='System Detail - Hydro'!AV106 -> 25.94270166 | N105: 2027 | O105: 6 | P105: 1.084306959 | Q105: 1.044770485 | R105: 0.8133953679 | S105: 0.8971552463
B106: 2027 | C106: 7 | E106: =IFERROR((('System Detail - Hydro'!W107*'System Detail - Hydro'!$N107)+('System Detail - Hydro'!AU107*'System Detail - Hydro'!$AL107))/SUM('System Detail - Hydro'!$N107+'System Detail - Hydro'!$AL107),"") -> 32.26781053 | F106: =IFERROR((('System Detail - Hydro'!X107*'System Detail - Hydro'!$N107)+('System Detail - Hydro'!AV107*'System Detail - Hydro'!$AL107))/SUM('System Detail - Hydro'!$N107+'System Detail - Hydro'!$AL107),"") -> 33.03305569 | H106: ='System Detail - Hydro'!W107 -> 36.81974302 | I106: ='System Detail - Hydro'!X107 -> 36.63043524 | K106: ='System Detail - Hydro'!AU107 -> 25.89510505 | L106: ='System Detail - Hydro'!AV107 -> 27.99672432 | N106: 2027 | O106: 7 | P106: 1.141067287 | Q106: 1.108902415 | R106: 0.7032940192 | S106: 0.7643022567
B107: 2027 | C107: 8 | E107: =IFERROR((('System Detail - Hydro'!W108*'System Detail - Hydro'!$N108)+('System Detail - Hydro'!AU108*'System Detail - Hydro'!$AL108))/SUM('System Detail - Hydro'!$N108+'System Detail - Hydro'!$AL108),"") -> 32.03518462 | F107: =IFERROR((('System Detail - Hydro'!X108*'System Detail - Hydro'!$N108)+('System Detail - Hydro'!AV108*'System Detail - Hydro'!$AL108))/SUM('System Detail - Hydro'!$N108+'System Detail - Hydro'!$AL108),"") -> 33.77753679 | H107: ='System Detail - Hydro'!W108 -> 35.39760029 | I107: ='System Detail - Hydro'!X108 -> 35.9571936 | K107: ='System Detail - Hydro'!AU108 -> 27.32780268 | L107: ='System Detail - Hydro'!AV108 -> 30.72601727 | N107: 2027 | O107: 8 | P107: 1.104960084 | Q107: 1.064529774 | R107: 0.7720241615 | S107: 0.8545165568
B108: 2027 | C108: 9 | E108: =IFERROR((('System Detail - Hydro'!W109*'System Detail - Hydro'!$N109)+('System Detail - Hydro'!AU109*'System Detail - Hydro'!$AL109))/SUM('System Detail - Hydro'!$N109+'System Detail - Hydro'!$AL109),"") -> 28.27220465 | F108: =IFERROR((('System Detail - Hydro'!X109*'System Detail - Hydro'!$N109)+('System Detail - Hydro'!AV109*'System Detail - Hydro'!$AL109))/SUM('System Detail - Hydro'!$N109+'System Detail - Hydro'!$AL109),"") -> 25.70882892 | H108: ='System Detail - Hydro'!W109 -> 30.72421569 | I108: ='System Detail - Hydro'!X109 -> 26.92154099 | K108: ='System Detail - Hydro'!AU109 -> 24.83938921 | L108: ='System Detail - Hydro'!AV109 -> 24.01103202 | N108: 2027 | O108: 9 | P108: 1.086728682 | Q108: 1.047171035 | R108: 0.8084629225 | S108: 0.8918892133
B109: 2027 | C109: 10 | E109: =IFERROR((('System Detail - Hydro'!W110*'System Detail - Hydro'!$N110)+('System Detail - Hydro'!AU110*'System Detail - Hydro'!$AL110))/SUM('System Detail - Hydro'!$N110+'System Detail - Hydro'!$AL110),"") -> 32.94748313 | F109: =IFERROR((('System Detail - Hydro'!X110*'System Detail - Hydro'!$N110)+('System Detail - Hydro'!AV110*'System Detail - Hydro'!$AL110))/SUM('System Detail - Hydro'!$N110+'System Detail - Hydro'!$AL110),"") -> 23.89679026 | H109: ='System Detail - Hydro'!W110 -> 35.37729989 | I109: ='System Detail - Hydro'!X110 -> 25.77735691 | K109: ='System Detail - Hydro'!AU110 -> 29.54573966 | L109: ='System Detail - Hydro'!AV110 -> 21.26399696 | N109: 2027 | O109: 10 | P109: 1.073748175 | Q109: 1.078695366 | R109: 0.8351609578 | S109: 0.8249099017
B110: 2027 | C110: 11 | E110: =IFERROR((('System Detail - Hydro'!W111*'System Detail - Hydro'!$N111)+('System Detail - Hydro'!AU111*'System Detail - Hydro'!$AL111))/SUM('System Detail - Hydro'!$N111+'System Detail - Hydro'!$AL111),"") -> 58.2879307 | F110: =IFERROR((('System Detail - Hydro'!X111*'System Detail - Hydro'!$N111)+('System Detail - Hydro'!AV111*'System Detail - Hydro'!$AL111))/SUM('System Detail - Hydro'!$N111+'System Detail - Hydro'!$AL111),"") -> 46.72751715 | H110: ='System Detail - Hydro'!W111 -> 67.48489633 | I110: ='System Detail - Hydro'!X111 -> 56.35358358 | K110: ='System Detail - Hydro'!AU111 -> 45.41217882 | L110: ='System Detail - Hydro'!AV111 -> 33.25102414 | N110: 2027 | O110: 11 | P110: 1.157785077 | Q110: 1.206004235 | R110: 0.6729235916 | S110: 0.5900427628
B111: 2027 | C111: 12 | E111: =IFERROR((('System Detail - Hydro'!W112*'System Detail - Hydro'!$N112)+('System Detail - Hydro'!AU112*'System Detail - Hydro'!$AL112))/SUM('System Detail - Hydro'!$N112+'System Detail - Hydro'!$AL112),"") -> 180.9674617 | F111: =IFERROR((('System Detail - Hydro'!X112*'System Detail - Hydro'!$N112)+('System Detail - Hydro'!AV112*'System Detail - Hydro'!$AL112))/SUM('System Detail - Hydro'!$N112+'System Detail - Hydro'!$AL112),"") -> 163.0793993 | H111: ='System Detail - Hydro'!W112 -> 245.037884 | I111: ='System Detail - Hydro'!X112 -> 228.2401003 | K111: ='System Detail - Hydro'!AU112 -> 74.18342457 | L111: ='System Detail - Hydro'!AV112 -> 54.47823094 | N111: 2027 | O111: 12 | P111: 1.35404388 | Q111: 1.399564269 | R111: 0.3027426754 | S111: 0.2386882536
B112: 2028 | C112: 1 | E112: =IFERROR((('System Detail - Hydro'!W113*'System Detail - Hydro'!$N113)+('System Detail - Hydro'!AU113*'System Detail - Hydro'!$AL113))/SUM('System Detail - Hydro'!$N113+'System Detail - Hydro'!$AL113),"") -> 303.102079 | F112: =IFERROR((('System Detail - Hydro'!X113*'System Detail - Hydro'!$N113)+('System Detail - Hydro'!AV113*'System Detail - Hydro'!$AL113))/SUM('System Detail - Hydro'!$N113+'System Detail - Hydro'!$AL113),"") -> 280.6817693 | H112: ='System Detail - Hydro'!W113 -> 427.5748474 | I112: ='System Detail - Hydro'!X113 -> 407.3912324 | K112: ='System Detail - Hydro'!AU113 -> 95.64746484 | L112: ='System Detail - Hydro'!AV113 -> 69.49933076 | N112: 2028 | O112: 1 | P112: 1.410662866 | Q112: 1.451434603 | R112: 0.2236975945 | S112: 0.1705960395
B113: 2028 | C113: 2 | E113: =IFERROR((('System Detail - Hydro'!W114*'System Detail - Hydro'!$N114)+('System Detail - Hydro'!AU114*'System Detail - Hydro'!$AL114))/SUM('System Detail - Hydro'!$N114+'System Detail - Hydro'!$AL114),"") -> 241.7071285 | F113: =IFERROR((('System Detail - Hydro'!X114*'System Detail - Hydro'!$N114)+('System Detail - Hydro'!AV114*'System Detail - Hydro'!$AL114))/SUM('System Detail - Hydro'!$N114+'System Detail - Hydro'!$AL114),"") -> 216.338782 | H113: ='System Detail - Hydro'!W114 -> 335.5934973 | I113: ='System Detail - Hydro'!X114 -> 310.8115869 | K113: ='System Detail - Hydro'!AU114 -> 85.22984727 | L113: ='System Detail - Hydro'!AV114 -> 58.88410707 | N113: 2028 | O113: 2 | P113: 1.388430285 | Q113: 1.436689178 | R113: 0.2539675172 | S113: 0.189452741
B114: 2028 | C114: 3 | E114: =IFERROR((('System Detail - Hydro'!W115*'System Detail - Hydro'!$N115)+('System Detail - Hydro'!AU115*'System Detail - Hydro'!$AL115))/SUM('System Detail - Hydro'!$N115+'System Detail - Hydro'!$AL115),"") -> 96.73828922 | F114: =IFERROR((('System Detail - Hydro'!X115*'System Detail - Hydro'!$N115)+('System Detail - Hydro'!AV115*'System Detail - Hydro'!$AL115))/SUM('System Detail - Hydro'!$N115+'System Detail - Hydro'!$AL115),"") -> 85.72968393 | H114: ='System Detail - Hydro'!W115 -> 123.8289876 | I114: ='System Detail - Hydro'!X115 -> 113.1389117 | K114: ='System Detail - Hydro'!AU115 -> 51.58712525 | L114: ='System Detail - Hydro'!AV115 -> 40.04763761 | N114: 2028 | O114: 3 | P114: 1.280041115 | Q114: 1.319716888 | R114: 0.4165997498 | S114: 0.3539687363
B115: 2028 | C115: 4 | E115: =IFERROR((('System Detail - Hydro'!W116*'System Detail - Hydro'!$N116)+('System Detail - Hydro'!AU116*'System Detail - Hydro'!$AL116))/SUM('System Detail - Hydro'!$N116+'System Detail - Hydro'!$AL116),"") -> 32.68251305 | F115: =IFERROR((('System Detail - Hydro'!X116*'System Detail - Hydro'!$N116)+('System Detail - Hydro'!AV116*'System Detail - Hydro'!$AL116))/SUM('System Detail - Hydro'!$N116+'System Detail - Hydro'!$AL116),"") -> 27.98472709 | H115: ='System Detail - Hydro'!W116 -> 33.52765319 | I115: ='System Detail - Hydro'!X116 -> 27.38471129 | K115: ='System Detail - Hydro'!AU116 -> 31.49931686 | L115: ='System Detail - Hydro'!AV116 -> 28.8247492 | N115: 2028 | O115: 4 | P115: 1.025859093 | Q115: 0.9785591693 | R115: 0.9395025855 | S115: 1.05258547
B116: 2028 | C116: 5 | E116: =IFERROR((('System Detail - Hydro'!W117*'System Detail - Hydro'!$N117)+('System Detail - Hydro'!AU117*'System Detail - Hydro'!$AL117))/SUM('System Detail - Hydro'!$N117+'System Detail - Hydro'!$AL117),"") -> 32.54946268 | F116: =IFERROR((('System Detail - Hydro'!X117*'System Detail - Hydro'!$N117)+('System Detail - Hydro'!AV117*'System Detail - Hydro'!$AL117))/SUM('System Detail - Hydro'!$N117+'System Detail - Hydro'!$AL117),"") -> 24.55122819 | H116: ='System Detail - Hydro'!W117 -> 34.90162433 | I116: ='System Detail - Hydro'!X117 -> 27.41220346 | K116: ='System Detail - Hydro'!AU117 -> 29.25643636 | L116: ='System Detail - Hydro'!AV117 -> 20.54586282 | N116: 2028 | O116: 5 | P116: 1.072264224 | Q116: 1.116530841 | R116: 0.8382542913 | S116: 0.7495151878
B117: 2028 | C117: 6 | E117: =IFERROR((('System Detail - Hydro'!W118*'System Detail - Hydro'!$N118)+('System Detail - Hydro'!AU118*'System Detail - Hydro'!$AL118))/SUM('System Detail - Hydro'!$N118+'System Detail - Hydro'!$AL118),"") -> 34.00844702 | F117: =IFERROR((('System Detail - Hydro'!X118*'System Detail - Hydro'!$N118)+('System Detail - Hydro'!AV118*'System Detail - Hydro'!$AL118))/SUM('System Detail - Hydro'!$N118+'System Detail - Hydro'!$AL118),"") -> 31.03856244 | H117: ='System Detail - Hydro'!W118 -> 36.8578583 | I117: ='System Detail - Hydro'!X118 -> 32.42633897 | K117: ='System Detail - Hydro'!AU118 -> 30.01927124 | L117: ='System Detail - Hydro'!AV118 -> 29.09567529 | N117: 2028 | O117: 6 | P117: 1.083785398 | Q117: 1.044711366 | R117: 0.8144605418 | S117: 0.8972852385
B118: 2028 | C118: 7 | E118: =IFERROR((('System Detail - Hydro'!W119*'System Detail - Hydro'!$N119)+('System Detail - Hydro'!AU119*'System Detail - Hydro'!$AL119))/SUM('System Detail - Hydro'!$N119+'System Detail - Hydro'!$AL119),"") -> 37.33671603 | F118: =IFERROR((('System Detail - Hydro'!X119*'System Detail - Hydro'!$N119)+('System Detail - Hydro'!AV119*'System Detail - Hydro'!$AL119))/SUM('System Detail - Hydro'!$N119+'System Detail - Hydro'!$AL119),"") -> 37.62025249 | H118: ='System Detail - Hydro'!W119 -> 42.40830795 | I118: ='System Detail - Hydro'!X119 -> 41.56969816 | K118: ='System Detail - Hydro'!AU119 -> 30.23648734 | L118: ='System Detail - Hydro'!AV119 -> 32.09102855 | N118: 2028 | O118: 7 | P118: 1.135833905 | Q118: 1.104981902 | R118: 0.7129849976 | S118: 0.7719812742
B119: 2028 | C119: 8 | E119: =IFERROR((('System Detail - Hydro'!W120*'System Detail - Hydro'!$N120)+('System Detail - Hydro'!AU120*'System Detail - Hydro'!$AL120))/SUM('System Detail - Hydro'!$N120+'System Detail - Hydro'!$AL120),"") -> 36.93965808 | F119: =IFERROR((('System Detail - Hydro'!X120*'System Detail - Hydro'!$N120)+('System Detail - Hydro'!AV120*'System Detail - Hydro'!$AL120))/SUM('System Detail - Hydro'!$N120+'System Detail - Hydro'!$AL120),"") -> 38.19867511 | H119: ='System Detail - Hydro'!W120 -> 40.56948758 | I119: ='System Detail - Hydro'!X120 -> 40.50894295 | K119: ='System Detail - Hydro'!AU120 -> 31.85789678 | L119: ='System Detail - Hydro'!AV120 -> 34.96430014 | N119: 2028 | O119: 8 | P119: 1.098263755 | Q119: 1.060480313 | R119: 0.7852674185 | S119: 0.8631254631
B120: 2028 | C120: 9 | E120: =IFERROR((('System Detail - Hydro'!W121*'System Detail - Hydro'!$N121)+('System Detail - Hydro'!AU121*'System Detail - Hydro'!$AL121))/SUM('System Detail - Hydro'!$N121+'System Detail - Hydro'!$AL121),"") -> 32.7559741 | F120: =IFERROR((('System Detail - Hydro'!X121*'System Detail - Hydro'!$N121)+('System Detail - Hydro'!AV121*'System Detail - Hydro'!$AL121))/SUM('System Detail - Hydro'!$N121+'System Detail - Hydro'!$AL121),"") -> 29.67245817 | H120: ='System Detail - Hydro'!W121 -> 35.19501839 | I120: ='System Detail - Hydro'!X121 -> 30.77878986 | K120: ='System Detail - Hydro'!AU121 -> 29.34131209 | L120: ='System Detail - Hydro'!AV121 -> 28.1235938 | N120: 2028 | O120: 9 | P120: 1.074461052 | Q120: 1.037284801 | R120: 0.8336779872 | S120: 0.9137329285
B121: 2028 | C121: 10 | E121: =IFERROR((('System Detail - Hydro'!W122*'System Detail - Hydro'!$N122)+('System Detail - Hydro'!AU122*'System Detail - Hydro'!$AL122))/SUM('System Detail - Hydro'!$N122+'System Detail - Hydro'!$AL122),"") -> 34.93017765 | F121: =IFERROR((('System Detail - Hydro'!X122*'System Detail - Hydro'!$N122)+('System Detail - Hydro'!AV122*'System Detail - Hydro'!$AL122))/SUM('System Detail - Hydro'!$N122+'System Detail - Hydro'!$AL122),"") -> 27.90899173 | H121: ='System Detail - Hydro'!W122 -> 37.9297665 | I121: ='System Detail - Hydro'!X122 -> 29.77869361 | K121: ='System Detail - Hydro'!AU122 -> 30.73075325 | L121: ='System Detail - Hydro'!AV122 -> 25.29140911 | N121: 2028 | O121: 10 | P121: 1.08587385 | Q121: 1.066992813 | R121: 0.810201488 | S121: 0.8493122447
B122: 2028 | C122: 11 | E122: =IFERROR((('System Detail - Hydro'!W123*'System Detail - Hydro'!$N123)+('System Detail - Hydro'!AU123*'System Detail - Hydro'!$AL123))/SUM('System Detail - Hydro'!$N123+'System Detail - Hydro'!$AL123),"") -> 62.64559388 | F122: =IFERROR((('System Detail - Hydro'!X123*'System Detail - Hydro'!$N123)+('System Detail - Hydro'!AV123*'System Detail - Hydro'!$AL123))/SUM('System Detail - Hydro'!$N123+'System Detail - Hydro'!$AL123),"") -> 50.54755166 | H122: ='System Detail - Hydro'!W123 -> 72.05062856 | I122: ='System Detail - Hydro'!X123 -> 60.36355146 | K122: ='System Detail - Hydro'!AU123 -> 49.47854534 | L122: ='System Detail - Hydro'!AV123 -> 36.80515195 | N122: 2028 | O122: 11 | P122: 1.150130825 | Q122: 1.194193378 | R122: 0.6867191353 | S122: 0.6097247603
B123: 2028 | C123: 12 | E123: =IFERROR((('System Detail - Hydro'!W124*'System Detail - Hydro'!$N124)+('System Detail - Hydro'!AU124*'System Detail - Hydro'!$AL124))/SUM('System Detail - Hydro'!$N124+'System Detail - Hydro'!$AL124),"") -> 188.1970322 | F123: =IFERROR((('System Detail - Hydro'!X124*'System Detail - Hydro'!$N124)+('System Detail - Hydro'!AV124*'System Detail - Hydro'!$AL124))/SUM('System Detail - Hydro'!$N124+'System Detail - Hydro'!$AL124),"") -> 169.3039954 | H123: ='System Detail - Hydro'!W124 -> 253.8166378 | I123: ='System Detail - Hydro'!X124 -> 236.3906931 | K123: ='System Detail - Hydro'!AU124 -> 78.83102288 | L123: ='System Detail - Hydro'!AV124 -> 57.49283266 | N123: 2028 | O123: 12 | P123: 1.348675029 | Q123: 1.396249938 | R123: 0.3105825669 | S123: 0.2432110669
B124: 2029 | C124: 1 | E124: =IFERROR((('System Detail - Hydro'!W125*'System Detail - Hydro'!$N125)+('System Detail - Hydro'!AU125*'System Detail - Hydro'!$AL125))/SUM('System Detail - Hydro'!$N125+'System Detail - Hydro'!$AL125),"") -> 309.0678909 | F124: =IFERROR((('System Detail - Hydro'!X125*'System Detail - Hydro'!$N125)+('System Detail - Hydro'!AV125*'System Detail - Hydro'!$AL125))/SUM('System Detail - Hydro'!$N125+'System Detail - Hydro'!$AL125),"") -> 287.1582648 | H124: ='System Detail - Hydro'!W125 -> 434.34322 | I124: ='System Detail - Hydro'!X125 -> 416.1244304 | K124: ='System Detail - Hydro'!AU125 -> 100.2756758 | L124: ='System Detail - Hydro'!AV125 -> 72.21465529 | N124: 2029 | O124: 1 | P124: 1.405332721 | Q124: 1.449111802 | R124: 0.2308673675 | S124: 0.1735410132
B125: 2029 | C125: 2 | E125: =IFERROR((('System Detail - Hydro'!W126*'System Detail - Hydro'!$N126)+('System Detail - Hydro'!AU126*'System Detail - Hydro'!$AL126))/SUM('System Detail - Hydro'!$N126+'System Detail - Hydro'!$AL126),"") -> 249.503786 | F125: =IFERROR((('System Detail - Hydro'!X126*'System Detail - Hydro'!$N126)+('System Detail - Hydro'!AV126*'System Detail - Hydro'!$AL126))/SUM('System Detail - Hydro'!$N126+'System Detail - Hydro'!$AL126),"") -> 225.325812 | H125: ='System Detail - Hydro'!W126 -> 346.0532184 | I125: ='System Detail - Hydro'!X126 -> 321.9464696 | K125: ='System Detail - Hydro'!AU126 -> 88.58806548 | L125: ='System Detail - Hydro'!AV126 -> 64.29138268 | N125: 2029 | O125: 2 | P125: 1.386965801 | Q125: 1.428804214 | R125: 0.2559954966 | S125: 0.1996958772
B126: 2029 | C126: 3 | E126: =IFERROR((('System Detail - Hydro'!W127*'System Detail - Hydro'!$N127)+('System Detail - Hydro'!AU127*'System Detail - Hydro'!$AL127))/SUM('System Detail - Hydro'!$N127+'System Detail - Hydro'!$AL127),"") -> 104.2684023 | F126: =IFERROR((('System Detail - Hydro'!X127*'System Detail - Hydro'!$N127)+('System Detail - Hydro'!AV127*'System Detail - Hydro'!$AL127))/SUM('System Detail - Hydro'!$N127+'System Detail - Hydro'!$AL127),"") -> 91.9985372 | H126: ='System Detail - Hydro'!W127 -> 132.2608299 | I126: ='System Detail - Hydro'!X127 -> 119.9214003 | K126: ='System Detail - Hydro'!AU127 -> 57.61435637 | L126: ='System Detail - Hydro'!AV127 -> 45.460432 | N126: 2029 | O126: 3 | P126: 1.268465105 | Q126: 1.303514208 | R126: 0.4356116351 | S126: 0.3790852332
B127: 2029 | C127: 4 | E127: =IFERROR((('System Detail - Hydro'!W128*'System Detail - Hydro'!$N128)+('System Detail - Hydro'!AU128*'System Detail - Hydro'!$AL128))/SUM('System Detail - Hydro'!$N128+'System Detail - Hydro'!$AL128),"") -> 37.50414192 | F127: =IFERROR((('System Detail - Hydro'!X128*'System Detail - Hydro'!$N128)+('System Detail - Hydro'!AV128*'System Detail - Hydro'!$AL128))/SUM('System Detail - Hydro'!$N128+'System Detail - Hydro'!$AL128),"") -> 29.96779322 | H127: ='System Detail - Hydro'!W128 -> 38.28301545 | I127: ='System Detail - Hydro'!X128 -> 29.1604603 | K127: ='System Detail - Hydro'!AU128 -> 36.41371898 | L127: ='System Detail - Hydro'!AV128 -> 31.0980593 | N127: 2029 | O127: 4 | P127: 1.020767667 | Q127: 0.9730599811 | R127: 0.9511716503 | S127: 1.066446105
B128: 2029 | C128: 5 | E128: =IFERROR((('System Detail - Hydro'!W129*'System Detail - Hydro'!$N129)+('System Detail - Hydro'!AU129*'System Detail - Hydro'!$AL129))/SUM('System Detail - Hydro'!$N129+'System Detail - Hydro'!$AL129),"") -> 34.58385284 | F128: =IFERROR((('System Detail - Hydro'!X129*'System Detail - Hydro'!$N129)+('System Detail - Hydro'!AV129*'System Detail - Hydro'!$AL129))/SUM('System Detail - Hydro'!$N129+'System Detail - Hydro'!$AL129),"") -> 28.26069175 | H128: ='System Detail - Hydro'!W129 -> 37.32536285 | I128: ='System Detail - Hydro'!X129 -> 30.38701308 | K128: ='System Detail - Hydro'!AU129 -> 30.74573882 | L128: ='System Detail - Hydro'!AV129 -> 25.28384189 | N128: 2029 | O128: 5 | P128: 1.079271388 | Q128: 1.075239536 | R128: 0.8237224362 | S128: 0.8320607827
B129: 2029 | C129: 6 | E129: =IFERROR((('System Detail - Hydro'!W130*'System Detail - Hydro'!$N130)+('System Detail - Hydro'!AU130*'System Detail - Hydro'!$AL130))/SUM('System Detail - Hydro'!$N130+'System Detail - Hydro'!$AL130),"") -> 37.4531922 | F129: =IFERROR((('System Detail - Hydro'!X130*'System Detail - Hydro'!$N130)+('System Detail - Hydro'!AV130*'System Detail - Hydro'!$AL130))/SUM('System Detail - Hydro'!$N130+'System Detail - Hydro'!$AL130),"") -> 33.9069144 | H129: ='System Detail - Hydro'!W130 -> 40.1498665 | I129: ='System Detail - Hydro'!X130 -> 35.21037525 | K129: ='System Detail - Hydro'!AU130 -> 33.67784818 | L129: ='System Detail - Hydro'!AV130 -> 32.08206922 | N129: 2029 | O129: 6 | P129: 1.072001187 | Q129: 1.038442332 | R129: 0.838803491 | S129: 0.9111538571
B130: 2029 | C130: 7 | E130: =IFERROR((('System Detail - Hydro'!W131*'System Detail - Hydro'!$N131)+('System Detail - Hydro'!AU131*'System Detail - Hydro'!$AL131))/SUM('System Detail - Hydro'!$N131+'System Detail - Hydro'!$AL131),"") -> 40.56810154 | F130: =IFERROR((('System Detail - Hydro'!X131*'System Detail - Hydro'!$N131)+('System Detail - Hydro'!AV131*'System Detail - Hydro'!$AL131))/SUM('System Detail - Hydro'!$N131+'System Detail - Hydro'!$AL131),"") -> 41.69432832 | H130: ='System Detail - Hydro'!W131 -> 45.46754427 | I130: ='System Detail - Hydro'!X131 -> 45.57657717 | K130: ='System Detail - Hydro'!AU131 -> 33.70888174 | L130: ='System Detail - Hydro'!AV131 -> 36.25917993 | N130: 2029 | O130: 7 | P130: 1.120770816 | Q130: 1.093112157 | R130: 0.7413833819 | S130: 0.795566104
B131: 2029 | C131: 8 | E131: =IFERROR((('System Detail - Hydro'!W132*'System Detail - Hydro'!$N132)+('System Detail - Hydro'!AU132*'System Detail - Hydro'!$AL132))/SUM('System Detail - Hydro'!$N132+'System Detail - Hydro'!$AL132),"") -> 40.99592157 | F131: =IFERROR((('System Detail - Hydro'!X132*'System Detail - Hydro'!$N132)+('System Detail - Hydro'!AV132*'System Detail - Hydro'!$AL132))/SUM('System Detail - Hydro'!$N132+'System Detail - Hydro'!$AL132),"") -> 42.88205616 | H131: ='System Detail - Hydro'!W132 -> 45.12245087 | I131: ='System Detail - Hydro'!X132 -> 45.65506304 | K131: ='System Detail - Hydro'!AU132 -> 35.21878054 | L131: ='System Detail - Hydro'!AV132 -> 38.99984654 | N131: 2029 | O131: 8 | P131: 1.100657069 | Q131: 1.064665903 | R131: 0.7805156826 | S131: 0.8542282923
B132: 2029 | C132: 9 | E132: =IFERROR((('System Detail - Hydro'!W133*'System Detail - Hydro'!$N133)+('System Detail - Hydro'!AU133*'System Detail - Hydro'!$AL133))/SUM('System Detail - Hydro'!$N133+'System Detail - Hydro'!$AL133),"") -> 36.30894342 | F132: =IFERROR((('System Detail - Hydro'!X133*'System Detail - Hydro'!$N133)+('System Detail - Hydro'!AV133*'System Detail - Hydro'!$AL133))/SUM('System Detail - Hydro'!$N133+'System Detail - Hydro'!$AL133),"") -> 32.98821347 | H132: ='System Detail - Hydro'!W133 -> 39.01046399 | I132: ='System Detail - Hydro'!X133 -> 34.02329557 | K132: ='System Detail - Hydro'!AU133 -> 32.52681463 | L132: ='System Detail - Hydro'!AV133 -> 31.53909852 | N132: 2029 | O132: 9 | P132: 1.074403723 | Q132: 1.031377331 | R132: 0.8337971741 | S132: 0.9269854078
B133: 2029 | C133: 10 | E133: =IFERROR((('System Detail - Hydro'!W134*'System Detail - Hydro'!$N134)+('System Detail - Hydro'!AU134*'System Detail - Hydro'!$AL134))/SUM('System Detail - Hydro'!$N134+'System Detail - Hydro'!$AL134),"") -> 37.93075454 | F133: =IFERROR((('System Detail - Hydro'!X134*'System Detail - Hydro'!$N134)+('System Detail - Hydro'!AV134*'System Detail - Hydro'!$AL134))/SUM('System Detail - Hydro'!$N134+'System Detail - Hydro'!$AL134),"") -> 29.89616961 | H133: ='System Detail - Hydro'!W134 -> 41.01320146 | I133: ='System Detail - Hydro'!X134 -> 31.8695983 | K133: ='System Detail - Hydro'!AU134 -> 33.61532884 | L133: ='System Detail - Hydro'!AV134 -> 27.13336945 | N133: 2029 | O133: 10 | P133: 1.08126511 | Q133: 1.066009416 | R133: 0.8196221616 | S133: 0.8513872436
B134: 2029 | C134: 11 | E134: =IFERROR((('System Detail - Hydro'!W135*'System Detail - Hydro'!$N135)+('System Detail - Hydro'!AU135*'System Detail - Hydro'!$AL135))/SUM('System Detail - Hydro'!$N135+'System Detail - Hydro'!$AL135),"") -> 66.12488535 | F134: =IFERROR((('System Detail - Hydro'!X135*'System Detail - Hydro'!$N135)+('System Detail - Hydro'!AV135*'System Detail - Hydro'!$AL135))/SUM('System Detail - Hydro'!$N135+'System Detail - Hydro'!$AL135),"") -> 54.90064695 | H134: ='System Detail - Hydro'!W135 -> 75.78186585 | I134: ='System Detail - Hydro'!X135 -> 64.82649609 | K134: ='System Detail - Hydro'!AU135 -> 52.60511265 | L134: ='System Detail - Hydro'!AV135 -> 41.00445816 | N134: 2029 | O134: 11 | P134: 1.146041546 | Q134: 1.180796579 | R134: 0.6941649174 | S134: 0.6325262143
B135: 2029 | C135: 12 | E135: =IFERROR((('System Detail - Hydro'!W136*'System Detail - Hydro'!$N136)+('System Detail - Hydro'!AU136*'System Detail - Hydro'!$AL136))/SUM('System Detail - Hydro'!$N136+'System Detail - Hydro'!$AL136),"") -> 193.808338 | F135: =IFERROR((('System Detail - Hydro'!X136*'System Detail - Hydro'!$N136)+('System Detail - Hydro'!AV136*'System Detail - Hydro'!$AL136))/SUM('System Detail - Hydro'!$N136+'System Detail - Hydro'!$AL136),"") -> 177.6620468 | H135: ='System Detail - Hydro'!W136 -> 260.988229 | I135: ='System Detail - Hydro'!X136 -> 246.2724249 | K135: ='System Detail - Hydro'!AU136 -> 81.841853 | L135: ='System Detail - Hydro'!AV136 -> 63.31141666 | N135: 2029 | O135: 12 | P135: 1.346630551 | Q135: 1.386184778 | R135: 0.3135844606 | S135: 0.2570787887
B136: 2030 | C136: 1 | E136: =IFERROR((('System Detail - Hydro'!W137*'System Detail - Hydro'!$N137)+('System Detail - Hydro'!AU137*'System Detail - Hydro'!$AL137))/SUM('System Detail - Hydro'!$N137+'System Detail - Hydro'!$AL137),"") -> 322.0229884 | F136: =IFERROR((('System Detail - Hydro'!X137*'System Detail - Hydro'!$N137)+('System Detail - Hydro'!AV137*'System Detail - Hydro'!$AL137))/SUM('System Detail - Hydro'!$N137+'System Detail - Hydro'!$AL137),"") -> 298.4901689 | H136: ='System Detail - Hydro'!W137 -> 452.063225 | I136: ='System Detail - Hydro'!X137 -> 431.243953 | K136: ='System Detail - Hydro'!AU137 -> 105.2892608 | L136: ='System Detail - Hydro'!AV137 -> 77.23386199 | N136: 2030 | O136: 1 | P136: 1.403822836 | Q136: 1.444750943 | R136: 0.2329082637 | S136: 0.1790955246
B137: 2030 | C137: 2 | E137: =IFERROR((('System Detail - Hydro'!W138*'System Detail - Hydro'!$N138)+('System Detail - Hydro'!AU138*'System Detail - Hydro'!$AL138))/SUM('System Detail - Hydro'!$N138+'System Detail - Hydro'!$AL138),"") -> 256.8038871 | F137: =IFERROR((('System Detail - Hydro'!X138*'System Detail - Hydro'!$N138)+('System Detail - Hydro'!AV138*'System Detail - Hydro'!$AL138))/SUM('System Detail - Hydro'!$N138+'System Detail - Hydro'!$AL138),"") -> 233.7870942 | H137: ='System Detail - Hydro'!W138 -> 355.1386372 | I137: ='System Detail - Hydro'!X138 -> 332.5463808 | K137: ='System Detail - Hydro'!AU138 -> 92.91263694 | L137: ='System Detail - Hydro'!AV138 -> 69.18828331 | N137: 2030 | O137: 2 | P137: 1.382917686 | Q137: 1.422432585 | R137: 0.2616235667 | S137: 0.2080560406
B138: 2030 | C138: 3 | E138: =IFERROR((('System Detail - Hydro'!W139*'System Detail - Hydro'!$N139)+('System Detail - Hydro'!AU139*'System Detail - Hydro'!$AL139))/SUM('System Detail - Hydro'!$N139+'System Detail - Hydro'!$AL139),"") -> 105.784716 | F138: =IFERROR((('System Detail - Hydro'!X139*'System Detail - Hydro'!$N139)+('System Detail - Hydro'!AV139*'System Detail - Hydro'!$AL139))/SUM('System Detail - Hydro'!$N139+'System Detail - Hydro'!$AL139),"") -> 95.88035379 | H138: ='System Detail - Hydro'!W139 -> 134.5013084 | I138: ='System Detail - Hydro'!X139 -> 124.2514513 | K138: ='System Detail - Hydro'!AU139 -> 57.92372865 | L138: ='System Detail - Hydro'!AV139 -> 48.5951912 | N138: 2030 | O138: 3 | P138: 1.271462584 | Q138: 1.295901052 | R138: 0.4306555033 | S138: 0.3911036103
B139: 2030 | C139: 4 | E139: =IFERROR((('System Detail - Hydro'!W140*'System Detail - Hydro'!$N140)+('System Detail - Hydro'!AU140*'System Detail - Hydro'!$AL140))/SUM('System Detail - Hydro'!$N140+'System Detail - Hydro'!$AL140),"") -> 38.35139759 | F139: =IFERROR((('System Detail - Hydro'!X140*'System Detail - Hydro'!$N140)+('System Detail - Hydro'!AV140*'System Detail - Hydro'!$AL140))/SUM('System Detail - Hydro'!$N140+'System Detail - Hydro'!$AL140),"") -> 34.91108734 | H139: ='System Detail - Hydro'!W140 -> 39.58441544 | I139: ='System Detail - Hydro'!X140 -> 33.80775401 | K139: ='System Detail - Hydro'!AU140 -> 36.62517259 | L139: ='System Detail - Hydro'!AV140 -> 36.455754 | N139: 2030 | O139: 4 | P139: 1.032150532 | Q139: 0.9683959048 | R139: 0.9252422244 | S139: 1.078325226
B140: 2030 | C140: 5 | E140: =IFERROR((('System Detail - Hydro'!W141*'System Detail - Hydro'!$N141)+('System Detail - Hydro'!AU141*'System Detail - Hydro'!$AL141))/SUM('System Detail - Hydro'!$N141+'System Detail - Hydro'!$AL141),"") -> 37.29367043 | F140: =IFERROR((('System Detail - Hydro'!X141*'System Detail - Hydro'!$N141)+('System Detail - Hydro'!AV141*'System Detail - Hydro'!$AL141))/SUM('System Detail - Hydro'!$N141+'System Detail - Hydro'!$AL141),"") -> 32.71909471 | H140: ='System Detail - Hydro'!W141 -> 40.33264433 | I140: ='System Detail - Hydro'!X141 -> 33.80114679 | K140: ='System Detail - Hydro'!AU141 -> 33.03910696 | L140: ='System Detail - Hydro'!AV141 -> 31.20422181 | N140: 2030 | O140: 5 | P140: 1.081487659 | Q140: 1.033070966 | R140: 0.819165406 | S140: 0.9231705069
B141: 2030 | C141: 6 | E141: =IFERROR((('System Detail - Hydro'!W142*'System Detail - Hydro'!$N142)+('System Detail - Hydro'!AU142*'System Detail - Hydro'!$AL142))/SUM('System Detail - Hydro'!$N142+'System Detail - Hydro'!$AL142),"") -> 41.68173997 | F141: =IFERROR((('System Detail - Hydro'!X142*'System Detail - Hydro'!$N142)+('System Detail - Hydro'!AV142*'System Detail - Hydro'!$AL142))/SUM('System Detail - Hydro'!$N142+'System Detail - Hydro'!$AL142),"") -> 38.3462263 | H141: ='System Detail - Hydro'!W142 -> 44.51845842 | I141: ='System Detail - Hydro'!X142 -> 39.26902114 | K141: ='System Detail - Hydro'!AU142 -> 37.71033413 | L141: ='System Detail - Hydro'!AV142 -> 37.05431352 | N141: 2030 | O141: 6 | P141: 1.068056623 | Q141: 1.024064815 | R141: 0.8470718768 | S141: 0.9436016597
B142: 2030 | C142: 7 | E142: =IFERROR((('System Detail - Hydro'!W143*'System Detail - Hydro'!$N143)+('System Detail - Hydro'!AU143*'System Detail - Hydro'!$AL143))/SUM('System Detail - Hydro'!$N143+'System Detail - Hydro'!$AL143),"") -> 45.56851497 | F142: =IFERROR((('System Detail - Hydro'!X143*'System Detail - Hydro'!$N143)+('System Detail - Hydro'!AV143*'System Detail - Hydro'!$AL143))/SUM('System Detail - Hydro'!$N143+'System Detail - Hydro'!$AL143),"") -> 45.96370034 | H142: ='System Detail - Hydro'!W143 -> 51.27993763 | I142: ='System Detail - Hydro'!X143 -> 50.17396905 | K142: ='System Detail - Hydro'!AU143 -> 37.57252324 | L142: ='System Detail - Hydro'!AV143 -> 40.06932414 | N142: 2030 | O142: 7 | P142: 1.125337037 | Q142: 1.091599864 | R142: 0.7326944022 | S142: 0.798607822
B143: 2030 | C143: 8 | E143: =IFERROR((('System Detail - Hydro'!W144*'System Detail - Hydro'!$N144)+('System Detail - Hydro'!AU144*'System Detail - Hydro'!$AL144))/SUM('System Detail - Hydro'!$N144+'System Detail - Hydro'!$AL144),"") -> 46.197626 | F143: =IFERROR((('System Detail - Hydro'!X144*'System Detail - Hydro'!$N144)+('System Detail - Hydro'!AV144*'System Detail - Hydro'!$AL144))/SUM('System Detail - Hydro'!$N144+'System Detail - Hydro'!$AL144),"") -> 47.80847614 | H143: ='System Detail - Hydro'!W144 -> 50.53501466 | I143: ='System Detail - Hydro'!X144 -> 50.21457567 | K143: ='System Detail - Hydro'!AU144 -> 40.12528189 | L143: ='System Detail - Hydro'!AV144 -> 44.43993678 | N143: 2030 | O143: 8 | P143: 1.093887696 | Q143: 1.050327886 | R143: 0.7940095034 | S143: 0.8850007431
B144: 2030 | C144: 9 | E144: =IFERROR((('System Detail - Hydro'!W145*'System Detail - Hydro'!$N145)+('System Detail - Hydro'!AU145*'System Detail - Hydro'!$AL145))/SUM('System Detail - Hydro'!$N145+'System Detail - Hydro'!$AL145),"") -> 40.59205848 | F144: =IFERROR((('System Detail - Hydro'!X145*'System Detail - Hydro'!$N145)+('System Detail - Hydro'!AV145*'System Detail - Hydro'!$AL145))/SUM('System Detail - Hydro'!$N145+'System Detail - Hydro'!$AL145),"") -> 36.59723001 | H144: ='System Detail - Hydro'!W145 -> 43.60829423 | I144: ='System Detail - Hydro'!X145 -> 37.82908581 | K144: ='System Detail - Hydro'!AU145 -> 36.36932842 | L144: ='System Detail - Hydro'!AV145 -> 34.87263188 | N144: 2030 | O144: 9 | P144: 1.074306056 | Q144: 1.03365981 | R144: 0.8340002531 | S144: 0.921847069
B145: =B133+1 -> 2030 | C145: =C133 -> 10 | E145: =IFERROR((('System Detail - Hydro'!W146*'System Detail - Hydro'!$N146)+('System Detail - Hydro'!AU146*'System Detail - Hydro'!$AL146))/SUM('System Detail - Hydro'!$N146+'System Detail - Hydro'!$AL146),"") -> 42.94465813 | F145: =IFERROR((('System Detail - Hydro'!X146*'System Detail - Hydro'!$N146)+('System Detail - Hydro'!AV146*'System Detail - Hydro'!$AL146))/SUM('System Detail - Hydro'!$N146+'System Detail - Hydro'!$AL146),"") -> 33.0651293 | H145: ='System Detail - Hydro'!W146 -> 45.85991277 | I145: ='System Detail - Hydro'!X146 -> 34.78895819 | K145: ='System Detail - Hydro'!AU146 -> 38.86330164 | L145: ='System Detail - Hydro'!AV146 -> 30.65176885 | N145: =N133+1 -> 2030 | O145: =O133 -> 10 | P145: 1.067883988 | Q145: 1.052134346 | R145: 0.847435141 | S145: 0.8810775153
B146: 2030 | C146: 11 | E146: =IFERROR((('System Detail - Hydro'!W147*'System Detail - Hydro'!$N147)+('System Detail - Hydro'!AU147*'System Detail - Hydro'!$AL147))/SUM('System Detail - Hydro'!$N147+'System Detail - Hydro'!$AL147),"") -> 69.59870572 | F146: =IFERROR((('System Detail - Hydro'!X147*'System Detail - Hydro'!$N147)+('System Detail - Hydro'!AV147*'System Detail - Hydro'!$AL147))/SUM('System Detail - Hydro'!$N147+'System Detail - Hydro'!$AL147),"") -> 58.31845654 | H146: ='System Detail - Hydro'!W147 -> 79.05748566 | I146: ='System Detail - Hydro'!X147 -> 68.26699652 | K146: ='System Detail - Hydro'!AU147 -> 56.35641381 | L146: ='System Detail - Hydro'!AV147 -> 44.39050058 | N146: 2030 | O146: 11 | P146: 1.135904538 | Q146: 1.170589905 | R146: 0.712853607 | S146: 0.6502483314
B147: 2030 | C147: 12 | E147: =IFERROR((('System Detail - Hydro'!W148*'System Detail - Hydro'!$N148)+('System Detail - Hydro'!AU148*'System Detail - Hydro'!$AL148))/SUM('System Detail - Hydro'!$N148+'System Detail - Hydro'!$AL148),"") -> 200.8678062 | F147: =IFERROR((('System Detail - Hydro'!X148*'System Detail - Hydro'!$N148)+('System Detail - Hydro'!AV148*'System Detail - Hydro'!$AL148))/SUM('System Detail - Hydro'!$N148+'System Detail - Hydro'!$AL148),"") -> 183.7981419 | H147: ='System Detail - Hydro'!W148 -> 269.5553356 | I147: ='System Detail - Hydro'!X148 -> 253.7525159 | K147: ='System Detail - Hydro'!AU148 -> 86.38859036 | L147: ='System Detail - Hydro'!AV148 -> 67.20751852 | N147: 2030 | O147: 12 | P147: 1.341953899 | Q147: 1.380604359 | R147: 0.3204855514 | S147: 0.2648545899
B148: 2031 | C148: 1 | E148: =IFERROR((('System Detail - Hydro'!W149*'System Detail - Hydro'!$N149)+('System Detail - Hydro'!AU149*'System Detail - Hydro'!$AL149))/SUM('System Detail - Hydro'!$N149+'System Detail - Hydro'!$AL149),"") -> 332.3925166 | F148: =IFERROR((('System Detail - Hydro'!X149*'System Detail - Hydro'!$N149)+('System Detail - Hydro'!AV149*'System Detail - Hydro'!$AL149))/SUM('System Detail - Hydro'!$N149+'System Detail - Hydro'!$AL149),"") -> 310.543364 | H148: ='System Detail - Hydro'!W149 -> 465.9709877 | I148: ='System Detail - Hydro'!X149 -> 446.5261377 | K148: ='System Detail - Hydro'!AU149 -> 109.7617314 | L148: ='System Detail - Hydro'!AV149 -> 83.90540779 | N148: 2031 | O148: 1 | P148: =H148/E148 -> 1.401869671 | Q148: 1.437886587 | R148: =K148/H148 -> 0.2355548612 | S148: 0.1879070467
B149: 2031 | C149: 2 | E149: =IFERROR((('System Detail - Hydro'!W150*'System Detail - Hydro'!$N150)+('System Detail - Hydro'!AU150*'System Detail - Hydro'!$AL150))/SUM('System Detail - Hydro'!$N150+'System Detail - Hydro'!$AL150),"") -> 265.0105507 | F149: =IFERROR((('System Detail - Hydro'!X150*'System Detail - Hydro'!$N150)+('System Detail - Hydro'!AV150*'System Detail - Hydro'!$AL150))/SUM('System Detail - Hydro'!$N150+'System Detail - Hydro'!$AL150),"") -> 241.6731972 | H149: ='System Detail - Hydro'!W150 -> 365.712114 | I149: ='System Detail - Hydro'!X150 -> 342.8390973 | K149: ='System Detail - Hydro'!AU150 -> 97.17461171 | L149: ='System Detail - Hydro'!AV150 -> 73.06336369 | N149: 2031 | O149: 2 | P149: 1.379990771 | Q149: 1.418606206 | R149: 0.2657134067 | S149: 0.2131126941
B150: 2031 | C150: 3 | E150: =IFERROR((('System Detail - Hydro'!W151*'System Detail - Hydro'!$N151)+('System Detail - Hydro'!AU151*'System Detail - Hydro'!$AL151))/SUM('System Detail - Hydro'!$N151+'System Detail - Hydro'!$AL151),"") -> 109.6848089 | F150: =IFERROR((('System Detail - Hydro'!X151*'System Detail - Hydro'!$N151)+('System Detail - Hydro'!AV151*'System Detail - Hydro'!$AL151))/SUM('System Detail - Hydro'!$N151+'System Detail - Hydro'!$AL151),"") -> 99.08460311 | H150: ='System Detail - Hydro'!W151 -> 139.6014465 | I150: ='System Detail - Hydro'!X151 -> 128.3232891 | K150: ='System Detail - Hydro'!AU151 -> 59.8237462 | L150: ='System Detail - Hydro'!AV151 -> 50.35345982 | N150: 2031 | O150: 3 | P150: 1.272750966 | Q150: 1.295088087 | R150: 0.4285324234 | S150: 0.3923953336
B151: 2031 | C151: 4 | E151: =IFERROR((('System Detail - Hydro'!W152*'System Detail - Hydro'!$N152)+('System Detail - Hydro'!AU152*'System Detail - Hydro'!$AL152))/SUM('System Detail - Hydro'!$N152+'System Detail - Hydro'!$AL152),"") -> 39.45117487 | F151: =IFERROR((('System Detail - Hydro'!X152*'System Detail - Hydro'!$N152)+('System Detail - Hydro'!AV152*'System Detail - Hydro'!$AL152))/SUM('System Detail - Hydro'!$N152+'System Detail - Hydro'!$AL152),"") -> 35.71132012 | H151: ='System Detail - Hydro'!W152 -> 40.45400954 | I151: ='System Detail - Hydro'!X152 -> 34.39183822 | K151: ='System Detail - Hydro'!AU152 -> 38.04720633 | L151: ='System Detail - Hydro'!AV152 -> 37.55859478 | N151: 2031 | O151: 4 | P151: 1.02541964 | Q151: 0.9630514386 | R151: 0.9405052 | S151: 1.092078724
B152: 2031 | C152: 5 | E152: =IFERROR((('System Detail - Hydro'!W153*'System Detail - Hydro'!$N153)+('System Detail - Hydro'!AU153*'System Detail - Hydro'!$AL153))/SUM('System Detail - Hydro'!$N153+'System Detail - Hydro'!$AL153),"") -> 39.87337731 | F152: =IFERROR((('System Detail - Hydro'!X153*'System Detail - Hydro'!$N153)+('System Detail - Hydro'!AV153*'System Detail - Hydro'!$AL153))/SUM('System Detail - Hydro'!$N153+'System Detail - Hydro'!$AL153),"") -> 33.91068797 | H152: ='System Detail - Hydro'!W153 -> 42.38778171 | I152: ='System Detail - Hydro'!X153 -> 34.64791097 | K152: ='System Detail - Hydro'!AU153 -> 36.35321115 | L152: ='System Detail - Hydro'!AV153 -> 32.87857577 | N152: 2031 | O152: 5 | P152: 1.06305973 | Q152: 1.021740137 | R152: 0.8576341973 | S152: 0.9489338562
B153: 2031 | C153: 6 | E153: =IFERROR((('System Detail - Hydro'!W154*'System Detail - Hydro'!$N154)+('System Detail - Hydro'!AU154*'System Detail - Hydro'!$AL154))/SUM('System Detail - Hydro'!$N154+'System Detail - Hydro'!$AL154),"") -> 42.94244383 | F153: =IFERROR((('System Detail - Hydro'!X154*'System Detail - Hydro'!$N154)+('System Detail - Hydro'!AV154*'System Detail - Hydro'!$AL154))/SUM('System Detail - Hydro'!$N154+'System Detail - Hydro'!$AL154),"") -> 38.9879378 | H153: ='System Detail - Hydro'!W154 -> 45.99828846 | I153: ='System Detail - Hydro'!X154 -> 40.27390632 | K153: ='System Detail - Hydro'!AU154 -> 38.66426133 | L153: ='System Detail - Hydro'!AV154 -> 37.18758188 | N153: 2031 | O153: 6 | P153: 1.071161405 | Q153: 1.032983753 | R153: 0.8405586952 | S153: 0.9233666481
B154: 2031 | C154: 7 | E154: =IFERROR((('System Detail - Hydro'!W155*'System Detail - Hydro'!$N155)+('System Detail - Hydro'!AU155*'System Detail - Hydro'!$AL155))/SUM('System Detail - Hydro'!$N155+'System Detail - Hydro'!$AL155),"") -> 46.77700235 | F154: =IFERROR((('System Detail - Hydro'!X155*'System Detail - Hydro'!$N155)+('System Detail - Hydro'!AV155*'System Detail - Hydro'!$AL155))/SUM('System Detail - Hydro'!$N155+'System Detail - Hydro'!$AL155),"") -> 46.94942417 | H154: ='System Detail - Hydro'!W155 -> 52.69999594 | I154: ='System Detail - Hydro'!X155 -> 51.37924423 | K154: ='System Detail - Hydro'!AU155 -> 38.48481133 | L154: ='System Detail - Hydro'!AV155 -> 40.74767608 | N154: 2031 | O154: 7 | P154: 1.126621914 | Q154: 1.094353022 | R154: 0.7302621308 | S154: 0.7930765952
B155: 2031 | C155: 8 | E155: =IFERROR((('System Detail - Hydro'!W156*'System Detail - Hydro'!$N156)+('System Detail - Hydro'!AU156*'System Detail - Hydro'!$AL156))/SUM('System Detail - Hydro'!$N156+'System Detail - Hydro'!$AL156),"") -> 47.0644262 | F155: =IFERROR((('System Detail - Hydro'!X156*'System Detail - Hydro'!$N156)+('System Detail - Hydro'!AV156*'System Detail - Hydro'!$AL156))/SUM('System Detail - Hydro'!$N156+'System Detail - Hydro'!$AL156),"") -> 49.20351571 | H155: ='System Detail - Hydro'!W156 -> 51.35997821 | I155: ='System Detail - Hydro'!X156 -> 51.7396062 | K155: ='System Detail - Hydro'!AU156 -> 41.05065339 | L155: ='System Detail - Hydro'!AV156 -> 45.65298903 | N155: 2031 | O155: 8 | P155: 1.091269614 | Q155: 1.051542872 | R155: 0.7992731855 | S155: 0.8823605818
B156: 2031 | C156: 9 | E156: =IFERROR((('System Detail - Hydro'!W157*'System Detail - Hydro'!$N157)+('System Detail - Hydro'!AU157*'System Detail - Hydro'!$AL157))/SUM('System Detail - Hydro'!$N157+'System Detail - Hydro'!$AL157),"") -> 41.55362382 | F156: =IFERROR((('System Detail - Hydro'!X157*'System Detail - Hydro'!$N157)+('System Detail - Hydro'!AV157*'System Detail - Hydro'!$AL157))/SUM('System Detail - Hydro'!$N157+'System Detail - Hydro'!$AL157),"") -> 36.9829631 | H156: ='System Detail - Hydro'!W157 -> 44.79150656 | I156: ='System Detail - Hydro'!X157 -> 38.20967155 | K156: ='System Detail - Hydro'!AU157 -> 37.02058798 | L156: ='System Detail - Hydro'!AV157 -> 35.26557128 | N156: 2031 | O156: 9 | P156: 1.077920587 | Q156: 1.033169556 | R156: 0.8265091047 | S156: 0.9229488201
B157: 2031 | C157: 10 | E157: =IFERROR((('System Detail - Hydro'!W158*'System Detail - Hydro'!$N158)+('System Detail - Hydro'!AU158*'System Detail - Hydro'!$AL158))/SUM('System Detail - Hydro'!$N158+'System Detail - Hydro'!$AL158),"") -> 42.33430544 | F157: =IFERROR((('System Detail - Hydro'!X158*'System Detail - Hydro'!$N158)+('System Detail - Hydro'!AV158*'System Detail - Hydro'!$AL158))/SUM('System Detail - Hydro'!$N158+'System Detail - Hydro'!$AL158),"") -> 34.84339686 | H157: ='System Detail - Hydro'!W158 -> 46.11518251 | I157: ='System Detail - Hydro'!X158 -> 36.59322685 | K157: ='System Detail - Hydro'!AU158 -> 37.04107754 | L157: ='System Detail - Hydro'!AV158 -> 32.39363489 | N157: 2031 | O157: 10 | P157: 1.089310006 | Q157: 1.050219845 | R157: 0.8032295553 | S157: 0.8852358122
B158: 2031 | C158: 11 | E158: =IFERROR((('System Detail - Hydro'!W159*'System Detail - Hydro'!$N159)+('System Detail - Hydro'!AU159*'System Detail - Hydro'!$AL159))/SUM('System Detail - Hydro'!$N159+'System Detail - Hydro'!$AL159),"") -> 71.24951399 | F158: =IFERROR((('System Detail - Hydro'!X159*'System Detail - Hydro'!$N159)+('System Detail - Hydro'!AV159*'System Detail - Hydro'!$AL159))/SUM('System Detail - Hydro'!$N159+'System Detail - Hydro'!$AL159),"") -> 59.86932499 | H158: ='System Detail - Hydro'!W159 -> 80.94961164 | I158: ='System Detail - Hydro'!X159 -> 70.02000949 | K158: ='System Detail - Hydro'!AU159 -> 57.66937727 | L158: ='System Detail - Hydro'!AV159 -> 45.65836668 | N158: 2031 | O158: 11 | P158: 1.13614265 | Q158: 1.169547335 | R158: 0.7124107961 | S158: 0.6520759853
B159: 2031 | C159: 12 | E159: =IFERROR((('System Detail - Hydro'!W160*'System Detail - Hydro'!$N160)+('System Detail - Hydro'!AU160*'System Detail - Hydro'!$AL160))/SUM('System Detail - Hydro'!$N160+'System Detail - Hydro'!$AL160),"") -> 205.5113171 | F159: =IFERROR((('System Detail - Hydro'!X160*'System Detail - Hydro'!$N160)+('System Detail - Hydro'!AV160*'System Detail - Hydro'!$AL160))/SUM('System Detail - Hydro'!$N160+'System Detail - Hydro'!$AL160),"") -> 187.5727001 | H159: ='System Detail - Hydro'!W160 -> 275.7453385 | I159: ='System Detail - Hydro'!X160 -> 259.2423537 | K159: ='System Detail - Hydro'!AU160 -> 88.45461481 | L159: ='System Detail - Hydro'!AV160 -> 68.12327736 | N159: 2031 | O159: 12 | P159: 1.341752573 | Q159: 1.382090004 | R159: 0.3207837176 | S159: 0.2627783477
B160: 2032 | C160: 1 | E160: =IFERROR((('System Detail - Hydro'!W161*'System Detail - Hydro'!$N161)+('System Detail - Hydro'!AU161*'System Detail - Hydro'!$AL161))/SUM('System Detail - Hydro'!$N161+'System Detail - Hydro'!$AL161),"") -> 337.0937108 | F160: =IFERROR((('System Detail - Hydro'!X161*'System Detail - Hydro'!$N161)+('System Detail - Hydro'!AV161*'System Detail - Hydro'!$AL161))/SUM('System Detail - Hydro'!$N161+'System Detail - Hydro'!$AL161),"") -> 314.7320038 | H160: ='System Detail - Hydro'!W161 -> 470.9784028 | I160: ='System Detail - Hydro'!X161 -> 453.0066196 | K160: ='System Detail - Hydro'!AU161 -> 113.9525573 | L160: ='System Detail - Hydro'!AV161 -> 84.27431087 | N160: 2032 | O160: 1 | P160: 1.397173509 | Q160: 1.439340817 | R160: 0.2419485832 | S160: 0.1860332878
B161: 2032 | C161: 2 | E161: =IFERROR((('System Detail - Hydro'!W162*'System Detail - Hydro'!$N162)+('System Detail - Hydro'!AU162*'System Detail - Hydro'!$AL162))/SUM('System Detail - Hydro'!$N162+'System Detail - Hydro'!$AL162),"") -> 267.210168 | F161: =IFERROR((('System Detail - Hydro'!X162*'System Detail - Hydro'!$N162)+('System Detail - Hydro'!AV162*'System Detail - Hydro'!$AL162))/SUM('System Detail - Hydro'!$N162+'System Detail - Hydro'!$AL162),"") -> 244.2582476 | H161: ='System Detail - Hydro'!W162 -> 371.3481011 | I161: ='System Detail - Hydro'!X162 -> 347.7706161 | K161: ='System Detail - Hydro'!AU162 -> 93.64694618 | L161: ='System Detail - Hydro'!AV162 -> 71.73763342 | N161: 2032 | O161: 2 | P161: 1.389722943 | Q161: 1.423782491 | R161: 0.2521810288 | S161: 0.2062785931
B162: 2032 | C162: 3 | E162: =IFERROR((('System Detail - Hydro'!W163*'System Detail - Hydro'!$N163)+('System Detail - Hydro'!AU163*'System Detail - Hydro'!$AL163))/SUM('System Detail - Hydro'!$N163+'System Detail - Hydro'!$AL163),"") -> 112.8665463 | F162: =IFERROR((('System Detail - Hydro'!X163*'System Detail - Hydro'!$N163)+('System Detail - Hydro'!AV163*'System Detail - Hydro'!$AL163))/SUM('System Detail - Hydro'!$N163+'System Detail - Hydro'!$AL163),"") -> 101.602932 | H162: ='System Detail - Hydro'!W163 -> 142.9000547 | I162: ='System Detail - Hydro'!X163 -> 131.3376678 | K162: ='System Detail - Hydro'!AU163 -> 62.81069901 | L162: ='System Detail - Hydro'!AV163 -> 52.04503891 | N162: 2032 | O162: 3 | P162: 1.266097523 | Q162: 1.292656277 | R162: 0.4395428618 | S162: 0.3962689439
B163: 2032 | C163: 4 | E163: =IFERROR((('System Detail - Hydro'!W164*'System Detail - Hydro'!$N164)+('System Detail - Hydro'!AU164*'System Detail - Hydro'!$AL164))/SUM('System Detail - Hydro'!$N164+'System Detail - Hydro'!$AL164),"") -> 43.08796799 | F163: =IFERROR((('System Detail - Hydro'!X164*'System Detail - Hydro'!$N164)+('System Detail - Hydro'!AV164*'System Detail - Hydro'!$AL164))/SUM('System Detail - Hydro'!$N164+'System Detail - Hydro'!$AL164),"") -> 37.06864666 | H163: ='System Detail - Hydro'!W164 -> 44.06111362 | I163: ='System Detail - Hydro'!X164 -> 35.88690752 | K163: ='System Detail - Hydro'!AU164 -> 41.72556412 | L163: ='System Detail - Hydro'!AV164 -> 38.72308145 | N163: 2032 | O163: 4 | P163: 1.02258509 | Q163: 0.9681202514 | R163: 0.9469929535 | S163: 1.079030881
B164: 2032 | C164: 5 | E164: =IFERROR((('System Detail - Hydro'!W165*'System Detail - Hydro'!$N165)+('System Detail - Hydro'!AU165*'System Detail - Hydro'!$AL165))/SUM('System Detail - Hydro'!$N165+'System Detail - Hydro'!$AL165),"") -> 39.99833326 | F164: =IFERROR((('System Detail - Hydro'!X165*'System Detail - Hydro'!$N165)+('System Detail - Hydro'!AV165*'System Detail - Hydro'!$AL165))/SUM('System Detail - Hydro'!$N165+'System Detail - Hydro'!$AL165),"") -> 34.91023631 | H164: ='System Detail - Hydro'!W165 -> 43.61242747 | I164: ='System Detail - Hydro'!X165 -> 35.99124848 | K164: ='System Detail - Hydro'!AU165 -> 34.93860137 | L164: ='System Detail - Hydro'!AV165 -> 33.39681927 | N164: 2032 | O164: 5 | P164: 1.09035612 | Q164: 1.030965478 | R164: 0.8011157231 | S164: 0.9279149983
B165: 2032 | C165: 6 | E165: =IFERROR((('System Detail - Hydro'!W166*'System Detail - Hydro'!$N166)+('System Detail - Hydro'!AU166*'System Detail - Hydro'!$AL166))/SUM('System Detail - Hydro'!$N166+'System Detail - Hydro'!$AL166),"") -> 44.76988561 | F165: =IFERROR((('System Detail - Hydro'!X166*'System Detail - Hydro'!$N166)+('System Detail - Hydro'!AV166*'System Detail - Hydro'!$AL166))/SUM('System Detail - Hydro'!$N166+'System Detail - Hydro'!$AL166),"") -> 40.83673236 | H165: ='System Detail - Hydro'!W166 -> 47.98229395 | I165: ='System Detail - Hydro'!X166 -> 42.06135561 | K165: ='System Detail - Hydro'!AU166 -> 40.27251393 | L165: ='System Detail - Hydro'!AV166 -> 39.12225981 | N165: 2032 | O165: 6 | P165: 1.071753776 | Q165: 1.029988277 | R165: 0.839320312 | S165: 0.9301236073
B166: 2032 | C166: 7 | E166: =IFERROR((('System Detail - Hydro'!W167*'System Detail - Hydro'!$N167)+('System Detail - Hydro'!AU167*'System Detail - Hydro'!$AL167))/SUM('System Detail - Hydro'!$N167+'System Detail - Hydro'!$AL167),"") -> 49.47819474 | F166: =IFERROR((('System Detail - Hydro'!X167*'System Detail - Hydro'!$N167)+('System Detail - Hydro'!AV167*'System Detail - Hydro'!$AL167))/SUM('System Detail - Hydro'!$N167+'System Detail - Hydro'!$AL167),"") -> 51.06363913 | H166: ='System Detail - Hydro'!W167 -> 55.6371011 | I166: ='System Detail - Hydro'!X167 -> 55.57901117 | K166: ='System Detail - Hydro'!AU167 -> 40.85572584 | L166: ='System Detail - Hydro'!AV167 -> 44.74211826 | N166: 2032 | O166: 7 | P166: 1.124477184 | Q166: 1.088426366 | R166: 0.7343252079 | S166: 0.8050182492
B167: 2032 | C167: 8 | E167: =IFERROR((('System Detail - Hydro'!W168*'System Detail - Hydro'!$N168)+('System Detail - Hydro'!AU168*'System Detail - Hydro'!$AL168))/SUM('System Detail - Hydro'!$N168+'System Detail - Hydro'!$AL168),"") -> 49.18358021 | F167: =IFERROR((('System Detail - Hydro'!X168*'System Detail - Hydro'!$N168)+('System Detail - Hydro'!AV168*'System Detail - Hydro'!$AL168))/SUM('System Detail - Hydro'!$N168+'System Detail - Hydro'!$AL168),"") -> 51.99859517 | H167: ='System Detail - Hydro'!W168 -> 53.54353837 | I167: ='System Detail - Hydro'!X168 -> 54.56218662 | K167: ='System Detail - Hydro'!AU168 -> 43.07963877 | L167: ='System Detail - Hydro'!AV168 -> 48.40956714 | N167: 2032 | O167: 8 | P167: 1.08864662 | Q167: 1.049301168 | R167: 0.8045721311 | S167: 0.8872365668
B168: 2032 | C168: 9 | E168: =IFERROR((('System Detail - Hydro'!W169*'System Detail - Hydro'!$N169)+('System Detail - Hydro'!AU169*'System Detail - Hydro'!$AL169))/SUM('System Detail - Hydro'!$N169+'System Detail - Hydro'!$AL169),"") -> 43.81995372 | F168: =IFERROR((('System Detail - Hydro'!X169*'System Detail - Hydro'!$N169)+('System Detail - Hydro'!AV169*'System Detail - Hydro'!$AL169))/SUM('System Detail - Hydro'!$N169+'System Detail - Hydro'!$AL169),"") -> 39.24323048 | H168: ='System Detail - Hydro'!W169 -> 46.82706739 | I168: ='System Detail - Hydro'!X169 -> 40.04948838 | K168: ='System Detail - Hydro'!AU169 -> 39.60999458 | L168: ='System Detail - Hydro'!AV169 -> 38.11446941 | N168: 2032 | O168: 9 | P168: 1.0686243 | Q168: 1.020545146 | R168: 0.8458781809 | S168: 0.9516843023
B169: 2032 | C169: 10 | E169: =IFERROR((('System Detail - Hydro'!W170*'System Detail - Hydro'!$N170)+('System Detail - Hydro'!AU170*'System Detail - Hydro'!$AL170))/SUM('System Detail - Hydro'!$N170+'System Detail - Hydro'!$AL170),"") -> 44.34194412 | F169: =IFERROR((('System Detail - Hydro'!X170*'System Detail - Hydro'!$N170)+('System Detail - Hydro'!AV170*'System Detail - Hydro'!$AL170))/SUM('System Detail - Hydro'!$N170+'System Detail - Hydro'!$AL170),"") -> 35.23332905 | H169: ='System Detail - Hydro'!W170 -> 47.84688014 | I169: ='System Detail - Hydro'!X170 -> 37.58472223 | K169: ='System Detail - Hydro'!AU170 -> 39.43503369 | L169: ='System Detail - Hydro'!AV170 -> 31.94137859 | N169: 2032 | O169: 10 | P169: 1.079043355 | Q169: 1.066737752 | R169: 0.8241923731 | S169: 0.8498500639
B170: 2032 | C170: 11 | E170: =IFERROR((('System Detail - Hydro'!W171*'System Detail - Hydro'!$N171)+('System Detail - Hydro'!AU171*'System Detail - Hydro'!$AL171))/SUM('System Detail - Hydro'!$N171+'System Detail - Hydro'!$AL171),"") -> 75.0482122 | F170: =IFERROR((('System Detail - Hydro'!X171*'System Detail - Hydro'!$N171)+('System Detail - Hydro'!AV171*'System Detail - Hydro'!$AL171))/SUM('System Detail - Hydro'!$N171+'System Detail - Hydro'!$AL171),"") -> 61.88272077 | H170: ='System Detail - Hydro'!W171 -> 85.20915791 | I170: ='System Detail - Hydro'!X171 -> 72.53670633 | K170: ='System Detail - Hydro'!AU171 -> 60.82288821 | L170: ='System Detail - Hydro'!AV171 -> 46.96714099 | N170: 2032 | O170: 11 | P170: 1.135392242 | Q170: 1.172164142 | R170: 0.7138069394 | S170: 0.6474948116
B171: 2032 | C171: 12 | E171: =IFERROR((('System Detail - Hydro'!W172*'System Detail - Hydro'!$N172)+('System Detail - Hydro'!AU172*'System Detail - Hydro'!$AL172))/SUM('System Detail - Hydro'!$N172+'System Detail - Hydro'!$AL172),"") -> 210.4976044 | F171: =IFERROR((('System Detail - Hydro'!X172*'System Detail - Hydro'!$N172)+('System Detail - Hydro'!AV172*'System Detail - Hydro'!$AL172))/SUM('System Detail - Hydro'!$N172+'System Detail - Hydro'!$AL172),"") -> 192.2008592 | H171: ='System Detail - Hydro'!W172 -> 282.1368956 | I171: ='System Detail - Hydro'!X172 -> 265.2502764 | K171: ='System Detail - Hydro'!AU172 -> 91.09878584 | L171: ='System Detail - Hydro'!AV172 -> 70.45183046 | N171: 2032 | O171: 12 | P171: 1.340333047 | Q171: 1.38006811 | R171: 0.3228885951 | S171: 0.2656051161
B172: 2033 | C172: 1 | E172: =IFERROR((('System Detail - Hydro'!W173*'System Detail - Hydro'!$N173)+('System Detail - Hydro'!AU173*'System Detail - Hydro'!$AL173))/SUM('System Detail - Hydro'!$N173+'System Detail - Hydro'!$AL173),"") -> 347.6667358 | F172: =IFERROR((('System Detail - Hydro'!X173*'System Detail - Hydro'!$N173)+('System Detail - Hydro'!AV173*'System Detail - Hydro'!$AL173))/SUM('System Detail - Hydro'!$N173+'System Detail - Hydro'!$AL173),"") -> 322.3499561 | H172: ='System Detail - Hydro'!W173 -> 487.3721742 | I172: ='System Detail - Hydro'!X173 -> 464.450431 | K172: ='System Detail - Hydro'!AU173 -> 114.8243385 | L172: ='System Detail - Hydro'!AV173 -> 85.51583113 | N172: 2033 | O172: 1 | P172: 1.401837231 | Q172: 1.440826724 | R172: 0.2355988802 | S172: 0.184122622
B173: 2033 | C173: 2 | E173: =IFERROR((('System Detail - Hydro'!W174*'System Detail - Hydro'!$N174)+('System Detail - Hydro'!AU174*'System Detail - Hydro'!$AL174))/SUM('System Detail - Hydro'!$N174+'System Detail - Hydro'!$AL174),"") -> 275.2244045 | F173: =IFERROR((('System Detail - Hydro'!X174*'System Detail - Hydro'!$N174)+('System Detail - Hydro'!AV174*'System Detail - Hydro'!$AL174))/SUM('System Detail - Hydro'!$N174+'System Detail - Hydro'!$AL174),"") -> 252.3729066 | H173: ='System Detail - Hydro'!W174 -> 380.9660486 | I173: ='System Detail - Hydro'!X174 -> 358.1750835 | K173: ='System Detail - Hydro'!AU174 -> 98.98833098 | L173: ='System Detail - Hydro'!AV174 -> 76.03594513 | N173: 2033 | O173: 2 | P173: 1.384201555 | Q173: 1.419229537 | R173: 0.2598350466 | S173: 0.2122870871
B174: 2033 | C174: 3 | E174: =IFERROR((('System Detail - Hydro'!W175*'System Detail - Hydro'!$N175)+('System Detail - Hydro'!AU175*'System Detail - Hydro'!$AL175))/SUM('System Detail - Hydro'!$N175+'System Detail - Hydro'!$AL175),"") -> 114.4768504 | F174: =IFERROR((('System Detail - Hydro'!X175*'System Detail - Hydro'!$N175)+('System Detail - Hydro'!AV175*'System Detail - Hydro'!$AL175))/SUM('System Detail - Hydro'!$N175+'System Detail - Hydro'!$AL175),"") -> 104.1355315 | H174: ='System Detail - Hydro'!W175 -> 145.7694775 | I174: ='System Detail - Hydro'!X175 -> 134.6153029 | K174: ='System Detail - Hydro'!AU175 -> 62.32247189 | L174: ='System Detail - Hydro'!AV175 -> 53.33591233 | N174: 2033 | O174: 3 | P174: 1.27335332 | Q174: 1.292693292 | R174: 0.4275412998 | S174: 0.3962098749
B175: 2033 | C175: 4 | E175: =IFERROR((('System Detail - Hydro'!W176*'System Detail - Hydro'!$N176)+('System Detail - Hydro'!AU176*'System Detail - Hydro'!$AL176))/SUM('System Detail - Hydro'!$N176+'System Detail - Hydro'!$AL176),"") -> 41.59629524 | F175: =IFERROR((('System Detail - Hydro'!X176*'System Detail - Hydro'!$N176)+('System Detail - Hydro'!AV176*'System Detail - Hydro'!$AL176))/SUM('System Detail - Hydro'!$N176+'System Detail - Hydro'!$AL176),"") -> 38.31890349 | H175: ='System Detail - Hydro'!W176 -> 42.43862102 | I175: ='System Detail - Hydro'!X176 -> 36.80979778 | K175: ='System Detail - Hydro'!AU176 -> 40.41703915 | L175: ='System Detail - Hydro'!AV176 -> 40.43165149 | N175: 2033 | O175: 4 | P175: 1.020250019 | Q175: 0.9606172 | R175: 0.9523645722 | S175: 1.098393741
B176: 2033 | C176: 5 | E176: =IFERROR((('System Detail - Hydro'!W177*'System Detail - Hydro'!$N177)+('System Detail - Hydro'!AU177*'System Detail - Hydro'!$AL177))/SUM('System Detail - Hydro'!$N177+'System Detail - Hydro'!$AL177),"") -> 39.38770786 | F176: =IFERROR((('System Detail - Hydro'!X177*'System Detail - Hydro'!$N177)+('System Detail - Hydro'!AV177*'System Detail - Hydro'!$AL177))/SUM('System Detail - Hydro'!$N177+'System Detail - Hydro'!$AL177),"") -> 36.16280863 | H176: ='System Detail - Hydro'!W177 -> 43.96319105 | I176: ='System Detail - Hydro'!X177 -> 37.10253244 | K176: ='System Detail - Hydro'!AU177 -> 32.98203138 | L176: ='System Detail - Hydro'!AV177 -> 34.84719529 | N176: 2033 | O176: 5 | P176: 1.116165257 | Q176: 1.025985919 | R176: 0.750219231 | S176: 0.9392133907
B177: 2033 | C177: 6 | E177: =IFERROR((('System Detail - Hydro'!W178*'System Detail - Hydro'!$N178)+('System Detail - Hydro'!AU178*'System Detail - Hydro'!$AL178))/SUM('System Detail - Hydro'!$N178+'System Detail - Hydro'!$AL178),"") -> 46.12180988 | F177: =IFERROR((('System Detail - Hydro'!X178*'System Detail - Hydro'!$N178)+('System Detail - Hydro'!AV178*'System Detail - Hydro'!$AL178))/SUM('System Detail - Hydro'!$N178+'System Detail - Hydro'!$AL178),"") -> 41.92949535 | H177: ='System Detail - Hydro'!W178 -> 49.51210433 | I177: ='System Detail - Hydro'!X178 -> 43.27801099 | K177: ='System Detail - Hydro'!AU178 -> 41.37539765 | L177: ='System Detail - Hydro'!AV178 -> 40.04157344 | N177: 2033 | O177: 6 | P177: 1.073507403 | Q177: 1.032161504 | R177: 0.8356622731 | S177: 0.9252175071
B178: 2033 | C178: 7 | E178: =IFERROR((('System Detail - Hydro'!W179*'System Detail - Hydro'!$N179)+('System Detail - Hydro'!AU179*'System Detail - Hydro'!$AL179))/SUM('System Detail - Hydro'!$N179+'System Detail - Hydro'!$AL179),"") -> 51.06561065 | F178: =IFERROR((('System Detail - Hydro'!X179*'System Detail - Hydro'!$N179)+('System Detail - Hydro'!AV179*'System Detail - Hydro'!$AL179))/SUM('System Detail - Hydro'!$N179+'System Detail - Hydro'!$AL179),"") -> 51.56188575 | H178: ='System Detail - Hydro'!W179 -> 57.53488303 | I178: ='System Detail - Hydro'!X179 -> 56.29358193 | K178: ='System Detail - Hydro'!AU179 -> 42.00862931 | L178: ='System Detail - Hydro'!AV179 -> 44.93751109 | N178: 2033 | O178: 7 | P178: 1.126685499 | Q178: 1.091767322 | R178: 0.7301419088 | S178: 0.7982705942
B179: 2033 | C179: 8 | E179: =IFERROR((('System Detail - Hydro'!W180*'System Detail - Hydro'!$N180)+('System Detail - Hydro'!AU180*'System Detail - Hydro'!$AL180))/SUM('System Detail - Hydro'!$N180+'System Detail - Hydro'!$AL180),"") -> 51.0094323 | F179: =IFERROR((('System Detail - Hydro'!X180*'System Detail - Hydro'!$N180)+('System Detail - Hydro'!AV180*'System Detail - Hydro'!$AL180))/SUM('System Detail - Hydro'!$N180+'System Detail - Hydro'!$AL180),"") -> 53.2020426 | H179: ='System Detail - Hydro'!W180 -> 55.62855478 | I179: ='System Detail - Hydro'!X180 -> 55.84000028 | K179: ='System Detail - Hydro'!AU180 -> 44.54266082 | L179: ='System Detail - Hydro'!AV180 -> 49.50890186 | N179: 2033 | O179: 8 | P179: 1.090554281 | Q179: 1.049583767 | R179: 0.8007157653 | S179: 0.8866207309
B180: 2033 | C180: 9 | E180: =IFERROR((('System Detail - Hydro'!W181*'System Detail - Hydro'!$N181)+('System Detail - Hydro'!AU181*'System Detail - Hydro'!$AL181))/SUM('System Detail - Hydro'!$N181+'System Detail - Hydro'!$AL181),"") -> 45.48465745 | F180: =IFERROR((('System Detail - Hydro'!X181*'System Detail - Hydro'!$N181)+('System Detail - Hydro'!AV181*'System Detail - Hydro'!$AL181))/SUM('System Detail - Hydro'!$N181+'System Detail - Hydro'!$AL181),"") -> 40.44195871 | H180: ='System Detail - Hydro'!W181 -> 48.34653644 | I180: ='System Detail - Hydro'!X181 -> 40.98862488 | K180: ='System Detail - Hydro'!AU181 -> 41.47802688 | L180: ='System Detail - Hydro'!AV181 -> 39.67662608 | N180: 2033 | O180: 9 | P180: 1.062919656 | Q180: 1.013517302 | R180: 0.8579317141 | S180: 0.9679911488
B181: 2033 | C181: 10 | E181: =IFERROR((('System Detail - Hydro'!W182*'System Detail - Hydro'!$N182)+('System Detail - Hydro'!AU182*'System Detail - Hydro'!$AL182))/SUM('System Detail - Hydro'!$N182+'System Detail - Hydro'!$AL182),"") -> 47.11231604 | F181: =IFERROR((('System Detail - Hydro'!X182*'System Detail - Hydro'!$N182)+('System Detail - Hydro'!AV182*'System Detail - Hydro'!$AL182))/SUM('System Detail - Hydro'!$N182+'System Detail - Hydro'!$AL182),"") -> 36.0255088 | H181: ='System Detail - Hydro'!W182 -> 50.34125143 | I181: ='System Detail - Hydro'!X182 -> 38.57311541 | K181: ='System Detail - Hydro'!AU182 -> 42.5918065 | L181: ='System Detail - Hydro'!AV182 -> 32.45885954 | N181: 2033 | O181: 10 | P181: 1.06853697 | Q181: 1.070716742 | R181: 0.8460617346 | S181: 0.8414891873
B182: 2033 | C182: 11 | E182: =IFERROR((('System Detail - Hydro'!W183*'System Detail - Hydro'!$N183)+('System Detail - Hydro'!AU183*'System Detail - Hydro'!$AL183))/SUM('System Detail - Hydro'!$N183+'System Detail - Hydro'!$AL183),"") -> 74.34302294 | F182: =IFERROR((('System Detail - Hydro'!X183*'System Detail - Hydro'!$N183)+('System Detail - Hydro'!AV183*'System Detail - Hydro'!$AL183))/SUM('System Detail - Hydro'!$N183+'System Detail - Hydro'!$AL183),"") -> 62.67772676 | H182: ='System Detail - Hydro'!W183 -> 84.09747675 | I182: ='System Detail - Hydro'!X183 -> 73.31384173 | K182: ='System Detail - Hydro'!AU183 -> 60.6867876 | L182: ='System Detail - Hydro'!AV183 -> 47.78716582 | N182: 2033 | O182: 11 | P182: 1.131208733 | Q182: 1.169695289 | R182: 0.7216243572 | S182: 0.6518164195
B183: 2033 | C183: 12 | E183: =IFERROR((('System Detail - Hydro'!W184*'System Detail - Hydro'!$N184)+('System Detail - Hydro'!AU184*'System Detail - Hydro'!$AL184))/SUM('System Detail - Hydro'!$N184+'System Detail - Hydro'!$AL184),"") -> 214.9741492 | F183: =IFERROR((('System Detail - Hydro'!X184*'System Detail - Hydro'!$N184)+('System Detail - Hydro'!AV184*'System Detail - Hydro'!$AL184))/SUM('System Detail - Hydro'!$N184+'System Detail - Hydro'!$AL184),"") -> 196.2619013 | H183: ='System Detail - Hydro'!W184 -> 288.1513448 | I183: ='System Detail - Hydro'!X184 -> 271.2589979 | K183: ='System Detail - Hydro'!AU184 -> 93.01215661 | L183: ='System Detail - Hydro'!AV184 -> 71.26674013 | N183: 2033 | O183: 12 | P183: 1.340399978 | Q183: 1.382127638 | R183: 0.3227892505 | S183: 0.2627258106
B184: 2034 | C184: 1 | E184: =IFERROR((('System Detail - Hydro'!W185*'System Detail - Hydro'!$N185)+('System Detail - Hydro'!AU185*'System Detail - Hydro'!$AL185))/SUM('System Detail - Hydro'!$N185+'System Detail - Hydro'!$AL185),"") -> 354.5482913 | F184: =IFERROR((('System Detail - Hydro'!X185*'System Detail - Hydro'!$N185)+('System Detail - Hydro'!AV185*'System Detail - Hydro'!$AL185))/SUM('System Detail - Hydro'!$N185+'System Detail - Hydro'!$AL185),"") -> 330.4530589 | H184: ='System Detail - Hydro'!W185 -> 497.3559706 | I184: ='System Detail - Hydro'!X185 -> 475.6034019 | K184: ='System Detail - Hydro'!AU185 -> 116.5354926 | L184: ='System Detail - Hydro'!AV185 -> 88.53582062 | N184: 2034 | O184: 1 | P184: 1.402787667 | Q184: 1.43924648 | R184: 0.2343100304 | S184: 0.1861547253
B185: 2034 | C185: 2 | E185: =IFERROR((('System Detail - Hydro'!W186*'System Detail - Hydro'!$N186)+('System Detail - Hydro'!AU186*'System Detail - Hydro'!$AL186))/SUM('System Detail - Hydro'!$N186+'System Detail - Hydro'!$AL186),"") -> 278.7580801 | F185: =IFERROR((('System Detail - Hydro'!X186*'System Detail - Hydro'!$N186)+('System Detail - Hydro'!AV186*'System Detail - Hydro'!$AL186))/SUM('System Detail - Hydro'!$N186+'System Detail - Hydro'!$AL186),"") -> 256.2221613 | H185: ='System Detail - Hydro'!W186 -> 386.4160979 | I185: ='System Detail - Hydro'!X186 -> 364.4952876 | K185: ='System Detail - Hydro'!AU186 -> 99.32805045 | L185: ='System Detail - Hydro'!AV186 -> 75.76695072 | N185: 2034 | O185: 2 | P185: 1.386205909 | Q185: 1.422575182 | R185: 0.257049463 | S185: 0.2078681215
B186: 2034 | C186: 3 | E186: =IFERROR((('System Detail - Hydro'!W187*'System Detail - Hydro'!$N187)+('System Detail - Hydro'!AU187*'System Detail - Hydro'!$AL187))/SUM('System Detail - Hydro'!$N187+'System Detail - Hydro'!$AL187),"") -> 115.1825403 | F186: =IFERROR((('System Detail - Hydro'!X187*'System Detail - Hydro'!$N187)+('System Detail - Hydro'!AV187*'System Detail - Hydro'!$AL187))/SUM('System Detail - Hydro'!$N187+'System Detail - Hydro'!$AL187),"") -> 105.9836972 | H186: ='System Detail - Hydro'!W187 -> 146.9203512 | I186: ='System Detail - Hydro'!X187 -> 137.0697085 | K186: ='System Detail - Hydro'!AU187 -> 62.28618875 | L186: ='System Detail - Hydro'!AV187 -> 54.17367845 | N186: 2034 | O186: 3 | P186: 1.275543592 | Q186: 1.293309368 | R186: 0.4239452754 | S186: 0.39522721
B187: 2034 | C187: 4 | E187: =IFERROR((('System Detail - Hydro'!W188*'System Detail - Hydro'!$N188)+('System Detail - Hydro'!AU188*'System Detail - Hydro'!$AL188))/SUM('System Detail - Hydro'!$N188+'System Detail - Hydro'!$AL188),"") -> 42.33990704 | F187: =IFERROR((('System Detail - Hydro'!X188*'System Detail - Hydro'!$N188)+('System Detail - Hydro'!AV188*'System Detail - Hydro'!$AL188))/SUM('System Detail - Hydro'!$N188+'System Detail - Hydro'!$AL188),"") -> 37.45797932 | H187: ='System Detail - Hydro'!W188 -> 43.00624979 | I187: ='System Detail - Hydro'!X188 -> 35.76401424 | K187: ='System Detail - Hydro'!AU188 -> 41.40702719 | L187: ='System Detail - Hydro'!AV188 -> 39.82953043 | N187: 2034 | O187: 4 | P187: 1.015737936 | Q187: 0.9547769231 | R187: 0.9628141814 | S187: 1.113676171
B188: 2034 | C188: 5 | E188: =IFERROR((('System Detail - Hydro'!W189*'System Detail - Hydro'!$N189)+('System Detail - Hydro'!AU189*'System Detail - Hydro'!$AL189))/SUM('System Detail - Hydro'!$N189+'System Detail - Hydro'!$AL189),"") -> 43.87958835 | F188: =IFERROR((('System Detail - Hydro'!X189*'System Detail - Hydro'!$N189)+('System Detail - Hydro'!AV189*'System Detail - Hydro'!$AL189))/SUM('System Detail - Hydro'!$N189+'System Detail - Hydro'!$AL189),"") -> 36.2874288 | H188: ='System Detail - Hydro'!W189 -> 46.70208083 | I188: ='System Detail - Hydro'!X189 -> 37.70857744 | K188: ='System Detail - Hydro'!AU189 -> 39.92809889 | L188: ='System Detail - Hydro'!AV189 -> 34.2978207 | N188: 2034 | O188: 5 | P188: 1.064323586 | Q188: 1.039163663 | R188: 0.8549533166 | S188: 0.909549578
B189: 2034 | C189: 6 | E189: =IFERROR((('System Detail - Hydro'!W190*'System Detail - Hydro'!$N190)+('System Detail - Hydro'!AU190*'System Detail - Hydro'!$AL190))/SUM('System Detail - Hydro'!$N190+'System Detail - Hydro'!$AL190),"") -> 47.73885883 | F189: =IFERROR((('System Detail - Hydro'!X190*'System Detail - Hydro'!$N190)+('System Detail - Hydro'!AV190*'System Detail - Hydro'!$AL190))/SUM('System Detail - Hydro'!$N190+'System Detail - Hydro'!$AL190),"") -> 43.57473329 | H189: ='System Detail - Hydro'!W190 -> 50.6952334 | I189: ='System Detail - Hydro'!X190 -> 44.31694109 | K189: ='System Detail - Hydro'!AU190 -> 43.59993444 | L189: ='System Detail - Hydro'!AV190 -> 42.53564236 | N189: 2034 | O189: 6 | P189: 1.061928053 | Q189: 1.017032986 | R189: 0.8600401164 | S189: 0.9598054676
B190: 2034 | C190: 7 | E190: =IFERROR((('System Detail - Hydro'!W191*'System Detail - Hydro'!$N191)+('System Detail - Hydro'!AU191*'System Detail - Hydro'!$AL191))/SUM('System Detail - Hydro'!$N191+'System Detail - Hydro'!$AL191),"") -> 54.27842682 | F190: =IFERROR((('System Detail - Hydro'!X191*'System Detail - Hydro'!$N191)+('System Detail - Hydro'!AV191*'System Detail - Hydro'!$AL191))/SUM('System Detail - Hydro'!$N191+'System Detail - Hydro'!$AL191),"") -> 53.82865694 | H190: ='System Detail - Hydro'!W191 -> 61.61778082 | I190: ='System Detail - Hydro'!X191 -> 59.14102499 | K190: ='System Detail - Hydro'!AU191 -> 44.00333123 | L190: ='System Detail - Hydro'!AV191 -> 46.39134166 | N190: 2034 | O190: 7 | P190: 1.135216778 | Q190: 1.098690333 | R190: 0.7141336583 | S190: 0.7844189658
B191: 2034 | C191: 8 | E191: =IFERROR((('System Detail - Hydro'!W192*'System Detail - Hydro'!$N192)+('System Detail - Hydro'!AU192*'System Detail - Hydro'!$AL192))/SUM('System Detail - Hydro'!$N192+'System Detail - Hydro'!$AL192),"") -> 53.79798107 | F191: =IFERROR((('System Detail - Hydro'!X192*'System Detail - Hydro'!$N192)+('System Detail - Hydro'!AV192*'System Detail - Hydro'!$AL192))/SUM('System Detail - Hydro'!$N192+'System Detail - Hydro'!$AL192),"") -> 55.10227439 | H191: ='System Detail - Hydro'!W192 -> 58.66819446 | I191: ='System Detail - Hydro'!X192 -> 57.53087518 | K191: ='System Detail - Hydro'!AU192 -> 46.97968231 | L191: ='System Detail - Hydro'!AV192 -> 51.70223329 | N191: 2034 | O191: 8 | P191: 1.09052781 | Q191: 1.04407442 | R191: 0.8007691858 | S191: 0.8986867161
B192: 2034 | C192: 9 | E192: =IFERROR((('System Detail - Hydro'!W193*'System Detail - Hydro'!$N193)+('System Detail - Hydro'!AU193*'System Detail - Hydro'!$AL193))/SUM('System Detail - Hydro'!$N193+'System Detail - Hydro'!$AL193),"") -> 47.10724209 | F192: =IFERROR((('System Detail - Hydro'!X193*'System Detail - Hydro'!$N193)+('System Detail - Hydro'!AV193*'System Detail - Hydro'!$AL193))/SUM('System Detail - Hydro'!$N193+'System Detail - Hydro'!$AL193),"") -> 41.88785275 | H192: ='System Detail - Hydro'!W193 -> 50.08338856 | I192: ='System Detail - Hydro'!X193 -> 42.26583121 | K192: ='System Detail - Hydro'!AU193 -> 42.94063702 | L192: ='System Detail - Hydro'!AV193 -> 41.35868291 | N192: 2034 | O192: 9 | P192: 1.063178109 | Q192: 1.009023582 | R192: 0.8573828221 | S192: 0.9785370765
B193: 2034 | C193: 10 | E193: =IFERROR((('System Detail - Hydro'!W194*'System Detail - Hydro'!$N194)+('System Detail - Hydro'!AU194*'System Detail - Hydro'!$AL194))/SUM('System Detail - Hydro'!$N194+'System Detail - Hydro'!$AL194),"") -> 45.79667932 | F193: =IFERROR((('System Detail - Hydro'!X194*'System Detail - Hydro'!$N194)+('System Detail - Hydro'!AV194*'System Detail - Hydro'!$AL194))/SUM('System Detail - Hydro'!$N194+'System Detail - Hydro'!$AL194),"") -> 38.88276082 | H193: ='System Detail - Hydro'!W194 -> 50.26080697 | I193: ='System Detail - Hydro'!X194 -> 40.72262159 | K193: ='System Detail - Hydro'!AU194 -> 39.5469006 | L193: ='System Detail - Hydro'!AV194 -> 36.30695575 | N193: 2034 | O193: 10 | P193: 1.097477104 | Q193: 1.047318162 | R193: 0.7868337773 | S193: 0.89156725
B194: 2034 | C194: 11 | E194: =IFERROR((('System Detail - Hydro'!W195*'System Detail - Hydro'!$N195)+('System Detail - Hydro'!AU195*'System Detail - Hydro'!$AL195))/SUM('System Detail - Hydro'!$N195+'System Detail - Hydro'!$AL195),"") -> 76.15397476 | F194: =IFERROR((('System Detail - Hydro'!X195*'System Detail - Hydro'!$N195)+('System Detail - Hydro'!AV195*'System Detail - Hydro'!$AL195))/SUM('System Detail - Hydro'!$N195+'System Detail - Hydro'!$AL195),"") -> 66.38098369 | H194: ='System Detail - Hydro'!W195 -> 86.34120006 | I194: ='System Detail - Hydro'!X195 -> 77.09062664 | K194: ='System Detail - Hydro'!AU195 -> 61.89185933 | L194: ='System Detail - Hydro'!AV195 -> 51.38748356 | N194: 2034 | O194: 11 | P194: 1.133771419 | Q194: 1.161336008 | R194: 0.7168288058 | S194: 0.6665853659
B195: 2034 | C195: 12 | E195: =IFERROR((('System Detail - Hydro'!W196*'System Detail - Hydro'!$N196)+('System Detail - Hydro'!AU196*'System Detail - Hydro'!$AL196))/SUM('System Detail - Hydro'!$N196+'System Detail - Hydro'!$AL196),"") -> 220.4495088 | F195: =IFERROR((('System Detail - Hydro'!X196*'System Detail - Hydro'!$N196)+('System Detail - Hydro'!AV196*'System Detail - Hydro'!$AL196))/SUM('System Detail - Hydro'!$N196+'System Detail - Hydro'!$AL196),"") -> 203.2504524 | H195: ='System Detail - Hydro'!W196 -> 295.4394432 | I195: ='System Detail - Hydro'!X196 -> 279.7815791 | K195: ='System Detail - Hydro'!AU196 -> 95.46628486 | L195: ='System Detail - Hydro'!AV196 -> 75.69857462 | N195: 2034 | O195: 12 | P195: 1.340168299 | Q195: 1.37653607 | R195: 0.3231331735 | S195: 0.2705631116
B196: 2035 | C196: 1 | E196: =IFERROR((('System Detail - Hydro'!W197*'System Detail - Hydro'!$N197)+('System Detail - Hydro'!AU197*'System Detail - Hydro'!$AL197))/SUM('System Detail - Hydro'!$N197+'System Detail - Hydro'!$AL197),"") -> 358.8684911 | F196: =IFERROR((('System Detail - Hydro'!X197*'System Detail - Hydro'!$N197)+('System Detail - Hydro'!AV197*'System Detail - Hydro'!$AL197))/SUM('System Detail - Hydro'!$N197+'System Detail - Hydro'!$AL197),"") -> 336.0737284 | H196: ='System Detail - Hydro'!W197 -> 502.7160116 | I196: ='System Detail - Hydro'!X197 -> 483.7763812 | K196: ='System Detail - Hydro'!AU197 -> 119.1226236 | L196: ='System Detail - Hydro'!AV197 -> 89.90264025 | N196: 2035 | O196: 1 | P196: 1.400836307 | Q196: 1.439494791 | R196: 0.2369580853 | S196: 0.1858351167
B197: 2035 | C197: 2 | E197: =IFERROR((('System Detail - Hydro'!W198*'System Detail - Hydro'!$N198)+('System Detail - Hydro'!AU198*'System Detail - Hydro'!$AL198))/SUM('System Detail - Hydro'!$N198+'System Detail - Hydro'!$AL198),"") -> 285.6032049 | F197: =IFERROR((('System Detail - Hydro'!X198*'System Detail - Hydro'!$N198)+('System Detail - Hydro'!AV198*'System Detail - Hydro'!$AL198))/SUM('System Detail - Hydro'!$N198+'System Detail - Hydro'!$AL198),"") -> 264.0830937 | H197: ='System Detail - Hydro'!W198 -> 396.1094326 | I197: ='System Detail - Hydro'!X198 -> 374.8707003 | K197: ='System Detail - Hydro'!AU198 -> 101.4261586 | L197: ='System Detail - Hydro'!AV198 -> 79.43708268 | N197: 2035 | O197: 2 | P197: 1.386922226 | Q197: 1.419517982 | R197: 0.2560559035 | S197: 0.2119052852
B198: 2035 | C198: 3 | E198: =IFERROR((('System Detail - Hydro'!W199*'System Detail - Hydro'!$N199)+('System Detail - Hydro'!AU199*'System Detail - Hydro'!$AL199))/SUM('System Detail - Hydro'!$N199+'System Detail - Hydro'!$AL199),"") -> 120.8406482 | F198: =IFERROR((('System Detail - Hydro'!X199*'System Detail - Hydro'!$N199)+('System Detail - Hydro'!AV199*'System Detail - Hydro'!$AL199))/SUM('System Detail - Hydro'!$N199+'System Detail - Hydro'!$AL199),"") -> 110.2194474 | H198: ='System Detail - Hydro'!W199 -> 153.3238922 | I198: ='System Detail - Hydro'!X199 -> 141.9173927 | K198: ='System Detail - Hydro'!AU199 -> 66.7019082 | L198: ='System Detail - Hydro'!AV199 -> 57.38953868 | N198: 2035 | O198: 3 | P198: 1.268810574 | Q198: 1.287589404 | R198: 0.4350392312 | S198: 0.4043869296
B199: 2035 | C199: 4 | E199: =IFERROR((('System Detail - Hydro'!W200*'System Detail - Hydro'!$N200)+('System Detail - Hydro'!AU200*'System Detail - Hydro'!$AL200))/SUM('System Detail - Hydro'!$N200+'System Detail - Hydro'!$AL200),"") -> 46.38958363 | F199: =IFERROR((('System Detail - Hydro'!X200*'System Detail - Hydro'!$N200)+('System Detail - Hydro'!AV200*'System Detail - Hydro'!$AL200))/SUM('System Detail - Hydro'!$N200+'System Detail - Hydro'!$AL200),"") -> 40.2830724 | H199: ='System Detail - Hydro'!W200 -> 47.35685918 | I199: ='System Detail - Hydro'!X200 -> 38.46097072 | K199: ='System Detail - Hydro'!AU200 -> 45.03539788 | L199: ='System Detail - Hydro'!AV200 -> 42.83401476 | N199: 2035 | O199: 4 | P199: 1.020851137 | Q199: 0.9547675592 | R199: 0.9509794074 | S199: 1.113700824
B200: 2035 | C200: 5 | E200: =IFERROR((('System Detail - Hydro'!W201*'System Detail - Hydro'!$N201)+('System Detail - Hydro'!AU201*'System Detail - Hydro'!$AL201))/SUM('System Detail - Hydro'!$N201+'System Detail - Hydro'!$AL201),"") -> 35.71683819 | F200: =IFERROR((('System Detail - Hydro'!X201*'System Detail - Hydro'!$N201)+('System Detail - Hydro'!AV201*'System Detail - Hydro'!$AL201))/SUM('System Detail - Hydro'!$N201+'System Detail - Hydro'!$AL201),"") -> 35.84501573 | H200: ='System Detail - Hydro'!W201 -> 41.94035504 | I200: ='System Detail - Hydro'!X201 -> 36.16955919 | K200: ='System Detail - Hydro'!AU201 -> 27.0039146 | L200: ='System Detail - Hydro'!AV201 -> 35.39065489 | N200: 2035 | O200: 5 | P200: 1.174246018 | Q200: 1.009054075 | R200: 0.6438647117 | S200: 0.9784651977
... 67 more rows

Sheet System Detail - Hydro
B1: Forecast Internal Prices, Peak Hours | Z1: Forecast Internal Prices, Off-Peak Hours | AX1: Forecast Internal Prices, All Hours | BJ1: Peak Hours
D2: Inputs and Intermediated Calculations | Q2: Marginal Cost Estimates Calculations | AB2: Inputs and Intermediated Calculations | AO2: Marginal Cost Estimates Calculations | AZ2: Marginal Cost Estimates Calculations | BI2: Marginal Capacity Costs by Year
B3: Year | C3: Month | D3: Operating Reserve Price Ratio | E3: CAD/USD | F3: Within-System Losses % | G3: Gen Capacity Adjustment | H3: NE ISO Scalar | I3: NY Z A Scalar | J3: Fees for Transmission Path Reservation | L3: NE ISO Trans Path Losses | M3: NY Zone A Trans Path Losses | N3: Peak Periods | O3: NE ISO | P3: NY Z A | Q3: NE ISO Energy and Reserve Costs | S3: NY Z A Energy and Reserve Costs | U3: Capacity Costs | W3: All-In Marginal Costs including Energy, Capacity, Reserves, Losses | Y3: =INDEX('Hourly - NLH'!#REF!,,MATCH(1,('Hourly - NLH'!#REF!=X$4)*('Hourly - NLH'!#REF!=$B5),0)) ->  | Z3: Year | AA3: Month | AB3: Operating Reserve Price Ratio | AC3: CAD/USD | AD3: Within-System Losses % | AE3: Gen Capacity Adjustment | AF3: NE ISO Scalar | AG3: NY Z A Scalar | AH3: Fees for Transmission Path Reservation | AJ3: NE ISO Trans Path Losses | AK3: NY Zone A Trans Path Losses | AL3: Peak Periods | AM3: NE ISO | AN3: NY Z A | AO3: NE ISO Energy and Reserve Costs | AQ3: NY Z A Energy and Reserve Costs | AS3: Capacity Costs | AU3: All-In Marginal Costs including Energy, Capacity, Reserves, Losses | AX3: Year | AY3: Month | AZ3: NE ISO Energy and Reserve Costs | BB3: NY Z A Energy and Reserve Costs | BD3: Capacity Costs | BF3: All-In Marginal Costs including Energy, Capacity, Reserves, Losses
G4: Gen Capacity Adjustment | J4: NE | K4: NY | Q4: Energy | R4: Reserves | S4: Energy | T4: Reserves | U4: Gen | V4: Trans | W4: NEISO | X4: NYISO | AE4: Gen Capacity Adjustment | AH4: NE | AI4: NY | AO4: Energy | AP4: Reserves | AQ4: Energy | AR4: Reserves | AS4: Gen | AT4: Trans | AU4: NEISO | AV4: NYISO | AZ4: Energy | BA4: Reserves | BB4: Energy | BC4: Reserves | BD4: Gen | BE4: Trans | BF4: NEISO | BG4: NYISO | BI4: Year | BJ4: Marginal Generation Costs | BK4: Marginal Transmission Costs
B5: =Controls!$D$54 -> 2019 | C5: 1 | D5: ='Input Parameters, System'!$E$18 -> 0.0277774627 | E5: =VLOOKUP($B5,FX,2,FALSE) -> 1.257321868 | F5: ='Input Parameters, System'!I158 -> 0.1132639482 | G5: ='Input Parameters, System'!$B$36 -> 1.404631308 | H5: =VLOOKUP($C5&"On-Peak",'Input Parameters, System'!$C$52:$E$76,2,FALSE)+1 -> 1 | I5: =VLOOKUP($C5&"On-Peak",'Input Parameters, System'!$C$52:$E$76,3,FALSE)+1 -> 1 | J5: =IF(Controls!$C$48=1,INDEX('T_Tariff Path Charges'!$F$39:$AE$62,13,MATCH($B5,'T_Tariff Path Charges'!$F$39:$AE$39,0))+INDEX('T_Tariff Path Charges'!$F$39:$AE$62,14,MATCH($B5,'T_Tariff Path Charges'!$F$39:$AE$39,0)),0) -> 10.04846436 | K5: =IF(Controls!$C$51=1,INDEX('T_Tariff Path Charges'!$F$39:$AE$62,12,MATCH($B5,'T_Tariff Path Charges'!$F$39:$AE$39,0)),0) -> 8.817700071 | L5: ='Input Parameters, System'!$C$31 -> 0.1037360426 | M5: ='Input Parameters, System'!$C$27 -> 0.0574929312 | N5: =INDEX(Dates!$T$3:$T$266,MATCH(B5&C5,Dates!$M$3:$M$266&Dates!$N$3:$N$266,0)) -> 465 | O5: =INDEX('Long Term Regional Prices'!$A$4:$M$74,MATCH(B5,'Long Term Regional Prices'!$A$4:$A$74,0),MATCH(C5,'Long Term Regional Prices'!$A$4:$M$4,0)) -> 75.16477978 | P5: =INDEX('Long Term Regional Prices'!$P$4:$AB$74,MATCH(B5,'Long Term Regional Prices'!$P$4:$P$74,0),MATCH(C5,'Long Term Regional Prices'!$P$4:$AB$4,0)) -> 39.54481935 | Q5: =IF(B5<Controls!$E$55,AVERAGEIFS(INDEX('Hourly - NLH'!$BC$11:$BH$8772,,MATCH(1,('Hourly - NLH'!$BC$12:$BH$12=W$4)*('Hourly - NLH'!$BC$11:$BH$11=$B5),0)),'Hourly - NLH'!$B$11:$B$8772,$C5,'Hourly - NLH'!$G$11:$G$8772,"On-Peak")/(1+$D5),O5*E5*(1/(1-F5))*H5*(1-L5)-J5) -> 78.85181528 | R5: =IF(Controls!$C$42=1,Q5*$D5,0) -> 2.190303358 | S5: =IF(B5<Controls!$E$55,AVERAGEIFS(INDEX('Hourly - NLH'!$BC$11:$BH$8772,,MATCH(1,('Hourly - NLH'!$BC$12:$BH$12=X$4)*('Hourly - NLH'!$BC$11:$BH$11=$B5),0)),'Hourly - NLH'!$B$11:$B$8772,$C5,'Hourly - NLH'!$G$11:$G$8772,"On-Peak")/(1+$D5),P5*E5*(1/(1-F5))*I5*(1-M5)-K5) -> 42.63341888 | T5: =IF(Controls!$C$42=1,S5*$D5,0) -> 1.184248203 | U5: =IF(B5<Controls!$E$55,AVERAGEIFS(INDEX('Hourly - NLH'!$BQ$11:$BS$8772,,MATCH(1,('Hourly - NLH'!$BQ$11:$BS$11='System Detail - Hydro'!B5)*('Hourly - NLH'!$BQ$11:$BS$11='System Detail - Hydro'!B5),0)),'Hourly - NLH'!$B$11:$B$8772,$C5,'Hourly - NLH'!$G$11:$G$8772,"On-Peak"),INDEX('Capacity - NLH'!$H$3:$H$230,MATCH('System Detail - Hydro'!B5&'System Detail - Hydro'!C5,'Capacity - NLH'!$A$3:$A$230&'Capacity - NLH'!$B$3:$B$230,0))) -> 259.7784711 | V5: =IF(B5<Controls!$E$55,AVERAGEIFS(INDEX('Hourly - NLH'!$BJ$11:$BO$8772,,MATCH(1,('Hourly - NLH'!$BJ$11:$BO$11='System Detail - Hydro'!B5)*('Hourly - NLH'!$BJ$12:$BO$12="Trans"),0)),'Hourly - NLH'!$B$11:$B$8772,$C5,'Hourly - NLH'!$G$11:$G$8772,"On-Peak"),INDEX('Capacity - NLH'!$N$3:$N$230,MATCH('System Detail - Hydro'!B5&'System Detail - Hydro'!C5,'Capacity - NLH'!$A$3:$A$230&'Capacity - NLH'!$B$3:$B$230,0))) -> 29.87966801 | W5: =Q5+R5+U5+V5 -> 370.7002577 | X5: =S5+T5+U5+V5 -> 333.4758062 | Z5: =Controls!$D$54 -> 2019 | AA5: 1 | AB5: ='Input Parameters, System'!$E$18 -> 0.0277774627 | AC5: =VLOOKUP($Z5,FX,2,FALSE) -> 1.257321868 | AD5: ='Input Parameters, System'!J158 -> 0.1050665382 | AE5: ='Input Parameters, System'!$C$36 -> 1.404113365 | AF5: =VLOOKUP($C5&"Off-Peak",'Input Parameters, System'!$C$52:$E$76,2,FALSE)+1 -> 1 | AG5: =VLOOKUP($C5&"Off-Peak",'Input Parameters, System'!$C$52:$E$76,3,FALSE)+1 -> 1 | AH5: =IF(Controls!$C$48=1,INDEX('T_Tariff Path Charges'!$F$39:$AE$62,13,MATCH($B5,'T_Tariff Path Charges'!$F$39:$AE$39,0))+INDEX('T_Tariff Path Charges'!$F$39:$AE$62,14,MATCH($B5,'T_Tariff Path Charges'!$F$39:$AE$39,0)),0) -> 10.04846436 | AI5: =IF(Controls!$C$51=1,INDEX('T_Tariff Path Charges'!$F$39:$AE$62,12,MATCH($B5,'T_Tariff Path Charges'!$F$39:$AE$39,0)),0) -> 8.817700071 | AJ5: ='Input Parameters, System'!$C$31 -> 0.1037360426 | AK5: ='Input Parameters, System'!$C$27 -> 0.0574929312 | AL5: =INDEX(Dates!$U$3:$U$266,MATCH(Z5&AA5,Dates!$M$3:$M$266&Dates!$N$3:$N$266,0)) -> 279 | AM5: =INDEX('Long Term Regional Prices'!$A$78:$M$148,MATCH(B5,'Long Term Regional Prices'!$A$78:$A$148,0),MATCH(C5,'Long Term Regional Prices'!$A$4:$M$4,0)) -> 61.07798022 | AN5: =INDEX('Long Term Regional Prices'!$P$78:$AB$148,MATCH(B5,'Long Term Regional Prices'!$P$78:$P$148,0),MATCH(C5,'Long Term Regional Prices'!$P$4:$AB$4,0)) -> 27.86069947 | AO5: =IF(Z5<Controls!$E$55,AVERAGEIFS(INDEX('Hourly - NLH'!$BC$11:$BH$8772,,MATCH(1,('Hourly - NLH'!$BC$12:$BH$12=AU$4)*('Hourly - NLH'!$BC$11:$BH$11=$B5),0)),'Hourly - NLH'!$B$11:$B$8772,$C5,'Hourly - NLH'!$G$11:$G$8772,"Off-Peak")/(1+$D5),AM5*AC5*(1/(1-AD5))*AF5*(1-AJ5)-AH5) -> 75.68518209 | AP5: =AO5*$D5 -> 2.102342322 | AQ5: =IF(Z5<Controls!$E$55,AVERAGEIFS(INDEX('Hourly - NLH'!$BC$11:$BH$8772,,MATCH(1,('Hourly - NLH'!$BC$12:$BH$12=AV$4)*('Hourly - NLH'!$BC$11:$BH$11=$B5),0)),'Hourly - NLH'!$B$11:$B$8772,$C5,'Hourly - NLH'!$G$11:$G$8772,"Off-Peak")/(1+$D5),AN5*AC5*(1/(1-AD5))*AG5*(1-AK5)-AI5) -> 27.02513397 | AR5: =AQ5*D5 -> 0.7506896506 | AS5: =IF(Z5<Controls!$E$55,AVERAGEIFS(INDEX('Hourly - NLH'!$BQ$11:$BS$8772,,MATCH(1,('Hourly - NLH'!$BQ$11:$BS$11='System Detail - Hydro'!Z5)*('Hourly - NLH'!$BQ$11:$BS$11='System Detail - Hydro'!Z5),0)),'Hourly - NLH'!$B$11:$B$8772,$AA5,'Hourly - NLH'!$G$11:$G$8772,"Off-Peak"),INDEX('Capacity - NLH'!$I$3:$I$230,MATCH('System Detail - Hydro'!Z5&'System Detail - Hydro'!AA5,'Capacity - NLH'!$A$3:$A$230&'Capacity - NLH'!$B$3:$B$230,0))) -> 24.39014791 | AT5: =IF(Z5<Controls!$E$55,AVERAGEIFS(INDEX('Hourly - NLH'!$BJ$11:$BO$8772,,MATCH(1,('Hourly - NLH'!$BJ$11:$BO$11='System Detail - Hydro'!Z5)*('Hourly - NLH'!$BJ$12:$BO$12="Trans"),0)),'Hourly - NLH'!$B$11:$B$8772,$AA5,'Hourly - NLH'!$G$11:$G$8772,"Off-Peak"),INDEX('Capacity - NLH'!$O$3:$O$230,MATCH('System Detail - Hydro'!Z5&'System Detail - Hydro'!AA5,'Capacity - NLH'!$K$3:$K$230&'Capacity - NLH'!$L$3:$L$230,0))) -> 2.248623432 | AU5: =AO5+AP5+AS5+AT5 -> 104.4262957 | AV5: =AQ5+AR5+AS5+AT5 -> 54.41459496 | AX5: =Controls!$D$54 -> 2019 | AY5: 1 | AZ5: =IFERROR((('System Detail - Hydro'!Q5*'System Detail - Hydro'!$N5)+('System Detail - Hydro'!AO5*'System Detail - Hydro'!$AL5))/SUM('System Detail - Hydro'!$N5+'System Detail - Hydro'!$AL5),"") -> 77.66432783 | BA5: =IFERROR((('System Detail - Hydro'!R5*'System Detail - Hydro'!$N5)+('System Detail - Hydro'!AP5*'System Detail - Hydro'!$AL5))/SUM('System Detail - Hydro'!$N5+'System Detail - Hydro'!$AL5),"") -> 2.157317969 | BB5: =IFERROR((('System Detail - Hydro'!S5*'System Detail - Hydro'!$N5)+('System Detail - Hydro'!AQ5*'System Detail - Hydro'!$AL5))/SUM('System Detail - Hydro'!$N5+'System Detail - Hydro'!$AL5),"") -> 36.78031204 | BC5: =IFERROR((('System Detail - Hydro'!T5*'System Detail - Hydro'!$N5)+('System Detail - Hydro'!AR5*'System Detail - Hydro'!$AL5))/SUM('System Detail - Hydro'!$N5+'System Detail - Hydro'!$AL5),"") -> 1.021663746 | BD5: =IFERROR((('System Detail - Hydro'!U5*'System Detail - Hydro'!$N5)+('System Detail - Hydro'!AS5*'System Detail - Hydro'!$AL5))/SUM('System Detail - Hydro'!$N5+'System Detail - Hydro'!$AL5),"") -> 171.5078499 | BE5: =IFERROR((('System Detail - Hydro'!V5*'System Detail - Hydro'!$N5)+('System Detail - Hydro'!AT5*'System Detail - Hydro'!$AL5))/SUM('System Detail - Hydro'!$N5+'System Detail - Hydro'!$AL5),"") -> 19.51802629 | BF5: =IFERROR((('System Detail - Hydro'!W5*'System Detail - Hydro'!$N5)+('System Detail - Hydro'!AU5*'System Detail - Hydro'!$AL5))/SUM('System Detail - Hydro'!$N5+'System Detail - Hydro'!$AL5),"") -> 270.847522 | BG5: =IFERROR((('System Detail - Hydro'!X5*'System Detail - Hydro'!$N5)+('System Detail - Hydro'!AV5*'System Detail - Hydro'!$AL5))/SUM('System Detail - Hydro'!$N5+'System Detail - Hydro'!$AL5),"") -> 228.827852 | BI5: =Controls!$D$54 -> 2019 | BJ5: =IF(BI5<Controls!$E$55,AVERAGEIFS(INDEX('Hourly - NLH'!$BQ$11:$BS$8772,,MATCH(1,('Hourly - NLH'!$BQ$11:$BS$11='System Detail - Hydro'!BI5)*('Hourly - NLH'!$BQ$11:$BS$11='System Detail - Hydro'!BI5),0)),'Hourly - NLH'!$G$11:$G$8772,"on-peak"),AVERAGEIF($B$5:$B$268,BI5,$U$5:$U$268)) -> 58.9721379 | BK5: =IF(BI5<Controls!$E$55,AVERAGEIFS(INDEX('Hourly - NLH'!$BJ$11:$BO$8772,,MATCH(1,('Hourly - NLH'!$BJ$11:$BO$11='System Detail - Hydro'!BI5)*('Hourly - NLH'!$BJ$12:$BO$12="Trans"),0)),'Hourly - NLH'!$G$11:$G$8772,"on-peak"),AVERAGEIF($B$5:$B$268,BI5,$V$5:$V$268)) -> 6.052063864
B6: =B5 -> 2019 | C6: =C5+1 -> 2 | D6: ='Input Parameters, System'!$E$18 -> 0.0277774627 | E6: 1.257321868 | F6: ='Input Parameters, System'!I159 -> 0.113181133 | G6: ='Input Parameters, System'!$B$37 -> 1.400310534 | H6: =VLOOKUP($C6&"On-Peak",'Input Parameters, System'!$C$52:$E$76,2,FALSE)+1 -> 1 | I6: =VLOOKUP($C6&"On-Peak",'Input Parameters, System'!$C$52:$E$76,3,FALSE)+1 -> 1 | J6: =IF(Controls!$C$48=1,INDEX('T_Tariff Path Charges'!$F$39:$AE$62,13,MATCH($B6,'T_Tariff Path Charges'!$F$39:$AE$39,0))+INDEX('T_Tariff Path Charges'!$F$39:$AE$62,14,MATCH($B6,'T_Tariff Path Charges'!$F$39:$AE$39,0)),0) -> 10.04846436 | K6: =IF(Controls!$C$51=1,INDEX('T_Tariff Path Charges'!$F$39:$AE$62,12,MATCH($B6,'T_Tariff Path Charges'!$F$39:$AE$39,0)),0) -> 8.817700071 | L6: ='Input Parameters, System'!$C$31 -> 0.1037360426 | M6: ='Input Parameters, System'!$C$27 -> 0.0574929312 | N6: =INDEX(Dates!$T$3:$T$266,MATCH(B6&C6,Dates!$M$3:$M$266&Dates!$N$3:$N$266,0)) -> 420 | O6: =INDEX('Long Term Regional Prices'!$A$4:$M$74,MATCH(B6,'Long Term Regional Prices'!$A$4:$A$74,0),MATCH(C6,'Long Term Regional Prices'!$A$4:$M$4,0)) -> 72.50945865 | P6: =INDEX('Long Term Regional Prices'!$P$4:$AB$74,MATCH(B6,'Long Term Regional Prices'!$P$4:$P$74,0),MATCH(C6,'Long Term Regional Prices'!$P$4:$AB$4,0)) -> 34.30202421 | Q6: =IF(B6<Controls!$E$55,AVERAGEIFS(INDEX('Hourly - NLH'!$BC$11:$BH$8772,,MATCH(1,('Hourly - NLH'!$BC$12:$BH$12=W$4)*('Hourly - NLH'!$BC$11:$BH$11=$B6),0)),'Hourly - NLH'!$B$11:$B$8772,$C6,'Hourly - NLH'!$G$11:$G$8772,"On-Peak")/(1+$D6),O6*E6*(1/(1-F6))*H6*(1-L6)-J6) -> 77.90613946 | R6: =IF(Controls!$C$42=1,Q6*$D6,0) -> 2.164034883 | S6: =IF(B6<Controls!$E$55,AVERAGEIFS(INDEX('Hourly - NLH'!$BC$11:$BH$8772,,MATCH(1,('Hourly - NLH'!$BC$12:$BH$12=X$4)*('Hourly - NLH'!$BC$11:$BH$11=$B6),0)),'Hourly - NLH'!$B$11:$B$8772,$C6,'Hourly - NLH'!$G$11:$G$8772,"On-Peak")/(1+$D6),P6*E6*(1/(1-F6))*I6*(1-M6)-K6) -> 35.46545859 | T6: =IF(Controls!$C$42=1,S6*$D6,0) -> 0.9851404531 | U6: =IF(B6<Controls!$E$55,AVERAGEIFS(INDEX('Hourly - NLH'!$BQ$11:$BS$8772,,MATCH(1,('Hourly - NLH'!$BQ$11:$BS$11='System Detail - Hydro'!B6)*('Hourly - NLH'!$BQ$11:$BS$11='System Detail - Hydro'!B6),0)),'Hourly - NLH'!$B$11:$B$8772,$C6,'Hourly - NLH'!$G$11:$G$8772,"On-Peak"),INDEX('Capacity - NLH'!$H$3:$H$230,MATCH('System Detail - Hydro'!B6&'System Detail - Hydro'!C6,'Capacity - NLH'!$A$3:$A$230&'Capacity - NLH'!$B$3:$B$230,0))) -> 200.4717519 | V6: =IF(B6<Controls!$E$55,AVERAGEIFS(INDEX('Hourly - NLH'!$BJ$11:$BO$8772,,MATCH(1,('Hourly - NLH'!$BJ$11:$BO$11='System Detail - Hydro'!B6)*('Hourly - NLH'!$BJ$12:$BO$12="Trans"),0)),'Hourly - NLH'!$B$11:$B$8772,$C6,'Hourly - NLH'!$G$11:$G$8772,"On-Peak"),INDEX('Capacity - NLH'!$N$3:$N$230,MATCH('System Detail - Hydro'!B6&'System Detail - Hydro'!C6,'Capacity - NLH'!$A$3:$A$230&'Capacity - NLH'!$B$3:$B$230,0))) -> 19.04362275 | W6: 299.585549 | X6: 255.9659737 | Z6: =Z5 -> 2019 | AA6: =AA5+1 -> 2 | AB6: ='Input Parameters, System'!$E$18 -> 0.0277774627 | AC6: 1.257321868 | AD6: ='Input Parameters, System'!J159 -> 0.1068745403 | AE6: ='Input Parameters, System'!$C$37 -> 1.401608525 | AF6: =VLOOKUP($C6&"Off-Peak",'Input Parameters, System'!$C$52:$E$76,2,FALSE)+1 -> 1 | AG6: =VLOOKUP($C6&"Off-Peak",'Input Parameters, System'!$C$52:$E$76,3,FALSE)+1 -> 1 | AH6: =IF(Controls!$C$48=1,INDEX('T_Tariff Path Charges'!$F$39:$AE$62,13,MATCH($B6,'T_Tariff Path Charges'!$F$39:$AE$39,0))+INDEX('T_Tariff Path Charges'!$F$39:$AE$62,14,MATCH($B6,'T_Tariff Path Charges'!$F$39:$AE$39,0)),0) -> 10.04846436 | AI6: =IF(Controls!$C$51=1,INDEX('T_Tariff Path Charges'!$F$39:$AE$62,12,MATCH($B6,'T_Tariff Path Charges'!$F$39:$AE$39,0)),0) -> 8.817700071 | AJ6: ='Input Parameters, System'!$C$31 -> 0.1037360426 | AK6: ='Input Parameters, System'!$C$27 -> 0.0574929312 | AL6: =INDEX(Dates!$U$3:$U$266,MATCH(Z6&AA6,Dates!$M$3:$M$266&Dates!$N$3:$N$266,0)) -> 252 | AM6: =INDEX('Long Term Regional Prices'!$A$78:$M$148,MATCH(B6,'Long Term Regional Prices'!$A$78:$A$148,0),MATCH(C6,'Long Term Regional Prices'!$A$4:$M$4,0)) -> 58.90248456 | AN6: =INDEX('Long Term Regional Prices'!$P$78:$AB$148,MATCH(B6,'Long Term Regional Prices'!$P$78:$P$148,0),MATCH(C6,'Long Term Regional Prices'!$P$4:$AB$4,0)) -> 26.12246312 | AO6: =IF(Z6<Controls!$E$55,AVERAGEIFS(INDEX('Hourly - NLH'!$BC$11:$BH$8772,,MATCH(1,('Hourly - NLH'!$BC$12:$BH$12=AU$4)*('Hourly - NLH'!$BC$11:$BH$11=$B6),0)),'Hourly - NLH'!$B$11:$B$8772,$C6,'Hourly - NLH'!$G$11:$G$8772,"Off-Peak")/(1+$D6),AM6*AC6*(1/(1-AD6))*AF6*(1-AJ6)-AH6) -> 70.29051298 | AP6: =AO6*$D6 -> 1.952492102 | AQ6: =IF(Z6<Controls!$E$55,AVERAGEIFS(INDEX('Hourly - NLH'!$BC$11:$BH$8772,,MATCH(1,('Hourly - NLH'!$BC$12:$BH$12=AV$4)*('Hourly - NLH'!$BC$11:$BH$11=$B6),0)),'Hourly - NLH'!$B$11:$B$8772,$C6,'Hourly - NLH'!$G$11:$G$8772,"Off-Peak")/(1+$D6),AN6*AC6*(1/(1-AD6))*AG6*(1-AK6)-AI6) -> 25.5257689 | AR6: 0.7090410934 | AS6: =IF(Z6<Controls!$E$55,AVERAGEIFS(INDEX('Hourly - NLH'!$BQ$11:$BS$8772,,MATCH(1,('Hourly - NLH'!$BQ$11:$BS$11='System Detail - Hydro'!Z6)*('Hourly - NLH'!$BQ$11:$BS$11='System Detail - Hydro'!Z6),0)),'Hourly - NLH'!$B$11:$B$8772,$AA6,'Hourly - NLH'!$G$11:$G$8772,"Off-Peak"),INDEX('Capacity - NLH'!$I$3:$I$230,MATCH('System Detail - Hydro'!Z6&'System Detail - Hydro'!AA6,'Capacity - NLH'!$A$3:$A$230&'Capacity - NLH'!$B$3:$B$230,0))) -> 21.27657597 | AT6: =IF(Z6<Controls!$E$55,AVERAGEIFS(INDEX('Hourly - NLH'!$BJ$11:$BO$8772,,MATCH(1,('Hourly - NLH'!$BJ$11:$BO$11='System Detail - Hydro'!Z6)*('Hourly - NLH'!$BJ$12:$BO$12="Trans"),0)),'Hourly - NLH'!$B$11:$B$8772,$AA6,'Hourly - NLH'!$G$11:$G$8772,"Off-Peak"),INDEX('Capacity - NLH'!$O$3:$O$230,MATCH('System Detail - Hydro'!Z6&'System Detail - Hydro'!AA6,'Capacity - NLH'!$K$3:$K$230&'Capacity - NLH'!$L$3:$L$230,0))) -> 1.412024745 | AU6: =AO6+AP6+AS6+AT6 -> 94.9316058 | AV6: =AQ6+AR6+AS6+AT6 -> 48.9234107 | AX6: =AX5 -> 2019 | AY6: =AY5+1 -> 2 | AZ6: =IFERROR((('System Detail - Hydro'!Q6*'System Detail - Hydro'!$N6)+('System Detail - Hydro'!AO6*'System Detail - Hydro'!$AL6))/SUM('System Detail - Hydro'!$N6+'System Detail - Hydro'!$AL6),"") -> 75.05027953 | BA6: =IFERROR((('System Detail - Hydro'!R6*'System Detail - Hydro'!$N6)+('System Detail - Hydro'!AP6*'System Detail - Hydro'!$AL6))/SUM('System Detail - Hydro'!$N6+'System Detail - Hydro'!$AL6),"") -> 2.08470634 | BB6: =IFERROR((('System Detail - Hydro'!S6*'System Detail - Hydro'!$N6)+('System Detail - Hydro'!AQ6*'System Detail - Hydro'!$AL6))/SUM('System Detail - Hydro'!$N6+'System Detail - Hydro'!$AL6),"") -> 31.73807496 | BC6: =IFERROR((('System Detail - Hydro'!T6*'System Detail - Hydro'!$N6)+('System Detail - Hydro'!AR6*'System Detail - Hydro'!$AL6))/SUM('System Detail - Hydro'!$N6+'System Detail - Hydro'!$AL6),"") -> 0.8816031932 | BD6: =IFERROR((('System Detail - Hydro'!U6*'System Detail - Hydro'!$N6)+('System Detail - Hydro'!AS6*'System Detail - Hydro'!$AL6))/SUM('System Detail - Hydro'!$N6+'System Detail - Hydro'!$AL6),"") -> 133.2735609 | BE6: =IFERROR((('System Detail - Hydro'!V6*'System Detail - Hydro'!$N6)+('System Detail - Hydro'!AT6*'System Detail - Hydro'!$AL6))/SUM('System Detail - Hydro'!$N6+'System Detail - Hydro'!$AL6),"") -> 12.4317735 | BF6: =IFERROR((('System Detail - Hydro'!W6*'System Detail - Hydro'!$N6)+('System Detail - Hydro'!AU6*'System Detail - Hydro'!$AL6))/SUM('System Detail - Hydro'!$N6+'System Detail - Hydro'!$AL6),"") -> 222.8403203 | BG6: =IFERROR((('System Detail - Hydro'!X6*'System Detail - Hydro'!$N6)+('System Detail - Hydro'!AV6*'System Detail - Hydro'!$AL6))/SUM('System Detail - Hydro'!$N6+'System Detail - Hydro'!$AL6),"") -> 178.3250126 | BI6: =BI5+1 -> 2020 | BJ6: =IF(BI6<Controls!$E$55,AVERAGEIFS(INDEX('Hourly - NLH'!$BQ$11:$BS$8772,,MATCH(1,('Hourly - NLH'!$BQ$11:$BS$11='System Detail - Hydro'!BI6)*('Hourly - NLH'!$BQ$11:$BS$11='System Detail - Hydro'!BI6),0)),'Hourly - NLH'!$G$11:$G$8772,"on-peak"),AVERAGEIF($B$5:$B$268,BI6,$U$5:$U$268)) -> 60.38435523 | BK6: =IF(BI6<Controls!$E$55,AVERAGEIFS(INDEX('Hourly - NLH'!$BJ$11:$BO$8772,,MATCH(1,('Hourly - NLH'!$BJ$11:$BO$11='System Detail - Hydro'!BI6)*('Hourly - NLH'!$BJ$12:$BO$12="Trans"),0)),'Hourly - NLH'!$G$11:$G$8772,"on-peak"),AVERAGEIF($B$5:$B$268,BI6,$V$5:$V$268)) -> 6.167897638
B7: =B6 -> 2019 | C7: =C6+1 -> 3 | D7: ='Input Parameters, System'!$E$18 -> 0.0277774627 | E7: 1.257321868 | F7: ='Input Parameters, System'!I160 -> 0.1075387789 | G7: ='Input Parameters, System'!$B$38 -> 1.401334556 | H7: =VLOOKUP($C7&"On-Peak",'Input Parameters, System'!$C$52:$E$76,2,FALSE)+1 -> 1 | I7: =VLOOKUP($C7&"On-Peak",'Input Parameters, System'!$C$52:$E$76,3,FALSE)+1 -> 1 | J7: =IF(Controls!$C$48=1,INDEX('T_Tariff Path Charges'!$F$39:$AE$62,13,MATCH($B7,'T_Tariff Path Charges'!$F$39:$AE$39,0))+INDEX('T_Tariff Path Charges'!$F$39:$AE$62,14,MATCH($B7,'T_Tariff Path Charges'!$F$39:$AE$39,0)),0) -> 10.04846436 | K7: =IF(Controls!$C$51=1,INDEX('T_Tariff Path Charges'!$F$39:$AE$62,12,MATCH($B7,'T_Tariff Path Charges'!$F$39:$AE$39,0)),0) -> 8.817700071 | L7: ='Input Parameters, System'!$C$31 -> 0.1037360426 | M7: ='Input Parameters, System'!$C$27 -> 0.0574929312 | N7: =INDEX(Dates!$T$3:$T$266,MATCH(B7&C7,Dates!$M$3:$M$266&Dates!$N$3:$N$266,0)) -> 465 | O7: =INDEX('Long Term Regional Prices'!$A$4:$M$74,MATCH(B7,'Long Term Regional Prices'!$A$4:$A$74,0),MATCH(C7,'Long Term Regional Prices'!$A$4:$M$4,0)) -> 45.11751033 | P7: =INDEX('Long Term Regional Prices'!$P$4:$AB$74,MATCH(B7,'Long Term Regional Prices'!$P$4:$P$74,0),MATCH(C7,'Long Term Regional Prices'!$P$4:$AB$4,0)) -> 26.68617225 | Q7: =IF(B7<Controls!$E$55,AVERAGEIFS(INDEX('Hourly - NLH'!$BC$11:$BH$8772,,MATCH(1,('Hourly - NLH'!$BC$12:$BH$12=W$4)*('Hourly - NLH'!$BC$11:$BH$11=$B7),0)),'Hourly - NLH'!$B$11:$B$8772,$C7,'Hourly - NLH'!$G$11:$G$8772,"On-Peak")/(1+$D7),O7*E7*(1/(1-F7))*H7*(1-L7)-J7) -> 48.52168859 | R7: =IF(Controls!$C$42=1,Q7*$D7,0) -> 1.347809395 | S7: =IF(B7<Controls!$E$55,AVERAGEIFS(INDEX('Hourly - NLH'!$BC$11:$BH$8772,,MATCH(1,('Hourly - NLH'!$BC$12:$BH$12=X$4)*('Hourly - NLH'!$BC$11:$BH$11=$B7),0)),'Hourly - NLH'!$B$11:$B$8772,$C7,'Hourly - NLH'!$G$11:$G$8772,"On-Peak")/(1+$D7),P7*E7*(1/(1-F7))*I7*(1-M7)-K7) -> 25.9636871 | T7: =IF(Controls!$C$42=1,S7*$D7,0) -> 0.72120535 | U7: =IF(B7<Controls!$E$55,AVERAGEIFS(INDEX('Hourly - NLH'!$BQ$11:$BS$8772,,MATCH(1,('Hourly - NLH'!$BQ$11:$BS$11='System Detail - Hydro'!B7)*('Hourly - NLH'!$BQ$11:$BS$11='System Detail - Hydro'!B7),0)),'Hourly - NLH'!$B$11:$B$8772,$C7,'Hourly - NLH'!$G$11:$G$8772,"On-Peak"),INDEX('Capacity - NLH'!$H$3:$H$230,MATCH('System Detail - Hydro'!B7&'System Detail - Hydro'!C7,'Capacity - NLH'!$A$3:$A$230&'Capacity - NLH'!$B$3:$B$230,0))) -> 58.84844 | V7: =IF(B7<Controls!$E$55,AVERAGEIFS(INDEX('Hourly - NLH'!$BJ$11:$BO$8772,,MATCH(1,('Hourly - NLH'!$BJ$11:$BO$11='System Detail - Hydro'!B7)*('Hourly - NLH'!$BJ$12:$BO$12="Trans"),0)),'Hourly - NLH'!$B$11:$B$8772,$C7,'Hourly - NLH'!$G$11:$G$8772,"On-Peak"),INDEX('Capacity - NLH'!$N$3:$N$230,MATCH('System Detail - Hydro'!B7&'System Detail - Hydro'!C7,'Capacity - NLH'!$A$3:$A$230&'Capacity - NLH'!$B$3:$B$230,0))) -> 5.736696511 | W7: 114.4546345 | X7: 91.27002897 | Z7: =Z6 -> 2019 | AA7: =AA6+1 -> 3 | AB7: ='Input Parameters, System'!$E$18 -> 0.0277774627 | AC7: 1.257321868 | AD7: ='Input Parameters, System'!J160 -> 0.1026420088 | AE7: ='Input Parameters, System'!$C$38 -> 1.397969956 | AF7: =VLOOKUP($C7&"Off-Peak",'Input Parameters, System'!$C$52:$E$76,2,FALSE)+1 -> 1 | AG7: =VLOOKUP($C7&"Off-Peak",'Input Parameters, System'!$C$52:$E$76,3,FALSE)+1 -> 1 | AH7: =IF(Controls!$C$48=1,INDEX('T_Tariff Path Charges'!$F$39:$AE$62,13,MATCH($B7,'T_Tariff Path Charges'!$F$39:$AE$39,0))+INDEX('T_Tariff Path Charges'!$F$39:$AE$62,14,MATCH($B7,'T_Tariff Path Charges'!$F$39:$AE$39,0)),0) -> 10.04846436 | AI7: =IF(Controls!$C$51=1,INDEX('T_Tariff Path Charges'!$F$39:$AE$62,12,MATCH($B7,'T_Tariff Path Charges'!$F$39:$AE$39,0)),0) -> 8.817700071 | AJ7: ='Input Parameters, System'!$C$31 -> 0.1037360426 | AK7: ='Input Parameters, System'!$C$27 -> 0.0574929312 | AL7: =INDEX(Dates!$U$3:$U$266,MATCH(Z7&AA7,Dates!$M$3:$M$266&Dates!$N$3:$N$266,0)) -> 279 | AM7: =INDEX('Long Term Regional Prices'!$A$78:$M$148,MATCH(B7,'Long Term Regional Prices'!$A$78:$A$148,0),MATCH(C7,'Long Term Regional Prices'!$A$4:$M$4,0)) -> 37.21554547 | AN7: =INDEX('Long Term Regional Prices'!$P$78:$AB$148,MATCH(B7,'Long Term Regional Prices'!$P$78:$P$148,0),MATCH(C7,'Long Term Regional Prices'!$P$4:$AB$4,0)) -> 19.91754023 | AO7: =IF(Z7<Controls!$E$55,AVERAGEIFS(INDEX('Hourly - NLH'!$BC$11:$BH$8772,,MATCH(1,('Hourly - NLH'!$BC$12:$BH$12=AU$4)*('Hourly - NLH'!$BC$11:$BH$11=$B7),0)),'Hourly - NLH'!$B$11:$B$8772,$C7,'Hourly - NLH'!$G$11:$G$8772,"Off-Peak")/(1+$D7),AM7*AC7*(1/(1-AD7))*AF7*(1-AJ7)-AH7) -> 37.75810339 | AP7: 1.048824308 | AQ7: =IF(Z7<Controls!$E$55,AVERAGEIFS(INDEX('Hourly - NLH'!$BC$11:$BH$8772,,MATCH(1,('Hourly - NLH'!$BC$12:$BH$12=AV$4)*('Hourly - NLH'!$BC$11:$BH$11=$B7),0)),'Hourly - NLH'!$B$11:$B$8772,$C7,'Hourly - NLH'!$G$11:$G$8772,"Off-Peak")/(1+$D7),AN7*AC7*(1/(1-AD7))*AG7*(1-AK7)-AI7) -> 16.75208722 | AR7: 0.465330478 | AS7: =IF(Z7<Controls!$E$55,AVERAGEIFS(INDEX('Hourly - NLH'!$BQ$11:$BS$8772,,MATCH(1,('Hourly - NLH'!$BQ$11:$BS$11='System Detail - Hydro'!Z7)*('Hourly - NLH'!$BQ$11:$BS$11='System Detail - Hydro'!Z7),0)),'Hourly - NLH'!$B$11:$B$8772,$AA7,'Hourly - NLH'!$G$11:$G$8772,"Off-Peak"),INDEX('Capacity - NLH'!$I$3:$I$230,MATCH('System Detail - Hydro'!Z7&'System Detail - Hydro'!AA7,'Capacity - NLH'!$A$3:$A$230&'Capacity - NLH'!$B$3:$B$230,0))) -> 9.818759991 | AT7: =IF(Z7<Controls!$E$55,AVERAGEIFS(INDEX('Hourly - NLH'!$BJ$11:$BO$8772,,MATCH(1,('Hourly - NLH'!$BJ$11:$BO$11='System Detail - Hydro'!Z7)*('Hourly - NLH'!$BJ$12:$BO$12="Trans"),0)),'Hourly - NLH'!$B$11:$B$8772,$AA7,'Hourly - NLH'!$G$11:$G$8772,"Off-Peak"),INDEX('Capacity - NLH'!$O$3:$O$230,MATCH('System Detail - Hydro'!Z7&'System Detail - Hydro'!AA7,'Capacity - NLH'!$K$3:$K$230&'Capacity - NLH'!$L$3:$L$230,0))) -> 0.7069588254 | AU7: 49.33264651 | AV7: 27.74313652 | AX7: =AX6 -> 2019 | AY7: =AY6+1 -> 3 | AZ7: =IFERROR((('System Detail - Hydro'!Q7*'System Detail - Hydro'!$N7)+('System Detail - Hydro'!AO7*'System Detail - Hydro'!$AL7))/SUM('System Detail - Hydro'!$N7+'System Detail - Hydro'!$AL7),"") -> 44.48534414 | BA7: =IFERROR((('System Detail - Hydro'!R7*'System Detail - Hydro'!$N7)+('System Detail - Hydro'!AP7*'System Detail - Hydro'!$AL7))/SUM('System Detail - Hydro'!$N7+'System Detail - Hydro'!$AL7),"") -> 1.235689987 | BB7: =IFERROR((('System Detail - Hydro'!S7*'System Detail - Hydro'!$N7)+('System Detail - Hydro'!AQ7*'System Detail - Hydro'!$AL7))/SUM('System Detail - Hydro'!$N7+'System Detail - Hydro'!$AL7),"") -> 22.50933715 | BC7: =IFERROR((('System Detail - Hydro'!T7*'System Detail - Hydro'!$N7)+('System Detail - Hydro'!AR7*'System Detail - Hydro'!$AL7))/SUM('System Detail - Hydro'!$N7+'System Detail - Hydro'!$AL7),"") -> 0.625252273 | BD7: =IFERROR((('System Detail - Hydro'!U7*'System Detail - Hydro'!$N7)+('System Detail - Hydro'!AS7*'System Detail - Hydro'!$AL7))/SUM('System Detail - Hydro'!$N7+'System Detail - Hydro'!$AL7),"") -> 40.46231 | BE7: =IFERROR((('System Detail - Hydro'!V7*'System Detail - Hydro'!$N7)+('System Detail - Hydro'!AT7*'System Detail - Hydro'!$AL7))/SUM('System Detail - Hydro'!$N7+'System Detail - Hydro'!$AL7),"") -> 3.850544879 | BF7: =IFERROR((('System Detail - Hydro'!W7*'System Detail - Hydro'!$N7)+('System Detail - Hydro'!AU7*'System Detail - Hydro'!$AL7))/SUM('System Detail - Hydro'!$N7+'System Detail - Hydro'!$AL7),"") -> 90.033889 | BG7: =IFERROR((('System Detail - Hydro'!X7*'System Detail - Hydro'!$N7)+('System Detail - Hydro'!AV7*'System Detail - Hydro'!$AL7))/SUM('System Detail - Hydro'!$N7+'System Detail - Hydro'!$AL7),"") -> 67.4474443 | BI7: =BI6+1 -> 2021 | BJ7: =IF(BI7<Controls!$E$55,AVERAGEIFS(INDEX('Hourly - NLH'!$BQ$11:$BS$8772,,MATCH(1,('Hourly - NLH'!$BQ$11:$BS$11='System Detail - Hydro'!BI7)*('Hourly - NLH'!$BQ$11:$BS$11='System Detail - Hydro'!BI7),0)),'Hourly - NLH'!$G$11:$G$8772,"on-peak"),AVERAGEIF($B$5:$B$268,BI7,$U$5:$U$268)) -> 61.83055758 | BK7: =IF(BI7<Controls!$E$55,AVERAGEIFS(INDEX('Hourly - NLH'!$BJ$11:$BO$8772,,MATCH(1,('Hourly - NLH'!$BJ$11:$BO$11='System Detail - Hydro'!BI7)*('Hourly - NLH'!$BJ$12:$BO$12="Trans"),0)),'Hourly - NLH'!$G$11:$G$8772,"on-peak"),AVERAGEIF($B$5:$B$268,BI7,$V$5:$V$268)) -> 6.286324823
B8: 2019 | C8: 4 | D8: ='Input Parameters, System'!$E$18 -> 0.0277774627 | E8: 1.257321868 | F8: ='Input Parameters, System'!I161 -> 0.1013616006 | G8: ='Input Parameters, System'!$B$39 -> 1.394518167 | H8: =VLOOKUP($C8&"On-Peak",'Input Parameters, System'!$C$52:$E$76,2,FALSE)+1 -> 1 | I8: =VLOOKUP($C8&"On-Peak",'Input Parameters, System'!$C$52:$E$76,3,FALSE)+1 -> 1 | J8: =IF(Controls!$C$48=1,INDEX('T_Tariff Path Charges'!$F$39:$AE$62,13,MATCH($B8,'T_Tariff Path Charges'!$F$39:$AE$39,0))+INDEX('T_Tariff Path Charges'!$F$39:$AE$62,14,MATCH($B8,'T_Tariff Path Charges'!$F$39:$AE$39,0)),0) -> 10.04846436 | K8: =IF(Controls!$C$51=1,INDEX('T_Tariff Path Charges'!$F$39:$AE$62,12,MATCH($B8,'T_Tariff Path Charges'!$F$39:$AE$39,0)),0) -> 8.817700071 | L8: ='Input Parameters, System'!$C$31 -> 0.1037360426 | M8: ='Input Parameters, System'!$C$27 -> 0.0574929312 | N8: =INDEX(Dates!$T$3:$T$266,MATCH(B8&C8,Dates!$M$3:$M$266&Dates!$N$3:$N$266,0)) -> 420 | O8: =INDEX('Long Term Regional Prices'!$A$4:$M$74,MATCH(B8,'Long Term Regional Prices'!$A$4:$A$74,0),MATCH(C8,'Long Term Regional Prices'!$A$4:$M$4,0)) -> 29.68692197 | P8: =INDEX('Long Term Regional Prices'!$P$4:$AB$74,MATCH(B8,'Long Term Regional Prices'!$P$4:$P$74,0),MATCH(C8,'Long Term Regional Prices'!$P$4:$AB$4,0)) -> 20.30835275 | Q8: =IF(B8<Controls!$E$55,AVERAGEIFS(INDEX('Hourly - NLH'!$BC$11:$BH$8772,,MATCH(1,('Hourly - NLH'!$BC$12:$BH$12=W$4)*('Hourly - NLH'!$BC$11:$BH$11=$B8),0)),'Hourly - NLH'!$B$11:$B$8772,$C8,'Hourly - NLH'!$G$11:$G$8772,"On-Peak")/(1+$D8),O8*E8*(1/(1-F8))*H8*(1-L8)-J8) -> 25.66416316 | R8: =IF(Controls!$C$42=1,Q8*$D8,0) -> 0.7128853349 | S8: =IF(B8<Controls!$E$55,AVERAGEIFS(INDEX('Hourly - NLH'!$BC$11:$BH$8772,,MATCH(1,('Hourly - NLH'!$BC$12:$BH$12=X$4)*('Hourly - NLH'!$BC$11:$BH$11=$B8),0)),'Hourly - NLH'!$B$11:$B$8772,$C8,'Hourly - NLH'!$G$11:$G$8772,"On-Peak")/(1+$D8),P8*E8*(1/(1-F8))*I8*(1-M8)-K8) -> 17.29443682 | T8: =IF(Controls!$C$42=1,S8*$D8,0) -> 0.4803955735 | U8: =IF(B8<Controls!$E$55,AVERAGEIFS(INDEX('Hourly - NLH'!$BQ$11:$BS$8772,,MATCH(1,('Hourly - NLH'!$BQ$11:$BS$11='System Detail - Hydro'!B8)*('Hourly - NLH'!$BQ$11:$BS$11='System Detail - Hydro'!B8),0)),'Hourly - NLH'!$B$11:$B$8772,$C8,'Hourly - NLH'!$G$11:$G$8772,"On-Peak"),INDEX('Capacity - NLH'!$H$3:$H$230,MATCH('System Detail - Hydro'!B8&'System Detail - Hydro'!C8,'Capacity - NLH'!$A$3:$A$230&'Capacity - NLH'!$B$3:$B$230,0))) -> 1.059793631 | V8: =IF(B8<Controls!$E$55,AVERAGEIFS(INDEX('Hourly - NLH'!$BJ$11:$BO$8772,,MATCH(1,('Hourly - NLH'!$BJ$11:$BO$11='System Detail - Hydro'!B8)*('Hourly - NLH'!$BJ$12:$BO$12="Trans"),0)),'Hourly - NLH'!$B$11:$B$8772,$C8,'Hourly - NLH'!$G$11:$G$8772,"On-Peak"),INDEX('Capacity - NLH'!$N$3:$N$230,MATCH('System Detail - Hydro'!B8&'System Detail - Hydro'!C8,'Capacity - NLH'!$A$3:$A$230&'Capacity - NLH'!$B$3:$B$230,0))) -> 0 | W8: 27.43684213 | X8: 18.83462602 | Z8: 2019 | AA8: 4 | AB8: ='Input Parameters, System'!$E$18 -> 0.0277774627 | AC8: 1.257321868 | AD8: ='Input Parameters, System'!J161 -> 0.09847413504 | AE8: ='Input Parameters, System'!$C$39 -> 1.39478074 | AF8: =VLOOKUP($C8&"Off-Peak",'Input Parameters, System'!$C$52:$E$76,2,FALSE)+1 -> 1 | AG8: =VLOOKUP($C8&"Off-Peak",'Input Parameters, System'!$C$52:$E$76,3,FALSE)+1 -> 1 | AH8: =IF(Controls!$C$48=1,INDEX('T_Tariff Path Charges'!$F$39:$AE$62,13,MATCH($B8,'T_Tariff Path Charges'!$F$39:$AE$39,0))+INDEX('T_Tariff Path Charges'!$F$39:$AE$62,14,MATCH($B8,'T_Tariff Path Charges'!$F$39:$AE$39,0)),0) -> 10.04846436 | AI8: =IF(Controls!$C$51=1,INDEX('T_Tariff Path Charges'!$F$39:$AE$62,12,MATCH($B8,'T_Tariff Path Charges'!$F$39:$AE$39,0)),0) -> 8.817700071 | AJ8: ='Input Parameters, System'!$C$31 -> 0.1037360426 | AK8: ='Input Parameters, System'!$C$27 -> 0.0574929312 | AL8: =INDEX(Dates!$U$3:$U$266,MATCH(Z8&AA8,Dates!$M$3:$M$266&Dates!$N$3:$N$266,0)) -> 300 | AM8: =INDEX('Long Term Regional Prices'!$A$78:$M$148,MATCH(B8,'Long Term Regional Prices'!$A$78:$A$148,0),MATCH(C8,'Long Term Regional Prices'!$A$4:$M$4,0)) -> 21.75617972 | AN8: =INDEX('Long Term Regional Prices'!$P$78:$AB$148,MATCH(B8,'Long Term Regional Prices'!$P$78:$P$148,0),MATCH(C8,'Long Term Regional Prices'!$P$4:$AB$4,0)) -> 14.39587554 | AO8: =IF(Z8<Controls!$E$55,AVERAGEIFS(INDEX('Hourly - NLH'!$BC$11:$BH$8772,,MATCH(1,('Hourly - NLH'!$BC$12:$BH$12=AU$4)*('Hourly - NLH'!$BC$11:$BH$11=$B8),0)),'Hourly - NLH'!$B$11:$B$8772,$C8,'Hourly - NLH'!$G$11:$G$8772,"Off-Peak")/(1+$D8),AM8*AC8*(1/(1-AD8))*AF8*(1-AJ8)-AH8) -> 18.45152022 | AP8: 0.5125364147 | AQ8: =IF(Z8<Controls!$E$55,AVERAGEIFS(INDEX('Hourly - NLH'!$BC$11:$BH$8772,,MATCH(1,('Hourly - NLH'!$BC$12:$BH$12=AV$4)*('Hourly - NLH'!$BC$11:$BH$11=$B8),0)),'Hourly - NLH'!$B$11:$B$8772,$C8,'Hourly - NLH'!$G$11:$G$8772,"Off-Peak")/(1+$D8),AN8*AC8*(1/(1-AD8))*AG8*(1-AK8)-AI8) -> 10.51859711 | AR8: 0.2921799388 | AS8: =IF(Z8<Controls!$E$55,AVERAGEIFS(INDEX('Hourly - NLH'!$BQ$11:$BS$8772,,MATCH(1,('Hourly - NLH'!$BQ$11:$BS$11='System Detail - Hydro'!Z8)*('Hourly - NLH'!$BQ$11:$BS$11='System Detail - Hydro'!Z8),0)),'Hourly - NLH'!$B$11:$B$8772,$AA8,'Hourly - NLH'!$G$11:$G$8772,"Off-Peak"),INDEX('Capacity - NLH'!$I$3:$I$230,MATCH('System Detail - Hydro'!Z8&'System Detail - Hydro'!AA8,'Capacity - NLH'!$A$3:$A$230&'Capacity - NLH'!$B$3:$B$230,0))) -> 3.386338287 | AT8: =IF(Z8<Controls!$E$55,AVERAGEIFS(INDEX('Hourly - NLH'!$BJ$11:$BO$8772,,MATCH(1,('Hourly - NLH'!$BJ$11:$BO$11='System Detail - Hydro'!Z8)*('Hourly - NLH'!$BJ$12:$BO$12="Trans"),0)),'Hourly - NLH'!$B$11:$B$8772,$AA8,'Hourly - NLH'!$G$11:$G$8772,"Off-Peak"),INDEX('Capacity - NLH'!$O$3:$O$230,MATCH('System Detail - Hydro'!Z8&'System Detail - Hydro'!AA8,'Capacity - NLH'!$K$3:$K$230&'Capacity - NLH'!$L$3:$L$230,0))) -> 0.04438410773 | AU8: 22.39477903 | AV8: 14.24149944 | AX8: 2019 | AY8: 4 | AZ8: =IFERROR((('System Detail - Hydro'!Q8*'System Detail - Hydro'!$N8)+('System Detail - Hydro'!AO8*'System Detail - Hydro'!$AL8))/SUM('System Detail - Hydro'!$N8+'System Detail - Hydro'!$AL8),"") -> 22.65889527 | BA8: =IFERROR((('System Detail - Hydro'!R8*'System Detail - Hydro'!$N8)+('System Detail - Hydro'!AP8*'System Detail - Hydro'!$AL8))/SUM('System Detail - Hydro'!$N8+'System Detail - Hydro'!$AL8),"") -> 0.6294066182 | BB8: =IFERROR((('System Detail - Hydro'!S8*'System Detail - Hydro'!$N8)+('System Detail - Hydro'!AQ8*'System Detail - Hydro'!$AL8))/SUM('System Detail - Hydro'!$N8+'System Detail - Hydro'!$AL8),"") -> 14.47117027 | BC8: =IFERROR((('System Detail - Hydro'!T8*'System Detail - Hydro'!$N8)+('System Detail - Hydro'!AR8*'System Detail - Hydro'!$AL8))/SUM('System Detail - Hydro'!$N8+'System Detail - Hydro'!$AL8),"") -> 0.4019723924 | BD8: =IFERROR((('System Detail - Hydro'!U8*'System Detail - Hydro'!$N8)+('System Detail - Hydro'!AS8*'System Detail - Hydro'!$AL8))/SUM('System Detail - Hydro'!$N8+'System Detail - Hydro'!$AL8),"") -> 2.029187238 | BE8: =IFERROR((('System Detail - Hydro'!V8*'System Detail - Hydro'!$N8)+('System Detail - Hydro'!AT8*'System Detail - Hydro'!$AL8))/SUM('System Detail - Hydro'!$N8+'System Detail - Hydro'!$AL8),"") -> 0.01849337822 | BF8: =IFERROR((('System Detail - Hydro'!W8*'System Detail - Hydro'!$N8)+('System Detail - Hydro'!AU8*'System Detail - Hydro'!$AL8))/SUM('System Detail - Hydro'!$N8+'System Detail - Hydro'!$AL8),"") -> 25.3359825 | BG8: =IFERROR((('System Detail - Hydro'!X8*'System Detail - Hydro'!$N8)+('System Detail - Hydro'!AV8*'System Detail - Hydro'!$AL8))/SUM('System Detail - Hydro'!$N8+'System Detail - Hydro'!$AL8),"") -> 16.92082328 | BI8: 2022 | BJ8: =IF(BI8<Controls!$E$55,AVERAGEIFS(INDEX('Hourly - NLH'!$BQ$11:$BS$8772,,MATCH(1,('Hourly - NLH'!$BQ$11:$BS$11='System Detail - Hydro'!BI8)*('Hourly - NLH'!$BQ$11:$BS$11='System Detail - Hydro'!BI8),0)),'Hourly - NLH'!$G$11:$G$8772,"on-peak"),AVERAGEIF($B$5:$B$268,BI8,$U$5:$U$268)) -> 60.77911934 | BK8: =IF(BI8<Controls!$E$55,AVERAGEIFS(INDEX('Hourly - NLH'!$BJ$11:$BO$8772,,MATCH(1,('Hourly - NLH'!$BJ$11:$BO$11='System Detail - Hydro'!BI8)*('Hourly - NLH'!$BJ$12:$BO$12="Trans"),0)),'Hourly - NLH'!$G$11:$G$8772,"on-peak"),AVERAGEIF($B$5:$B$268,BI8,$V$5:$V$268)) -> 6.17778668
B9: 2019 | C9: 5 | D9: ='Input Parameters, System'!$E$18 -> 0.0277774627 | E9: 1.257321868 | F9: ='Input Parameters, System'!I162 -> 0.0923863585 | G9: ='Input Parameters, System'!$B$40 -> 1 | H9: =VLOOKUP($C9&"On-Peak",'Input Parameters, System'!$C$52:$E$76,2,FALSE)+1 -> 1 | I9: =VLOOKUP($C9&"On-Peak",'Input Parameters, System'!$C$52:$E$76,3,FALSE)+1 -> 1 | J9: =IF(Controls!$C$48=1,INDEX('T_Tariff Path Charges'!$F$39:$AE$62,13,MATCH($B9,'T_Tariff Path Charges'!$F$39:$AE$39,0))+INDEX('T_Tariff Path Charges'!$F$39:$AE$62,14,MATCH($B9,'T_Tariff Path Charges'!$F$39:$AE$39,0)),0) -> 10.04846436 | K9: =IF(Controls!$C$51=1,INDEX('T_Tariff Path Charges'!$F$39:$AE$62,12,MATCH($B9,'T_Tariff Path Charges'!$F$39:$AE$39,0)),0) -> 8.817700071 | L9: ='Input Parameters, System'!$C$31 -> 0.1037360426 | M9: ='Input Parameters, System'!$C$27 -> 0.0574929312 | N9: =INDEX(Dates!$T$3:$T$266,MATCH(B9&C9,Dates!$M$3:$M$266&Dates!$N$3:$N$266,0)) -> 434 | O9: =INDEX('Long Term Regional Prices'!$A$4:$M$74,MATCH(B9,'Long Term Regional Prices'!$A$4:$A$74,0),MATCH(C9,'Long Term Regional Prices'!$A$4:$M$4,0)) -> 26.41683423 | P9: =INDEX('Long Term Regional Prices'!$P$4:$AB$74,MATCH(B9,'Long Term Regional Prices'!$P$4:$P$74,0),MATCH(C9,'Long Term Regional Prices'!$P$4:$AB$4,0)) -> 21.15767799 | Q9: =IF(B9<Controls!$E$55,AVERAGEIFS(INDEX('Hourly - NLH'!$BC$11:$BH$8772,,MATCH(1,('Hourly - NLH'!$BC$12:$BH$12=W$4)*('Hourly - NLH'!$BC$11:$BH$11=$B9),0)),'Hourly - NLH'!$B$11:$B$8772,$C9,'Hourly - NLH'!$G$11:$G$8772,"On-Peak")/(1+$D9),O9*E9*(1/(1-F9))*H9*(1-L9)-J9) -> 20.66278421 | R9: =IF(Controls!$C$42=1,Q9*$D9,0) -> 0.5739597176 | S9: =IF(B9<Controls!$E$55,AVERAGEIFS(INDEX('Hourly - NLH'!$BC$11:$BH$8772,,MATCH(1,('Hourly - NLH'!$BC$12:$BH$12=X$4)*('Hourly - NLH'!$BC$11:$BH$11=$B9),0)),'Hourly - NLH'!$B$11:$B$8772,$C9,'Hourly - NLH'!$G$11:$G$8772,"On-Peak")/(1+$D9),P9*E9*(1/(1-F9))*I9*(1-M9)-K9) -> 18.33032594 | T9: =IF(Controls!$C$42=1,S9*$D9,0) -> 0.5091699449 | U9: =IF(B9<Controls!$E$55,AVERAGEIFS(INDEX('Hourly - NLH'!$BQ$11:$BS$8772,,MATCH(1,('Hourly - NLH'!$BQ$11:$BS$11='System Detail - Hydro'!B9)*('Hourly - NLH'!$BQ$11:$BS$11='System Detail - Hydro'!B9),0)),'Hourly - NLH'!$B$11:$B$8772,$C9,'Hourly - NLH'!$G$11:$G$8772,"On-Peak"),INDEX('Capacity - NLH'!$H$3:$H$230,MATCH('System Detail - Hydro'!B9&'System Detail - Hydro'!C9,'Capacity - NLH'!$A$3:$A$230&'Capacity - NLH'!$B$3:$B$230,0))) -> 0 | V9: =IF(B9<Controls!$E$55,AVERAGEIFS(INDEX('Hourly - NLH'!$BJ$11:$BO$8772,,MATCH(1,('Hourly - NLH'!$BJ$11:$BO$11='System Detail - Hydro'!B9)*('Hourly - NLH'!$BJ$12:$BO$12="Trans"),0)),'Hourly - NLH'!$B$11:$B$8772,$C9,'Hourly - NLH'!$G$11:$G$8772,"On-Peak"),INDEX('Capacity - NLH'!$N$3:$N$230,MATCH('System Detail - Hydro'!B9&'System Detail - Hydro'!C9,'Capacity - NLH'!$A$3:$A$230&'Capacity - NLH'!$B$3:$B$230,0))) -> 0 | W9: 21.23674393 | X9: 18.83949588 | Z9: 2019 | AA9: 5 | AB9: ='Input Parameters, System'!$E$18 -> 0.0277774627 | AC9: 1.257321868 | AD9: ='Input Parameters, System'!J162 -> 0.08777017635 | AE9: ='Input Parameters, System'!$C$40 -> 1 | AF9: =VLOOKUP($C9&"Off-Peak",'Input Parameters, System'!$C$52:$E$76,2,FALSE)+1 -> 1 | AG9: =VLOOKUP($C9&"Off-Peak",'Input Parameters, System'!$C$52:$E$76,3,FALSE)+1 -> 1 | AH9: =IF(Controls!$C$48=1,INDEX('T_Tariff Path Charges'!$F$39:$AE$62,13,MATCH($B9,'T_Tariff Path Charges'!$F$39:$AE$39,0))+INDEX('T_Tariff Path Charges'!$F$39:$AE$62,14,MATCH($B9,'T_Tariff Path Charges'!$F$39:$AE$39,0)),0) -> 10.04846436 | AI9: =IF(Controls!$C$51=1,INDEX('T_Tariff Path Charges'!$F$39:$AE$62,12,MATCH($B9,'T_Tariff Path Charges'!$F$39:$AE$39,0)),0) -> 8.817700071 | AJ9: ='Input Parameters, System'!$C$31 -> 0.1037360426 | AK9: ='Input Parameters, System'!$C$27 -> 0.0574929312 | AL9: =INDEX(Dates!$U$3:$U$266,MATCH(Z9&AA9,Dates!$M$3:$M$266&Dates!$N$3:$N$266,0)) -> 310 | AM9: =INDEX('Long Term Regional Prices'!$A$78:$M$148,MATCH(B9,'Long Term Regional Prices'!$A$78:$A$148,0),MATCH(C9,'Long Term Regional Prices'!$A$4:$M$4,0)) -> 20.05972598 | AN9: =INDEX('Long Term Regional Prices'!$P$78:$AB$148,MATCH(B9,'Long Term Regional Prices'!$P$78:$P$148,0),MATCH(C9,'Long Term Regional Prices'!$P$4:$AB$4,0)) -> 14.8198469 | AO9: =IF(Z9<Controls!$E$55,AVERAGEIFS(INDEX('Hourly - NLH'!$BC$11:$BH$8772,,MATCH(1,('Hourly - NLH'!$BC$12:$BH$12=AU$4)*('Hourly - NLH'!$BC$11:$BH$11=$B9),0)),'Hourly - NLH'!$B$11:$B$8772,$C9,'Hourly - NLH'!$G$11:$G$8772,"Off-Peak")/(1+$D9),AM9*AC9*(1/(1-AD9))*AF9*(1-AJ9)-AH9) -> 16.67448361 | AP9: 0.4631748466 | AQ9: =IF(Z9<Controls!$E$55,AVERAGEIFS(INDEX('Hourly - NLH'!$BC$11:$BH$8772,,MATCH(1,('Hourly - NLH'!$BC$12:$BH$12=AV$4)*('Hourly - NLH'!$BC$11:$BH$11=$B9),0)),'Hourly - NLH'!$B$11:$B$8772,$C9,'Hourly - NLH'!$G$11:$G$8772,"Off-Peak")/(1+$D9),AN9*AC9*(1/(1-AD9))*AG9*(1-AK9)-AI9) -> 10.50143152 | AR9: 0.2917031223 | AS9: =IF(Z9<Controls!$E$55,AVERAGEIFS(INDEX('Hourly - NLH'!$BQ$11:$BS$8772,,MATCH(1,('Hourly - NLH'!$BQ$11:$BS$11='System Detail - Hydro'!Z9)*('Hourly - NLH'!$BQ$11:$BS$11='System Detail - Hydro'!Z9),0)),'Hourly - NLH'!$B$11:$B$8772,$AA9,'Hourly - NLH'!$G$11:$G$8772,"Off-Peak"),INDEX('Capacity - NLH'!$I$3:$I$230,MATCH('System Detail - Hydro'!Z9&'System Detail - Hydro'!AA9,'Capacity - NLH'!$A$3:$A$230&'Capacity - NLH'!$B$3:$B$230,0))) -> 0 | AT9: =IF(Z9<Controls!$E$55,AVERAGEIFS(INDEX('Hourly - NLH'!$BJ$11:$BO$8772,,MATCH(1,('Hourly - NLH'!$BJ$11:$BO$11='System Detail - Hydro'!Z9)*('Hourly - NLH'!$BJ$12:$BO$12="Trans"),0)),'Hourly - NLH'!$B$11:$B$8772,$AA9,'Hourly - NLH'!$G$11:$G$8772,"Off-Peak"),INDEX('Capacity - NLH'!$O$3:$O$230,MATCH('System Detail - Hydro'!Z9&'System Detail - Hydro'!AA9,'Capacity - NLH'!$K$3:$K$230&'Capacity - NLH'!$L$3:$L$230,0))) -> 0 | AU9: 17.13765846 | AV9: 10.79313464 | AX9: 2019 | AY9: 5 | AZ9: =IFERROR((('System Detail - Hydro'!Q9*'System Detail - Hydro'!$N9)+('System Detail - Hydro'!AO9*'System Detail - Hydro'!$AL9))/SUM('System Detail - Hydro'!$N9+'System Detail - Hydro'!$AL9),"") -> 19.00099229 | BA9: =IFERROR((('System Detail - Hydro'!R9*'System Detail - Hydro'!$N9)+('System Detail - Hydro'!AP9*'System Detail - Hydro'!$AL9))/SUM('System Detail - Hydro'!$N9+'System Detail - Hydro'!$AL9),"") -> 0.5277993547 | BB9: =IFERROR((('System Detail - Hydro'!S9*'System Detail - Hydro'!$N9)+('System Detail - Hydro'!AQ9*'System Detail - Hydro'!$AL9))/SUM('System Detail - Hydro'!$N9+'System Detail - Hydro'!$AL9),"") -> 15.0682866 | BC9: =IFERROR((('System Detail - Hydro'!T9*'System Detail - Hydro'!$N9)+('System Detail - Hydro'!AR9*'System Detail - Hydro'!$AL9))/SUM('System Detail - Hydro'!$N9+'System Detail - Hydro'!$AL9),"") -> 0.4185587688 | BD9: =IFERROR((('System Detail - Hydro'!U9*'System Detail - Hydro'!$N9)+('System Detail - Hydro'!AS9*'System Detail - Hydro'!$AL9))/SUM('System Detail - Hydro'!$N9+'System Detail - Hydro'!$AL9),"") -> 0 | BE9: =IFERROR((('System Detail - Hydro'!V9*'System Detail - Hydro'!$N9)+('System Detail - Hydro'!AT9*'System Detail - Hydro'!$AL9))/SUM('System Detail - Hydro'!$N9+'System Detail - Hydro'!$AL9),"") -> 0 | BF9: =IFERROR((('System Detail - Hydro'!W9*'System Detail - Hydro'!$N9)+('System Detail - Hydro'!AU9*'System Detail - Hydro'!$AL9))/SUM('System Detail - Hydro'!$N9+'System Detail - Hydro'!$AL9),"") -> 19.52879165 | BG9: =IFERROR((('System Detail - Hydro'!X9*'System Detail - Hydro'!$N9)+('System Detail - Hydro'!AV9*'System Detail - Hydro'!$AL9))/SUM('System Detail - Hydro'!$N9+'System Detail - Hydro'!$AL9),"") -> 15.48684537 | BI9: 2023 | BJ9: =IF(BI9<Controls!$E$55,AVERAGEIFS(INDEX('Hourly - NLH'!$BQ$11:$BS$8772,,MATCH(1,('Hourly - NLH'!$BQ$11:$BS$11='System Detail - Hydro'!BI9)*('Hourly - NLH'!$BQ$11:$BS$11='System Detail - Hydro'!BI9),0)),'Hourly - NLH'!$G$11:$G$8772,"on-peak"),AVERAGEIF($B$5:$B$268,BI9,$U$5:$U$268)) -> 62.23511065 | BK9: =IF(BI9<Controls!$E$55,AVERAGEIFS(INDEX('Hourly - NLH'!$BJ$11:$BO$8772,,MATCH(1,('Hourly - NLH'!$BJ$11:$BO$11='System Detail - Hydro'!BI9)*('Hourly - NLH'!$BJ$12:$BO$12="Trans"),0)),'Hourly - NLH'!$G$11:$G$8772,"on-peak"),AVERAGEIF($B$5:$B$268,BI9,$V$5:$V$268)) -> 6.297149979
B10: 2019 | C10: 6 | D10: ='Input Parameters, System'!$E$18 -> 0.0277774627 | E10: 1.257321868 | F10: ='Input Parameters, System'!I163 -> 0.08872270496 | G10: ='Input Parameters, System'!$B$41 -> 1 | H10: =VLOOKUP($C10&"On-Peak",'Input Parameters, System'!$C$52:$E$76,2,FALSE)+1 -> 1 | I10: =VLOOKUP($C10&"On-Peak",'Input Parameters, System'!$C$52:$E$76,3,FALSE)+1 -> 1 | J10: =IF(Controls!$C$48=1,INDEX('T_Tariff Path Charges'!$F$39:$AE$62,13,MATCH($B10,'T_Tariff Path Charges'!$F$39:$AE$39,0))+INDEX('T_Tariff Path Charges'!$F$39:$AE$62,14,MATCH($B10,'T_Tariff Path Charges'!$F$39:$AE$39,0)),0) -> 10.04846436 | K10: =IF(Controls!$C$51=1,INDEX('T_Tariff Path Charges'!$F$39:$AE$62,12,MATCH($B10,'T_Tariff Path Charges'!$F$39:$AE$39,0)),0) -> 8.817700071 | L10: ='Input Parameters, System'!$C$31 -> 0.1037360426 | M10: ='Input Parameters, System'!$C$27 -> 0.0574929312 | N10: =INDEX(Dates!$T$3:$T$266,MATCH(B10&C10,Dates!$M$3:$M$266&Dates!$N$3:$N$266,0)) -> 420 | O10: =INDEX('Long Term Regional Prices'!$A$4:$M$74,MATCH(B10,'Long Term Regional Prices'!$A$4:$A$74,0),MATCH(C10,'Long Term Regional Prices'!$A$4:$M$4,0)) -> 28.43289633 | P10: =INDEX('Long Term Regional Prices'!$P$4:$AB$74,MATCH(B10,'Long Term Regional Prices'!$P$4:$P$74,0),MATCH(C10,'Long Term Regional Prices'!$P$4:$AB$4,0)) -> 22.88773458 | Q10: =IF(B10<Controls!$E$55,AVERAGEIFS(INDEX('Hourly - NLH'!$BC$11:$BH$8772,,MATCH(1,('Hourly - NLH'!$BC$12:$BH$12=W$4)*('Hourly - NLH'!$BC$11:$BH$11=$B10),0)),'Hourly - NLH'!$B$11:$B$8772,$C10,'Hourly - NLH'!$G$11:$G$8772,"On-Peak")/(1+$D10),O10*E10*(1/(1-F10))*H10*(1-L10)-J10) -> 22.55244884 | R10: =IF(Controls!$C$42=1,Q10*$D10,0) -> 0.6264498065 | S10: =IF(B10<Controls!$E$55,AVERAGEIFS(INDEX('Hourly - NLH'!$BC$11:$BH$8772,,MATCH(1,('Hourly - NLH'!$BC$12:$BH$12=X$4)*('Hourly - NLH'!$BC$11:$BH$11=$B10),0)),'Hourly - NLH'!$B$11:$B$8772,$C10,'Hourly - NLH'!$G$11:$G$8772,"On-Peak")/(1+$D10),P10*E10*(1/(1-F10))*I10*(1-M10)-K10) -> 19.70286497 | T10: =IF(Controls!$C$42=1,S10*$D10,0) -> 0.5472955966 | U10: =IF(B10<Controls!$E$55,AVERAGEIFS(INDEX('Hourly - NLH'!$BQ$11:$BS$8772,,MATCH(1,('Hourly - NLH'!$BQ$11:$BS$11='System Detail - Hydro'!B10)*('Hourly - NLH'!$BQ$11:$BS$11='System Detail - Hydro'!B10),0)),'Hourly - NLH'!$B$11:$B$8772,$C10,'Hourly - NLH'!$G$11:$G$8772,"On-Peak"),INDEX('Capacity - NLH'!$H$3:$H$230,MATCH('System Detail - Hydro'!B10&'System Detail - Hydro'!C10,'Capacity - NLH'!$A$3:$A$230&'Capacity - NLH'!$B$3:$B$230,0))) -> 0 | V10: =IF(B10<Controls!$E$55,AVERAGEIFS(INDEX('Hourly - NLH'!$BJ$11:$BO$8772,,MATCH(1,('Hourly - NLH'!$BJ$11:$BO$11='System Detail - Hydro'!B10)*('Hourly - NLH'!$BJ$12:$BO$12="Trans"),0)),'Hourly - NLH'!$B$11:$B$8772,$C10,'Hourly - NLH'!$G$11:$G$8772,"On-Peak"),INDEX('Capacity - NLH'!$N$3:$N$230,MATCH('System Detail - Hydro'!B10&'System Detail - Hydro'!C10,'Capacity - NLH'!$A$3:$A$230&'Capacity - NLH'!$B$3:$B$230,0))) -> 0 | W10: 23.17889865 | X10: 20.25016056 | Z10: 2019 | AA10: 6 | AB10: ='Input Parameters, System'!$E$18 -> 0.0277774627 | AC10: 1.257321868 | AD10: ='Input Parameters, System'!J163 -> 0.08198813412 | AE10: ='Input Parameters, System'!$C$41 -> 1 | AF10: =VLOOKUP($C10&"Off-Peak",'Input Parameters, System'!$C$52:$E$76,2,FALSE)+1 -> 1 | AG10: =VLOOKUP($C10&"Off-Peak",'Input Parameters, System'!$C$52:$E$76,3,FALSE)+1 -> 1 | AH10: =IF(Controls!$C$48=1,INDEX('T_Tariff Path Charges'!$F$39:$AE$62,13,MATCH($B10,'T_Tariff Path Charges'!$F$39:$AE$39,0))+INDEX('T_Tariff Path Charges'!$F$39:$AE$62,14,MATCH($B10,'T_Tariff Path Charges'!$F$39:$AE$39,0)),0) -> 10.04846436 | AI10: =IF(Controls!$C$51=1,INDEX('T_Tariff Path Charges'!$F$39:$AE$62,12,MATCH($B10,'T_Tariff Path Charges'!$F$39:$AE$39,0)),0) -> 8.817700071 | AJ10: ='Input Parameters, System'!$C$31 -> 0.1037360426 | AK10: ='Input Parameters, System'!$C$27 -> 0.0574929312 | AL10: =INDEX(Dates!$U$3:$U$266,MATCH(Z10&AA10,Dates!$M$3:$M$266&Dates!$N$3:$N$266,0)) -> 300 | AM10: =INDEX('Long Term Regional Prices'!$A$78:$M$148,MATCH(B10,'Long Term Regional Prices'!$A$78:$A$148,0),MATCH(C10,'Long Term Regional Prices'!$A$4:$M$4,0)) -> 20.32448983 | AN10: =INDEX('Long Term Regional Prices'!$P$78:$AB$148,MATCH(B10,'Long Term Regional Prices'!$P$78:$P$148,0),MATCH(C10,'Long Term Regional Prices'!$P$4:$AB$4,0)) -> 16.01437858 | AO10: =IF(Z10<Controls!$E$55,AVERAGEIFS(INDEX('Hourly - NLH'!$BC$11:$BH$8772,,MATCH(1,('Hourly - NLH'!$BC$12:$BH$12=AU$4)*('Hourly - NLH'!$BC$11:$BH$11=$B10),0)),'Hourly - NLH'!$B$11:$B$8772,$C10,'Hourly - NLH'!$G$11:$G$8772,"Off-Peak")/(1+$D10),AM10*AC10*(1/(1-AD10))*AF10*(1-AJ10)-AH10) -> 16.7919871 | AP10: 0.4664387954 | AQ10: =IF(Z10<Controls!$E$55,AVERAGEIFS(INDEX('Hourly - NLH'!$BC$11:$BH$8772,,MATCH(1,('Hourly - NLH'!$BC$12:$BH$12=AV$4)*('Hourly - NLH'!$BC$11:$BH$11=$B10),0)),'Hourly - NLH'!$B$11:$B$8772,$C10,'Hourly - NLH'!$G$11:$G$8772,"Off-Peak")/(1+$D10),AN10*AC10*(1/(1-AD10))*AG10*(1-AK10)-AI10) -> 11.36504378 | AR10: 0.3156920796 | AS10: =IF(Z10<Controls!$E$55,AVERAGEIFS(INDEX('Hourly - NLH'!$BQ$11:$BS$8772,,MATCH(1,('Hourly - NLH'!$BQ$11:$BS$11='System Detail - Hydro'!Z10)*('Hourly - NLH'!$BQ$11:$BS$11='System Detail - Hydro'!Z10),0)),'Hourly - NLH'!$B$11:$B$8772,$AA10,'Hourly - NLH'!$G$11:$G$8772,"Off-Peak"),INDEX('Capacity - NLH'!$I$3:$I$230,MATCH('System Detail - Hydro'!Z10&'System Detail - Hydro'!AA10,'Capacity - NLH'!$A$3:$A$230&'Capacity - NLH'!$B$3:$B$230,0))) -> 0 | AT10: =IF(Z10<Controls!$E$55,AVERAGEIFS(INDEX('Hourly - NLH'!$BJ$11:$BO$8772,,MATCH(1,('Hourly - NLH'!$BJ$11:$BO$11='System Detail - Hydro'!Z10)*('Hourly - NLH'!$BJ$12:$BO$12="Trans"),0)),'Hourly - NLH'!$B$11:$B$8772,$AA10,'Hourly - NLH'!$G$11:$G$8772,"Off-Peak"),INDEX('Capacity - NLH'!$O$3:$O$230,MATCH('System Detail - Hydro'!Z10&'System Detail - Hydro'!AA10,'Capacity - NLH'!$K$3:$K$230&'Capacity - NLH'!$L$3:$L$230,0))) -> 0 | AU10: 17.2584259 | AV10: 11.68073586 | AX10: 2019 | AY10: 6 | AZ10: =IFERROR((('System Detail - Hydro'!Q10*'System Detail - Hydro'!$N10)+('System Detail - Hydro'!AO10*'System Detail - Hydro'!$AL10))/SUM('System Detail - Hydro'!$N10+'System Detail - Hydro'!$AL10),"") -> 20.15225645 | BA10: =IFERROR((('System Detail - Hydro'!R10*'System Detail - Hydro'!$N10)+('System Detail - Hydro'!AP10*'System Detail - Hydro'!$AL10))/SUM('System Detail - Hydro'!$N10+'System Detail - Hydro'!$AL10),"") -> 0.5597785519 | BB10: =IFERROR((('System Detail - Hydro'!S10*'System Detail - Hydro'!$N10)+('System Detail - Hydro'!AQ10*'System Detail - Hydro'!$AL10))/SUM('System Detail - Hydro'!$N10+'System Detail - Hydro'!$AL10),"") -> 16.22877281 | BC10: =IFERROR((('System Detail - Hydro'!T10*'System Detail - Hydro'!$N10)+('System Detail - Hydro'!AR10*'System Detail - Hydro'!$AL10))/SUM('System Detail - Hydro'!$N10+'System Detail - Hydro'!$AL10),"") -> 0.4507941312 | BD10: =IFERROR((('System Detail - Hydro'!U10*'System Detail - Hydro'!$N10)+('System Detail - Hydro'!AS10*'System Detail - Hydro'!$AL10))/SUM('System Detail - Hydro'!$N10+'System Detail - Hydro'!$AL10),"") -> 0 | BE10: =IFERROR((('System Detail - Hydro'!V10*'System Detail - Hydro'!$N10)+('System Detail - Hydro'!AT10*'System Detail - Hydro'!$AL10))/SUM('System Detail - Hydro'!$N10+'System Detail - Hydro'!$AL10),"") -> 0 | BF10: =IFERROR((('System Detail - Hydro'!W10*'System Detail - Hydro'!$N10)+('System Detail - Hydro'!AU10*'System Detail - Hydro'!$AL10))/SUM('System Detail - Hydro'!$N10+'System Detail - Hydro'!$AL10),"") -> 20.712035 | BG10: =IFERROR((('System Detail - Hydro'!X10*'System Detail - Hydro'!$N10)+('System Detail - Hydro'!AV10*'System Detail - Hydro'!$AL10))/SUM('System Detail - Hydro'!$N10+'System Detail - Hydro'!$AL10),"") -> 16.67956694 | BI10: 2024 | BJ10: =IF(BI10<Controls!$E$55,AVERAGEIFS(INDEX('Hourly - NLH'!$BQ$11:$BS$8772,,MATCH(1,('Hourly - NLH'!$BQ$11:$BS$11='System Detail - Hydro'!BI10)*('Hourly - NLH'!$BQ$11:$BS$11='System Detail - Hydro'!BI10),0)),'Hourly - NLH'!$G$11:$G$8772,"on-peak"),AVERAGEIF($B$5:$B$268,BI10,$U$5:$U$268)) -> 63.72615181 | BK10: =IF(BI10<Controls!$E$55,AVERAGEIFS(INDEX('Hourly - NLH'!$BJ$11:$BO$8772,,MATCH(1,('Hourly - NLH'!$BJ$11:$BO$11='System Detail - Hydro'!BI10)*('Hourly - NLH'!$BJ$12:$BO$12="Trans"),0)),'Hourly - NLH'!$G$11:$G$8772,"on-peak"),AVERAGEIF($B$5:$B$268,BI10,$V$5:$V$268)) -> 6.419195855
B11: 2019 | C11: 7 | D11: ='Input Parameters, System'!$E$18 -> 0.0277774627 | E11: 1.257321868 | F11: ='Input Parameters, System'!I164 -> 0.08612060786 | G11: ='Input Parameters, System'!$B$42 -> 1 | H11: =VLOOKUP($C11&"On-Peak",'Input Parameters, System'!$C$52:$E$76,2,FALSE)+1 -> 1 | I11: =VLOOKUP($C11&"On-Peak",'Input Parameters, System'!$C$52:$E$76,3,FALSE)+1 -> 1 | J11: =IF(Controls!$C$48=1,INDEX('T_Tariff Path Charges'!$F$39:$AE$62,13,MATCH($B11,'T_Tariff Path Charges'!$F$39:$AE$39,0))+INDEX('T_Tariff Path Charges'!$F$39:$AE$62,14,MATCH($B11,'T_Tariff Path Charges'!$F$39:$AE$39,0)),0) -> 10.04846436 | K11: =IF(Controls!$C$51=1,INDEX('T_Tariff Path Charges'!$F$39:$AE$62,12,MATCH($B11,'T_Tariff Path Charges'!$F$39:$AE$39,0)),0) -> 8.817700071 | L11: ='Input Parameters, System'!$C$31 -> 0.1037360426 | M11: ='Input Parameters, System'!$C$27 -> 0.0574929312 | N11: =INDEX(Dates!$T$3:$T$266,MATCH(B11&C11,Dates!$M$3:$M$266&Dates!$N$3:$N$266,0)) -> 434 | O11: =INDEX('Long Term Regional Prices'!$A$4:$M$74,MATCH(B11,'Long Term Regional Prices'!$A$4:$A$74,0),MATCH(C11,'Long Term Regional Prices'!$A$4:$M$4,0)) -> 34.08384511 | P11: =INDEX('Long Term Regional Prices'!$P$4:$AB$74,MATCH(B11,'Long Term Regional Prices'!$P$4:$P$74,0),MATCH(C11,'Long Term Regional Prices'!$P$4:$AB$4,0)) -> 31.57067801 | Q11: =IF(B11<Controls!$E$55,AVERAGEIFS(INDEX('Hourly - NLH'!$BC$11:$BH$8772,,MATCH(1,('Hourly - NLH'!$BC$12:$BH$12=W$4)*('Hourly - NLH'!$BC$11:$BH$11=$B11),0)),'Hourly - NLH'!$B$11:$B$8772,$C11,'Hourly - NLH'!$G$11:$G$8772,"On-Peak")/(1+$D11),O11*E11*(1/(1-F11))*H11*(1-L11)-J11) -> 27.50655746 | R11: =IF(Controls!$C$42=1,Q11*$D11,0) -> 0.7640623737 | S11: =IF(B11<Controls!$E$55,AVERAGEIFS(INDEX('Hourly - NLH'!$BC$11:$BH$8772,,MATCH(1,('Hourly - NLH'!$BC$12:$BH$12=X$4)*('Hourly - NLH'!$BC$11:$BH$11=$B11),0)),'Hourly - NLH'!$B$11:$B$8772,$C11,'Hourly - NLH'!$G$11:$G$8772,"On-Peak")/(1+$D11),P11*E11*(1/(1-F11))*I11*(1-M11)-K11) -> 29.89492363 | T11: =IF(Controls!$C$42=1,S11*$D11,0) -> 0.8304051258 | U11: =IF(B11<Controls!$E$55,AVERAGEIFS(INDEX('Hourly - NLH'!$BQ$11:$BS$8772,,MATCH(1,('Hourly - NLH'!$BQ$11:$BS$11='System Detail - Hydro'!B11)*('Hourly - NLH'!$BQ$11:$BS$11='System Detail - Hydro'!B11),0)),'Hourly - NLH'!$B$11:$B$8772,$C11,'Hourly - NLH'!$G$11:$G$8772,"On-Peak"),INDEX('Capacity - NLH'!$H$3:$H$230,MATCH('System Detail - Hydro'!B11&'System Detail - Hydro'!C11,'Capacity - NLH'!$A$3:$A$230&'Capacity - NLH'!$B$3:$B$230,0))) -> 0 | V11: =IF(B11<Controls!$E$55,AVERAGEIFS(INDEX('Hourly - NLH'!$BJ$11:$BO$8772,,MATCH(1,('Hourly - NLH'!$BJ$11:$BO$11='System Detail - Hydro'!B11)*('Hourly - NLH'!$BJ$12:$BO$12="Trans"),0)),'Hourly - NLH'!$B$11:$B$8772,$C11,'Hourly - NLH'!$G$11:$G$8772,"On-Peak"),INDEX('Capacity - NLH'!$N$3:$N$230,MATCH('System Detail - Hydro'!B11&'System Detail - Hydro'!C11,'Capacity - NLH'!$A$3:$A$230&'Capacity - NLH'!$B$3:$B$230,0))) -> 0 | W11: 28.27061983 | X11: 30.72532875 | Z11: 2019 | AA11: 7 | AB11: ='Input Parameters, System'!$E$18 -> 0.0277774627 | AC11: 1.257321868 | AD11: ='Input Parameters, System'!J164 -> 0.07734307455 | AE11: ='Input Parameters, System'!$C$42 -> 1 | AF11: =VLOOKUP($C11&"Off-Peak",'Input Parameters, System'!$C$52:$E$76,2,FALSE)+1 -> 1 | AG11: =VLOOKUP($C11&"Off-Peak",'Input Parameters, System'!$C$52:$E$76,3,FALSE)+1 -> 1 | AH11: =IF(Controls!$C$48=1,INDEX('T_Tariff Path Charges'!$F$39:$AE$62,13,MATCH($B11,'T_Tariff Path Charges'!$F$39:$AE$39,0))+INDEX('T_Tariff Path Charges'!$F$39:$AE$62,14,MATCH($B11,'T_Tariff Path Charges'!$F$39:$AE$39,0)),0) -> 10.04846436 | AI11: =IF(Controls!$C$51=1,INDEX('T_Tariff Path Charges'!$F$39:$AE$62,12,MATCH($B11,'T_Tariff Path Charges'!$F$39:$AE$39,0)),0) -> 8.817700071 | AJ11: ='Input Parameters, System'!$C$31 -> 0.1037360426 | AK11: ='Input Parameters, System'!$C$27 -> 0.0574929312 | AL11: =INDEX(Dates!$U$3:$U$266,MATCH(Z11&AA11,Dates!$M$3:$M$266&Dates!$N$3:$N$266,0)) -> 310 | AM11: =INDEX('Long Term Regional Prices'!$A$78:$M$148,MATCH(B11,'Long Term Regional Prices'!$A$78:$A$148,0),MATCH(C11,'Long Term Regional Prices'!$A$4:$M$4,0)) -> 23.09925002 | AN11: =INDEX('Long Term Regional Prices'!$P$78:$AB$148,MATCH(B11,'Long Term Regional Prices'!$P$78:$P$148,0),MATCH(C11,'Long Term Regional Prices'!$P$4:$AB$4,0)) -> 20.9517939 | AO11: =IF(Z11<Controls!$E$55,AVERAGEIFS(INDEX('Hourly - NLH'!$BC$11:$BH$8772,,MATCH(1,('Hourly - NLH'!$BC$12:$BH$12=AU$4)*('Hourly - NLH'!$BC$11:$BH$11=$B11),0)),'Hourly - NLH'!$B$11:$B$8772,$C11,'Hourly - NLH'!$G$11:$G$8772,"Off-Peak")/(1+$D11),AM11*AC11*(1/(1-AD11))*AF11*(1-AJ11)-AH11) -> 22.31177054 | AP11: 0.6197643739 | AQ11: =IF(Z11<Controls!$E$55,AVERAGEIFS(INDEX('Hourly - NLH'!$BC$11:$BH$8772,,MATCH(1,('Hourly - NLH'!$BC$12:$BH$12=AV$4)*('Hourly - NLH'!$BC$11:$BH$11=$B11),0)),'Hourly - NLH'!$B$11:$B$8772,$C11,'Hourly - NLH'!$G$11:$G$8772,"Off-Peak")/(1+$D11),AN11*AC11*(1/(1-AD11))*AG11*(1-AK11)-AI11) -> 18.05441518 | AR11: 0.5015058442 | AS11: =IF(Z11<Controls!$E$55,AVERAGEIFS(INDEX('Hourly - NLH'!$BQ$11:$BS$8772,,MATCH(1,('Hourly - NLH'!$BQ$11:$BS$11='System Detail - Hydro'!Z11)*('Hourly - NLH'!$BQ$11:$BS$11='System Detail - Hydro'!Z11),0)),'Hourly - NLH'!$B$11:$B$8772,$AA11,'Hourly - NLH'!$G$11:$G$8772,"Off-Peak"),INDEX('Capacity - NLH'!$I$3:$I$230,MATCH('System Detail - Hydro'!Z11&'System Detail - Hydro'!AA11,'Capacity - NLH'!$A$3:$A$230&'Capacity - NLH'!$B$3:$B$230,0))) -> 0 | AT11: =IF(Z11<Controls!$E$55,AVERAGEIFS(INDEX('Hourly - NLH'!$BJ$11:$BO$8772,,MATCH(1,('Hourly - NLH'!$BJ$11:$BO$11='System Detail - Hydro'!Z11)*('Hourly - NLH'!$BJ$12:$BO$12="Trans"),0)),'Hourly - NLH'!$B$11:$B$8772,$AA11,'Hourly - NLH'!$G$11:$G$8772,"Off-Peak"),INDEX('Capacity - NLH'!$O$3:$O$230,MATCH('System Detail - Hydro'!Z11&'System Detail - Hydro'!AA11,'Capacity - NLH'!$K$3:$K$230&'Capacity - NLH'!$L$3:$L$230,0))) -> 0 | AU11: 22.93153491 | AV11: 18.55592103 | AX11: 2019 | AY11: 7 | AZ11: =IFERROR((('System Detail - Hydro'!Q11*'System Detail - Hydro'!$N11)+('System Detail - Hydro'!AO11*'System Detail - Hydro'!$AL11))/SUM('System Detail - Hydro'!$N11+'System Detail - Hydro'!$AL11),"") -> 25.34206291 | BA11: =IFERROR((('System Detail - Hydro'!R11*'System Detail - Hydro'!$N11)+('System Detail - Hydro'!AP11*'System Detail - Hydro'!$AL11))/SUM('System Detail - Hydro'!$N11+'System Detail - Hydro'!$AL11),"") -> 0.7039382071 | BB11: =IFERROR((('System Detail - Hydro'!S11*'System Detail - Hydro'!$N11)+('System Detail - Hydro'!AQ11*'System Detail - Hydro'!$AL11))/SUM('System Detail - Hydro'!$N11+'System Detail - Hydro'!$AL11),"") -> 24.96137844 | BC11: =IFERROR((('System Detail - Hydro'!T11*'System Detail - Hydro'!$N11)+('System Detail - Hydro'!AR11*'System Detail - Hydro'!$AL11))/SUM('System Detail - Hydro'!$N11+'System Detail - Hydro'!$AL11),"") -> 0.6933637585 | BD11: =IFERROR((('System Detail - Hydro'!U11*'System Detail - Hydro'!$N11)+('System Detail - Hydro'!AS11*'System Detail - Hydro'!$AL11))/SUM('System Detail - Hydro'!$N11+'System Detail - Hydro'!$AL11),"") -> 0 | BE11: =IFERROR((('System Detail - Hydro'!V11*'System Detail - Hydro'!$N11)+('System Detail - Hydro'!AT11*'System Detail - Hydro'!$AL11))/SUM('System Detail - Hydro'!$N11+'System Detail - Hydro'!$AL11),"") -> 0 | BF11: =IFERROR((('System Detail - Hydro'!W11*'System Detail - Hydro'!$N11)+('System Detail - Hydro'!AU11*'System Detail - Hydro'!$AL11))/SUM('System Detail - Hydro'!$N11+'System Detail - Hydro'!$AL11),"") -> 26.04600111 | BG11: =IFERROR((('System Detail - Hydro'!X11*'System Detail - Hydro'!$N11)+('System Detail - Hydro'!AV11*'System Detail - Hydro'!$AL11))/SUM('System Detail - Hydro'!$N11+'System Detail - Hydro'!$AL11),"") -> 25.6547422 | BI11: 2025 | BJ11: =IF(BI11<Controls!$E$55,AVERAGEIFS(INDEX('Hourly - NLH'!$BQ$11:$BS$8772,,MATCH(1,('Hourly - NLH'!$BQ$11:$BS$11='System Detail - Hydro'!BI11)*('Hourly - NLH'!$BQ$11:$BS$11='System Detail - Hydro'!BI11),0)),'Hourly - NLH'!$G$11:$G$8772,"on-peak"),AVERAGEIF($B$5:$B$268,BI11,$U$5:$U$268)) -> 65.25309045 | BK11: =IF(BI11<Controls!$E$55,AVERAGEIFS(INDEX('Hourly - NLH'!$BJ$11:$BO$8772,,MATCH(1,('Hourly - NLH'!$BJ$11:$BO$11='System Detail - Hydro'!BI11)*('Hourly - NLH'!$BJ$12:$BO$12="Trans"),0)),'Hourly - NLH'!$G$11:$G$8772,"on-peak"),AVERAGEIF($B$5:$B$268,BI11,$V$5:$V$268)) -> 6.543987963
